Workbook

Sheet Sample Report (hidden)
A2: Date
A3: Hen
A4: Program
A5: Start at 999999
A6: Sequence component 1 | B6: Time 1 | C6: Seqeunce Component 2 | D6: Time 2 | E6: Seqeunce Component 3 | F6: Time 3 | G6: Correct 0 = No 1=Yes | J6: Seqeunce | K6: Time
A7: 12 | B7: 7 | C7: 12 | D7: 42 | E7: 13 | F7: 18 | G7: if 77 new line, if 31 or 41 = yes new line on 77, | J7: =string of Seqeunce compponent 1, 2 & 3 | K7: =time 3
A8: This continues until ther is a 1 on its own to indicate start of summary data
J9: 10-19 =1
A10: Summary Data | J10: 20-29 =2
A11: Correct | B11: Incorrect | C11: Rft | D11: total | E11: Av Correct | F11: Av Incorrect | G11: Percent correct | H11: Time | J11: in this example the seqeunce would be 111
A12: 40 | B12: 33 | C12: 40 | D12: 73 | E12: 23.95 | F12: 15 | G12: 54 | H12: 806

Sheet Summary
A2: Day | B2: Date | C2: Average Response Rate | D2: Target % | E2: RF for non correct sequence | F2: U Value | K2: Block 1 | L2: Block 2 | M2: Block 3 | N2: Block 4 | O2: Block 5 | P2: Block 6
A3: 1 | B3: ='!N203B00.095'!B2:C2 -> <date> | C3: =('!N203B00.095'!D7/60)/'!N203B00.095'!Q3 -> 0.003476482618 | D3: ='!N203B00.095'!N20/'!N203B00.095'!Q3 -> 0.1165644172 | E3: =SUM('!N203B00.095'!L20:Q20)/'!N203B00.095'!Q3 -> 0.5766871166 | F3: ='!N203B00.095'!Q16 -> 0.1907449777 | J3: Average Response Rate | K3: =AVERAGE(C3:C7) -> 0.006869319585 | L3: =AVERAGE(C8:C12) -> 0.01327895356 | M3: =AVERAGE(C13:C17) -> 0.01233948601 | N3: =AVERAGE(C18:C22) -> 0.009644515799 | O3: =AVERAGE(C23:C27) -> 0.01066942793 | P3: =AVERAGE(C28:C32) -> 0.01198246395
A4: 2 | B4: ='!N204A10.095'!B2:C2 -> <date> | C4: =('!N204A10.095'!D7/60)/'!N204A10.095'!Q3 -> 0.006012658228 | D4: ='!N204A10.095'!N20/'!N204A10.095'!Q3 -> 0.1265822785 | E4: =SUM('!N204A10.095'!L20:Q20)/'!N204A10.095'!Q3 -> 0.5949367089 | F4: ='!N204A10.095'!Q16 -> 0.1886737592 | J4: Target % | K4: =AVERAGE(D3:D7) -> 0.2530979444 | L4: =AVERAGE(D8:D12) -> 0.4432778073 | M4: =AVERAGE(D13:D17) -> 0.5805076544 | N4: =AVERAGE(D18:D22) -> 0.5368538577 | O4: =AVERAGE(D23:D27) -> 0.3752570296 | P4: =AVERAGE(D28:D32) -> 0.6017080291
A5: 3 | B5: ='!N205910.095'!B2:C2 -> <date> | C5: =('!N205910.095'!D7/60)/'!N205910.095'!Q3 -> 0.002702702703 | D5: ='!N205910.095'!N20/'!N205910.095'!Q3 -> 0.2342342342 | E5: =SUM('!N205910.095'!L20:Q20)/'!N205910.095'!Q3 -> 0.7567567568 | F5: ='!N205910.095'!Q16 -> 0.2211503762 | J5: CCRF | K5: =AVERAGE(E3:E7) -> 0.7492434789 | L5: =AVERAGE(E8:E12) -> 1.046576458 | M5: =AVERAGE(E13:E17) -> 1.135548751 | N5: =AVERAGE(E18:E22) -> 1.127620832 | O5: =AVERAGE(E23:E27) -> 0.8844994632 | P5: =AVERAGE(E28:E32) -> 1.206006372
A6: 4 | B6: ='!N206920.095'!B2:C2 -> <date> | C6: =('!N206920.095'!D7/60)/'!N206920.095'!Q3 -> 0.006272401434 | D6: ='!N206920.095'!N20/'!N206920.095'!Q3 -> 0.376344086 | E6: =SUM('!N206920.095'!L20:Q20)/'!N206920.095'!Q3 -> 0.935483871 | F6: ='!N206920.095'!Q16 -> 0.2334727158 | J6: U Value | K6: =AVERAGE(F3:F7) -> 0.2141236536 | L6: =AVERAGE(F8:F12) -> 0.2435995681 | M6: =AVERAGE(F13:F17) -> 0.2485913422 | N6: =AVERAGE(F18:F22) -> 0.2734043847 | O6: =AVERAGE(F23:F27) -> 0.2593968578 | P6: =AVERAGE(F28:F32) -> 0.2525091581
A7: 5 | B7: ='!N207940.095'!B2:C2 -> <date> | C7: =('!N207940.095'!D7/60)/'!N207940.095'!Q3 -> 0.01588235294 | D7: ='!N207940.095'!N20/'!N207940.095'!Q3 -> 0.4117647059 | E7: =SUM('!N207940.095'!L20:Q20)/'!N207940.095'!Q3 -> 0.8823529412 | F7: ='!N207940.095'!Q16 -> 0.2365764391
A8: 6 | B8: ='!N208A20.095'!B2:C2 -> <date> | C8: =('!N208A20.095'!D7/60)/'!N208A20.095'!Q3 -> 0.03181818182 | D8: ='!N208A20.095'!N20/'!N208A20.095'!Q3 -> 0.2954545455 | E8: =SUM('!N208A20.095'!L20:Q20)/'!N208A20.095'!Q3 -> 1.113636364 | F8: ='!N208A20.095'!Q16 -> 0.2637055715
A9: 7 | B9: ='!N209820.095'!B2:C2 -> <date> | C9: =('!N209820.095'!D7/60)/'!N209820.095'!Q3 -> 0.007070707071 | D9: ='!N209820.095'!N20/'!N209820.095'!Q3 -> 0.5606060606 | E9: =SUM('!N209820.095'!L20:Q20)/'!N209820.095'!Q3 -> 1.212121212 | F9: ='!N209820.095'!Q16 -> 0.198565951 | G9: =K3 -> 0.006869319585 | H9: 0.01327895356 | I9: 0.01233948601 | J9: 0.009644515799 | K9: 0.01066942793 | L9: 0.01198246395 | M9: =K4 -> 0.2530979444 | N9: 0.4432778073 | O9: 0.5805076544 | P9: 0.5368538577 | Q9: 0.3752570296 | R9: 0.6017080291 | S9: =K6 -> 0.2141236536 | T9: 0.2435995681 | U9: 0.2485913422 | V9: 0.2734043847 | W9: 0.2593968578 | X9: 0.2525091581
A10: 8 | B10: ='!N210900.095'!B2:C2 -> <date> | C10: =('!N210900.095'!D7/60)/'!N210900.095'!Q3 -> 0.01428571429 | D10: ='!N210900.095'!N20/'!N210900.095'!Q3 -> 0.4545454545 | E10: =SUM('!N210900.095'!L20:Q20)/'!N210900.095'!Q3 -> 0.9350649351 | F10: ='!N210900.095'!Q16 -> 0.2355841785
A11: 9 | B11: ='!N211A30.095'!B2:C2 -> <date> | C11: =('!N211A30.095'!D7/60)/'!N211A30.095'!Q3 -> 0.004166666667 | D11: ='!N211A30.095'!N20/'!N211A30.095'!Q3 -> 0.4736842105 | E11: =SUM('!N211A30.095'!L20:Q20)/'!N211A30.095'!Q3 -> 0.9473684211 | F11: ='!N211A30.095'!Q16 -> 0.2432774558
A12: 10 | B12: ='!N212940.095'!B2:C2 -> <date> | C12: =('!N212940.095'!D7/60)/'!N212940.095'!Q3 -> 0.009053497942 | D12: ='!N212940.095'!N20/'!N212940.095'!Q3 -> 0.4320987654 | E12: =SUM('!N212940.095'!L20:Q20)/'!N212940.095'!Q3 -> 1.024691358 | F12: ='!N212940.095'!Q16 -> 0.2768646838
A13: 11 | B13: ='!N213950.095'!B2:C2 -> <date> | C13: =('!N213950.095'!D7/60)/'!N213950.095'!Q3 -> 0.007675438596 | D13: ='!N213950.095'!N20/'!N213950.095'!Q3 -> 0.4736842105 | E13: =SUM('!N213950.095'!L20:Q20)/'!N213950.095'!Q3 -> 0.9605263158 | F13: ='!N213950.095'!Q16 -> 0.2248122526
A14: 12 | B14: ='!N214920.095'!B2:C2 -> <date> | C14: =('!N214920.095'!D7/60)/'!N214920.095'!Q3 -> 0.02069892473 | D14: ='!N214920.095'!N20/'!N214920.095'!Q3 -> 0.5483870968 | E14: =SUM('!N214920.095'!L20:Q20)/'!N214920.095'!Q3 -> 1.080645161 | F14: ='!N214920.095'!Q16 -> 0.2713901511
A15: 13 | B15: ='!N215920.095'!B2:C2 -> <date> | C15: =('!N215920.095'!D7/60)/'!N215920.095'!Q3 -> 0.01919191919 | D15: ='!N215920.095'!N20/'!N215920.095'!Q3 -> 0.5303030303 | E15: =SUM('!N215920.095'!L20:Q20)/'!N215920.095'!Q3 -> 1.181818182 | F15: ='!N215920.095'!Q16 -> 0.2801334031
A16: 14 | B16: ='!N216920.095'!B2:C2 -> <date> | C16: =('!N216920.095'!D7/60)/'!N216920.095'!Q3 -> 0.005464480874 | D16: ='!N216920.095'!N20/'!N216920.095'!Q3 -> 0.5901639344 | E16: =SUM('!N216920.095'!L20:Q20)/'!N216920.095'!Q3 -> 1.114754098 | F16: ='!N216920.095'!Q16 -> 0.2694076989
A17: 15 | B17: ='!N217820.095'!B2:C2 -> <date> | C17: =('!N217820.095'!D7/60)/'!N217820.095'!Q3 -> 0.008666666667 | D17: ='!N217820.095'!N20/'!N217820.095'!Q3 -> 0.76 | E17: =SUM('!N217820.095'!L20:Q20)/'!N217820.095'!Q3 -> 1.34 | F17: ='!N217820.095'!Q16 -> 0.1972132054
A18: 16 | B18: ='!N218950.095'!B2:C2 -> <date> | C18: =('!N218950.095'!D7/60)/'!N218950.095'!Q3 -> 0.008461538462 | D18: ='!N218950.095'!N20/'!N218950.095'!Q3 -> 0.5230769231 | E18: =SUM('!N218950.095'!L20:Q20)/'!N218950.095'!Q3 -> 1.184615385 | F18: ='!N218950.095'!Q16 -> 0.2908218524
A19: 17 | B19: ='!N219A20.095'!B2:C2 -> <date> | C19: =('!N219A20.095'!D7/60)/'!N219A20.095'!Q3 -> 0.008620689655 | D19: ='!N219A20.095'!N20/'!N219A20.095'!Q3 -> 0.6551724138 | E19: =SUM('!N219A20.095'!L20:Q20)/'!N219A20.095'!Q3 -> 1.189655172 | F19: ='!N219A20.095'!Q16 -> 0.239234486
A20: 18 | B20: ='!N220B10.095'!B2:C2 -> <date> | C20: =('!N220B10.095'!D7/60)/'!N220B10.095'!Q3 -> 0.005555555556 | D20: ='!N220B10.095'!N20/'!N220B10.095'!Q3 -> 0.5555555556 | E20: =SUM('!N220B10.095'!L20:Q20)/'!N220B10.095'!Q3 -> 1.079365079 | F20: ='!N220B10.095'!Q16 -> 0.2764677727
A21: 19 | B21: ='!N222940.095'!B2:C2 -> <date> | C21: =('!N222940.095'!D7/60)/'!N222940.095'!Q3 -> 0.008333333333 | D21: ='!N222940.095'!N20/'!N222940.095'!Q3 -> 0.5294117647 | E21: =SUM('!N222940.095'!L20:Q20)/'!N222940.095'!Q3 -> 1.044117647 | F21: ='!N222940.095'!Q16 -> 0.283388427
A22: 20 | B22: ='!N223930.095'!B2:C2 -> <date> | C22: =('!N223930.095'!D7/60)/'!N223930.095'!Q3 -> 0.01725146199 | D22: ='!N223930.095'!N20/'!N223930.095'!Q3 -> 0.4210526316 | E22: =SUM('!N223930.095'!L20:Q20)/'!N223930.095'!Q3 -> 1.140350877 | F22: ='!N223930.095'!Q16 -> 0.2771093853
A23: 21 | B23: ='!N224A20.095'!B2:C2 -> <date> | C23: =('!N224A20.095'!D7/60)/'!N224A20.095'!Q3 -> 0.003958333333 | D23: ='!N224A20.095'!N20/'!N224A20.095'!Q3 -> 0.35 | E23: =SUM('!N224A20.095'!L20:Q20)/'!N224A20.095'!Q3 -> 0.8375 | F23: ='!N224A20.095'!Q16 -> 0.2511299938
A24: 22 | B24: ='!N225950.095'!B2:C2 -> <date> | C24: =('!N225950.095'!D7/60)/'!N225950.095'!Q3 -> 0.005128205128 | D24: ='!N225950.095'!N20/'!N225950.095'!Q3 -> 0.2923076923 | E24: =SUM('!N225950.095'!L20:Q20)/'!N225950.095'!Q3 -> 0.8 | F24: ='!N225950.095'!Q16 -> 0.2590514542
A25: 23 | B25: ='!N226B00.095'!B2:C2 -> <date> | C25: =('!N226B00.095'!D7/60)/'!N226B00.095'!Q3 -> 0.005277777778 | D25: ='!N226B00.095'!N20/'!N226B00.095'!Q3 -> 0.6333333333 | E25: =SUM('!N226B00.095'!L20:Q20)/'!N226B00.095'!Q3 -> 1.15 | F25: ='!N226B00.095'!Q16 -> 0.2462571241
A26: 24 | B26: ='!N227A30.095'!B2:C2 -> <date> | C26: =('!N227A30.095'!D7/60)/'!N227A30.095'!Q3 -> 0.01543209877 | D26: ='!N227A30.095'!N20/'!N227A30.095'!Q3 -> 0.2962962963 | E26: =SUM('!N227A30.095'!L20:Q20)/'!N227A30.095'!Q3 -> 0.7654320988 | F26: ='!N227A30.095'!Q16 -> 0.2215246275
A27: 25 | B27: ='!N228A00.095'!B2:C2 -> <date> | C27: =('!N228A00.095'!D7/60)/'!N228A00.095'!Q3 -> 0.02355072464 | D27: ='!N228A00.095'!N20/'!N228A00.095'!Q3 -> 0.3043478261 | E27: =SUM('!N228A00.095'!L20:Q20)/'!N228A00.095'!Q3 -> 0.8695652174 | F27: ='!N228A00.095'!Q16 -> 0.3190210895
A28: 26 | B28: ='!N302920.095'!B2:C2 -> <date> | C28: =('!N302920.095'!D7/60)/'!N302920.095'!Q3 -> 0.004109589041 | D28: ='!N302920.095'!N20/'!N302920.095'!Q3 -> 0.4246575342 | E28: =SUM('!N302920.095'!L20:Q20)/'!N302920.095'!Q3 -> 1.04109589 | F28: ='!N302920.095'!Q16 -> 0.2919623931
A29: 27 | B29: ='!N303950.095'!B2:C2 -> <date> | C29: =('!N303950.095'!D7/60)/'!N303950.095'!Q3 -> 0.03263888889 | D29: ='!N303950.095'!N20/'!N303950.095'!Q3 -> 0.625 | E29: =SUM('!N303950.095'!L20:Q20)/'!N303950.095'!Q3 -> 1.208333333 | F29: ='!N303950.095'!Q16 -> 0.2510758404
A30: 28 | B30: ='!N304940.095'!B2:C2 -> <date> | C30: =('!N304940.095'!D7/60)/'!N304940.095'!Q3 -> 0.01141975309 | D30: ='!N304940.095'!N20/'!N304940.095'!Q3 -> 0.6851851852 | E30: =SUM('!N304940.095'!L20:Q20)/'!N304940.095'!Q3 -> 1.425925926 | F30: ='!N304940.095'!Q16 -> 0.2252969052
A31: 29 | B31: ='!N306A10.095'!B2:C2 -> <date> | C31: =('!N306A10.095'!D7/60)/'!N306A10.095'!Q3 -> 0.006497175141 | D31: ='!N306A10.095'!N20/'!N306A10.095'!Q3 -> 0.6440677966 | E31: =SUM('!N306A10.095'!L20:Q20)/'!N306A10.095'!Q3 -> 1.169491525 | F31: ='!N306A10.095'!Q16 -> 0.2363724869
A32: 30 | B32: ='!N307840.095'!B2:C2 -> <date> | C32: =('!N307840.095'!D7/60)/'!N307840.095'!Q3 -> 0.00524691358 | D32: ='!N307840.095'!N20/'!N307840.095'!Q3 -> 0.6296296296 | E32: =SUM('!N307840.095'!L20:Q20)/'!N307840.095'!Q3 -> 1.185185185 | F32: ='!N307840.095'!Q16 -> 0.2578381651
B33: ='!N308950.095'!B2:C2 -> <date> | C33: =('!N308950.095'!D7/60)/'!N308950.095'!Q3 -> 0.007692307692 | D33: ='!N308950.095'!N20/'!N308950.095'!Q3 -> 0.2923076923 | E33: =SUM('!N308950.095'!L20:Q20)/'!N308950.095'!Q3 -> 0.8153846154 | F33: ='!N308950.095'!Q16 -> 0.2122437693

Sheet Start
F1: Use Folder 51 | H1: Auto Clean Up | J1: Correct sequence
F2: FALSE | H2: TRUE | J2: 12
A4: Working with Folder | G4: Process All/Or Pick A number: ALL or an integer
A5: E:\Hen Data\Raw Data\95_175\PHASE 4 VAR\ | G5: ALL
A6: Filenames:
A7: !N308950.095 | G7: Paint Cells
A8: !N203B00.095 | G8: FALSE
A9: !N204A10.095
A10: !N205910.095
A11: !N206920.095
A12: !N207940.095
A13: !N208A20.095
A14: !N209820.095
A15: !N210900.095
A16: !N211A30.095
A17: !N212940.095
A18: !N213950.095
A19: !N214920.095
A20: !N215920.095
A21: !N216920.095
A22: !N217820.095
A23: !N218950.095
A24: !N219A20.095
A25: !N220B10.095
A26: !N222940.095
A27: !N223930.095
A28: !N224A20.095
A29: !N225950.095
A30: !N226B00.095
A31: !N227A30.095
A32: !N228A00.095
A33: !N302920.095
A34: !N303950.095
A35: !N304940.095
A36: !N306A10.095
A37: !N307840.095

Sheet !N203B00.095
A1: Report for:!N203B00.095
A2: Date: | B2: <date>
A3: Hen: | B3: <hen> | F3: Correct Sequence | G3: =Start!J2 -> 12 | P3: Total Sequences in Data | Q3: =4994-COUNTBLANK(L7:L5000) -> 163 | V3: Total Sequences in Block Data | W3: =COUNTA(L7:L33) -> 27 | AA3: Total Sequences in Block Data | AB3: =COUNTA(L34:L60) -> 27 | AF3: Total Sequences in Block Data | AG3: =COUNTA(L61:L88) -> 28 | AK3: Total Sequences in Block Data | AL3: =COUNTA(L89:L115) -> 27 | AP3: Total Sequences in Block Data | AQ3: =COUNTA(L116:L142) -> 27 | AU3: Total Sequences in Block Data | AV3: =COUNTA(L143:L169) -> 27
P4: Total Sequences in Summary | Q4: =SUM(O7:O14) -> 163 | V4: Total Sequences in Block Summary | W4: =SUM(U7:U14) -> 27 | AA4: Total Sequences in Block Summary | AB4: =SUM(Z7:Z14) -> 27 | AF4: Total Sequences in Block Summary | AG4: =SUM(AE7:AE14) -> 28 | AK4: Total Sequences in Block Summary | AL4: =SUM(AJ7:AJ14) -> 27 | AP4: Total Sequences in Block Summary | AQ4: =SUM(AO7:AO14) -> 27 | AU4: Total Sequences in Block Summary | AV4: =SUM(AT7:AT14) -> 27
T5: Block 1 | Y5: Block 2 | AD5: Block 3 | AI5: Block 4 | AN5: Block 5 | AS5: Block 6
A6: Sequence Component 1 | B6: Time 1 | C6: Sequence Component 2 | D6: Time 2 | E6: Sequence Component 3 | F6: Time 3 | G6: Sequence Component 4 | H6: Time 4 | I6: Sequence Component 5 | J6: Time 5 | K6: Correct? 0=No 1=Yes | L6: Sequence | N6: Frequency | P6: Relative Frequency | Q6: Variability | T6: Frequency | V6: Relative Frequency | W6: Variability | Y6: Frequency | AA6: Relative Frequency | AB6: Variability | AD6: Frequency | AF6: Relative Frequency | AG6: Variability | AI6: Frequency | AK6: Relative Frequency | AL6: Variability | AN6: Frequency | AP6: Relative Frequency | AQ6: Variability | AS6: Frequency | AU6: Relative Frequency | AV6: Variability
A7: 22 | B7: 17 | C7: 23 | D7: 34 | K7: 0 | L7: 22 | N7: 11 | O7: =COUNTIF($L$7:$L$500,N7) -> 0 | P7: =O7/$Q$4 -> 0 | Q7: =IF(P7=0,0,(P7*((LOG(P7))/LOG(2)))) -> 0 | T7: =N7 -> 11 | U7: =COUNTIF(L7:L33,T7) -> 0 | V7: =U7/(W4-U8) -> 0 | W7: =IF(V7=0,0,(V7*((LOG(V7))/LOG(2)))) -> 0 | Y7: =N7 -> 11 | Z7: =COUNTIF(L34:L60,Y7) -> 0 | AA7: =Z7/(AB4-Z8) -> 0 | AB7: =IF(AA7=0,0,(AA7*((LOG(AA7))/LOG(2)))) -> 0 | AD7: =N7 -> 11 | AE7: =COUNTIF(L61:L88,AD7) -> 0 | AF7: =AE7/(AG4-AE8) -> 0 | AG7: =IF(AF7=0,0,(AF7*((LOG(AF7))/LOG(2)))) -> 0 | AI7: =N7 -> 11 | AJ7: =COUNTIF(L89:L115,AI7) -> 0 | AK7: =AJ7/(AL4-AJ8) -> 0 | AL7: =IF(AK7=0,0,(AK7*((LOG(AK7))/LOG(2)))) -> 0 | AN7: =N7 -> 11 | AO7: =COUNTIF(L116:L142,AN7) -> 0 | AP7: =AO7/(AQ4-AO8) -> 0 | AQ7: =IF(AP7=0,0,(AP7*((LOG(AP7))/LOG(2)))) -> 0 | AS7: =N7 -> 11 | AT7: =COUNTIF(L143:L169,AS7) -> 0 | AU7: =AT7/(AV4-AT8) -> 0 | AV7: =IF(AU7=0,0,(AU7*((LOG(AU7))/LOG(2)))) -> 0
A8: 22 | B8: 142 | C8: 23 | D8: 209 | K8: 0 | L8: 22 | N8: 12 | O8: =COUNTIF($L$7:$L$500,N8) -> 19 | P8: =O8/$Q$4 -> 0.1165644172 | Q8: =IF(P8=0,0,(P8*((LOG(P8))/LOG(2)))) -> -0.3614430195 | T8: =N8 -> 12 | U8: =COUNTIF(L7:L33,T8) -> 0 | Y8: =N8 -> 12 | Z8: =COUNTIF(L34:L60,Y8) -> 6 | AD8: =N8 -> 12 | AE8: =COUNTIF(L61:L88,AD8) -> 6 | AI8: =N8 -> 12 | AJ8: =COUNTIF(L89:L115,AI8) -> 3 | AN8: =N8 -> 12 | AO8: =COUNTIF(L116:L142,AN8) -> 3 | AS8: =N8 -> 12 | AT8: =COUNTIF(L143:L169,AS8) -> 1
A9: 22 | B9: 302 | C9: 23 | D9: 307 | K9: 0 | L9: 22 | N9: 21 | O9: =COUNTIF($L$7:$L$500,N9) -> 69 | P9: =O9/$Q$4 -> 0.4233128834 | Q9: =IF(P9=0,0,(P9*((LOG(P9))/LOG(2)))) -> -0.5249942032 | T9: =N9 -> 21 | U9: =COUNTIF(L7:L33,T9) -> 7 | V9: =U9/(W4-U8) -> 0.2592592593 | W9: =IF(V9=0,0,(V9*((LOG(V9))/LOG(2)))) -> -0.5049158541 | Y9: =N9 -> 21 | Z9: =COUNTIF(L34:L60,Y9) -> 11 | AA9: =Z9/(AB4-Z8) -> 0.5238095238 | AB9: =IF(AA9=0,0,(AA9*((LOG(AA9))/LOG(2)))) -> -0.4886544688 | AD9: =N9 -> 21 | AE9: =COUNTIF(L61:L88,AD9) -> 13 | AF9: =AE9/(AG4-AE8) -> 0.5909090909 | AG9: =IF(AF9=0,0,(AF9*((LOG(AF9))/LOG(2)))) -> -0.4484952139 | AI9: =N9 -> 21 | AJ9: =COUNTIF(L89:L115,AI9) -> 17 | AK9: =AJ9/(AL4-AJ8) -> 0.7083333333 | AL9: =IF(AK9=0,0,(AK9*((LOG(AK9))/LOG(2)))) -> -0.3523955921 | AN9: =N9 -> 21 | AO9: =COUNTIF(L116:L142,AN9) -> 11 | AP9: =AO9/(AQ4-AO8) -> 0.4583333333 | AQ9: =IF(AP9=0,0,(AP9*((LOG(AP9))/LOG(2)))) -> -0.515868321 | AS9: =N9 -> 21 | AT9: =COUNTIF(L143:L169,AS9) -> 10 | AU9: =AT9/(AV4-AT8) -> 0.3846153846 | AV9: =IF(AU9=0,0,(AU9*((LOG(AU9))/LOG(2)))) -> -0.5301967782
A10: 22 | B10: 411 | C10: 23 | D10: 425 | K10: 0 | L10: 22 | N10: 22 | O10: =COUNTIF($L$7:$L$500,N10) -> 75 | P10: =O10/$Q$4 -> 0.4601226994 | Q10: =IF(P10=0,0,(P10*((LOG(P10))/LOG(2)))) -> -0.5152957655 | T10: =N10 -> 22 | U10: =COUNTIF(L7:L33,T10) -> 20 | V10: =U10/(W4-U8) -> 0.7407407407 | W10: =IF(V10=0,0,(V10*((LOG(V10))/LOG(2)))) -> -0.3207106721 | Y10: =N10 -> 22 | Z10: =COUNTIF(L34:L60,Y10) -> 10 | AA10: =Z10/(AB4-Z8) -> 0.4761904762 | AB10: =IF(AA10=0,0,(AA10*((LOG(AA10))/LOG(2)))) -> -0.5097092038 | AD10: =N10 -> 22 | AE10: =COUNTIF(L61:L88,AD10) -> 9 | AF10: =AE10/(AG4-AE8) -> 0.4090909091 | AG10: =IF(AF10=0,0,(AF10*((LOG(AF10))/LOG(2)))) -> -0.5275254343 | AI10: =N10 -> 22 | AJ10: =COUNTIF(L89:L115,AI10) -> 7 | AK10: =AJ10/(AL4-AJ8) -> 0.2916666667 | AL10: =IF(AK10=0,0,(AK10*((LOG(AK10))/LOG(2)))) -> -0.5184688771 | AN10: =N10 -> 22 | AO10: =COUNTIF(L116:L142,AN10) -> 13 | AP10: =AO10/(AQ4-AO8) -> 0.5416666667 | AQ10: =IF(AP10=0,0,(AP10*((LOG(AP10))/LOG(2)))) -> -0.4791165072 | AS10: =N10 -> 22 | AT10: =COUNTIF(L143:L169,AS10) -> 16 | AU10: =AT10/(AV4-AT8) -> 0.6153846154 | AV10: =IF(AU10=0,0,(AU10*((LOG(AU10))/LOG(2)))) -> -0.4310398265
A11: 22 | B11: 524 | C11: 23 | D11: 530 | K11: 0 | L11: 22 | T11: =N11 -> 0 | U11: =COUNTIF(L7:L33,T11) -> 0 | V11: =U11/(W4-U8) -> 0 | W11: =IF(V11=0,0,(V11*((LOG(V11))/LOG(2)))) -> 0 | Y11: =N11 -> 0 | Z11: =COUNTIF(L34:L60,Y11) -> 0 | AA11: =Z11/(AB4-Z8) -> 0 | AB11: =IF(AA11=0,0,(AA11*((LOG(AA11))/LOG(2)))) -> 0 | AD11: =N11 -> 0 | AE11: =COUNTIF(L61:L88,AD11) -> 0 | AF11: =AE11/(AG4-AE8) -> 0 | AG11: =IF(AF11=0,0,(AF11*((LOG(AF11))/LOG(2)))) -> 0 | AI11: =N11 -> 0 | AJ11: =COUNTIF(L89:L115,AI11) -> 0 | AK11: =AJ11/(AL4-AJ8) -> 0 | AL11: =IF(AK11=0,0,(AK11*((LOG(AK11))/LOG(2)))) -> 0 | AN11: =N11 -> 0 | AO11: =COUNTIF(L116:L142,AN11) -> 0 | AP11: =AO11/(AQ4-AO8) -> 0 | AQ11: =IF(AP11=0,0,(AP11*((LOG(AP11))/LOG(2)))) -> 0 | AS11: =N11 -> 0 | AT11: =COUNTIF(L143:L169,AS11) -> 0 | AU11: =AT11/(AV4-AT8) -> 0 | AV11: =IF(AU11=0,0,(AU11*((LOG(AU11))/LOG(2)))) -> 0
A12: 22 | B12: 631 | C12: 14 | D12: 650 | K12: 0 | L12: 21 | T12: =N12 -> 0 | U12: =COUNTIF(L7:L33,T12) -> 0 | V12: =U12/(W4-U8) -> 0 | W12: =IF(V12=0,0,(V12*((LOG(V12))/LOG(2)))) -> 0 | Y12: =N12 -> 0 | Z12: =COUNTIF(L34:L60,Y12) -> 0 | AA12: =Z12/(AB4-Z8) -> 0 | AB12: =IF(AA12=0,0,(AA12*((LOG(AA12))/LOG(2)))) -> 0 | AD12: =N12 -> 0 | AE12: =COUNTIF(L61:L88,AD12) -> 0 | AF12: =AE12/(AG4-AE8) -> 0 | AG12: =IF(AF12=0,0,(AF12*((LOG(AF12))/LOG(2)))) -> 0 | AI12: =N12 -> 0 | AJ12: =COUNTIF(L89:L115,AI12) -> 0 | AK12: =AJ12/(AL4-AJ8) -> 0 | AL12: =IF(AK12=0,0,(AK12*((LOG(AK12))/LOG(2)))) -> 0 | AN12: =N12 -> 0 | AO12: =COUNTIF(L116:L142,AN12) -> 0 | AP12: =AO12/(AQ4-AO8) -> 0 | AQ12: =IF(AP12=0,0,(AP12*((LOG(AP12))/LOG(2)))) -> 0 | AS12: =N12 -> 0 | AT12: =COUNTIF(L143:L169,AS12) -> 0 | AU12: =AT12/(AV4-AT8) -> 0 | AV12: =IF(AU12=0,0,(AU12*((LOG(AU12))/LOG(2)))) -> 0
A13: 22 | B13: 760 | C13: 14 | D13: 769 | K13: 0 | L13: 21 | T13: =N13 -> 0 | U13: =COUNTIF(L7:L33,T13) -> 0 | V13: =U13/(W4-U8) -> 0 | W13: =IF(V13=0,0,(V13*((LOG(V13))/LOG(2)))) -> 0 | Y13: =N13 -> 0 | Z13: =COUNTIF(L34:L60,Y13) -> 0 | AA13: =Z13/(AB4-Z8) -> 0 | AB13: =IF(AA13=0,0,(AA13*((LOG(AA13))/LOG(2)))) -> 0 | AD13: =N13 -> 0 | AE13: =COUNTIF(L61:L88,AD13) -> 0 | AF13: =AE13/(AG4-AE8) -> 0 | AG13: =IF(AF13=0,0,(AF13*((LOG(AF13))/LOG(2)))) -> 0 | AI13: =N13 -> 0 | AJ13: =COUNTIF(L89:L115,AI13) -> 0 | AK13: =AJ13/(AL4-AJ8) -> 0 | AL13: =IF(AK13=0,0,(AK13*((LOG(AK13))/LOG(2)))) -> 0 | AN13: =N13 -> 0 | AO13: =COUNTIF(L116:L142,AN13) -> 0 | AP13: =AO13/(AQ4-AO8) -> 0 | AQ13: =IF(AP13=0,0,(AP13*((LOG(AP13))/LOG(2)))) -> 0 | AS13: =N13 -> 0 | AT13: =COUNTIF(L143:L169,AS13) -> 0 | AU13: =AT13/(AV4-AT8) -> 0 | AV13: =IF(AU13=0,0,(AU13*((LOG(AU13))/LOG(2)))) -> 0
A14: 22 | B14: 864 | C14: 23 | D14: 912 | K14: 0 | L14: 22 | T14: =N14 -> 0 | U14: =COUNTIF(L7:L33,T14) -> 0 | V14: =U14/(W4-U8) -> 0 | W14: =IF(V14=0,0,(V14*((LOG(V14))/LOG(2)))) -> 0 | Y14: =N14 -> 0 | Z14: =COUNTIF(L34:L60,Y14) -> 0 | AA14: =Z14/(AB4-Z8) -> 0 | AB14: =IF(AA14=0,0,(AA14*((LOG(AA14))/LOG(2)))) -> 0 | AD14: =N14 -> 0 | AE14: =COUNTIF(L61:L88,AD14) -> 0 | AF14: =AE14/(AG4-AE8) -> 0 | AG14: =IF(AF14=0,0,(AF14*((LOG(AF14))/LOG(2)))) -> 0 | AI14: =N14 -> 0 | AJ14: =COUNTIF(L89:L115,AI14) -> 0 | AK14: =AJ14/(AL4-AJ8) -> 0 | AL14: =IF(AK14=0,0,(AK14*((LOG(AK14))/LOG(2)))) -> 0 | AN14: =N14 -> 0 | AO14: =COUNTIF(L116:L142,AN14) -> 0 | AP14: =AO14/(AQ4-AO8) -> 0 | AQ14: =IF(AP14=0,0,(AP14*((LOG(AP14))/LOG(2)))) -> 0 | AS14: =N14 -> 0 | AT14: =COUNTIF(L143:L169,AS14) -> 0 | AU14: =AT14/(AV4-AT8) -> 0 | AV14: =IF(AU14=0,0,(AU14*((LOG(AU14))/LOG(2)))) -> 0
A15: 22 | B15: 1013 | C15: 23 | D15: 1020 | K15: 0 | L15: 22 | P15: =SUM(P7:P14) -> 1 | Q15: =-SUM(Q7:Q14) -> 1.401732988 | V15: =SUM(V7:V14) -> 1 | W15: =-SUM(W7:W14) -> 0.8256265262 | AA15: =SUM(AA7:AA14) -> 1 | AB15: =-SUM(AB7:AB14) -> 0.9983636726 | AF15: =SUM(AF7:AF14) -> 1 | AG15: =-SUM(AG7:AG14) -> 0.9760206482 | AK15: =SUM(AK7:AK14) -> 1 | AL15: =-SUM(AL7:AL14) -> 0.8708644692 | AP15: =SUM(AP7:AP14) -> 1 | AQ15: =-SUM(AQ7:AQ14) -> 0.9949848282 | AU15: =SUM(AU7:AU14) -> 1 | AV15: =-SUM(AV7:AV14) -> 0.9612366047
A16: 22 | B16: 1121 | C16: 23 | D16: 1126 | K16: 0 | L16: 22 | P16: U= | Q16: =Q15/(LOG(Q4)/LOG(2)) -> 0.1907449777 | V16: U1= | W16: =W15/(LOG(W4)/LOG(2)) -> 0.1736374469 | AA16: U2= | AB16: =AB15/(LOG(AB4)/LOG(2)) -> 0.209965782 | AF16: U3= | AG16: =AG15/(LOG(AG4)/LOG(2)) -> 0.2030265425 | AK16: U4= | AL16: =AL15/(LOG(AL4)/LOG(2)) -> 0.183151435 | AP16: U5= | AQ16: =AQ15/(LOG(AQ4)/LOG(2)) -> 0.2092551775 | AU16: U6= | AV16: =AV15/(LOG(AV4)/LOG(2)) -> 0.2021575914
A17: 22 | B17: 1223 | C17: 14 | D17: 1236 | K17: 0 | L17: 21
A18: 22 | B18: 1338 | C18: 23 | D18: 1345 | K18: 0 | L18: 22
A19: 22 | B19: 1443 | C19: 23 | D19: 1508 | K19: 0 | L19: 22 | N19: Total Target Seq
A20: 22 | B20: 1616 | C20: 14 | D20: 1638 | K20: 0 | L20: 21 | N20: =COUNTIF(L7:L169,G3) -> 19 | P20: 27 | Q20: 27 | R20: 28 | S20: 27 | T20: 27 | U20: 27
A21: 22 | B21: 1739 | C21: 14 | D21: 1748 | K21: 0 | L21: 21 | P21: % of reinforcement given in 6 equal intervals based on number of trials
A22: 22 | B22: 1848 | C22: 23 | D22: 1856 | K22: 0 | L22: 22 | P22: %_1 | Q22: %_2 | R22: %_3 | S22: %_4 | T22: %_5 | U22: %_6
A23: 22 | B23: 1963 | C23: 23 | D23: 1975 | K23: 0 | L23: 22 | O23: target sequence | P23: =$G$3 -> 12 | Q23: =$G$3 -> 12 | R23: =$G$3 -> 12 | S23: =$G$3 -> 12 | T23: =$G$3 -> 12 | U23: =$G$3 -> 12
A24: 22 | B24: 2126 | C24: 23 | D24: 2151 | K24: 0 | L24: 22 | O24: total reinforcement | P24: =U8 -> 0 | Q24: =Z8 -> 6 | R24: =AE8 -> 6 | S24: =AJ8 -> 3 | T24: =AO8 -> 3 | U24: =AT8 -> 1
A25: 22 | B25: 2323 | C25: 23 | D25: 2345 | K25: 0 | L25: 22 | O25: % target
A26: 22 | B26: 2445 | C26: 23 | D26: 2496 | K26: 0 | L26: 22 | O26: CCRF
A27: 22 | B27: 2596 | C27: 23 | D27: 2612 | K27: 0 | L27: 22 | O27: % CCRf
A28: 22 | B28: 2712 | C28: 23 | D28: 2720 | K28: 0 | L28: 22 | O28: average response rate | P28: =D33/P20 -> 121.7407407 | Q28: =(D60-D33)/Q20 -> 123.0740741 | R28: =(D88-D60)/R20 -> 120.4285714 | S28: =(D115-D88)/S20 -> 116.1481481 | T28: =(D142-D115)/T20 -> 122.5925926 | U28: =(D169-D142)/U20 -> 122.3703704
A29: 22 | B29: 2819 | C29: 23 | D29: 2831 | K29: 0 | L29: 22
A30: 22 | B30: 2941 | C30: 14 | D30: 2949 | K30: 0 | L30: 21
A31: 22 | B31: 3052 | C31: 14 | D31: 3068 | K31: 0 | L31: 21
A32: 22 | B32: 3170 | C32: 23 | D32: 3178 | K32: 0 | L32: 22
A33: 22 | B33: 3279 | C33: 23 | D33: 3287 | K33: 0 | L33: 22
A34: 11 | B34: 3401 | C34: 21 | D34: 3411 | K34: 0 | L34: 12
A35: 11 | B35: 3525 | C35: 21 | D35: 3573 | K35: 0 | L35: 12
A36: 22 | B36: 3669 | C36: 14 | D36: 3685 | K36: 0 | L36: 21
A37: 22 | B37: 3790 | C37: 14 | D37: 3798 | K37: 0 | L37: 21
A38: 11 | B38: 3925 | C38: 21 | D38: 3955 | K38: 0 | L38: 12
A39: 22 | B39: 4052 | C39: 23 | D39: 4059 | K39: 0 | L39: 22
A40: 22 | B40: 4160 | C40: 14 | D40: 4188 | K40: 0 | L40: 21
A41: 22 | B41: 4291 | C41: 14 | D41: 4299 | K41: 0 | L41: 21
A42: 22 | B42: 4398 | C42: 23 | D42: 4403 | K42: 0 | L42: 22
A43: 22 | B43: 4501 | C43: 14 | D43: 4517 | K43: 0 | L43: 21
A44: 22 | B44: 4610 | C44: 23 | D44: 4676 | K44: 0 | L44: 22
A45: 22 | B45: 4778 | C45: 14 | D45: 4793 | K45: 0 | L45: 21
A46: 22 | B46: 4894 | C46: 23 | D46: 4908 | K46: 0 | L46: 22
A47: 22 | B47: 5006 | C47: 14 | D47: 5038 | K47: 0 | L47: 21
A48: 22 | B48: 5140 | C48: 23 | D48: 5157 | K48: 0 | L48: 22
A49: 11 | B49: 5270 | C49: 21 | D49: 5281 | K49: 0 | L49: 12
A50: 22 | B50: 5381 | C50: 14 | D50: 5402 | K50: 0 | L50: 21
A51: 22 | B51: 5509 | C51: 23 | D51: 5521 | K51: 0 | L51: 22
A52: 22 | B52: 5619 | C52: 14 | D52: 5635 | K52: 0 | L52: 21
A53: 22 | B53: 5731 | C53: 23 | D53: 5738 | K53: 0 | L53: 22
A54: 22 | B54: 5838 | C54: 23 | D54: 5846 | K54: 0 | L54: 22
A55: 11 | B55: 5958 | C55: 21 | D55: 6009 | K55: 0 | L55: 12
A56: 11 | B56: 6135 | C56: 21 | D56: 6174 | K56: 0 | L56: 12
A57: 22 | B57: 6266 | C57: 23 | D57: 6283 | K57: 0 | L57: 22
A58: 22 | B58: 6383 | C58: 14 | D58: 6398 | K58: 0 | L58: 21
A59: 22 | B59: 6494 | C59: 23 | D59: 6501 | K59: 0 | L59: 22
A60: 22 | B60: 6602 | C60: 14 | D60: 6610 | K60: 0 | L60: 21
A61: 22 | B61: 6723 | C61: 14 | D61: 6750 | K61: 0 | L61: 21
A62: 11 | B62: 6866 | C62: 21 | D62: 6919 | K62: 0 | L62: 12
A63: 22 | B63: 7011 | C63: 14 | D63: 7027 | K63: 0 | L63: 21
A64: 22 | B64: 7127 | C64: 14 | D64: 7135 | K64: 0 | L64: 21
A65: 22 | B65: 7232 | C65: 14 | D65: 7251 | K65: 0 | L65: 21
A66: 11 | B66: 7362 | C66: 21 | D66: 7371 | K66: 0 | L66: 12
A67: 11 | B67: 7496 | C67: 21 | D67: 7525 | K67: 0 | L67: 12
A68: 22 | B68: 7623 | C68: 23 | D68: 7635 | K68: 0 | L68: 22
A69: 11 | B69: 7746 | C69: 21 | D69: 7769 | K69: 0 | L69: 12
A70: 22 | B70: 7870 | C70: 14 | D70: 7878 | K70: 0 | L70: 21
A71: 22 | B71: 8003 | C71: 23 | D71: 8018 | K71: 0 | L71: 22
A72: 22 | B72: 8118 | C72: 14 | D72: 8127 | K72: 0 | L72: 21
A73: 22 | B73: 8226 | C73: 23 | D73: 8233 | K73: 0 | L73: 22
A74: 22 | B74: 8331 | C74: 23 | D74: 8351 | K74: 0 | L74: 22
A75: 22 | B75: 8451 | C75: 14 | D75: 8469 | K75: 0 | L75: 21
A76: 22 | B76: 8563 | C76: 23 | D76: 8570 | K76: 0 | L76: 22
A77: 22 | B77: 8669 | C77: 14 | D77: 8677 | K77: 0 | L77: 21
A78: 11 | B78: 8788 | C78: 21 | D78: 8837 | K78: 0 | L78: 12
A79: 22 | B79: 8936 | C79: 23 | D79: 8994 | K79: 0 | L79: 22
A80: 22 | B80: 9092 | C80: 23 | D80: 9096 | K80: 0 | L80: 22
A81: 22 | B81: 9195 | C81: 23 | D81: 9203 | K81: 0 | L81: 22
A82: 22 | B82: 9300 | C82: 14 | D82: 9316 | K82: 0 | L82: 21
A83: 22 | B83: 9416 | C83: 14 | D83: 9440 | K83: 0 | L83: 21
A84: 11 | B84: 9553 | C84: 21 | D84: 9561 | K84: 0 | L84: 12
A85: 22 | B85: 9654 | C85: 14 | D85: 9667 | K85: 0 | L85: 21
A86: 22 | B86: 9765 | C86: 14 | D86: 9776 | K86: 0 | L86: 21
A87: 22 | B87: 9873 | C87: 14 | D87: 9881 | K87: 0 | L87: 21
A88: 22 | B88: 9978 | C88: 23 | D88: 9982 | K88: 0 | L88: 22
A89: 22 | B89: 10080 | C89: 23 | D89: 10088 | K89: 0 | L89: 22
A90: 22 | B90: 10188 | C90: 14 | D90: 10196 | K90: 0 | L90: 21
A91: 22 | B91: 10296 | C91: 14 | D91: 10304 | K91: 0 | L91: 21
A92: 22 | B92: 10403 | C92: 14 | D92: 10411 | K92: 0 | L92: 21
A93: 22 | B93: 10508 | C93: 14 | D93: 10517 | K93: 0 | L93: 21
A94: 11 | B94: 10622 | C94: 21 | D94: 10649 | K94: 0 | L94: 12
A95: 22 | B95: 10761 | C95: 14 | D95: 10770 | K95: 0 | L95: 21
A96: 22 | B96: 10869 | C96: 14 | D96: 10890 | K96: 0 | L96: 21
A97: 22 | B97: 10988 | C97: 23 | D97: 11049 | K97: 0 | L97: 22
A98: 22 | B98: 11150 | C98: 14 | D98: 11159 | K98: 0 | L98: 21
A99: 22 | B99: 11253 | C99: 23 | D99: 11260 | K99: 0 | L99: 22
A100: 22 | B100: 11362 | C100: 14 | D100: 11370 | K100: 0 | L100: 21
A101: 22 | B101: 11467 | C101: 14 | D101: 11476 | K101: 0 | L101: 21
A102: 22 | B102: 11575 | C102: 23 | D102: 11592 | K102: 0 | L102: 22
A103: 22 | B103: 11689 | C103: 14 | D103: 11697 | K103: 0 | L103: 21
A104: 22 | B104: 11815 | C104: 23 | D104: 11829 | K104: 0 | L104: 22
A105: 22 | B105: 11925 | C105: 14 | D105: 11938 | K105: 0 | L105: 21
A106: 22 | B106: 12043 | C106: 14 | D106: 12051 | K106: 0 | L106: 21
A107: 22 | B107: 12150 | C107: 14 | D107: 12158 | K107: 0 | L107: 21
A108: 11 | B108: 12273 | C108: 21 | D108: 12285 | K108: 0 | L108: 12
A109: 22 | B109: 12399 | C109: 23 | D109: 12434 | K109: 0 | L109: 22
A110: 22 | B110: 12534 | C110: 23 | D110: 12541 | K110: 0 | L110: 22
A111: 11 | B111: 12652 | C111: 21 | D111: 12677 | K111: 0 | L111: 12
A112: 22 | B112: 12773 | C112: 14 | D112: 12786 | K112: 0 | L112: 21
A113: 22 | B113: 12890 | C113: 14 | D113: 12897 | K113: 0 | L113: 21
A114: 22 | B114: 12998 | C114: 14 | D114: 13007 | K114: 0 | L114: 21
A115: 22 | B115: 13108 | C115: 14 | D115: 13118 | K115: 0 | L115: 21
A116: 22 | B116: 13223 | C116: 14 | D116: 13231 | K116: 0 | L116: 21
A117: 22 | B117: 13328 | C117: 14 | D117: 13337 | K117: 0 | L117: 21
A118: 22 | B118: 13436 | C118: 23 | D118: 13464 | K118: 0 | L118: 22
A119: 22 | B119: 13564 | C119: 23 | D119: 13606 | K119: 0 | L119: 22
A120: 22 | B120: 13703 | C120: 14 | D120: 13712 | K120: 0 | L120: 21
A121: 22 | B121: 13815 | C121: 23 | D121: 13843 | K121: 0 | L121: 22
A122: 22 | B122: 13942 | C122: 23 | D122: 13985 | K122: 0 | L122: 22
A123: 22 | B123: 14088 | C123: 14 | D123: 14109 | K123: 0 | L123: 21
A124: 22 | B124: 14205 | C124: 23 | D124: 14209 | K124: 0 | L124: 22
A125: 22 | B125: 14310 | C125: 23 | D125: 14316 | K125: 0 | L125: 22
A126: 22 | B126: 14425 | C126: 14 | D126: 14432 | K126: 0 | L126: 21
A127: 22 | B127: 14532 | C127: 23 | D127: 14539 | K127: 0 | L127: 22
A128: 22 | B128: 14643 | C128: 14 | D128: 14651 | K128: 0 | L128: 21
A129: 22 | B129: 14779 | C129: 23 | D129: 14809 | K129: 0 | L129: 22
A130: 22 | B130: 14928 | C130: 23 | D130: 14935 | K130: 0 | L130: 22
A131: 11 | B131: 15048 | C131: 21 | D131: 15070 | K131: 0 | L131: 12
A132: 22 | B132: 15163 | C132: 14 | D132: 15176 | K132: 0 | L132: 21
A133: 22 | B133: 15281 | C133: 23 | D133: 15352 | K133: 0 | L133: 22
A134: 22 | B134: 15449 | C134: 14 | D134: 15472 | K134: 0 | L134: 21
A135: 22 | B135: 15566 | C135: 14 | D135: 15582 | K135: 0 | L135: 21
A136: 22 | B136: 15679 | C136: 23 | D136: 15696 | K136: 0 | L136: 22
A137: 22 | B137: 15794 | C137: 23 | D137: 15805 | K137: 0 | L137: 22
A138: 11 | B138: 15923 | C138: 21 | D138: 15942 | K138: 0 | L138: 12
A139: 22 | B139: 16042 | C139: 14 | D139: 16073 | K139: 0 | L139: 21
A140: 22 | B140: 16170 | C140: 14 | D140: 16185 | K140: 0 | L140: 21
A141: 22 | B141: 16281 | C141: 23 | D141: 16289 | K141: 0 | L141: 22
A142: 11 | B142: 16403 | C142: 21 | D142: 16428 | K142: 0 | L142: 12
A143: 22 | B143: 16522 | C143: 23 | D143: 16537 | K143: 0 | L143: 22
A144: 22 | B144: 16635 | C144: 14 | D144: 16643 | K144: 0 | L144: 21
A145: 22 | B145: 16747 | C145: 14 | D145: 16754 | K145: 0 | L145: 21
A146: 22 | B146: 16852 | C146: 14 | D146: 16866 | K146: 0 | L146: 21
A147: 22 | B147: 16994 | C147: 23 | D147: 17011 | K147: 0 | L147: 22
A148: 22 | B148: 17107 | C148: 23 | D148: 17123 | K148: 0 | L148: 22
A149: 22 | B149: 17219 | C149: 14 | D149: 17227 | K149: 0 | L149: 21
A150: 22 | B150: 17326 | C150: 14 | D150: 17342 | K150: 0 | L150: 21
A151: 22 | B151: 17443 | C151: 23 | D151: 17451 | K151: 0 | L151: 22
A152: 22 | B152: 17570 | C152: 14 | D152: 17586 | K152: 0 | L152: 21
A153: 22 | B153: 17683 | C153: 23 | D153: 17688 | K153: 0 | L153: 22
A154: 11 | B154: 17815 | C154: 21 | D154: 17841 | K154: 0 | L154: 12
A155: 22 | B155: 17983 | C155: 23 | D155: 18013 | K155: 0 | L155: 22
A156: 22 | B156: 18112 | C156: 23 | D156: 18121 | K156: 0 | L156: 22
A157: 22 | B157: 18221 | C157: 14 | D157: 18229 | K157: 0 | L157: 21
A158: 22 | B158: 18330 | C158: 23 | D158: 18352 | K158: 0 | L158: 22
A159: 22 | B159: 18463 | C159: 23 | D159: 18502 | K159: 0 | L159: 22
A160: 22 | B160: 18596 | C160: 23 | D160: 18623 | K160: 0 | L160: 22
A161: 22 | B161: 18758 | C161: 23 | D161: 18773 | K161: 0 | L161: 22
A162: 22 | B162: 18874 | C162: 23 | D162: 18890 | K162: 0 | L162: 22
A163: 22 | B163: 18985 | C163: 23 | D163: 18992 | K163: 0 | L163: 22
A164: 22 | B164: 19092 | C164: 14 | D164: 19102 | K164: 0 | L164: 21
A165: 22 | B165: 19207 | C165: 14 | D165: 19223 | K165: 0 | L165: 21
A166: 22 | B166: 19322 | C166: 14 | D166: 19337 | K166: 0 | L166: 21
A167: 22 | B167: 19465 | C167: 23 | D167: 19486 | K167: 0 | L167: 22
A168: 22 | B168: 19591 | C168: 23 | D168: 19607 | K168: 0 | L168: 22
A169: 22 | B169: 19725 | C169: 23 | D169: 19732 | K169: 1 | L169: 22

Sheet !N204A10.095
A1: Report for:!N204A10.095
A2: Date: | B2: <date>
A3: Hen: | B3: <hen> | F3: Correct Sequence | G3: =Start!J2 -> 12 | P3: Total Sequences in Data | Q3: =4994-COUNTBLANK(L7:L5000) -> 158 | V3: Total Sequences in Block Data | W3: =COUNTA(L7:L32) -> 26 | AA3: Total Sequences in Block Data | AB3: =COUNTA(L33:L59) -> 27 | AF3: Total Sequences in Block Data | AG3: =COUNTA(L60:L85) -> 26 | AK3: Total Sequences in Block Data | AL3: =COUNTA(L86:L111) -> 26 | AP3: Total Sequences in Block Data | AQ3: =COUNTA(L112:L138) -> 27 | AU3: Total Sequences in Block Data | AV3: =COUNTA(L139:L164) -> 26
P4: Total Sequences in Summary | Q4: =SUM(O7:O14) -> 158 | V4: Total Sequences in Block Summary | W4: =SUM(U7:U14) -> 26 | AA4: Total Sequences in Block Summary | AB4: =SUM(Z7:Z14) -> 27 | AF4: Total Sequences in Block Summary | AG4: =SUM(AE7:AE14) -> 26 | AK4: Total Sequences in Block Summary | AL4: =SUM(AJ7:AJ14) -> 26 | AP4: Total Sequences in Block Summary | AQ4: =SUM(AO7:AO14) -> 27 | AU4: Total Sequences in Block Summary | AV4: =SUM(AT7:AT14) -> 26
T5: Block 1 | Y5: Block 2 | AD5: Block 3 | AI5: Block 4 | AN5: Block 5 | AS5: Block 6
A6: Sequence Component 1 | B6: Time 1 | C6: Sequence Component 2 | D6: Time 2 | E6: Sequence Component 3 | F6: Time 3 | G6: Sequence Component 4 | H6: Time 4 | I6: Sequence Component 5 | J6: Time 5 | K6: Correct? 0=No 1=Yes | L6: Sequence | N6: Frequency | P6: Relative Frequency | Q6: Variability | T6: Frequency | V6: Relative Frequency | W6: Variability | Y6: Frequency | AA6: Relative Frequency | AB6: Variability | AD6: Frequency | AF6: Relative Frequency | AG6: Variability | AI6: Frequency | AK6: Relative Frequency | AL6: Variability | AN6: Frequency | AP6: Relative Frequency | AQ6: Variability | AS6: Frequency | AU6: Relative Frequency | AV6: Variability
A7: 11 | B7: 43 | C7: 21 | D7: 57 | K7: 0 | L7: 12 | N7: 11 | O7: =COUNTIF($L$7:$L$500,N7) -> 0 | P7: =O7/$Q$4 -> 0 | Q7: =IF(P7=0,0,(P7*((LOG(P7))/LOG(2)))) -> 0 | T7: =N7 -> 11 | U7: =COUNTIF(L7:L32,T7) -> 0 | V7: =U7/(W4-U8) -> 0 | W7: =IF(V7=0,0,(V7*((LOG(V7))/LOG(2)))) -> 0 | Y7: =N7 -> 11 | Z7: =COUNTIF(L33:L59,Y7) -> 0 | AA7: =Z7/(AB4-Z8) -> 0 | AB7: =IF(AA7=0,0,(AA7*((LOG(AA7))/LOG(2)))) -> 0 | AD7: =N7 -> 11 | AE7: =COUNTIF(L60:L85,AD7) -> 0 | AF7: =AE7/(AG4-AE8) -> 0 | AG7: =IF(AF7=0,0,(AF7*((LOG(AF7))/LOG(2)))) -> 0 | AI7: =N7 -> 11 | AJ7: =COUNTIF(L86:L111,AI7) -> 0 | AK7: =AJ7/(AL4-AJ8) -> 0 | AL7: =IF(AK7=0,0,(AK7*((LOG(AK7))/LOG(2)))) -> 0 | AN7: =N7 -> 11 | AO7: =COUNTIF(L112:L138,AN7) -> 0 | AP7: =AO7/(AQ4-AO8) -> 0 | AQ7: =IF(AP7=0,0,(AP7*((LOG(AP7))/LOG(2)))) -> 0 | AS7: =N7 -> 11 | AT7: =COUNTIF(L139:L164,AS7) -> 0 | AU7: =AT7/(AV4-AT8) -> 0 | AV7: =IF(AU7=0,0,(AU7*((LOG(AU7))/LOG(2)))) -> 0
A8: 22 | B8: 161 | C8: 14 | D8: 171 | K8: 0 | L8: 21 | N8: 12 | O8: =COUNTIF($L$7:$L$500,N8) -> 20 | P8: =O8/$Q$4 -> 0.1265822785 | Q8: =IF(P8=0,0,(P8*((LOG(P8))/LOG(2)))) -> -0.3774497029 | T8: =N8 -> 12 | U8: =COUNTIF(L7:L32,T8) -> 5 | Y8: =N8 -> 12 | Z8: =COUNTIF(L33:L59,Y8) -> 5 | AD8: =N8 -> 12 | AE8: =COUNTIF(L60:L85,AD8) -> 1 | AI8: =N8 -> 12 | AJ8: =COUNTIF(L86:L111,AI8) -> 2 | AN8: =N8 -> 12 | AO8: =COUNTIF(L112:L138,AN8) -> 2 | AS8: =N8 -> 12 | AT8: =COUNTIF(L139:L164,AS8) -> 5
A9: 22 | B9: 266 | C9: 23 | D9: 278 | K9: 0 | L9: 22 | N9: 21 | O9: =COUNTIF($L$7:$L$500,N9) -> 51 | P9: =O9/$Q$4 -> 0.3227848101 | Q9: =IF(P9=0,0,(P9*((LOG(P9))/LOG(2)))) -> -0.526576745 | T9: =N9 -> 21 | U9: =COUNTIF(L7:L32,T9) -> 13 | V9: =U9/(W4-U8) -> 0.619047619 | W9: =IF(V9=0,0,(V9*((LOG(V9))/LOG(2)))) -> -0.4283052457 | Y9: =N9 -> 21 | Z9: =COUNTIF(L33:L59,Y9) -> 14 | AA9: =Z9/(AB4-Z8) -> 0.6363636364 | AB9: =IF(AA9=0,0,(AA9*((LOG(AA9))/LOG(2)))) -> -0.4149578978 | AD9: =N9 -> 21 | AE9: =COUNTIF(L60:L85,AD9) -> 8 | AF9: =AE9/(AG4-AE8) -> 0.32 | AG9: =IF(AF9=0,0,(AF9*((LOG(AF9))/LOG(2)))) -> -0.5260339807 | AI9: =N9 -> 21 | AJ9: =COUNTIF(L86:L111,AI9) -> 5 | AK9: =AJ9/(AL4-AJ8) -> 0.2083333333 | AL9: =IF(AK9=0,0,(AK9*((LOG(AK9))/LOG(2)))) -> -0.4714655012 | AN9: =N9 -> 21 | AO9: =COUNTIF(L112:L138,AN9) -> 2 | AP9: =AO9/(AQ4-AO8) -> 0.08 | AQ9: =IF(AP9=0,0,(AP9*((LOG(AP9))/LOG(2)))) -> -0.2915084952 | AS9: =N9 -> 21 | AT9: =COUNTIF(L139:L164,AS9) -> 9 | AU9: =AT9/(AV4-AT8) -> 0.4285714286 | AV9: =IF(AU9=0,0,(AU9*((LOG(AU9))/LOG(2)))) -> -0.5238824663
A10: 22 | B10: 378 | C10: 14 | D10: 388 | K10: 0 | L10: 21 | N10: 22 | O10: =COUNTIF($L$7:$L$500,N10) -> 87 | P10: =O10/$Q$4 -> 0.5506329114 | Q10: =IF(P10=0,0,(P10*((LOG(P10))/LOG(2)))) -> -0.4740053225 | T10: =N10 -> 22 | U10: =COUNTIF(L7:L32,T10) -> 8 | V10: =U10/(W4-U8) -> 0.380952381 | W10: =IF(V10=0,0,(V10*((LOG(V10))/LOG(2)))) -> -0.5304066372 | Y10: =N10 -> 22 | Z10: =COUNTIF(L33:L59,Y10) -> 8 | AA10: =Z10/(AB4-Z8) -> 0.3636363636 | AB10: =IF(AA10=0,0,(AA10*((LOG(AA10))/LOG(2)))) -> -0.5307024068 | AD10: =N10 -> 22 | AE10: =COUNTIF(L60:L85,AD10) -> 17 | AF10: =AE10/(AG4-AE8) -> 0.68 | AG10: =IF(AF10=0,0,(AF10*((LOG(AF10))/LOG(2)))) -> -0.378347477 | AI10: =N10 -> 22 | AJ10: =COUNTIF(L86:L111,AI10) -> 19 | AK10: =AJ10/(AL4-AJ8) -> 0.7916666667 | AL10: =IF(AK10=0,0,(AK10*((LOG(AK10))/LOG(2)))) -> -0.2668193649 | AN10: =N10 -> 22 | AO10: =COUNTIF(L112:L138,AN10) -> 23 | AP10: =AO10/(AQ4-AO8) -> 0.92 | AQ10: =IF(AP10=0,0,(AP10*((LOG(AP10))/LOG(2)))) -> -0.110670695 | AS10: =N10 -> 22 | AT10: =COUNTIF(L139:L164,AS10) -> 12 | AU10: =AT10/(AV4-AT8) -> 0.5714285714 | AV10: =IF(AU10=0,0,(AU10*((LOG(AU10))/LOG(2)))) -> -0.4613456697
A11: 22 | B11: 489 | C11: 14 | D11: 498 | K11: 0 | L11: 21 | T11: =N11 -> 0 | U11: =COUNTIF(L7:L32,T11) -> 0 | V11: =U11/(W4-U8) -> 0 | W11: =IF(V11=0,0,(V11*((LOG(V11))/LOG(2)))) -> 0 | Y11: =N11 -> 0 | Z11: =COUNTIF(L33:L59,Y11) -> 0 | AA11: =Z11/(AB4-Z8) -> 0 | AB11: =IF(AA11=0,0,(AA11*((LOG(AA11))/LOG(2)))) -> 0 | AD11: =N11 -> 0 | AE11: =COUNTIF(L60:L85,AD11) -> 0 | AF11: =AE11/(AG4-AE8) -> 0 | AG11: =IF(AF11=0,0,(AF11*((LOG(AF11))/LOG(2)))) -> 0 | AI11: =N11 -> 0 | AJ11: =COUNTIF(L86:L111,AI11) -> 0 | AK11: =AJ11/(AL4-AJ8) -> 0 | AL11: =IF(AK11=0,0,(AK11*((LOG(AK11))/LOG(2)))) -> 0 | AN11: =N11 -> 0 | AO11: =COUNTIF(L112:L138,AN11) -> 0 | AP11: =AO11/(AQ4-AO8) -> 0 | AQ11: =IF(AP11=0,0,(AP11*((LOG(AP11))/LOG(2)))) -> 0 | AS11: =N11 -> 0 | AT11: =COUNTIF(L139:L164,AS11) -> 0 | AU11: =AT11/(AV4-AT8) -> 0 | AV11: =IF(AU11=0,0,(AU11*((LOG(AU11))/LOG(2)))) -> 0
A12: 11 | B12: 607 | C12: 21 | D12: 641 | K12: 0 | L12: 12 | T12: =N12 -> 0 | U12: =COUNTIF(L7:L32,T12) -> 0 | V12: =U12/(W4-U8) -> 0 | W12: =IF(V12=0,0,(V12*((LOG(V12))/LOG(2)))) -> 0 | Y12: =N12 -> 0 | Z12: =COUNTIF(L33:L59,Y12) -> 0 | AA12: =Z12/(AB4-Z8) -> 0 | AB12: =IF(AA12=0,0,(AA12*((LOG(AA12))/LOG(2)))) -> 0 | AD12: =N12 -> 0 | AE12: =COUNTIF(L60:L85,AD12) -> 0 | AF12: =AE12/(AG4-AE8) -> 0 | AG12: =IF(AF12=0,0,(AF12*((LOG(AF12))/LOG(2)))) -> 0 | AI12: =N12 -> 0 | AJ12: =COUNTIF(L86:L111,AI12) -> 0 | AK12: =AJ12/(AL4-AJ8) -> 0 | AL12: =IF(AK12=0,0,(AK12*((LOG(AK12))/LOG(2)))) -> 0 | AN12: =N12 -> 0 | AO12: =COUNTIF(L112:L138,AN12) -> 0 | AP12: =AO12/(AQ4-AO8) -> 0 | AQ12: =IF(AP12=0,0,(AP12*((LOG(AP12))/LOG(2)))) -> 0 | AS12: =N12 -> 0 | AT12: =COUNTIF(L139:L164,AS12) -> 0 | AU12: =AT12/(AV4-AT8) -> 0 | AV12: =IF(AU12=0,0,(AU12*((LOG(AU12))/LOG(2)))) -> 0
A13: 22 | B13: 735 | C13: 23 | D13: 772 | K13: 0 | L13: 22 | T13: =N13 -> 0 | U13: =COUNTIF(L7:L32,T13) -> 0 | V13: =U13/(W4-U8) -> 0 | W13: =IF(V13=0,0,(V13*((LOG(V13))/LOG(2)))) -> 0 | Y13: =N13 -> 0 | Z13: =COUNTIF(L33:L59,Y13) -> 0 | AA13: =Z13/(AB4-Z8) -> 0 | AB13: =IF(AA13=0,0,(AA13*((LOG(AA13))/LOG(2)))) -> 0 | AD13: =N13 -> 0 | AE13: =COUNTIF(L60:L85,AD13) -> 0 | AF13: =AE13/(AG4-AE8) -> 0 | AG13: =IF(AF13=0,0,(AF13*((LOG(AF13))/LOG(2)))) -> 0 | AI13: =N13 -> 0 | AJ13: =COUNTIF(L86:L111,AI13) -> 0 | AK13: =AJ13/(AL4-AJ8) -> 0 | AL13: =IF(AK13=0,0,(AK13*((LOG(AK13))/LOG(2)))) -> 0 | AN13: =N13 -> 0 | AO13: =COUNTIF(L112:L138,AN13) -> 0 | AP13: =AO13/(AQ4-AO8) -> 0 | AQ13: =IF(AP13=0,0,(AP13*((LOG(AP13))/LOG(2)))) -> 0 | AS13: =N13 -> 0 | AT13: =COUNTIF(L139:L164,AS13) -> 0 | AU13: =AT13/(AV4-AT8) -> 0 | AV13: =IF(AU13=0,0,(AU13*((LOG(AU13))/LOG(2)))) -> 0
A14: 22 | B14: 918 | C14: 23 | D14: 950 | K14: 0 | L14: 22 | T14: =N14 -> 0 | U14: =COUNTIF(L7:L32,T14) -> 0 | V14: =U14/(W4-U8) -> 0 | W14: =IF(V14=0,0,(V14*((LOG(V14))/LOG(2)))) -> 0 | Y14: =N14 -> 0 | Z14: =COUNTIF(L33:L59,Y14) -> 0 | AA14: =Z14/(AB4-Z8) -> 0 | AB14: =IF(AA14=0,0,(AA14*((LOG(AA14))/LOG(2)))) -> 0 | AD14: =N14 -> 0 | AE14: =COUNTIF(L60:L85,AD14) -> 0 | AF14: =AE14/(AG4-AE8) -> 0 | AG14: =IF(AF14=0,0,(AF14*((LOG(AF14))/LOG(2)))) -> 0 | AI14: =N14 -> 0 | AJ14: =COUNTIF(L86:L111,AI14) -> 0 | AK14: =AJ14/(AL4-AJ8) -> 0 | AL14: =IF(AK14=0,0,(AK14*((LOG(AK14))/LOG(2)))) -> 0 | AN14: =N14 -> 0 | AO14: =COUNTIF(L112:L138,AN14) -> 0 | AP14: =AO14/(AQ4-AO8) -> 0 | AQ14: =IF(AP14=0,0,(AP14*((LOG(AP14))/LOG(2)))) -> 0 | AS14: =N14 -> 0 | AT14: =COUNTIF(L139:L164,AS14) -> 0 | AU14: =AT14/(AV4-AT8) -> 0 | AV14: =IF(AU14=0,0,(AU14*((LOG(AU14))/LOG(2)))) -> 0
A15: 11 | B15: 1076 | C15: 21 | D15: 1105 | K15: 0 | L15: 12 | P15: =SUM(P7:P14) -> 1 | Q15: =-SUM(Q7:Q14) -> 1.37803177 | V15: =SUM(V7:V14) -> 1 | W15: =-SUM(W7:W14) -> 0.958711883 | AA15: =SUM(AA7:AA14) -> 1 | AB15: =-SUM(AB7:AB14) -> 0.9456603046 | AF15: =SUM(AF7:AF14) -> 1 | AG15: =-SUM(AG7:AG14) -> 0.9043814577 | AK15: =SUM(AK7:AK14) -> 1 | AL15: =-SUM(AL7:AL14) -> 0.7382848661 | AP15: =SUM(AP7:AP14) -> 1 | AQ15: =-SUM(AQ7:AQ14) -> 0.4021791902 | AU15: =SUM(AU7:AU14) -> 1 | AV15: =-SUM(AV7:AV14) -> 0.985228136
A16: 22 | B16: 1202 | C16: 23 | D16: 1240 | K16: 0 | L16: 22 | P16: U= | Q16: =Q15/(LOG(Q4)/LOG(2)) -> 0.1886737592 | V16: U1= | W16: =W15/(LOG(W4)/LOG(2)) -> 0.2039621696 | AA16: U2= | AB16: =AB15/(LOG(AB4)/LOG(2)) -> 0.198881741 | AF16: U3= | AG16: =AG15/(LOG(AG4)/LOG(2)) -> 0.192403586 | AK16: U4= | AL16: =AL15/(LOG(AL4)/LOG(2)) -> 0.1570671917 | AP16: U5= | AQ16: =AQ15/(LOG(AQ4)/LOG(2)) -> 0.08458227246 | AU16: U6= | AV16: =AV15/(LOG(AV4)/LOG(2)) -> 0.2096033978
A17: 22 | B17: 1340 | C17: 14 | D17: 1354 | K17: 0 | L17: 21
A18: 22 | B18: 1458 | C18: 23 | D18: 1501 | K18: 0 | L18: 22
A19: 22 | B19: 1602 | C19: 14 | D19: 1609 | K19: 0 | L19: 21 | N19: Total Target Seq
A20: 22 | B20: 1704 | C20: 14 | D20: 1720 | K20: 0 | L20: 21 | N20: =COUNTIF(L7:L164,G3) -> 20 | P20: 26 | Q20: 27 | R20: 26 | S20: 26 | T20: 27 | U20: 26
A21: 22 | B21: 1819 | C21: 14 | D21: 1846 | K21: 0 | L21: 21 | P21: % of reinforcement given in 6 equal intervals based on number of trials
A22: 22 | B22: 1945 | C22: 23 | D22: 1953 | K22: 0 | L22: 22 | P22: %_1 | Q22: %_2 | R22: %_3 | S22: %_4 | T22: %_5 | U22: %_6
A23: 22 | B23: 2051 | C23: 23 | D23: 2058 | K23: 0 | L23: 22 | O23: target sequence | P23: =$G$3 -> 12 | Q23: =$G$3 -> 12 | R23: =$G$3 -> 12 | S23: =$G$3 -> 12 | T23: =$G$3 -> 12 | U23: =$G$3 -> 12
A24: 22 | B24: 2153 | C24: 14 | D24: 2162 | K24: 0 | L24: 21 | O24: total reinforcement | P24: =U8 -> 5 | Q24: =Z8 -> 5 | R24: =AE8 -> 1 | S24: =AJ8 -> 2 | T24: =AO8 -> 2 | U24: =AT8 -> 5
A25: 22 | B25: 2261 | C25: 14 | D25: 2271 | K25: 0 | L25: 21 | O25: % target
A26: 22 | B26: 2377 | C26: 14 | D26: 2386 | K26: 0 | L26: 21 | O26: CCRF
A27: 22 | B27: 2530 | C27: 23 | D27: 2542 | K27: 0 | L27: 22 | O27: % CCRf
A28: 11 | B28: 2649 | C28: 21 | D28: 2673 | K28: 0 | L28: 12 | O28: average response rate | P28: =D32/P20 -> 121.2307692 | Q28: =(D59-D32)/Q20 -> 123.9259259 | R28: =(D85-D59)/R20 -> 118.0384615 | S28: =(D111-D85)/S20 -> 131.3461538 | T28: =(D138-D111)/T20 -> 123.2222222 | U28: =(D164-D138)/U20 -> 123.8846154
A29: 22 | B29: 2780 | C29: 14 | D29: 2809 | K29: 0 | L29: 21
A30: 22 | B30: 2918 | C30: 14 | D30: 2926 | K30: 0 | L30: 21
A31: 11 | B31: 3034 | C31: 21 | D31: 3048 | K31: 0 | L31: 12
A32: 22 | B32: 3143 | C32: 14 | D32: 3152 | K32: 0 | L32: 21
A33: 22 | B33: 3250 | C33: 14 | D33: 3259 | K33: 0 | L33: 21
A34: 22 | B34: 3354 | C34: 14 | D34: 3369 | K34: 0 | L34: 21
A35: 22 | B35: 3464 | C35: 14 | D35: 3472 | K35: 0 | L35: 21
A36: 22 | B36: 3566 | C36: 14 | D36: 3580 | K36: 0 | L36: 21
A37: 22 | B37: 3681 | C37: 14 | D37: 3690 | K37: 0 | L37: 21
A38: 22 | B38: 3790 | C38: 14 | D38: 3798 | K38: 0 | L38: 21
A39: 11 | B39: 3921 | C39: 21 | D39: 3958 | K39: 0 | L39: 12
A40: 22 | B40: 4051 | C40: 23 | D40: 4061 | K40: 0 | L40: 22
A41: 11 | B41: 4168 | C41: 21 | D41: 4186 | K41: 0 | L41: 12
A42: 11 | B42: 4302 | C42: 21 | D42: 4348 | K42: 0 | L42: 12
A43: 22 | B43: 4441 | C43: 14 | D43: 4449 | K43: 0 | L43: 21
A44: 22 | B44: 4545 | C44: 14 | D44: 4554 | K44: 0 | L44: 21
A45: 22 | B45: 4648 | C45: 14 | D45: 4657 | K45: 0 | L45: 21
A46: 11 | B46: 4777 | C46: 21 | D46: 4823 | K46: 0 | L46: 12
A47: 22 | B47: 4935 | C47: 23 | D47: 4978 | K47: 0 | L47: 22
A48: 11 | B48: 5091 | C48: 21 | D48: 5104 | K48: 0 | L48: 12
A49: 22 | B49: 5198 | C49: 14 | D49: 5207 | K49: 0 | L49: 21
A50: 22 | B50: 5346 | C50: 23 | D50: 5354 | K50: 0 | L50: 22
A51: 22 | B51: 5454 | C51: 23 | D51: 5503 | K51: 0 | L51: 22
A52: 22 | B52: 5603 | C52: 14 | D52: 5618 | K52: 0 | L52: 21
A53: 22 | B53: 5732 | C53: 14 | D53: 5740 | K53: 0 | L53: 21
A54: 22 | B54: 5845 | C54: 14 | D54: 5853 | K54: 0 | L54: 21
A55: 22 | B55: 5954 | C55: 23 | D55: 5992 | K55: 0 | L55: 22
A56: 22 | B56: 6092 | C56: 14 | D56: 6107 | K56: 0 | L56: 21
A57: 22 | B57: 6208 | C57: 23 | D57: 6217 | K57: 0 | L57: 22
A58: 22 | B58: 6318 | C58: 23 | D58: 6344 | K58: 0 | L58: 22
A59: 22 | B59: 6473 | C59: 23 | D59: 6498 | K59: 0 | L59: 22
A60: 22 | B60: 6602 | C60: 14 | D60: 6611 | K60: 0 | L60: 21
A61: 22 | B61: 6711 | C61: 14 | D61: 6720 | K61: 0 | L61: 21
A62: 22 | B62: 6817 | C62: 23 | D62: 6825 | K62: 0 | L62: 22
A63: 22 | B63: 6927 | C63: 14 | D63: 6936 | K63: 0 | L63: 21
A64: 22 | B64: 7037 | C64: 14 | D64: 7045 | K64: 0 | L64: 21
A65: 22 | B65: 7143 | C65: 14 | D65: 7167 | K65: 0 | L65: 21
A66: 22 | B66: 7272 | C66: 23 | D66: 7315 | K66: 0 | L66: 22
A67: 22 | B67: 7413 | C67: 23 | D67: 7440 | K67: 0 | L67: 22
A68: 22 | B68: 7554 | C68: 14 | D68: 7563 | K68: 0 | L68: 21
A69: 22 | B69: 7662 | C69: 23 | D69: 7670 | K69: 0 | L69: 22
A70: 22 | B70: 7774 | C70: 23 | D70: 7796 | K70: 0 | L70: 22
A71: 22 | B71: 7894 | C71: 23 | D71: 7915 | K71: 0 | L71: 22
A72: 22 | B72: 8018 | C72: 23 | D72: 8048 | K72: 0 | L72: 22
A73: 22 | B73: 8141 | C73: 14 | D73: 8156 | K73: 0 | L73: 21
A74: 22 | B74: 8257 | C74: 14 | D74: 8273 | K74: 0 | L74: 21
A75: 22 | B75: 8393 | C75: 23 | D75: 8408 | K75: 0 | L75: 22
A76: 22 | B76: 8509 | C76: 23 | D76: 8518 | K76: 0 | L76: 22
A77: 22 | B77: 8611 | C77: 23 | D77: 8641 | K77: 0 | L77: 22
A78: 22 | B78: 8760 | C78: 23 | D78: 8768 | K78: 0 | L78: 22
A79: 22 | B79: 8868 | C79: 23 | D79: 8876 | K79: 0 | L79: 22
A80: 22 | B80: 8974 | C80: 23 | D80: 8998 | K80: 0 | L80: 22
A81: 22 | B81: 9096 | C81: 23 | D81: 9111 | K81: 0 | L81: 22
A82: 22 | B82: 9211 | C82: 23 | D82: 9219 | K82: 0 | L82: 22
A83: 11 | B83: 9325 | C83: 21 | D83: 9351 | K83: 0 | L83: 12
A84: 22 | B84: 9445 | C84: 23 | D84: 9452 | K84: 0 | L84: 22
A85: 22 | B85: 9550 | C85: 23 | D85: 9567 | K85: 0 | L85: 22
A86: 22 | B86: 9687 | C86: 23 | D86: 9696 | K86: 0 | L86: 22
A87: 22 | B87: 9825 | C87: 23 | D87: 9856 | K87: 0 | L87: 22
A88: 22 | B88: 9957 | C88: 14 | D88: 9965 | K88: 0 | L88: 21
A89: 22 | B89: 10090 | C89: 23 | D89: 10111 | K89: 0 | L89: 22
A90: 22 | B90: 10208 | C90: 23 | D90: 10216 | K90: 0 | L90: 22
A91: 22 | B91: 10316 | C91: 23 | D91: 10373 | K91: 0 | L91: 22
A92: 22 | B92: 10470 | C92: 23 | D92: 10492 | K92: 0 | L92: 22
A93: 22 | B93: 10606 | C93: 23 | D93: 10630 | K93: 0 | L93: 22
A94: 22 | B94: 10730 | C94: 23 | D94: 10741 | K94: 0 | L94: 22
A95: 22 | B95: 10875 | C95: 23 | D95: 10883 | K95: 0 | L95: 22
A96: 22 | B96: 10979 | C96: 23 | D96: 10994 | K96: 0 | L96: 22
A97: 22 | B97: 11093 | C97: 23 | D97: 11119 | K97: 0 | L97: 22
A98: 22 | B98: 11220 | C98: 23 | D98: 11270 | K98: 0 | L98: 22
A99: 22 | B99: 11399 | C99: 23 | D99: 11409 | K99: 0 | L99: 22
A100: 11 | B100: 11530 | C100: 21 | D100: 11577 | K100: 0 | L100: 12
A101: 11 | B101: 11704 | C101: 21 | D101: 11783 | K101: 0 | L101: 12
A102: 22 | B102: 11902 | C102: 23 | D102: 11930 | K102: 0 | L102: 22
A103: 22 | B103: 12029 | C103: 23 | D103: 12037 | K103: 0 | L103: 22
A104: 22 | B104: 12137 | C104: 23 | D104: 12172 | K104: 0 | L104: 22
A105: 22 | B105: 12292 | C105: 14 | D105: 12300 | K105: 0 | L105: 21
A106: 22 | B106: 12406 | C106: 14 | D106: 12414 | K106: 0 | L106: 21
A107: 22 | B107: 12511 | C107: 23 | D107: 12518 | K107: 0 | L107: 22
A108: 22 | B108: 12619 | C108: 23 | D108: 12636 | K108: 0 | L108: 22
A109: 22 | B109: 12734 | C109: 23 | D109: 12757 | K109: 0 | L109: 22
A110: 22 | B110: 12861 | C110: 14 | D110: 12869 | K110: 0 | L110: 21
A111: 22 | B111: 12966 | C111: 14 | D111: 12982 | K111: 0 | L111: 21
A112: 22 | B112: 13082 | C112: 23 | D112: 13090 | K112: 0 | L112: 22
A113: 11 | B113: 13202 | C113: 21 | D113: 13240 | K113: 0 | L113: 12
A114: 22 | B114: 13335 | C114: 23 | D114: 13342 | K114: 0 | L114: 22
A115: 22 | B115: 13443 | C115: 23 | D115: 13455 | K115: 0 | L115: 22
A116: 22 | B116: 13560 | C116: 14 | D116: 13568 | K116: 0 | L116: 21
A117: 22 | B117: 13670 | C117: 23 | D117: 13691 | K117: 0 | L117: 22
A118: 22 | B118: 13789 | C118: 23 | D118: 13801 | K118: 0 | L118: 22
A119: 22 | B119: 13896 | C119: 23 | D119: 13922 | K119: 0 | L119: 22
A120: 22 | B120: 14027 | C120: 23 | D120: 14056 | K120: 0 | L120: 22
A121: 22 | B121: 14154 | C121: 14 | D121: 14172 | K121: 0 | L121: 21
A122: 22 | B122: 14271 | C122: 23 | D122: 14283 | K122: 0 | L122: 22
A123: 22 | B123: 14381 | C123: 23 | D123: 14403 | K123: 0 | L123: 22
A124: 11 | B124: 14519 | C124: 21 | D124: 14537 | K124: 0 | L124: 12
A125: 22 | B125: 14632 | C125: 23 | D125: 14661 | K125: 0 | L125: 22
A126: 22 | B126: 14759 | C126: 23 | D126: 14779 | K126: 0 | L126: 22
A127: 22 | B127: 14876 | C127: 23 | D127: 14907 | K127: 0 | L127: 22
A128: 22 | B128: 15004 | C128: 23 | D128: 15017 | K128: 0 | L128: 22
A129: 22 | B129: 15117 | C129: 23 | D129: 15159 | K129: 0 | L129: 22
A130: 22 | B130: 15283 | C130: 23 | D130: 15298 | K130: 0 | L130: 22
A131: 22 | B131: 15417 | C131: 23 | D131: 15431 | K131: 0 | L131: 22
A132: 22 | B132: 15530 | C132: 23 | D132: 15554 | K132: 0 | L132: 22
A133: 22 | B133: 15681 | C133: 23 | D133: 15703 | K133: 0 | L133: 22
A134: 22 | B134: 15800 | C134: 23 | D134: 15807 | K134: 0 | L134: 22
A135: 22 | B135: 15908 | C135: 23 | D135: 15953 | K135: 0 | L135: 22
A136: 22 | B136: 16050 | C136: 23 | D136: 16056 | K136: 0 | L136: 22
A137: 22 | B137: 16154 | C137: 23 | D137: 16170 | K137: 0 | L137: 22
A138: 22 | B138: 16301 | C138: 23 | D138: 16309 | K138: 0 | L138: 22
A139: 22 | B139: 16407 | C139: 14 | D139: 16427 | K139: 0 | L139: 21
A140: 22 | B140: 16527 | C140: 23 | D140: 16534 | K140: 0 | L140: 22
A141: 22 | B141: 16638 | C141: 14 | D141: 16646 | K141: 0 | L141: 21
A142: 11 | B142: 16760 | C142: 21 | D142: 16786 | K142: 0 | L142: 12
A143: 22 | B143: 16880 | C143: 14 | D143: 16888 | K143: 0 | L143: 21
A144: 22 | B144: 16986 | C144: 23 | D144: 16993 | K144: 0 | L144: 22
A145: 22 | B145: 17090 | C145: 14 | D145: 17097 | K145: 0 | L145: 21
A146: 22 | B146: 17199 | C146: 23 | D146: 17217 | K146: 0 | L146: 22
A147: 22 | B147: 17315 | C147: 14 | D147: 17334 | K147: 0 | L147: 21
A148: 22 | B148: 17429 | C148: 23 | D148: 17434 | K148: 0 | L148: 22
A149: 11 | B149: 17539 | C149: 21 | D149: 17558 | K149: 0 | L149: 12
A150: 22 | B150: 17653 | C150: 23 | D150: 17726 | K150: 0 | L150: 22
A151: 11 | B151: 17844 | C151: 21 | D151: 17863 | K151: 0 | L151: 12
A152: 22 | B152: 17958 | C152: 14 | D152: 17988 | K152: 0 | L152: 21
A153: 11 | B153: 18097 | C153: 21 | D153: 18115 | K153: 0 | L153: 12
A154: 22 | B154: 18212 | C154: 23 | D154: 18227 | K154: 0 | L154: 22
A155: 22 | B155: 18321 | C155: 23 | D155: 18361 | K155: 0 | L155: 22
A156: 22 | B156: 18462 | C156: 23 | D156: 18484 | K156: 0 | L156: 22
A157: 22 | B157: 18582 | C157: 23 | D157: 18593 | K157: 0 | L157: 22
A158: 22 | B158: 18708 | C158: 23 | D158: 18715 | K158: 0 | L158: 22
A159: 22 | B159: 18813 | C159: 14 | D159: 18837 | K159: 0 | L159: 21
A160: 11 | B160: 18957 | C160: 21 | D160: 19010 | K160: 0 | L160: 12
A161: 22 | B161: 19141 | C161: 23 | D161: 19154 | K161: 0 | L161: 22
A162: 22 | B162: 19256 | C162: 14 | D162: 19263 | K162: 0 | L162: 21
A163: 22 | B163: 19404 | C163: 23 | D163: 19419 | K163: 0 | L163: 22
A164: 22 | B164: 19518 | C164: 14 | D164: 19530 | K164: 1 | L164: 21

Sheet !N205910.095
A1: Report for:!N205910.095
A2: Date: | B2: <date>
A3: Hen: | B3: <hen> | F3: Correct Sequence | G3: =Start!J2 -> 12 | P3: Total Sequences in Data | Q3: =4994-COUNTBLANK(L7:L5000) -> 111 | V3: Total Sequences in Block Data | W3: =COUNTA(L7:L25) -> 19 | AA3: Total Sequences in Block Data | AB3: =COUNTA(L26:L43) -> 18 | AF3: Total Sequences in Block Data | AG3: =COUNTA(L44:L62) -> 19 | AK3: Total Sequences in Block Data | AL3: =COUNTA(L63:L80) -> 18 | AP3: Total Sequences in Block Data | AQ3: =COUNTA(L81:L99) -> 19 | AU3: Total Sequences in Block Data | AV3: =COUNTA(L100:L117) -> 18
P4: Total Sequences in Summary | Q4: =SUM(O7:O14) -> 111 | V4: Total Sequences in Block Summary | W4: =SUM(U7:U14) -> 19 | AA4: Total Sequences in Block Summary | AB4: =SUM(Z7:Z14) -> 18 | AF4: Total Sequences in Block Summary | AG4: =SUM(AE7:AE14) -> 19 | AK4: Total Sequences in Block Summary | AL4: =SUM(AJ7:AJ14) -> 18 | AP4: Total Sequences in Block Summary | AQ4: =SUM(AO7:AO14) -> 19 | AU4: Total Sequences in Block Summary | AV4: =SUM(AT7:AT14) -> 18
T5: Block 1 | Y5: Block 2 | AD5: Block 3 | AI5: Block 4 | AN5: Block 5 | AS5: Block 6
A6: Sequence Component 1 | B6: Time 1 | C6: Sequence Component 2 | D6: Time 2 | E6: Sequence Component 3 | F6: Time 3 | G6: Sequence Component 4 | H6: Time 4 | I6: Sequence Component 5 | J6: Time 5 | K6: Correct? 0=No 1=Yes | L6: Sequence | N6: Frequency | P6: Relative Frequency | Q6: Variability | T6: Frequency | V6: Relative Frequency | W6: Variability | Y6: Frequency | AA6: Relative Frequency | AB6: Variability | AD6: Frequency | AF6: Relative Frequency | AG6: Variability | AI6: Frequency | AK6: Relative Frequency | AL6: Variability | AN6: Frequency | AP6: Relative Frequency | AQ6: Variability | AS6: Frequency | AU6: Relative Frequency | AV6: Variability
A7: 22 | B7: 10 | C7: 23 | D7: 18 | K7: 0 | L7: 22 | N7: 11 | O7: =COUNTIF($L$7:$L$500,N7) -> 0 | P7: =O7/$Q$4 -> 0 | Q7: =IF(P7=0,0,(P7*((LOG(P7))/LOG(2)))) -> 0 | T7: =N7 -> 11 | U7: =COUNTIF(L7:L25,T7) -> 0 | V7: =U7/(W4-U8) -> 0 | W7: =IF(V7=0,0,(V7*((LOG(V7))/LOG(2)))) -> 0 | Y7: =N7 -> 11 | Z7: =COUNTIF(L26:L43,Y7) -> 0 | AA7: =Z7/(AB4-Z8) -> 0 | AB7: =IF(AA7=0,0,(AA7*((LOG(AA7))/LOG(2)))) -> 0 | AD7: =N7 -> 11 | AE7: =COUNTIF(L44:L62,AD7) -> 0 | AF7: =AE7/(AG4-AE8) -> 0 | AG7: =IF(AF7=0,0,(AF7*((LOG(AF7))/LOG(2)))) -> 0 | AI7: =N7 -> 11 | AJ7: =COUNTIF(L63:L80,AI7) -> 0 | AK7: =AJ7/(AL4-AJ8) -> 0 | AL7: =IF(AK7=0,0,(AK7*((LOG(AK7))/LOG(2)))) -> 0 | AN7: =N7 -> 11 | AO7: =COUNTIF(L81:L99,AN7) -> 0 | AP7: =AO7/(AQ4-AO8) -> 0 | AQ7: =IF(AP7=0,0,(AP7*((LOG(AP7))/LOG(2)))) -> 0 | AS7: =N7 -> 11 | AT7: =COUNTIF(L100:L117,AS7) -> 0 | AU7: =AT7/(AV4-AT8) -> 0 | AV7: =IF(AU7=0,0,(AU7*((LOG(AU7))/LOG(2)))) -> 0
A8: 22 | B8: 125 | C8: 14 | D8: 136 | K8: 0 | L8: 21 | N8: 12 | O8: =COUNTIF($L$7:$L$500,N8) -> 26 | P8: =O8/$Q$4 -> 0.2342342342 | Q8: =IF(P8=0,0,(P8*((LOG(P8))/LOG(2)))) -> -0.4904808996 | T8: =N8 -> 12 | U8: =COUNTIF(L7:L25,T8) -> 1 | Y8: =N8 -> 12 | Z8: =COUNTIF(L26:L43,Y8) -> 5 | AD8: =N8 -> 12 | AE8: =COUNTIF(L44:L62,AD8) -> 1 | AI8: =N8 -> 12 | AJ8: =COUNTIF(L63:L80,AI8) -> 4 | AN8: =N8 -> 12 | AO8: =COUNTIF(L81:L99,AN8) -> 9 | AS8: =N8 -> 12 | AT8: =COUNTIF(L100:L117,AS8) -> 6
A9: 22 | B9: 232 | C9: 23 | D9: 262 | K9: 0 | L9: 22 | N9: 21 | O9: =COUNTIF($L$7:$L$500,N9) -> 55 | P9: =O9/$Q$4 -> 0.4954954955 | Q9: =IF(P9=0,0,(P9*((LOG(P9))/LOG(2)))) -> -0.5019647604 | T9: =N9 -> 21 | U9: =COUNTIF(L7:L25,T9) -> 10 | V9: =U9/(W4-U8) -> 0.5555555556 | W9: =IF(V9=0,0,(V9*((LOG(V9))/LOG(2)))) -> -0.4711093925 | Y9: =N9 -> 21 | Z9: =COUNTIF(L26:L43,Y9) -> 8 | AA9: =Z9/(AB4-Z8) -> 0.6153846154 | AB9: =IF(AA9=0,0,(AA9*((LOG(AA9))/LOG(2)))) -> -0.4310398265 | AD9: =N9 -> 21 | AE9: =COUNTIF(L44:L62,AD9) -> 10 | AF9: =AE9/(AG4-AE8) -> 0.5555555556 | AG9: =IF(AF9=0,0,(AF9*((LOG(AF9))/LOG(2)))) -> -0.4711093925 | AI9: =N9 -> 21 | AJ9: =COUNTIF(L63:L80,AI9) -> 10 | AK9: =AJ9/(AL4-AJ8) -> 0.7142857143 | AL9: =IF(AK9=0,0,(AK9*((LOG(AK9))/LOG(2)))) -> -0.346733448 | AN9: =N9 -> 21 | AO9: =COUNTIF(L81:L99,AN9) -> 8 | AP9: =AO9/(AQ4-AO8) -> 0.8 | AQ9: =IF(AP9=0,0,(AP9*((LOG(AP9))/LOG(2)))) -> -0.2575424759 | AS9: =N9 -> 21 | AT9: =COUNTIF(L100:L117,AS9) -> 9 | AU9: =AT9/(AV4-AT8) -> 0.75 | AV9: =IF(AU9=0,0,(AU9*((LOG(AU9))/LOG(2)))) -> -0.3112781245
A10: 22 | B10: 365 | C10: 14 | D10: 373 | K10: 0 | L10: 21 | N10: 22 | O10: =COUNTIF($L$7:$L$500,N10) -> 30 | P10: =O10/$Q$4 -> 0.2702702703 | Q10: =IF(P10=0,0,(P10*((LOG(P10))/LOG(2)))) -> -0.5101419651 | T10: =N10 -> 22 | U10: =COUNTIF(L7:L25,T10) -> 8 | V10: =U10/(W4-U8) -> 0.4444444444 | W10: =IF(V10=0,0,(V10*((LOG(V10))/LOG(2)))) -> -0.5199666673 | Y10: =N10 -> 22 | Z10: =COUNTIF(L26:L43,Y10) -> 5 | AA10: =Z10/(AB4-Z8) -> 0.3846153846 | AB10: =IF(AA10=0,0,(AA10*((LOG(AA10))/LOG(2)))) -> -0.5301967782 | AD10: =N10 -> 22 | AE10: =COUNTIF(L44:L62,AD10) -> 8 | AF10: =AE10/(AG4-AE8) -> 0.4444444444 | AG10: =IF(AF10=0,0,(AF10*((LOG(AF10))/LOG(2)))) -> -0.5199666673 | AI10: =N10 -> 22 | AJ10: =COUNTIF(L63:L80,AI10) -> 4 | AK10: =AJ10/(AL4-AJ8) -> 0.2857142857 | AL10: =IF(AK10=0,0,(AK10*((LOG(AK10))/LOG(2)))) -> -0.5163871206 | AN10: =N10 -> 22 | AO10: =COUNTIF(L81:L99,AN10) -> 2 | AP10: =AO10/(AQ4-AO8) -> 0.2 | AQ10: =IF(AP10=0,0,(AP10*((LOG(AP10))/LOG(2)))) -> -0.464385619 | AS10: =N10 -> 22 | AT10: =COUNTIF(L100:L117,AS10) -> 3 | AU10: =AT10/(AV4-AT8) -> 0.25 | AV10: =IF(AU10=0,0,(AU10*((LOG(AU10))/LOG(2)))) -> -0.5
A11: 22 | B11: 472 | C11: 14 | D11: 492 | K11: 0 | L11: 21 | T11: =N11 -> 0 | U11: =COUNTIF(L7:L25,T11) -> 0 | V11: =U11/(W4-U8) -> 0 | W11: =IF(V11=0,0,(V11*((LOG(V11))/LOG(2)))) -> 0 | Y11: =N11 -> 0 | Z11: =COUNTIF(L26:L43,Y11) -> 0 | AA11: =Z11/(AB4-Z8) -> 0 | AB11: =IF(AA11=0,0,(AA11*((LOG(AA11))/LOG(2)))) -> 0 | AD11: =N11 -> 0 | AE11: =COUNTIF(L44:L62,AD11) -> 0 | AF11: =AE11/(AG4-AE8) -> 0 | AG11: =IF(AF11=0,0,(AF11*((LOG(AF11))/LOG(2)))) -> 0 | AI11: =N11 -> 0 | AJ11: =COUNTIF(L63:L80,AI11) -> 0 | AK11: =AJ11/(AL4-AJ8) -> 0 | AL11: =IF(AK11=0,0,(AK11*((LOG(AK11))/LOG(2)))) -> 0 | AN11: =N11 -> 0 | AO11: =COUNTIF(L81:L99,AN11) -> 0 | AP11: =AO11/(AQ4-AO8) -> 0 | AQ11: =IF(AP11=0,0,(AP11*((LOG(AP11))/LOG(2)))) -> 0 | AS11: =N11 -> 0 | AT11: =COUNTIF(L100:L117,AS11) -> 0 | AU11: =AT11/(AV4-AT8) -> 0 | AV11: =IF(AU11=0,0,(AU11*((LOG(AU11))/LOG(2)))) -> 0
A12: 22 | B12: 589 | C12: 14 | D12: 603 | K12: 0 | L12: 21 | T12: =N12 -> 0 | U12: =COUNTIF(L7:L25,T12) -> 0 | V12: =U12/(W4-U8) -> 0 | W12: =IF(V12=0,0,(V12*((LOG(V12))/LOG(2)))) -> 0 | Y12: =N12 -> 0 | Z12: =COUNTIF(L26:L43,Y12) -> 0 | AA12: =Z12/(AB4-Z8) -> 0 | AB12: =IF(AA12=0,0,(AA12*((LOG(AA12))/LOG(2)))) -> 0 | AD12: =N12 -> 0 | AE12: =COUNTIF(L44:L62,AD12) -> 0 | AF12: =AE12/(AG4-AE8) -> 0 | AG12: =IF(AF12=0,0,(AF12*((LOG(AF12))/LOG(2)))) -> 0 | AI12: =N12 -> 0 | AJ12: =COUNTIF(L63:L80,AI12) -> 0 | AK12: =AJ12/(AL4-AJ8) -> 0 | AL12: =IF(AK12=0,0,(AK12*((LOG(AK12))/LOG(2)))) -> 0 | AN12: =N12 -> 0 | AO12: =COUNTIF(L81:L99,AN12) -> 0 | AP12: =AO12/(AQ4-AO8) -> 0 | AQ12: =IF(AP12=0,0,(AP12*((LOG(AP12))/LOG(2)))) -> 0 | AS12: =N12 -> 0 | AT12: =COUNTIF(L100:L117,AS12) -> 0 | AU12: =AT12/(AV4-AT8) -> 0 | AV12: =IF(AU12=0,0,(AU12*((LOG(AU12))/LOG(2)))) -> 0
A13: 22 | B13: 703 | C13: 14 | D13: 714 | K13: 0 | L13: 21 | T13: =N13 -> 0 | U13: =COUNTIF(L7:L25,T13) -> 0 | V13: =U13/(W4-U8) -> 0 | W13: =IF(V13=0,0,(V13*((LOG(V13))/LOG(2)))) -> 0 | Y13: =N13 -> 0 | Z13: =COUNTIF(L26:L43,Y13) -> 0 | AA13: =Z13/(AB4-Z8) -> 0 | AB13: =IF(AA13=0,0,(AA13*((LOG(AA13))/LOG(2)))) -> 0 | AD13: =N13 -> 0 | AE13: =COUNTIF(L44:L62,AD13) -> 0 | AF13: =AE13/(AG4-AE8) -> 0 | AG13: =IF(AF13=0,0,(AF13*((LOG(AF13))/LOG(2)))) -> 0 | AI13: =N13 -> 0 | AJ13: =COUNTIF(L63:L80,AI13) -> 0 | AK13: =AJ13/(AL4-AJ8) -> 0 | AL13: =IF(AK13=0,0,(AK13*((LOG(AK13))/LOG(2)))) -> 0 | AN13: =N13 -> 0 | AO13: =COUNTIF(L81:L99,AN13) -> 0 | AP13: =AO13/(AQ4-AO8) -> 0 | AQ13: =IF(AP13=0,0,(AP13*((LOG(AP13))/LOG(2)))) -> 0 | AS13: =N13 -> 0 | AT13: =COUNTIF(L100:L117,AS13) -> 0 | AU13: =AT13/(AV4-AT8) -> 0 | AV13: =IF(AU13=0,0,(AU13*((LOG(AU13))/LOG(2)))) -> 0
A14: 22 | B14: 813 | C14: 23 | D14: 820 | K14: 0 | L14: 22 | T14: =N14 -> 0 | U14: =COUNTIF(L7:L25,T14) -> 0 | V14: =U14/(W4-U8) -> 0 | W14: =IF(V14=0,0,(V14*((LOG(V14))/LOG(2)))) -> 0 | Y14: =N14 -> 0 | Z14: =COUNTIF(L26:L43,Y14) -> 0 | AA14: =Z14/(AB4-Z8) -> 0 | AB14: =IF(AA14=0,0,(AA14*((LOG(AA14))/LOG(2)))) -> 0 | AD14: =N14 -> 0 | AE14: =COUNTIF(L44:L62,AD14) -> 0 | AF14: =AE14/(AG4-AE8) -> 0 | AG14: =IF(AF14=0,0,(AF14*((LOG(AF14))/LOG(2)))) -> 0 | AI14: =N14 -> 0 | AJ14: =COUNTIF(L63:L80,AI14) -> 0 | AK14: =AJ14/(AL4-AJ8) -> 0 | AL14: =IF(AK14=0,0,(AK14*((LOG(AK14))/LOG(2)))) -> 0 | AN14: =N14 -> 0 | AO14: =COUNTIF(L81:L99,AN14) -> 0 | AP14: =AO14/(AQ4-AO8) -> 0 | AQ14: =IF(AP14=0,0,(AP14*((LOG(AP14))/LOG(2)))) -> 0 | AS14: =N14 -> 0 | AT14: =COUNTIF(L100:L117,AS14) -> 0 | AU14: =AT14/(AV4-AT8) -> 0 | AV14: =IF(AU14=0,0,(AU14*((LOG(AU14))/LOG(2)))) -> 0
A15: 22 | B15: 1000 | C15: 14 | D15: 1011 | K15: 0 | L15: 21 | P15: =SUM(P7:P14) -> 1 | Q15: =-SUM(Q7:Q14) -> 1.502587625 | V15: =SUM(V7:V14) -> 1 | W15: =-SUM(W7:W14) -> 0.9910760598 | AA15: =SUM(AA7:AA14) -> 1 | AB15: =-SUM(AB7:AB14) -> 0.9612366047 | AF15: =SUM(AF7:AF14) -> 1 | AG15: =-SUM(AG7:AG14) -> 0.9910760598 | AK15: =SUM(AK7:AK14) -> 1 | AL15: =-SUM(AL7:AL14) -> 0.8631205686 | AP15: =SUM(AP7:AP14) -> 1 | AQ15: =-SUM(AQ7:AQ14) -> 0.7219280949 | AU15: =SUM(AU7:AU14) -> 1 | AV15: =-SUM(AV7:AV14) -> 0.8112781245
A16: 22 | B16: 1115 | C16: 23 | D16: 1127 | K16: 0 | L16: 22 | P16: U= | Q16: =Q15/(LOG(Q4)/LOG(2)) -> 0.2211503762 | V16: U1= | W16: =W15/(LOG(W4)/LOG(2)) -> 0.2333081383 | AA16: U2= | AB16: =AB15/(LOG(AB4)/LOG(2)) -> 0.2305165211 | AF16: U3= | AG16: =AG15/(LOG(AG4)/LOG(2)) -> 0.2333081383 | AK16: U4= | AL16: =AL15/(LOG(AL4)/LOG(2)) -> 0.2069870725 | AP16: U5= | AQ16: =AQ15/(LOG(AQ4)/LOG(2)) -> 0.1699483083 | AU16: U6= | AV16: =AV15/(LOG(AV4)/LOG(2)) -> 0.1945546081
A17: 22 | B17: 1229 | C17: 23 | D17: 1248 | K17: 0 | L17: 22
A18: 22 | B18: 1353 | C18: 14 | D18: 1362 | K18: 0 | L18: 21
A19: 22 | B19: 1462 | C19: 14 | D19: 1478 | K19: 0 | L19: 21 | N19: Total Target Seq
A20: 22 | B20: 1579 | C20: 14 | D20: 1588 | K20: 0 | L20: 21 | N20: =COUNTIF(L7:L117,G3) -> 26 | P20: 19 | Q20: 18 | R20: 19 | S20: 18 | T20: 19 | U20: 18
A21: 22 | B21: 1682 | C21: 23 | D21: 1749 | K21: 0 | L21: 22 | P21: % of reinforcement given in 6 equal intervals based on number of trials
A22: 22 | B22: 1846 | C22: 23 | D22: 1853 | K22: 0 | L22: 22 | P22: %_1 | Q22: %_2 | R22: %_3 | S22: %_4 | T22: %_5 | U22: %_6
A23: 11 | B23: 1972 | C23: 21 | D23: 1983 | K23: 0 | L23: 12 | O23: target sequence | P23: =$G$3 -> 12 | Q23: =$G$3 -> 12 | R23: =$G$3 -> 12 | S23: =$G$3 -> 12 | T23: =$G$3 -> 12 | U23: =$G$3 -> 12
A24: 22 | B24: 2088 | C24: 23 | D24: 2105 | K24: 0 | L24: 22 | O24: total reinforcement | P24: =U8 -> 1 | Q24: =Z8 -> 5 | R24: =AE8 -> 1 | S24: =AJ8 -> 4 | T24: =AO8 -> 9 | U24: =AT8 -> 6
A25: 22 | B25: 2221 | C25: 14 | D25: 2231 | K25: 0 | L25: 21 | O25: % target
A26: 22 | B26: 2331 | C26: 23 | D26: 2339 | K26: 0 | L26: 22 | O26: CCRF
A27: 11 | B27: 2456 | C27: 21 | D27: 2470 | K27: 0 | L27: 12 | O27: % CCRf
A28: 22 | B28: 2571 | C28: 14 | D28: 2579 | K28: 0 | L28: 21 | O28: average response rate | P28: =D25/P20 -> 117.4210526 | Q28: =(D43-D25)/Q20 -> 121.7777778 | R28: =(D62-D43)/R20 -> 118.8947368 | S28: =(D80-D62)/S20 -> 114.0555556 | T28: =(D99-D80)/T20 -> 128.7894737 | U28: =(D117-D99)/U20 -> 114.8888889
A29: 22 | B29: 2676 | C29: 14 | D29: 2684 | K29: 0 | L29: 21
A30: 22 | B30: 2784 | C30: 14 | D30: 2792 | K30: 0 | L30: 21
A31: 22 | B31: 2905 | C31: 14 | D31: 2914 | K31: 0 | L31: 21
A32: 22 | B32: 3018 | C32: 14 | D32: 3026 | K32: 0 | L32: 21
A33: 11 | B33: 3133 | C33: 21 | D33: 3169 | K33: 0 | L33: 12
A34: 11 | B34: 3276 | C34: 21 | D34: 3293 | K34: 0 | L34: 12
A35: 22 | B35: 3422 | C35: 23 | D35: 3439 | K35: 0 | L35: 22
A36: 11 | B36: 3544 | C36: 21 | D36: 3585 | K36: 0 | L36: 12
A37: 11 | B37: 3696 | C37: 21 | D37: 3759 | K37: 0 | L37: 12
A38: 22 | B38: 3857 | C38: 23 | D38: 3865 | K38: 0 | L38: 22
A39: 22 | B39: 3964 | C39: 23 | D39: 3972 | K39: 0 | L39: 22
A40: 22 | B40: 4069 | C40: 14 | D40: 4078 | K40: 0 | L40: 21
A41: 22 | B41: 4179 | C41: 14 | D41: 4201 | K41: 0 | L41: 21
A42: 22 | B42: 4306 | C42: 14 | D42: 4316 | K42: 0 | L42: 21
A43: 22 | B43: 4416 | C43: 23 | D43: 4423 | K43: 0 | L43: 22
A44: 22 | B44: 4563 | C44: 23 | D44: 4576 | K44: 0 | L44: 22
A45: 22 | B45: 4672 | C45: 14 | D45: 4694 | K45: 0 | L45: 21
A46: 22 | B46: 4789 | C46: 23 | D46: 4801 | K46: 0 | L46: 22
A47: 22 | B47: 4898 | C47: 14 | D47: 4906 | K47: 0 | L47: 21
A48: 22 | B48: 5003 | C48: 23 | D48: 5034 | K48: 0 | L48: 22
A49: 22 | B49: 5136 | C49: 14 | D49: 5147 | K49: 0 | L49: 21
A50: 22 | B50: 5246 | C50: 23 | D50: 5254 | K50: 0 | L50: 22
A51: 22 | B51: 5366 | C51: 23 | D51: 5380 | K51: 0 | L51: 22
A52: 22 | B52: 5480 | C52: 14 | D52: 5488 | K52: 0 | L52: 21
A53: 22 | B53: 5589 | C53: 14 | D53: 5600 | K53: 0 | L53: 21
A54: 22 | B54: 5694 | C54: 23 | D54: 5708 | K54: 0 | L54: 22
A55: 22 | B55: 5805 | C55: 23 | D55: 5828 | K55: 0 | L55: 22
A56: 22 | B56: 5930 | C56: 14 | D56: 5953 | K56: 0 | L56: 21
A57: 22 | B57: 6060 | C57: 14 | D57: 6071 | K57: 0 | L57: 21
A58: 22 | B58: 6166 | C58: 14 | D58: 6174 | K58: 0 | L58: 21
A59: 11 | B59: 6285 | C59: 21 | D59: 6296 | K59: 0 | L59: 12
A60: 22 | B60: 6392 | C60: 14 | D60: 6418 | K60: 0 | L60: 21
A61: 22 | B61: 6516 | C61: 14 | D61: 6535 | K61: 0 | L61: 21
A62: 22 | B62: 6662 | C62: 23 | D62: 6682 | K62: 0 | L62: 22
A63: 22 | B63: 6811 | C63: 23 | D63: 6818 | K63: 0 | L63: 22
A64: 22 | B64: 6918 | C64: 14 | D64: 6926 | K64: 0 | L64: 21
A65: 11 | B65: 7032 | C65: 21 | D65: 7044 | K65: 0 | L65: 12
A66: 22 | B66: 7141 | C66: 23 | D66: 7169 | K66: 0 | L66: 22
A67: 22 | B67: 7268 | C67: 14 | D67: 7277 | K67: 0 | L67: 21
A68: 22 | B68: 7392 | C68: 23 | D68: 7399 | K68: 0 | L68: 22
A69: 22 | B69: 7510 | C69: 14 | D69: 7518 | K69: 0 | L69: 21
A70: 11 | B70: 7626 | C70: 21 | D70: 7643 | K70: 0 | L70: 12
A71: 22 | B71: 7738 | C71: 14 | D71: 7746 | K71: 0 | L71: 21
A72: 11 | B72: 7852 | C72: 21 | D72: 7863 | K72: 0 | L72: 12
A73: 22 | B73: 7956 | C73: 14 | D73: 7965 | K73: 0 | L73: 21
A74: 22 | B74: 8063 | C74: 14 | D74: 8080 | K74: 0 | L74: 21
A75: 22 | B75: 8177 | C75: 14 | D75: 8185 | K75: 0 | L75: 21
A76: 22 | B76: 8290 | C76: 14 | D76: 8298 | K76: 0 | L76: 21
A77: 22 | B77: 8400 | C77: 14 | D77: 8408 | K77: 0 | L77: 21
A78: 22 | B78: 8503 | C78: 23 | D78: 8507 | K78: 0 | L78: 22
A79: 11 | B79: 8611 | C79: 21 | D79: 8628 | K79: 0 | L79: 12
A80: 22 | B80: 8719 | C80: 14 | D80: 8735 | K80: 0 | L80: 21
A81: 22 | B81: 8832 | C81: 14 | D81: 8839 | K81: 0 | L81: 21
A82: 11 | B82: 8948 | C82: 21 | D82: 8963 | K82: 0 | L82: 12
A83: 11 | B83: 9065 | C83: 21 | D83: 9084 | K83: 0 | L83: 12
A84: 11 | B84: 9196 | C84: 21 | D84: 9259 | K84: 0 | L84: 12
A85: 22 | B85: 9463 | C85: 14 | D85: 9479 | K85: 0 | L85: 21
A86: 22 | B86: 9577 | C86: 23 | D86: 9625 | K86: 0 | L86: 22
A87: 22 | B87: 9724 | C87: 14 | D87: 9735 | K87: 0 | L87: 21
A88: 11 | B88: 9835 | C88: 21 | D88: 9903 | K88: 0 | L88: 12
A89: 22 | B89: 9997 | C89: 14 | D89: 10004 | K89: 0 | L89: 21
A90: 22 | B90: 10102 | C90: 14 | D90: 10110 | K90: 0 | L90: 21
A91: 11 | B91: 10221 | C91: 21 | D91: 10239 | K91: 0 | L91: 12
A92: 22 | B92: 10331 | C92: 14 | D92: 10350 | K92: 0 | L92: 21
A93: 11 | B93: 10458 | C93: 21 | D93: 10475 | K93: 0 | L93: 12
A94: 11 | B94: 10579 | C94: 21 | D94: 10590 | K94: 0 | L94: 12
A95: 22 | B95: 10682 | C95: 14 | D95: 10703 | K95: 0 | L95: 21
A96: 11 | B96: 10824 | C96: 21 | D96: 10835 | K96: 0 | L96: 12
A97: 11 | B97: 10942 | C97: 21 | D97: 10953 | K97: 0 | L97: 12
A98: 22 | B98: 11068 | C98: 23 | D98: 11076 | K98: 0 | L98: 22
A99: 22 | B99: 11173 | C99: 14 | D99: 11182 | K99: 0 | L99: 21
A100: 22 | B100: 11281 | C100: 23 | D100: 11300 | K100: 0 | L100: 22
A101: 11 | B101: 11398 | C101: 21 | D101: 11409 | K101: 0 | L101: 12
A102: 22 | B102: 11505 | C102: 14 | D102: 11524 | K102: 0 | L102: 21
A103: 22 | B103: 11638 | C103: 23 | D103: 11652 | K103: 0 | L103: 22
A104: 22 | B104: 11752 | C104: 14 | D104: 11760 | K104: 0 | L104: 21
A105: 11 | B105: 11859 | C105: 21 | D105: 11866 | K105: 0 | L105: 12
A106: 22 | B106: 11961 | C106: 23 | D106: 11985 | K106: 0 | L106: 22
A107: 11 | B107: 12105 | C107: 21 | D107: 12122 | K107: 0 | L107: 12
A108: 22 | B108: 12232 | C108: 14 | D108: 12240 | K108: 0 | L108: 21
A109: 22 | B109: 12340 | C109: 14 | D109: 12349 | K109: 0 | L109: 21
A110: 11 | B110: 12452 | C110: 21 | D110: 12469 | K110: 0 | L110: 12
A111: 22 | B111: 12561 | C111: 14 | D111: 12570 | K111: 0 | L111: 21
A112: 11 | B112: 12676 | C112: 21 | D112: 12691 | K112: 0 | L112: 12
A113: 22 | B113: 12784 | C113: 14 | D113: 12793 | K113: 0 | L113: 21
A114: 22 | B114: 12888 | C114: 14 | D114: 12896 | K114: 0 | L114: 21
A115: 22 | B115: 12995 | C115: 14 | D115: 13002 | K115: 0 | L115: 21
A116: 22 | B116: 13102 | C116: 14 | D116: 13118 | K116: 0 | L116: 21
A117: 11 | B117: 13233 | C117: 21 | D117: 13250 | K117: 1 | L117: 12

Sheet !N206920.095
A1: Report for:!N206920.095
A2: Date: | B2: <date>
A3: Hen: | B3: <hen> | F3: Correct Sequence | G3: =Start!J2 -> 12 | P3: Total Sequences in Data | Q3: =4994-COUNTBLANK(L7:L5000) -> 93 | V3: Total Sequences in Block Data | W3: =COUNTA(L7:L22) -> 16 | AA3: Total Sequences in Block Data | AB3: =COUNTA(L23:L37) -> 15 | AF3: Total Sequences in Block Data | AG3: =COUNTA(L38:L53) -> 16 | AK3: Total Sequences in Block Data | AL3: =COUNTA(L54:L68) -> 15 | AP3: Total Sequences in Block Data | AQ3: =COUNTA(L69:L84) -> 16 | AU3: Total Sequences in Block Data | AV3: =COUNTA(L85:L99) -> 15
P4: Total Sequences in Summary | Q4: =SUM(O7:O14) -> 93 | V4: Total Sequences in Block Summary | W4: =SUM(U7:U14) -> 16 | AA4: Total Sequences in Block Summary | AB4: =SUM(Z7:Z14) -> 15 | AF4: Total Sequences in Block Summary | AG4: =SUM(AE7:AE14) -> 16 | AK4: Total Sequences in Block Summary | AL4: =SUM(AJ7:AJ14) -> 15 | AP4: Total Sequences in Block Summary | AQ4: =SUM(AO7:AO14) -> 16 | AU4: Total Sequences in Block Summary | AV4: =SUM(AT7:AT14) -> 15
T5: Block 1 | Y5: Block 2 | AD5: Block 3 | AI5: Block 4 | AN5: Block 5 | AS5: Block 6
A6: Sequence Component 1 | B6: Time 1 | C6: Sequence Component 2 | D6: Time 2 | E6: Sequence Component 3 | F6: Time 3 | G6: Sequence Component 4 | H6: Time 4 | I6: Sequence Component 5 | J6: Time 5 | K6: Correct? 0=No 1=Yes | L6: Sequence | N6: Frequency | P6: Relative Frequency | Q6: Variability | T6: Frequency | V6: Relative Frequency | W6: Variability | Y6: Frequency | AA6: Relative Frequency | AB6: Variability | AD6: Frequency | AF6: Relative Frequency | AG6: Variability | AI6: Frequency | AK6: Relative Frequency | AL6: Variability | AN6: Frequency | AP6: Relative Frequency | AQ6: Variability | AS6: Frequency | AU6: Relative Frequency | AV6: Variability
A7: 11 | B7: 20 | C7: 21 | D7: 35 | K7: 0 | L7: 12 | N7: 11 | O7: =COUNTIF($L$7:$L$500,N7) -> 1 | P7: =O7/$Q$4 -> 0.01075268817 | Q7: =IF(P7=0,0,(P7*((LOG(P7))/LOG(2)))) -> -0.0703135356 | T7: =N7 -> 11 | U7: =COUNTIF(L7:L22,T7) -> 0 | V7: =U7/(W4-U8) -> 0 | W7: =IF(V7=0,0,(V7*((LOG(V7))/LOG(2)))) -> 0 | Y7: =N7 -> 11 | Z7: =COUNTIF(L23:L37,Y7) -> 0 | AA7: =Z7/(AB4-Z8) -> 0 | AB7: =IF(AA7=0,0,(AA7*((LOG(AA7))/LOG(2)))) -> 0 | AD7: =N7 -> 11 | AE7: =COUNTIF(L38:L53,AD7) -> 0 | AF7: =AE7/(AG4-AE8) -> 0 | AG7: =IF(AF7=0,0,(AF7*((LOG(AF7))/LOG(2)))) -> 0 | AI7: =N7 -> 11 | AJ7: =COUNTIF(L54:L68,AI7) -> 1 | AK7: =AJ7/(AL4-AJ8) -> 0.08333333333 | AL7: =IF(AK7=0,0,(AK7*((LOG(AK7))/LOG(2)))) -> -0.2987468751 | AN7: =N7 -> 11 | AO7: =COUNTIF(L69:L84,AN7) -> 0 | AP7: =AO7/(AQ4-AO8) -> 0 | AQ7: =IF(AP7=0,0,(AP7*((LOG(AP7))/LOG(2)))) -> 0 | AS7: =N7 -> 11 | AT7: =COUNTIF(L85:L99,AS7) -> 0 | AU7: =AT7/(AV4-AT8) -> 0 | AV7: =IF(AU7=0,0,(AU7*((LOG(AU7))/LOG(2)))) -> 0
A8: 22 | B8: 134 | C8: 14 | D8: 142 | K8: 0 | L8: 21 | N8: 12 | O8: =COUNTIF($L$7:$L$500,N8) -> 35 | P8: =O8/$Q$4 -> 0.376344086 | Q8: =IF(P8=0,0,(P8*((LOG(P8))/LOG(2)))) -> -0.5305984172 | T8: =N8 -> 12 | U8: =COUNTIF(L7:L22,T8) -> 5 | Y8: =N8 -> 12 | Z8: =COUNTIF(L23:L37,Y8) -> 6 | AD8: =N8 -> 12 | AE8: =COUNTIF(L38:L53,AD8) -> 4 | AI8: =N8 -> 12 | AJ8: =COUNTIF(L54:L68,AI8) -> 3 | AN8: =N8 -> 12 | AO8: =COUNTIF(L69:L84,AN8) -> 9 | AS8: =N8 -> 12 | AT8: =COUNTIF(L85:L99,AS8) -> 8
A9: 11 | B9: 258 | C9: 21 | D9: 282 | K9: 0 | L9: 12 | N9: 21 | O9: =COUNTIF($L$7:$L$500,N9) -> 43 | P9: =O9/$Q$4 -> 0.4623655914 | Q9: =IF(P9=0,0,(P9*((LOG(P9))/LOG(2)))) -> -0.5145639186 | T9: =N9 -> 21 | U9: =COUNTIF(L7:L22,T9) -> 9 | V9: =U9/(W4-U8) -> 0.8181818182 | W9: =IF(V9=0,0,(V9*((LOG(V9))/LOG(2)))) -> -0.2368690504 | Y9: =N9 -> 21 | Z9: =COUNTIF(L23:L37,Y9) -> 5 | AA9: =Z9/(AB4-Z8) -> 0.5555555556 | AB9: =IF(AA9=0,0,(AA9*((LOG(AA9))/LOG(2)))) -> -0.4711093925 | AD9: =N9 -> 21 | AE9: =COUNTIF(L38:L53,AD9) -> 11 | AF9: =AE9/(AG4-AE8) -> 0.9166666667 | AG9: =IF(AF9=0,0,(AF9*((LOG(AF9))/LOG(2)))) -> -0.1150699752 | AI9: =N9 -> 21 | AJ9: =COUNTIF(L54:L68,AI9) -> 10 | AK9: =AJ9/(AL4-AJ8) -> 0.8333333333 | AL9: =IF(AK9=0,0,(AK9*((LOG(AK9))/LOG(2)))) -> -0.2191953382 | AN9: =N9 -> 21 | AO9: =COUNTIF(L69:L84,AN9) -> 5 | AP9: =AO9/(AQ4-AO8) -> 0.7142857143 | AQ9: =IF(AP9=0,0,(AP9*((LOG(AP9))/LOG(2)))) -> -0.346733448 | AS9: =N9 -> 21 | AT9: =COUNTIF(L85:L99,AS9) -> 3 | AU9: =AT9/(AV4-AT8) -> 0.4285714286 | AV9: =IF(AU9=0,0,(AU9*((LOG(AU9))/LOG(2)))) -> -0.5238824663
A10: 22 | B10: 379 | C10: 14 | D10: 387 | K10: 0 | L10: 21 | N10: 22 | O10: =COUNTIF($L$7:$L$500,N10) -> 14 | P10: =O10/$Q$4 -> 0.1505376344 | Q10: =IF(P10=0,0,(P10*((LOG(P10))/LOG(2)))) -> -0.4112392951 | T10: =N10 -> 22 | U10: =COUNTIF(L7:L22,T10) -> 2 | V10: =U10/(W4-U8) -> 0.1818181818 | W10: =IF(V10=0,0,(V10*((LOG(V10))/LOG(2)))) -> -0.4471693852 | Y10: =N10 -> 22 | Z10: =COUNTIF(L23:L37,Y10) -> 4 | AA10: =Z10/(AB4-Z8) -> 0.4444444444 | AB10: =IF(AA10=0,0,(AA10*((LOG(AA10))/LOG(2)))) -> -0.5199666673 | AD10: =N10 -> 22 | AE10: =COUNTIF(L38:L53,AD10) -> 1 | AF10: =AE10/(AG4-AE8) -> 0.08333333333 | AG10: =IF(AF10=0,0,(AF10*((LOG(AF10))/LOG(2)))) -> -0.2987468751 | AI10: =N10 -> 22 | AJ10: =COUNTIF(L54:L68,AI10) -> 1 | AK10: =AJ10/(AL4-AJ8) -> 0.08333333333 | AL10: =IF(AK10=0,0,(AK10*((LOG(AK10))/LOG(2)))) -> -0.2987468751 | AN10: =N10 -> 22 | AO10: =COUNTIF(L69:L84,AN10) -> 2 | AP10: =AO10/(AQ4-AO8) -> 0.2857142857 | AQ10: =IF(AP10=0,0,(AP10*((LOG(AP10))/LOG(2)))) -> -0.5163871206 | AS10: =N10 -> 22 | AT10: =COUNTIF(L85:L99,AS10) -> 4 | AU10: =AT10/(AV4-AT8) -> 0.5714285714 | AV10: =IF(AU10=0,0,(AU10*((LOG(AU10))/LOG(2)))) -> -0.4613456697
A11: 11 | B11: 488 | C11: 21 | D11: 516 | K11: 0 | L11: 12 | T11: =N11 -> 0 | U11: =COUNTIF(L7:L22,T11) -> 0 | V11: =U11/(W4-U8) -> 0 | W11: =IF(V11=0,0,(V11*((LOG(V11))/LOG(2)))) -> 0 | Y11: =N11 -> 0 | Z11: =COUNTIF(L23:L37,Y11) -> 0 | AA11: =Z11/(AB4-Z8) -> 0 | AB11: =IF(AA11=0,0,(AA11*((LOG(AA11))/LOG(2)))) -> 0 | AD11: =N11 -> 0 | AE11: =COUNTIF(L38:L53,AD11) -> 0 | AF11: =AE11/(AG4-AE8) -> 0 | AG11: =IF(AF11=0,0,(AF11*((LOG(AF11))/LOG(2)))) -> 0 | AI11: =N11 -> 0 | AJ11: =COUNTIF(L54:L68,AI11) -> 0 | AK11: =AJ11/(AL4-AJ8) -> 0 | AL11: =IF(AK11=0,0,(AK11*((LOG(AK11))/LOG(2)))) -> 0 | AN11: =N11 -> 0 | AO11: =COUNTIF(L69:L84,AN11) -> 0 | AP11: =AO11/(AQ4-AO8) -> 0 | AQ11: =IF(AP11=0,0,(AP11*((LOG(AP11))/LOG(2)))) -> 0 | AS11: =N11 -> 0 | AT11: =COUNTIF(L85:L99,AS11) -> 0 | AU11: =AT11/(AV4-AT8) -> 0 | AV11: =IF(AU11=0,0,(AU11*((LOG(AU11))/LOG(2)))) -> 0
A12: 11 | B12: 629 | C12: 21 | D12: 687 | K12: 0 | L12: 12 | T12: =N12 -> 0 | U12: =COUNTIF(L7:L22,T12) -> 0 | V12: =U12/(W4-U8) -> 0 | W12: =IF(V12=0,0,(V12*((LOG(V12))/LOG(2)))) -> 0 | Y12: =N12 -> 0 | Z12: =COUNTIF(L23:L37,Y12) -> 0 | AA12: =Z12/(AB4-Z8) -> 0 | AB12: =IF(AA12=0,0,(AA12*((LOG(AA12))/LOG(2)))) -> 0 | AD12: =N12 -> 0 | AE12: =COUNTIF(L38:L53,AD12) -> 0 | AF12: =AE12/(AG4-AE8) -> 0 | AG12: =IF(AF12=0,0,(AF12*((LOG(AF12))/LOG(2)))) -> 0 | AI12: =N12 -> 0 | AJ12: =COUNTIF(L54:L68,AI12) -> 0 | AK12: =AJ12/(AL4-AJ8) -> 0 | AL12: =IF(AK12=0,0,(AK12*((LOG(AK12))/LOG(2)))) -> 0 | AN12: =N12 -> 0 | AO12: =COUNTIF(L69:L84,AN12) -> 0 | AP12: =AO12/(AQ4-AO8) -> 0 | AQ12: =IF(AP12=0,0,(AP12*((LOG(AP12))/LOG(2)))) -> 0 | AS12: =N12 -> 0 | AT12: =COUNTIF(L85:L99,AS12) -> 0 | AU12: =AT12/(AV4-AT8) -> 0 | AV12: =IF(AU12=0,0,(AU12*((LOG(AU12))/LOG(2)))) -> 0
A13: 22 | B13: 784 | C13: 14 | D13: 792 | K13: 0 | L13: 21 | T13: =N13 -> 0 | U13: =COUNTIF(L7:L22,T13) -> 0 | V13: =U13/(W4-U8) -> 0 | W13: =IF(V13=0,0,(V13*((LOG(V13))/LOG(2)))) -> 0 | Y13: =N13 -> 0 | Z13: =COUNTIF(L23:L37,Y13) -> 0 | AA13: =Z13/(AB4-Z8) -> 0 | AB13: =IF(AA13=0,0,(AA13*((LOG(AA13))/LOG(2)))) -> 0 | AD13: =N13 -> 0 | AE13: =COUNTIF(L38:L53,AD13) -> 0 | AF13: =AE13/(AG4-AE8) -> 0 | AG13: =IF(AF13=0,0,(AF13*((LOG(AF13))/LOG(2)))) -> 0 | AI13: =N13 -> 0 | AJ13: =COUNTIF(L54:L68,AI13) -> 0 | AK13: =AJ13/(AL4-AJ8) -> 0 | AL13: =IF(AK13=0,0,(AK13*((LOG(AK13))/LOG(2)))) -> 0 | AN13: =N13 -> 0 | AO13: =COUNTIF(L69:L84,AN13) -> 0 | AP13: =AO13/(AQ4-AO8) -> 0 | AQ13: =IF(AP13=0,0,(AP13*((LOG(AP13))/LOG(2)))) -> 0 | AS13: =N13 -> 0 | AT13: =COUNTIF(L85:L99,AS13) -> 0 | AU13: =AT13/(AV4-AT8) -> 0 | AV13: =IF(AU13=0,0,(AU13*((LOG(AU13))/LOG(2)))) -> 0
A14: 22 | B14: 889 | C14: 14 | D14: 911 | K14: 0 | L14: 21 | T14: =N14 -> 0 | U14: =COUNTIF(L7:L22,T14) -> 0 | V14: =U14/(W4-U8) -> 0 | W14: =IF(V14=0,0,(V14*((LOG(V14))/LOG(2)))) -> 0 | Y14: =N14 -> 0 | Z14: =COUNTIF(L23:L37,Y14) -> 0 | AA14: =Z14/(AB4-Z8) -> 0 | AB14: =IF(AA14=0,0,(AA14*((LOG(AA14))/LOG(2)))) -> 0 | AD14: =N14 -> 0 | AE14: =COUNTIF(L38:L53,AD14) -> 0 | AF14: =AE14/(AG4-AE8) -> 0 | AG14: =IF(AF14=0,0,(AF14*((LOG(AF14))/LOG(2)))) -> 0 | AI14: =N14 -> 0 | AJ14: =COUNTIF(L54:L68,AI14) -> 0 | AK14: =AJ14/(AL4-AJ8) -> 0 | AL14: =IF(AK14=0,0,(AK14*((LOG(AK14))/LOG(2)))) -> 0 | AN14: =N14 -> 0 | AO14: =COUNTIF(L69:L84,AN14) -> 0 | AP14: =AO14/(AQ4-AO8) -> 0 | AQ14: =IF(AP14=0,0,(AP14*((LOG(AP14))/LOG(2)))) -> 0 | AS14: =N14 -> 0 | AT14: =COUNTIF(L85:L99,AS14) -> 0 | AU14: =AT14/(AV4-AT8) -> 0 | AV14: =IF(AU14=0,0,(AU14*((LOG(AU14))/LOG(2)))) -> 0
A15: 22 | B15: 1021 | C15: 14 | D15: 1028 | K15: 0 | L15: 21 | P15: =SUM(P7:P14) -> 1 | Q15: =-SUM(Q7:Q14) -> 1.526715166 | V15: =SUM(V7:V14) -> 1 | W15: =-SUM(W7:W14) -> 0.6840384356 | AA15: =SUM(AA7:AA14) -> 1 | AB15: =-SUM(AB7:AB14) -> 0.9910760598 | AF15: =SUM(AF7:AF14) -> 1 | AG15: =-SUM(AG7:AG14) -> 0.4138168503 | AK15: =SUM(AK7:AK14) -> 1 | AL15: =-SUM(AL7:AL14) -> 0.8166890883 | AP15: =SUM(AP7:AP14) -> 1 | AQ15: =-SUM(AQ7:AQ14) -> 0.8631205686 | AU15: =SUM(AU7:AU14) -> 1 | AV15: =-SUM(AV7:AV14) -> 0.985228136
A16: 22 | B16: 1126 | C16: 14 | D16: 1142 | K16: 0 | L16: 21 | P16: U= | Q16: =Q15/(LOG(Q4)/LOG(2)) -> 0.2334727158 | V16: U1= | W16: =W15/(LOG(W4)/LOG(2)) -> 0.1710096089 | AA16: U2= | AB16: =AB15/(LOG(AB4)/LOG(2)) -> 0.2536738707 | AF16: U3= | AG16: =AG15/(LOG(AG4)/LOG(2)) -> 0.1034542126 | AK16: U4= | AL16: =AL15/(LOG(AL4)/LOG(2)) -> 0.2090381259 | AP16: U5= | AQ16: =AQ15/(LOG(AQ4)/LOG(2)) -> 0.2157801421 | AU16: U6= | AV16: =AV15/(LOG(AV4)/LOG(2)) -> 0.2521770477
A17: 11 | B17: 1256 | C17: 21 | D17: 1287 | K17: 0 | L17: 12
A18: 22 | B18: 1386 | C18: 14 | D18: 1393 | K18: 0 | L18: 21
A19: 22 | B19: 1493 | C19: 23 | D19: 1520 | K19: 0 | L19: 22 | N19: Total Target Seq
A20: 22 | B20: 1618 | C20: 14 | D20: 1636 | K20: 0 | L20: 21 | N20: =COUNTIF(L7:L99,G3) -> 35 | P20: 16 | Q20: 15 | R20: 16 | S20: 15 | T20: 16 | U20: 15
A21: 22 | B21: 1751 | C21: 23 | D21: 1762 | K21: 0 | L21: 22 | P21: % of reinforcement given in 6 equal intervals based on number of trials
A22: 22 | B22: 1861 | C22: 14 | D22: 1881 | K22: 0 | L22: 21 | P22: %_1 | Q22: %_2 | R22: %_3 | S22: %_4 | T22: %_5 | U22: %_6
A23: 11 | B23: 1991 | C23: 21 | D23: 2003 | K23: 0 | L23: 12 | O23: target sequence | P23: =$G$3 -> 12 | Q23: =$G$3 -> 12 | R23: =$G$3 -> 12 | S23: =$G$3 -> 12 | T23: =$G$3 -> 12 | U23: =$G$3 -> 12
A24: 22 | B24: 2097 | C24: 14 | D24: 2104 | K24: 0 | L24: 21 | O24: total reinforcement | P24: =U8 -> 5 | Q24: =Z8 -> 6 | R24: =AE8 -> 4 | S24: =AJ8 -> 3 | T24: =AO8 -> 9 | U24: =AT8 -> 8
A25: 22 | B25: 2201 | C25: 23 | D25: 2212 | K25: 0 | L25: 22 | O25: % target
A26: 22 | B26: 2311 | C26: 14 | D26: 2319 | K26: 0 | L26: 21 | O26: CCRF
A27: 11 | B27: 2433 | C27: 21 | D27: 2486 | K27: 0 | L27: 12 | O27: % CCRf
A28: 22 | B28: 2579 | C28: 23 | D28: 2590 | K28: 0 | L28: 22 | O28: average response rate | P28: =D22/P20 -> 117.5625 | Q28: =(D37-D22)/Q20 -> 121.0666667 | R28: =(D53-D37)/R20 -> 114.25 | S28: =(D68-D53)/S20 -> 110.4 | T28: =(D84-D68)/T20 -> 118.625 | U28: =(D99-D84)/U20 -> 121.3333333
A29: 11 | B29: 2704 | C29: 21 | D29: 2729 | K29: 0 | L29: 12
A30: 22 | B30: 2819 | C30: 14 | D30: 2827 | K30: 0 | L30: 21
A31: 22 | B31: 2924 | C31: 23 | D31: 2932 | K31: 0 | L31: 22
A32: 22 | B32: 3029 | C32: 23 | D32: 3039 | K32: 0 | L32: 22
A33: 11 | B33: 3148 | C33: 21 | D33: 3180 | K33: 0 | L33: 12
A34: 11 | B34: 3296 | C34: 21 | D34: 3353 | K34: 0 | L34: 12
A35: 22 | B35: 3449 | C35: 14 | D35: 3457 | K35: 0 | L35: 21
A36: 22 | B36: 3554 | C36: 14 | D36: 3568 | K36: 0 | L36: 21
A37: 11 | B37: 3677 | C37: 21 | D37: 3697 | K37: 0 | L37: 12
A38: 22 | B38: 3793 | C38: 14 | D38: 3801 | K38: 0 | L38: 21
A39: 22 | B39: 3898 | C39: 23 | D39: 3905 | K39: 0 | L39: 22
A40: 11 | B40: 4017 | C40: 21 | D40: 4041 | K40: 0 | L40: 12
A41: 22 | B41: 4135 | C41: 14 | D41: 4143 | K41: 0 | L41: 21
A42: 22 | B42: 4244 | C42: 14 | D42: 4252 | K42: 0 | L42: 21
A43: 22 | B43: 4352 | C43: 14 | D43: 4360 | K43: 0 | L43: 21
A44: 11 | B44: 4480 | C44: 21 | D44: 4496 | K44: 0 | L44: 12
A45: 22 | B45: 4588 | C45: 14 | D45: 4608 | K45: 0 | L45: 21
A46: 22 | B46: 4707 | C46: 14 | D46: 4717 | K46: 0 | L46: 21
A47: 22 | B47: 4814 | C47: 14 | D47: 4822 | K47: 0 | L47: 21
A48: 11 | B48: 4942 | C48: 21 | D48: 4965 | K48: 0 | L48: 12
A49: 22 | B49: 5061 | C49: 14 | D49: 5068 | K49: 0 | L49: 21
A50: 22 | B50: 5173 | C50: 14 | D50: 5181 | K50: 0 | L50: 21
A51: 22 | B51: 5278 | C51: 14 | D51: 5286 | K51: 0 | L51: 21
A52: 22 | B52: 5381 | C52: 14 | D52: 5397 | K52: 0 | L52: 21
A53: 11 | B53: 5504 | C53: 21 | D53: 5525 | K53: 0 | L53: 12
A54: 22 | B54: 5619 | C54: 14 | D54: 5626 | K54: 0 | L54: 21
A55: 22 | B55: 5724 | C55: 14 | D55: 5732 | K55: 0 | L55: 21
A56: 11 | B56: 5846 | C56: 21 | D56: 5882 | K56: 0 | L56: 12
A57: 22 | B57: 5975 | C57: 14 | D57: 5982 | K57: 0 | L57: 21
A58: 22 | B58: 6081 | C58: 14 | D58: 6089 | K58: 0 | L58: 21
A59: 22 | B59: 6187 | C59: 23 | D59: 6203 | K59: 0 | L59: 22
A60: 11 | B60: 6310 | C60: 12 | D60: 6327 | K60: 0 | L60: 11
A61: 22 | B61: 6425 | C61: 14 | D61: 6447 | K61: 0 | L61: 21
A62: 22 | B62: 6545 | C62: 14 | D62: 6553 | K62: 0 | L62: 21
A63: 22 | B63: 6652 | C63: 14 | D63: 6660 | K63: 0 | L63: 21
A64: 11 | B64: 6758 | C64: 21 | D64: 6767 | K64: 0 | L64: 12
A65: 22 | B65: 6860 | C65: 14 | D65: 6868 | K65: 0 | L65: 21
A66: 22 | B66: 6966 | C66: 14 | D66: 6973 | K66: 0 | L66: 21
A67: 11 | B67: 7071 | C67: 21 | D67: 7079 | K67: 0 | L67: 12
A68: 22 | B68: 7174 | C68: 14 | D68: 7181 | K68: 0 | L68: 21
A69: 11 | B69: 7287 | C69: 21 | D69: 7314 | K69: 0 | L69: 12
A70: 22 | B70: 7407 | C70: 14 | D70: 7414 | K70: 0 | L70: 21
A71: 22 | B71: 7511 | C71: 14 | D71: 7520 | K71: 0 | L71: 21
A72: 11 | B72: 7641 | C72: 21 | D72: 7659 | K72: 0 | L72: 12
A73: 11 | B73: 7763 | C73: 21 | D73: 7793 | K73: 0 | L73: 12
A74: 11 | B74: 7894 | C74: 21 | D74: 7904 | K74: 0 | L74: 12
A75: 22 | B75: 7996 | C75: 14 | D75: 8004 | K75: 0 | L75: 21
A76: 11 | B76: 8111 | C76: 21 | D76: 8119 | K76: 0 | L76: 12
A77: 22 | B77: 8211 | C77: 14 | D77: 8220 | K77: 0 | L77: 21
A78: 11 | B78: 8324 | C78: 21 | D78: 8333 | K78: 0 | L78: 12
A79: 11 | B79: 8436 | C79: 21 | D79: 8488 | K79: 0 | L79: 12
A80: 22 | B80: 8581 | C80: 14 | D80: 8588 | K80: 0 | L80: 21
A81: 11 | B81: 8705 | C81: 21 | D81: 8713 | K81: 0 | L81: 12
A82: 11 | B82: 8818 | C82: 21 | D82: 8855 | K82: 0 | L82: 12
A83: 22 | B83: 8953 | C83: 23 | D83: 8968 | K83: 0 | L83: 22
A84: 22 | B84: 9062 | C84: 23 | D84: 9079 | K84: 0 | L84: 22
A85: 11 | B85: 9181 | C85: 21 | D85: 9195 | K85: 0 | L85: 12
A86: 22 | B86: 9287 | C86: 14 | D86: 9294 | K86: 0 | L86: 21
A87: 22 | B87: 9413 | C87: 23 | D87: 9421 | K87: 0 | L87: 22
A88: 22 | B88: 9518 | C88: 14 | D88: 9526 | K88: 0 | L88: 21
A89: 22 | B89: 9626 | C89: 14 | D89: 9634 | K89: 0 | L89: 21
A90: 11 | B90: 9743 | C90: 21 | D90: 9756 | K90: 0 | L90: 12
A91: 22 | B91: 9852 | C91: 23 | D91: 9876 | K91: 0 | L91: 22
A92: 22 | B92: 9997 | C92: 23 | D92: 10010 | K92: 0 | L92: 22
A93: 11 | B93: 10118 | C93: 21 | D93: 10128 | K93: 0 | L93: 12
A94: 11 | B94: 10235 | C94: 21 | D94: 10251 | K94: 0 | L94: 12
A95: 22 | B95: 10343 | C95: 23 | D95: 10363 | K95: 0 | L95: 22
A96: 11 | B96: 10477 | C96: 21 | D96: 10507 | K96: 0 | L96: 12
A97: 11 | B97: 10609 | C97: 21 | D97: 10649 | K97: 0 | L97: 12
A98: 11 | B98: 10750 | C98: 21 | D98: 10790 | K98: 0 | L98: 12
A99: 11 | B99: 10891 | C99: 21 | D99: 10899 | K99: 1 | L99: 12

Sheet !N207940.095
A1: Report for:!N207940.095
A2: Date: | B2: <date>
A3: Hen: | B3: <hen> | F3: Correct Sequence | G3: =Start!J2 -> 12 | P3: Total Sequences in Data | Q3: =4994-COUNTBLANK(L7:L5000) -> 85 | V3: Total Sequences in Block Data | W3: =COUNTA(L7:L20) -> 14 | AA3: Total Sequences in Block Data | AB3: =COUNTA(L21:L34) -> 14 | AF3: Total Sequences in Block Data | AG3: =COUNTA(L35:L49) -> 15 | AK3: Total Sequences in Block Data | AL3: =COUNTA(L50:L63) -> 14 | AP3: Total Sequences in Block Data | AQ3: =COUNTA(L64:L77) -> 14 | AU3: Total Sequences in Block Data | AV3: =COUNTA(L78:L91) -> 14
P4: Total Sequences in Summary | Q4: =SUM(O7:O14) -> 85 | V4: Total Sequences in Block Summary | W4: =SUM(U7:U14) -> 14 | AA4: Total Sequences in Block Summary | AB4: =SUM(Z7:Z14) -> 14 | AF4: Total Sequences in Block Summary | AG4: =SUM(AE7:AE14) -> 15 | AK4: Total Sequences in Block Summary | AL4: =SUM(AJ7:AJ14) -> 14 | AP4: Total Sequences in Block Summary | AQ4: =SUM(AO7:AO14) -> 14 | AU4: Total Sequences in Block Summary | AV4: =SUM(AT7:AT14) -> 14
T5: Block 1 | Y5: Block 2 | AD5: Block 3 | AI5: Block 4 | AN5: Block 5 | AS5: Block 6
A6: Sequence Component 1 | B6: Time 1 | C6: Sequence Component 2 | D6: Time 2 | E6: Sequence Component 3 | F6: Time 3 | G6: Sequence Component 4 | H6: Time 4 | I6: Sequence Component 5 | J6: Time 5 | K6: Correct? 0=No 1=Yes | L6: Sequence | N6: Frequency | P6: Relative Frequency | Q6: Variability | T6: Frequency | V6: Relative Frequency | W6: Variability | Y6: Frequency | AA6: Relative Frequency | AB6: Variability | AD6: Frequency | AF6: Relative Frequency | AG6: Variability | AI6: Frequency | AK6: Relative Frequency | AL6: Variability | AN6: Frequency | AP6: Relative Frequency | AQ6: Variability | AS6: Frequency | AU6: Relative Frequency | AV6: Variability
A7: 11 | B7: 22 | C7: 21 | D7: 81 | K7: 0 | L7: 12 | N7: 11 | O7: =COUNTIF($L$7:$L$500,N7) -> 4 | P7: =O7/$Q$4 -> 0.04705882353 | Q7: =IF(P7=0,0,(P7*((LOG(P7))/LOG(2)))) -> -0.2075007499 | T7: =N7 -> 11 | U7: =COUNTIF(L7:L20,T7) -> 0 | V7: =U7/(W4-U8) -> 0 | W7: =IF(V7=0,0,(V7*((LOG(V7))/LOG(2)))) -> 0 | Y7: =N7 -> 11 | Z7: =COUNTIF(L21:L34,Y7) -> 2 | AA7: =Z7/(AB4-Z8) -> 0.2857142857 | AB7: =IF(AA7=0,0,(AA7*((LOG(AA7))/LOG(2)))) -> -0.5163871206 | AD7: =N7 -> 11 | AE7: =COUNTIF(L35:L49,AD7) -> 0 | AF7: =AE7/(AG4-AE8) -> 0 | AG7: =IF(AF7=0,0,(AF7*((LOG(AF7))/LOG(2)))) -> 0 | AI7: =N7 -> 11 | AJ7: =COUNTIF(L50:L63,AI7) -> 1 | AK7: =AJ7/(AL4-AJ8) -> 0.1111111111 | AL7: =IF(AK7=0,0,(AK7*((LOG(AK7))/LOG(2)))) -> -0.352213889 | AN7: =N7 -> 11 | AO7: =COUNTIF(L64:L77,AN7) -> 0 | AP7: =AO7/(AQ4-AO8) -> 0 | AQ7: =IF(AP7=0,0,(AP7*((LOG(AP7))/LOG(2)))) -> 0 | AS7: =N7 -> 11 | AT7: =COUNTIF(L78:L91,AS7) -> 1 | AU7: =AT7/(AV4-AT8) -> 0.125 | AV7: =IF(AU7=0,0,(AU7*((LOG(AU7))/LOG(2)))) -> -0.375
A8: 11 | B8: 185 | C8: 21 | D8: 200 | K8: 0 | L8: 12 | N8: 12 | O8: =COUNTIF($L$7:$L$500,N8) -> 35 | P8: =O8/$Q$4 -> 0.4117647059 | Q8: =IF(P8=0,0,(P8*((LOG(P8))/LOG(2)))) -> -0.5271032608 | T8: =N8 -> 12 | U8: =COUNTIF(L7:L20,T8) -> 6 | Y8: =N8 -> 12 | Z8: =COUNTIF(L21:L34,Y8) -> 7 | AD8: =N8 -> 12 | AE8: =COUNTIF(L35:L49,AD8) -> 5 | AI8: =N8 -> 12 | AJ8: =COUNTIF(L50:L63,AI8) -> 5 | AN8: =N8 -> 12 | AO8: =COUNTIF(L64:L77,AN8) -> 6 | AS8: =N8 -> 12 | AT8: =COUNTIF(L78:L91,AS8) -> 6
A9: 22 | B9: 296 | C9: 14 | D9: 304 | K9: 0 | L9: 21 | N9: 21 | O9: =COUNTIF($L$7:$L$500,N9) -> 40 | P9: =O9/$Q$4 -> 0.4705882353 | Q9: =IF(P9=0,0,(P9*((LOG(P9))/LOG(2)))) -> -0.5117472194 | T9: =N9 -> 21 | U9: =COUNTIF(L7:L20,T9) -> 6 | V9: =U9/(W4-U8) -> 0.75 | W9: =IF(V9=0,0,(V9*((LOG(V9))/LOG(2)))) -> -0.3112781245 | Y9: =N9 -> 21 | Z9: =COUNTIF(L21:L34,Y9) -> 4 | AA9: =Z9/(AB4-Z8) -> 0.5714285714 | AB9: =IF(AA9=0,0,(AA9*((LOG(AA9))/LOG(2)))) -> -0.4613456697 | AD9: =N9 -> 21 | AE9: =COUNTIF(L35:L49,AD9) -> 10 | AF9: =AE9/(AG4-AE8) -> 1 | AG9: =IF(AF9=0,0,(AF9*((LOG(AF9))/LOG(2)))) -> 0 | AI9: =N9 -> 21 | AJ9: =COUNTIF(L50:L63,AI9) -> 6 | AK9: =AJ9/(AL4-AJ8) -> 0.6666666667 | AL9: =IF(AK9=0,0,(AK9*((LOG(AK9))/LOG(2)))) -> -0.3899750005 | AN9: =N9 -> 21 | AO9: =COUNTIF(L64:L77,AN9) -> 7 | AP9: =AO9/(AQ4-AO8) -> 0.875 | AQ9: =IF(AP9=0,0,(AP9*((LOG(AP9))/LOG(2)))) -> -0.1685644432 | AS9: =N9 -> 21 | AT9: =COUNTIF(L78:L91,AS9) -> 7 | AU9: =AT9/(AV4-AT8) -> 0.875 | AV9: =IF(AU9=0,0,(AU9*((LOG(AU9))/LOG(2)))) -> -0.1685644432
A10: 22 | B10: 401 | C10: 23 | D10: 406 | K10: 0 | L10: 22 | N10: 22 | O10: =COUNTIF($L$7:$L$500,N10) -> 6 | P10: =O10/$Q$4 -> 0.07058823529 | Q10: =IF(P10=0,0,(P10*((LOG(P10))/LOG(2)))) -> -0.2699596543 | T10: =N10 -> 22 | U10: =COUNTIF(L7:L20,T10) -> 2 | V10: =U10/(W4-U8) -> 0.25 | W10: =IF(V10=0,0,(V10*((LOG(V10))/LOG(2)))) -> -0.5 | Y10: =N10 -> 22 | Z10: =COUNTIF(L21:L34,Y10) -> 1 | AA10: =Z10/(AB4-Z8) -> 0.1428571429 | AB10: =IF(AA10=0,0,(AA10*((LOG(AA10))/LOG(2)))) -> -0.4010507032 | AD10: =N10 -> 22 | AE10: =COUNTIF(L35:L49,AD10) -> 0 | AF10: =AE10/(AG4-AE8) -> 0 | AG10: =IF(AF10=0,0,(AF10*((LOG(AF10))/LOG(2)))) -> 0 | AI10: =N10 -> 22 | AJ10: =COUNTIF(L50:L63,AI10) -> 2 | AK10: =AJ10/(AL4-AJ8) -> 0.2222222222 | AL10: =IF(AK10=0,0,(AK10*((LOG(AK10))/LOG(2)))) -> -0.4822055559 | AN10: =N10 -> 22 | AO10: =COUNTIF(L64:L77,AN10) -> 1 | AP10: =AO10/(AQ4-AO8) -> 0.125 | AQ10: =IF(AP10=0,0,(AP10*((LOG(AP10))/LOG(2)))) -> -0.375 | AS10: =N10 -> 22 | AT10: =COUNTIF(L78:L91,AS10) -> 0 | AU10: =AT10/(AV4-AT8) -> 0 | AV10: =IF(AU10=0,0,(AU10*((LOG(AU10))/LOG(2)))) -> 0
A11: 22 | B11: 503 | C11: 14 | D11: 512 | K11: 0 | L11: 21 | T11: =N11 -> 0 | U11: =COUNTIF(L7:L20,T11) -> 0 | V11: =U11/(W4-U8) -> 0 | W11: =IF(V11=0,0,(V11*((LOG(V11))/LOG(2)))) -> 0 | Y11: =N11 -> 0 | Z11: =COUNTIF(L21:L34,Y11) -> 0 | AA11: =Z11/(AB4-Z8) -> 0 | AB11: =IF(AA11=0,0,(AA11*((LOG(AA11))/LOG(2)))) -> 0 | AD11: =N11 -> 0 | AE11: =COUNTIF(L35:L49,AD11) -> 0 | AF11: =AE11/(AG4-AE8) -> 0 | AG11: =IF(AF11=0,0,(AF11*((LOG(AF11))/LOG(2)))) -> 0 | AI11: =N11 -> 0 | AJ11: =COUNTIF(L50:L63,AI11) -> 0 | AK11: =AJ11/(AL4-AJ8) -> 0 | AL11: =IF(AK11=0,0,(AK11*((LOG(AK11))/LOG(2)))) -> 0 | AN11: =N11 -> 0 | AO11: =COUNTIF(L64:L77,AN11) -> 0 | AP11: =AO11/(AQ4-AO8) -> 0 | AQ11: =IF(AP11=0,0,(AP11*((LOG(AP11))/LOG(2)))) -> 0 | AS11: =N11 -> 0 | AT11: =COUNTIF(L78:L91,AS11) -> 0 | AU11: =AT11/(AV4-AT8) -> 0 | AV11: =IF(AU11=0,0,(AU11*((LOG(AU11))/LOG(2)))) -> 0
A12: 11 | B12: 619 | C12: 21 | D12: 637 | K12: 0 | L12: 12 | T12: =N12 -> 0 | U12: =COUNTIF(L7:L20,T12) -> 0 | V12: =U12/(W4-U8) -> 0 | W12: =IF(V12=0,0,(V12*((LOG(V12))/LOG(2)))) -> 0 | Y12: =N12 -> 0 | Z12: =COUNTIF(L21:L34,Y12) -> 0 | AA12: =Z12/(AB4-Z8) -> 0 | AB12: =IF(AA12=0,0,(AA12*((LOG(AA12))/LOG(2)))) -> 0 | AD12: =N12 -> 0 | AE12: =COUNTIF(L35:L49,AD12) -> 0 | AF12: =AE12/(AG4-AE8) -> 0 | AG12: =IF(AF12=0,0,(AF12*((LOG(AF12))/LOG(2)))) -> 0 | AI12: =N12 -> 0 | AJ12: =COUNTIF(L50:L63,AI12) -> 0 | AK12: =AJ12/(AL4-AJ8) -> 0 | AL12: =IF(AK12=0,0,(AK12*((LOG(AK12))/LOG(2)))) -> 0 | AN12: =N12 -> 0 | AO12: =COUNTIF(L64:L77,AN12) -> 0 | AP12: =AO12/(AQ4-AO8) -> 0 | AQ12: =IF(AP12=0,0,(AP12*((LOG(AP12))/LOG(2)))) -> 0 | AS12: =N12 -> 0 | AT12: =COUNTIF(L78:L91,AS12) -> 0 | AU12: =AT12/(AV4-AT8) -> 0 | AV12: =IF(AU12=0,0,(AU12*((LOG(AU12))/LOG(2)))) -> 0
A13: 22 | B13: 730 | C13: 14 | D13: 738 | K13: 0 | L13: 21 | T13: =N13 -> 0 | U13: =COUNTIF(L7:L20,T13) -> 0 | V13: =U13/(W4-U8) -> 0 | W13: =IF(V13=0,0,(V13*((LOG(V13))/LOG(2)))) -> 0 | Y13: =N13 -> 0 | Z13: =COUNTIF(L21:L34,Y13) -> 0 | AA13: =Z13/(AB4-Z8) -> 0 | AB13: =IF(AA13=0,0,(AA13*((LOG(AA13))/LOG(2)))) -> 0 | AD13: =N13 -> 0 | AE13: =COUNTIF(L35:L49,AD13) -> 0 | AF13: =AE13/(AG4-AE8) -> 0 | AG13: =IF(AF13=0,0,(AF13*((LOG(AF13))/LOG(2)))) -> 0 | AI13: =N13 -> 0 | AJ13: =COUNTIF(L50:L63,AI13) -> 0 | AK13: =AJ13/(AL4-AJ8) -> 0 | AL13: =IF(AK13=0,0,(AK13*((LOG(AK13))/LOG(2)))) -> 0 | AN13: =N13 -> 0 | AO13: =COUNTIF(L64:L77,AN13) -> 0 | AP13: =AO13/(AQ4-AO8) -> 0 | AQ13: =IF(AP13=0,0,(AP13*((LOG(AP13))/LOG(2)))) -> 0 | AS13: =N13 -> 0 | AT13: =COUNTIF(L78:L91,AS13) -> 0 | AU13: =AT13/(AV4-AT8) -> 0 | AV13: =IF(AU13=0,0,(AU13*((LOG(AU13))/LOG(2)))) -> 0
A14: 22 | B14: 834 | C14: 14 | D14: 842 | K14: 0 | L14: 21 | T14: =N14 -> 0 | U14: =COUNTIF(L7:L20,T14) -> 0 | V14: =U14/(W4-U8) -> 0 | W14: =IF(V14=0,0,(V14*((LOG(V14))/LOG(2)))) -> 0 | Y14: =N14 -> 0 | Z14: =COUNTIF(L21:L34,Y14) -> 0 | AA14: =Z14/(AB4-Z8) -> 0 | AB14: =IF(AA14=0,0,(AA14*((LOG(AA14))/LOG(2)))) -> 0 | AD14: =N14 -> 0 | AE14: =COUNTIF(L35:L49,AD14) -> 0 | AF14: =AE14/(AG4-AE8) -> 0 | AG14: =IF(AF14=0,0,(AF14*((LOG(AF14))/LOG(2)))) -> 0 | AI14: =N14 -> 0 | AJ14: =COUNTIF(L50:L63,AI14) -> 0 | AK14: =AJ14/(AL4-AJ8) -> 0 | AL14: =IF(AK14=0,0,(AK14*((LOG(AK14))/LOG(2)))) -> 0 | AN14: =N14 -> 0 | AO14: =COUNTIF(L64:L77,AN14) -> 0 | AP14: =AO14/(AQ4-AO8) -> 0 | AQ14: =IF(AP14=0,0,(AP14*((LOG(AP14))/LOG(2)))) -> 0 | AS14: =N14 -> 0 | AT14: =COUNTIF(L78:L91,AS14) -> 0 | AU14: =AT14/(AV4-AT8) -> 0 | AV14: =IF(AU14=0,0,(AU14*((LOG(AU14))/LOG(2)))) -> 0
A15: 22 | B15: 938 | C15: 14 | D15: 946 | K15: 0 | L15: 21 | P15: =SUM(P7:P14) -> 1 | Q15: =-SUM(Q7:Q14) -> 1.516310884 | V15: =SUM(V7:V14) -> 1 | W15: =-SUM(W7:W14) -> 0.8112781245 | AA15: =SUM(AA7:AA14) -> 1 | AB15: =-SUM(AB7:AB14) -> 1.378783493 | AF15: =SUM(AF7:AF14) -> 1 | AG15: =-SUM(AG7:AG14) -> 0 | AK15: =SUM(AK7:AK14) -> 1 | AL15: =-SUM(AL7:AL14) -> 1.224394445 | AP15: =SUM(AP7:AP14) -> 1 | AQ15: =-SUM(AQ7:AQ14) -> 0.5435644432 | AU15: =SUM(AU7:AU14) -> 1 | AV15: =-SUM(AV7:AV14) -> 0.5435644432
A16: 22 | B16: 1068 | C16: 23 | D16: 1087 | K16: 0 | L16: 22 | P16: U= | Q16: =Q15/(LOG(Q4)/LOG(2)) -> 0.2365764391 | V16: U1= | W16: =W15/(LOG(W4)/LOG(2)) -> 0.2130818222 | AA16: U2= | AB16: =AB15/(LOG(AB4)/LOG(2)) -> 0.3621368435 | AF16: U3= | AG16: =AG15/(LOG(AG4)/LOG(2)) -> 0 | AK16: U4= | AL16: =AL15/(LOG(AL4)/LOG(2)) -> 0.3215866318 | AP16: U5= | AQ16: =AQ15/(LOG(AQ4)/LOG(2)) -> 0.1427669483 | AU16: U6= | AV16: =AV15/(LOG(AV4)/LOG(2)) -> 0.1427669483
A17: 11 | B17: 1194 | C17: 21 | D17: 1235 | K17: 0 | L17: 12
A18: 11 | B18: 1343 | C18: 21 | D18: 1374 | K18: 0 | L18: 12
A19: 22 | B19: 1470 | C19: 14 | D19: 1493 | K19: 0 | L19: 21 | N19: Total Target Seq
A20: 11 | B20: 1601 | C20: 21 | D20: 1615 | K20: 0 | L20: 12 | N20: =COUNTIF(L7:L91,G3) -> 35 | P20: 14 | Q20: 14 | R20: 15 | S20: 14 | T20: 14 | U20: 14
A21: 22 | B21: 1707 | C21: 23 | D21: 1720 | K21: 0 | L21: 22 | P21: % of reinforcement given in 6 equal intervals based on number of trials
A22: 11 | B22: 1841 | C22: 21 | D22: 1853 | K22: 0 | L22: 12 | P22: %_1 | Q22: %_2 | R22: %_3 | S22: %_4 | T22: %_5 | U22: %_6
A23: 22 | B23: 1949 | C23: 14 | D23: 1956 | K23: 0 | L23: 21 | O23: target sequence | P23: =$G$3 -> 12 | Q23: =$G$3 -> 12 | R23: =$G$3 -> 12 | S23: =$G$3 -> 12 | T23: =$G$3 -> 12 | U23: =$G$3 -> 12
A24: 22 | B24: 2053 | C24: 14 | D24: 2061 | K24: 0 | L24: 21 | O24: total reinforcement | P24: =U8 -> 6 | Q24: =Z8 -> 7 | R24: =AE8 -> 5 | S24: =AJ8 -> 5 | T24: =AO8 -> 6 | U24: =AT8 -> 6
A25: 11 | B25: 2169 | C25: 21 | D25: 2192 | K25: 0 | L25: 12 | O25: % target
A26: 11 | B26: 2297 | C26: 21 | D26: 2319 | K26: 0 | L26: 12 | O26: CCRF
A27: 11 | B27: 2421 | C27: 12 | D27: 2431 | K27: 0 | L27: 11 | O27: % CCRf
A28: 11 | B28: 2540 | C28: 21 | D28: 2606 | K28: 0 | L28: 12 | O28: average response rate | P28: =D20/P20 -> 115.3571429 | Q28: =(D34-D20)/Q20 -> 123.5 | R28: =(D49-D34)/R20 -> 115.8666667 | S28: =(D63-D49)/S20 -> 121.4285714 | T28: =(D77-D63)/T20 -> 117.3571429 | U28: =(D91-D77)/U20 -> 117.7142857
A29: 22 | B29: 2701 | C29: 14 | D29: 2707 | K29: 0 | L29: 21
A30: 22 | B30: 2806 | C30: 14 | D30: 2813 | K30: 0 | L30: 21
A31: 11 | B31: 2925 | C31: 21 | D31: 2947 | K31: 0 | L31: 12
A32: 11 | B32: 3050 | C32: 12 | D32: 3080 | K32: 0 | L32: 11
A33: 11 | B33: 3202 | C33: 21 | D33: 3219 | K33: 0 | L33: 12
A34: 11 | B34: 3329 | C34: 21 | D34: 3344 | K34: 0 | L34: 12
A35: 22 | B35: 3440 | C35: 14 | D35: 3448 | K35: 0 | L35: 21
A36: 22 | B36: 3543 | C36: 14 | D36: 3551 | K36: 0 | L36: 21
A37: 22 | B37: 3649 | C37: 14 | D37: 3672 | K37: 0 | L37: 21
A38: 11 | B38: 3776 | C38: 21 | D38: 3794 | K38: 0 | L38: 12
A39: 22 | B39: 3884 | C39: 14 | D39: 3891 | K39: 0 | L39: 21
A40: 22 | B40: 3990 | C40: 14 | D40: 3998 | K40: 0 | L40: 21
A41: 11 | B41: 4103 | C41: 21 | D41: 4120 | K41: 0 | L41: 12
A42: 22 | B42: 4216 | C42: 14 | D42: 4231 | K42: 0 | L42: 21
A43: 22 | B43: 4327 | C43: 14 | D43: 4334 | K43: 0 | L43: 21
A44: 22 | B44: 4439 | C44: 14 | D44: 4446 | K44: 0 | L44: 21
A45: 11 | B45: 4556 | C45: 21 | D45: 4574 | K45: 0 | L45: 12
A46: 11 | B46: 4676 | C46: 21 | D46: 4709 | K46: 0 | L46: 12
A47: 11 | B47: 4807 | C47: 21 | D47: 4862 | K47: 0 | L47: 12
A48: 22 | B48: 4953 | C48: 14 | D48: 4978 | K48: 0 | L48: 21
A49: 22 | B49: 5075 | C49: 14 | D49: 5082 | K49: 0 | L49: 21
A50: 22 | B50: 5182 | C50: 14 | D50: 5190 | K50: 0 | L50: 21
A51: 22 | B51: 5285 | C51: 14 | D51: 5309 | K51: 0 | L51: 21
A52: 11 | B52: 5415 | C52: 21 | D52: 5423 | K52: 0 | L52: 12
A53: 22 | B53: 5517 | C53: 14 | D53: 5526 | K53: 0 | L53: 21
A54: 11 | B54: 5646 | C54: 21 | D54: 5675 | K54: 0 | L54: 12
A55: 11 | B55: 5786 | C55: 21 | D55: 5819 | K55: 0 | L55: 12
A56: 22 | B56: 5914 | C56: 14 | D56: 5922 | K56: 0 | L56: 21
A57: 11 | B57: 6048 | C57: 21 | D57: 6065 | K57: 0 | L57: 12
A58: 22 | B58: 6157 | C58: 23 | D58: 6182 | K58: 0 | L58: 22
A59: 11 | B59: 6286 | C59: 21 | D59: 6320 | K59: 0 | L59: 12
A60: 22 | B60: 6412 | C60: 23 | D60: 6423 | K60: 0 | L60: 22
A61: 22 | B61: 6544 | C61: 14 | D61: 6551 | K61: 0 | L61: 21
A62: 22 | B62: 6650 | C62: 14 | D62: 6658 | K62: 0 | L62: 21
A63: 11 | B63: 6763 | C63: 12 | D63: 6782 | K63: 0 | L63: 11
A64: 22 | B64: 6882 | C64: 14 | D64: 6889 | K64: 0 | L64: 21
A65: 11 | B65: 6994 | C65: 21 | D65: 7020 | K65: 0 | L65: 12
A66: 11 | B66: 7120 | C66: 21 | D66: 7156 | K66: 0 | L66: 12
A67: 22 | B67: 7256 | C67: 14 | D67: 7264 | K67: 0 | L67: 21
A68: 22 | B68: 7363 | C68: 23 | D68: 7374 | K68: 0 | L68: 22
A69: 11 | B69: 7494 | C69: 21 | D69: 7510 | K69: 0 | L69: 12
A70: 22 | B70: 7605 | C70: 14 | D70: 7613 | K70: 0 | L70: 21
A71: 22 | B71: 7724 | C71: 14 | D71: 7731 | K71: 0 | L71: 21
A72: 22 | B72: 7829 | C72: 14 | D72: 7836 | K72: 0 | L72: 21
A73: 11 | B73: 7943 | C73: 21 | D73: 7959 | K73: 0 | L73: 12
A74: 22 | B74: 8052 | C74: 14 | D74: 8059 | K74: 0 | L74: 21
A75: 22 | B75: 8165 | C75: 14 | D75: 8173 | K75: 0 | L75: 21
A76: 11 | B76: 8274 | C76: 21 | D76: 8313 | K76: 0 | L76: 12
A77: 11 | B77: 8414 | C77: 21 | D77: 8425 | K77: 0 | L77: 12
A78: 22 | B78: 8521 | C78: 14 | D78: 8528 | K78: 0 | L78: 21
A79: 22 | B79: 8626 | C79: 14 | D79: 8646 | K79: 0 | L79: 21
A80: 22 | B80: 8743 | C80: 14 | D80: 8753 | K80: 0 | L80: 21
A81: 11 | B81: 8858 | C81: 21 | D81: 8875 | K81: 0 | L81: 12
A82: 11 | B82: 8976 | C82: 21 | D82: 9021 | K82: 0 | L82: 12
A83: 11 | B83: 9122 | C83: 12 | D83: 9131 | K83: 0 | L83: 11
A84: 22 | B84: 9242 | C84: 14 | D84: 9250 | K84: 0 | L84: 21
A85: 22 | B85: 9343 | C85: 14 | D85: 9362 | K85: 0 | L85: 21
A86: 11 | B86: 9470 | C86: 21 | D86: 9489 | K86: 0 | L86: 12
A87: 22 | B87: 9583 | C87: 14 | D87: 9590 | K87: 0 | L87: 21
A88: 11 | B88: 9698 | C88: 21 | D88: 9726 | K88: 0 | L88: 12
A89: 11 | B89: 9826 | C89: 21 | D89: 9854 | K89: 0 | L89: 12
A90: 22 | B90: 9950 | C90: 14 | D90: 9958 | K90: 0 | L90: 21
A91: 11 | B91: 10062 | C91: 21 | D91: 10073 | K91: 1 | L91: 12

Sheet !N208A20.095
A1: Report for:!N208A20.095
A2: Date: | B2: <date>
A3: Hen: | B3: <hen> | F3: Correct Sequence | G3: =Start!J2 -> 12 | P3: Total Sequences in Data | Q3: =4994-COUNTBLANK(L7:L5000) -> 44 | V3: Total Sequences in Block Data | W3: =COUNTA(L7:L13) -> 7 | AA3: Total Sequences in Block Data | AB3: =COUNTA(L14:L21) -> 8 | AF3: Total Sequences in Block Data | AG3: =COUNTA(L22:L28) -> 7 | AK3: Total Sequences in Block Data | AL3: =COUNTA(L29:L35) -> 7 | AP3: Total Sequences in Block Data | AQ3: =COUNTA(L36:L43) -> 8 | AU3: Total Sequences in Block Data | AV3: =COUNTA(L44:L50) -> 7
P4: Total Sequences in Summary | Q4: =SUM(O7:O14) -> 43 | V4: Total Sequences in Block Summary | W4: =SUM(U7:U14) -> 7 | AA4: Total Sequences in Block Summary | AB4: =SUM(Z7:Z14) -> 8 | AF4: Total Sequences in Block Summary | AG4: =SUM(AE7:AE14) -> 7 | AK4: Total Sequences in Block Summary | AL4: =SUM(AJ7:AJ14) -> 7 | AP4: Total Sequences in Block Summary | AQ4: =SUM(AO7:AO14) -> 8 | AU4: Total Sequences in Block Summary | AV4: =SUM(AT7:AT14) -> 6
T5: Block 1 | Y5: Block 2 | AD5: Block 3 | AI5: Block 4 | AN5: Block 5 | AS5: Block 6
A6: Sequence Component 1 | B6: Time 1 | C6: Sequence Component 2 | D6: Time 2 | E6: Sequence Component 3 | F6: Time 3 | G6: Sequence Component 4 | H6: Time 4 | I6: Sequence Component 5 | J6: Time 5 | K6: Correct? 0=No 1=Yes | L6: Sequence | N6: Frequency | P6: Relative Frequency | Q6: Variability | T6: Frequency | V6: Relative Frequency | W6: Variability | Y6: Frequency | AA6: Relative Frequency | AB6: Variability | AD6: Frequency | AF6: Relative Frequency | AG6: Variability | AI6: Frequency | AK6: Relative Frequency | AL6: Variability | AN6: Frequency | AP6: Relative Frequency | AQ6: Variability | AS6: Frequency | AU6: Relative Frequency | AV6: Variability
A7: 22 | B7: 44 | C7: 23 | D7: 84 | K7: 0 | L7: 22 | N7: 11 | O7: =COUNTIF($L$7:$L$500,N7) -> 0 | P7: =O7/$Q$4 -> 0 | Q7: =IF(P7=0,0,(P7*((LOG(P7))/LOG(2)))) -> 0 | T7: =N7 -> 11 | U7: =COUNTIF(L7:L13,T7) -> 0 | V7: =U7/(W4-U8) -> 0 | W7: =IF(V7=0,0,(V7*((LOG(V7))/LOG(2)))) -> 0 | Y7: =N7 -> 11 | Z7: =COUNTIF(L14:L21,Y7) -> 0 | AA7: =Z7/(AB4-Z8) -> 0 | AB7: =IF(AA7=0,0,(AA7*((LOG(AA7))/LOG(2)))) -> 0 | AD7: =N7 -> 11 | AE7: =COUNTIF(L22:L28,AD7) -> 0 | AF7: =AE7/(AG4-AE8) -> 0 | AG7: =IF(AF7=0,0,(AF7*((LOG(AF7))/LOG(2)))) -> 0 | AI7: =N7 -> 11 | AJ7: =COUNTIF(L29:L35,AI7) -> 0 | AK7: =AJ7/(AL4-AJ8) -> 0 | AL7: =IF(AK7=0,0,(AK7*((LOG(AK7))/LOG(2)))) -> 0 | AN7: =N7 -> 11 | AO7: =COUNTIF(L36:L43,AN7) -> 0 | AP7: =AO7/(AQ4-AO8) -> 0 | AQ7: =IF(AP7=0,0,(AP7*((LOG(AP7))/LOG(2)))) -> 0 | AS7: =N7 -> 11 | AT7: =COUNTIF(L44:L50,AS7) -> 0 | AU7: =AT7/(AV4-AT8) -> 0 | AV7: =IF(AU7=0,0,(AU7*((LOG(AU7))/LOG(2)))) -> 0
A8: 22 | B8: 194 | C8: 23 | D8: 214 | K8: 0 | L8: 22 | N8: 12 | O8: =COUNTIF($L$7:$L$500,N8) -> 13 | P8: =O8/$Q$4 -> 0.3023255814 | Q8: =IF(P8=0,0,(P8*((LOG(P8))/LOG(2)))) -> -0.5217610576 | T8: =N8 -> 12 | U8: =COUNTIF(L7:L13,T8) -> 2 | Y8: =N8 -> 12 | Z8: =COUNTIF(L14:L21,Y8) -> 1 | AD8: =N8 -> 12 | AE8: =COUNTIF(L22:L28,AD8) -> 3 | AI8: =N8 -> 12 | AJ8: =COUNTIF(L29:L35,AI8) -> 3 | AN8: =N8 -> 12 | AO8: =COUNTIF(L36:L43,AN8) -> 3 | AS8: =N8 -> 12 | AT8: =COUNTIF(L44:L50,AS8) -> 1
A9: 22 | B9: 323 | C9: 23 | D9: 354 | K9: 0 | L9: 22 | N9: 21 | O9: =COUNTIF($L$7:$L$500,N9) -> 23 | P9: =O9/$Q$4 -> 0.5348837209 | Q9: =IF(P9=0,0,(P9*((LOG(P9))/LOG(2)))) -> -0.4828410318 | T9: =N9 -> 21 | U9: =COUNTIF(L7:L13,T9) -> 2 | V9: =U9/(W4-U8) -> 0.4 | W9: =IF(V9=0,0,(V9*((LOG(V9))/LOG(2)))) -> -0.528771238 | Y9: =N9 -> 21 | Z9: =COUNTIF(L14:L21,Y9) -> 7 | AA9: =Z9/(AB4-Z8) -> 1 | AB9: =IF(AA9=0,0,(AA9*((LOG(AA9))/LOG(2)))) -> 0 | AD9: =N9 -> 21 | AE9: =COUNTIF(L22:L28,AD9) -> 2 | AF9: =AE9/(AG4-AE8) -> 0.5 | AG9: =IF(AF9=0,0,(AF9*((LOG(AF9))/LOG(2)))) -> -0.5 | AI9: =N9 -> 21 | AJ9: =COUNTIF(L29:L35,AI9) -> 4 | AK9: =AJ9/(AL4-AJ8) -> 1 | AL9: =IF(AK9=0,0,(AK9*((LOG(AK9))/LOG(2)))) -> 0 | AN9: =N9 -> 21 | AO9: =COUNTIF(L36:L43,AN9) -> 5 | AP9: =AO9/(AQ4-AO8) -> 1 | AQ9: =IF(AP9=0,0,(AP9*((LOG(AP9))/LOG(2)))) -> 0 | AS9: =N9 -> 21 | AT9: =COUNTIF(L44:L50,AS9) -> 3 | AU9: =AT9/(AV4-AT8) -> 0.6 | AV9: =IF(AU9=0,0,(AU9*((LOG(AU9))/LOG(2)))) -> -0.4421793565
A10: 11 | B10: 533 | C10: 21 | D10: 551 | K10: 0 | L10: 12 | N10: 22 | O10: =COUNTIF($L$7:$L$500,N10) -> 7 | P10: =O10/$Q$4 -> 0.1627906977 | Q10: =IF(P10=0,0,(P10*((LOG(P10))/LOG(2)))) -> -0.4263341588 | T10: =N10 -> 22 | U10: =COUNTIF(L7:L13,T10) -> 3 | V10: =U10/(W4-U8) -> 0.6 | W10: =IF(V10=0,0,(V10*((LOG(V10))/LOG(2)))) -> -0.4421793565 | Y10: =N10 -> 22 | Z10: =COUNTIF(L14:L21,Y10) -> 0 | AA10: =Z10/(AB4-Z8) -> 0 | AB10: =IF(AA10=0,0,(AA10*((LOG(AA10))/LOG(2)))) -> 0 | AD10: =N10 -> 22 | AE10: =COUNTIF(L22:L28,AD10) -> 2 | AF10: =AE10/(AG4-AE8) -> 0.5 | AG10: =IF(AF10=0,0,(AF10*((LOG(AF10))/LOG(2)))) -> -0.5 | AI10: =N10 -> 22 | AJ10: =COUNTIF(L29:L35,AI10) -> 0 | AK10: =AJ10/(AL4-AJ8) -> 0 | AL10: =IF(AK10=0,0,(AK10*((LOG(AK10))/LOG(2)))) -> 0 | AN10: =N10 -> 22 | AO10: =COUNTIF(L36:L43,AN10) -> 0 | AP10: =AO10/(AQ4-AO8) -> 0 | AQ10: =IF(AP10=0,0,(AP10*((LOG(AP10))/LOG(2)))) -> 0 | AS10: =N10 -> 22 | AT10: =COUNTIF(L44:L50,AS10) -> 2 | AU10: =AT10/(AV4-AT8) -> 0.4 | AV10: =IF(AU10=0,0,(AU10*((LOG(AU10))/LOG(2)))) -> -0.528771238
A11: 22 | B11: 643 | C11: 14 | D11: 653 | K11: 0 | L11: 21 | T11: =N11 -> 0 | U11: =COUNTIF(L7:L13,T11) -> 0 | V11: =U11/(W4-U8) -> 0 | W11: =IF(V11=0,0,(V11*((LOG(V11))/LOG(2)))) -> 0 | Y11: =N11 -> 0 | Z11: =COUNTIF(L14:L21,Y11) -> 0 | AA11: =Z11/(AB4-Z8) -> 0 | AB11: =IF(AA11=0,0,(AA11*((LOG(AA11))/LOG(2)))) -> 0 | AD11: =N11 -> 0 | AE11: =COUNTIF(L22:L28,AD11) -> 0 | AF11: =AE11/(AG4-AE8) -> 0 | AG11: =IF(AF11=0,0,(AF11*((LOG(AF11))/LOG(2)))) -> 0 | AI11: =N11 -> 0 | AJ11: =COUNTIF(L29:L35,AI11) -> 0 | AK11: =AJ11/(AL4-AJ8) -> 0 | AL11: =IF(AK11=0,0,(AK11*((LOG(AK11))/LOG(2)))) -> 0 | AN11: =N11 -> 0 | AO11: =COUNTIF(L36:L43,AN11) -> 0 | AP11: =AO11/(AQ4-AO8) -> 0 | AQ11: =IF(AP11=0,0,(AP11*((LOG(AP11))/LOG(2)))) -> 0 | AS11: =N11 -> 0 | AT11: =COUNTIF(L44:L50,AS11) -> 0 | AU11: =AT11/(AV4-AT8) -> 0 | AV11: =IF(AU11=0,0,(AU11*((LOG(AU11))/LOG(2)))) -> 0
A12: 11 | B12: 777 | C12: 21 | D12: 787 | K12: 0 | L12: 12 | T12: =N12 -> 0 | U12: =COUNTIF(L7:L13,T12) -> 0 | V12: =U12/(W4-U8) -> 0 | W12: =IF(V12=0,0,(V12*((LOG(V12))/LOG(2)))) -> 0 | Y12: =N12 -> 0 | Z12: =COUNTIF(L14:L21,Y12) -> 0 | AA12: =Z12/(AB4-Z8) -> 0 | AB12: =IF(AA12=0,0,(AA12*((LOG(AA12))/LOG(2)))) -> 0 | AD12: =N12 -> 0 | AE12: =COUNTIF(L22:L28,AD12) -> 0 | AF12: =AE12/(AG4-AE8) -> 0 | AG12: =IF(AF12=0,0,(AF12*((LOG(AF12))/LOG(2)))) -> 0 | AI12: =N12 -> 0 | AJ12: =COUNTIF(L29:L35,AI12) -> 0 | AK12: =AJ12/(AL4-AJ8) -> 0 | AL12: =IF(AK12=0,0,(AK12*((LOG(AK12))/LOG(2)))) -> 0 | AN12: =N12 -> 0 | AO12: =COUNTIF(L36:L43,AN12) -> 0 | AP12: =AO12/(AQ4-AO8) -> 0 | AQ12: =IF(AP12=0,0,(AP12*((LOG(AP12))/LOG(2)))) -> 0 | AS12: =N12 -> 0 | AT12: =COUNTIF(L44:L50,AS12) -> 0 | AU12: =AT12/(AV4-AT8) -> 0 | AV12: =IF(AU12=0,0,(AU12*((LOG(AU12))/LOG(2)))) -> 0
A13: 22 | B13: 887 | C13: 14 | D13: 896 | K13: 0 | L13: 21 | T13: =N13 -> 0 | U13: =COUNTIF(L7:L13,T13) -> 0 | V13: =U13/(W4-U8) -> 0 | W13: =IF(V13=0,0,(V13*((LOG(V13))/LOG(2)))) -> 0 | Y13: =N13 -> 0 | Z13: =COUNTIF(L14:L21,Y13) -> 0 | AA13: =Z13/(AB4-Z8) -> 0 | AB13: =IF(AA13=0,0,(AA13*((LOG(AA13))/LOG(2)))) -> 0 | AD13: =N13 -> 0 | AE13: =COUNTIF(L22:L28,AD13) -> 0 | AF13: =AE13/(AG4-AE8) -> 0 | AG13: =IF(AF13=0,0,(AF13*((LOG(AF13))/LOG(2)))) -> 0 | AI13: =N13 -> 0 | AJ13: =COUNTIF(L29:L35,AI13) -> 0 | AK13: =AJ13/(AL4-AJ8) -> 0 | AL13: =IF(AK13=0,0,(AK13*((LOG(AK13))/LOG(2)))) -> 0 | AN13: =N13 -> 0 | AO13: =COUNTIF(L36:L43,AN13) -> 0 | AP13: =AO13/(AQ4-AO8) -> 0 | AQ13: =IF(AP13=0,0,(AP13*((LOG(AP13))/LOG(2)))) -> 0 | AS13: =N13 -> 0 | AT13: =COUNTIF(L44:L50,AS13) -> 0 | AU13: =AT13/(AV4-AT8) -> 0 | AV13: =IF(AU13=0,0,(AU13*((LOG(AU13))/LOG(2)))) -> 0
A14: 22 | B14: 993 | C14: 14 | D14: 1001 | K14: 0 | L14: 21 | T14: =N14 -> 0 | U14: =COUNTIF(L7:L13,T14) -> 0 | V14: =U14/(W4-U8) -> 0 | W14: =IF(V14=0,0,(V14*((LOG(V14))/LOG(2)))) -> 0 | Y14: =N14 -> 0 | Z14: =COUNTIF(L14:L21,Y14) -> 0 | AA14: =Z14/(AB4-Z8) -> 0 | AB14: =IF(AA14=0,0,(AA14*((LOG(AA14))/LOG(2)))) -> 0 | AD14: =N14 -> 0 | AE14: =COUNTIF(L22:L28,AD14) -> 0 | AF14: =AE14/(AG4-AE8) -> 0 | AG14: =IF(AF14=0,0,(AF14*((LOG(AF14))/LOG(2)))) -> 0 | AI14: =N14 -> 0 | AJ14: =COUNTIF(L29:L35,AI14) -> 0 | AK14: =AJ14/(AL4-AJ8) -> 0 | AL14: =IF(AK14=0,0,(AK14*((LOG(AK14))/LOG(2)))) -> 0 | AN14: =N14 -> 0 | AO14: =COUNTIF(L36:L43,AN14) -> 0 | AP14: =AO14/(AQ4-AO8) -> 0 | AQ14: =IF(AP14=0,0,(AP14*((LOG(AP14))/LOG(2)))) -> 0 | AS14: =N14 -> 0 | AT14: =COUNTIF(L44:L50,AS14) -> 0 | AU14: =AT14/(AV4-AT8) -> 0 | AV14: =IF(AU14=0,0,(AU14*((LOG(AU14))/LOG(2)))) -> 0
A15: 22 | B15: 1102 | C15: 14 | D15: 1109 | K15: 0 | L15: 21 | P15: =SUM(P7:P14) -> 1 | Q15: =-SUM(Q7:Q14) -> 1.430936248 | V15: =SUM(V7:V14) -> 1 | W15: =-SUM(W7:W14) -> 0.9709505945 | AA15: =SUM(AA7:AA14) -> 1 | AB15: =-SUM(AB7:AB14) -> 0 | AF15: =SUM(AF7:AF14) -> 1 | AG15: =-SUM(AG7:AG14) -> 1 | AK15: =SUM(AK7:AK14) -> 1 | AL15: =-SUM(AL7:AL14) -> 0 | AP15: =SUM(AP7:AP14) -> 1 | AQ15: =-SUM(AQ7:AQ14) -> 0 | AU15: =SUM(AU7:AU14) -> 1 | AV15: =-SUM(AV7:AV14) -> 0.9709505945
A16: 22 | B16: 1211 | C16: 14 | D16: 1218 | K16: 0 | L16: 21 | P16: U= | Q16: =Q15/(LOG(Q4)/LOG(2)) -> 0.2637055715 | V16: U1= | W16: =W15/(LOG(W4)/LOG(2)) -> 0.3458595801 | AA16: U2= | AB16: =AB15/(LOG(AB4)/LOG(2)) -> 0 | AF16: U3= | AG16: =AG15/(LOG(AG4)/LOG(2)) -> 0.3562071871 | AK16: U4= | AL16: =AL15/(LOG(AL4)/LOG(2)) -> 0 | AP16: U5= | AQ16: =AQ15/(LOG(AQ4)/LOG(2)) -> 0 | AU16: U6= | AV16: =AV15/(LOG(AV4)/LOG(2)) -> 0.3756149632
A17: 22 | B17: 1323 | C17: 14 | D17: 1331 | K17: 0 | L17: 21
A18: 22 | B18: 1432 | C18: 14 | D18: 1440 | K18: 0 | L18: 21
A19: 11 | B19: 1556 | C19: 21 | D19: 1573 | K19: 0 | L19: 12 | N19: Total Target Seq
A20: 22 | B20: 1677 | C20: 14 | D20: 1682 | K20: 0 | L20: 21 | N20: =COUNTIF(L7:L50,G3) -> 13 | P20: 7 | Q20: 8 | R20: 7 | S20: 7 | T20: 8 | U20: 7
A21: 22 | B21: 1779 | C21: 14 | D21: 1787 | K21: 0 | L21: 21 | P21: % of reinforcement given in 6 equal intervals based on number of trials
A22: 11 | B22: 1905 | C22: 21 | D22: 1913 | K22: 0 | L22: 12 | P22: %_1 | Q22: %_2 | R22: %_3 | S22: %_4 | T22: %_5 | U22: %_6
A23: 22 | B23: 2025 | C23: 23 | D23: 2079 | K23: 0 | L23: 22 | O23: target sequence | P23: =$G$3 -> 12 | Q23: =$G$3 -> 12 | R23: =$G$3 -> 12 | S23: =$G$3 -> 12 | T23: =$G$3 -> 12 | U23: =$G$3 -> 12
A24: 11 | B24: 2200 | C24: 21 | D24: 2216 | K24: 0 | L24: 12 | O24: total reinforcement | P24: =U8 -> 2 | Q24: =Z8 -> 1 | R24: =AE8 -> 3 | S24: =AJ8 -> 3 | T24: =AO8 -> 3 | U24: =AT8 -> 1
A25: 22 | B25: 2308 | C25: 23 | D25: 2313 | K25: 0 | L25: 22 | O25: % target
A26: 11 | B26: 2419 | C26: 21 | D26: 2442 | K26: 0 | L26: 12 | O26: CCRF
A27: 22 | B27: 2538 | C27: 14 | D27: 2545 | K27: 0 | L27: 21 | O27: % CCRf
A28: 22 | B28: 2649 | C28: 14 | D28: 2656 | K28: 0 | L28: 21 | O28: average response rate | P28: =D13/P20 -> 128 | Q28: =(D21-D13)/Q20 -> 111.375 | R28: =(D28-D21)/R20 -> 124.1428571 | S28: =(D35-D28)/S20 -> 141.4285714 | T28: =(D43-D35)/T20 -> 2440.125 | U28: =(D50-D43)/U20 -> -3309.571429
A29: 22 | B29: 2758 | C29: 14 | D29: 2765 | K29: 0 | L29: 21
A30: 22 | B30: 2862 | C30: 14 | D30: 2884 | K30: 0 | L30: 21
A31: 11 | B31: 3044 | C31: 21 | D31: 3090 | K31: 0 | L31: 12
A32: 22 | B32: 3185 | C32: 14 | D32: 3207 | K32: 0 | L32: 21
A33: 11 | B33: 3394 | C33: 21 | D33: 3417 | K33: 0 | L33: 12
A34: 22 | B34: 3513 | C34: 14 | D34: 3522 | K34: 0 | L34: 21
A35: 11 | B35: 3632 | C35: 21 | D35: 3646 | K35: 0 | L35: 12
A36: 11 | B36: 3752 | C36: 21 | D36: 3769 | K36: 0 | L36: 12
A37: 22 | B37: 3862 | C37: 14 | D37: 3871 | K37: 0 | L37: 21
A38: 22 | B38: 22446 | C38: 14 | D38: 22464 | K38: 0 | L38: 21
A39: 22 | B39: 22628 | C39: 14 | D39: 22640 | K39: 0 | L39: 21
A40: 11 | B40: 22762 | C40: 21 | D40: 22791 | K40: 0 | L40: 12
A41: 22 | B41: 22887 | C41: 14 | D41: 22896 | K41: 0 | L41: 21
A42: 22 | B42: 22998 | C42: 14 | D42: 23010 | K42: 0 | L42: 21
A43: 11 | B43: 23136 | C43: 21 | D43: 23167 | K43: 0 | L43: 12
A44: 22 | B44: 23265 | C44: 23 | D44: 23273 | K44: 0 | L44: 22
A45: 22 | B45: 23378 | C45: 14 | D45: 23391 | K45: 0 | L45: 21
A46: 22 | B46: 23494 | C46: 23 | D46: 23502 | K46: 0 | L46: 22
A47: 22 | B47: 23611 | C47: 14 | D47: 23619 | K47: 0 | L47: 21
A48: 11 | B48: 23735 | C48: 21 | D48: 23744 | K48: 0 | L48: 12
A49: 22 | B49: 23839 | C49: 14 | D49: 23859 | K49: 0 | L49: 21
A50: 22 | B50: 23959 | L50: 2

Sheet !N209820.095
A1: Report for:!N209820.095
A2: Date: | B2: <date>
A3: Hen: | B3: <hen> | F3: Correct Sequence | G3: =Start!J2 -> 12 | P3: Total Sequences in Data | Q3: =4994-COUNTBLANK(L7:L5000) -> 66 | V3: Total Sequences in Block Data | W3: =COUNTA(L7:L17) -> 11 | AA3: Total Sequences in Block Data | AB3: =COUNTA(L18:L28) -> 11 | AF3: Total Sequences in Block Data | AG3: =COUNTA(L29:L39) -> 11 | AK3: Total Sequences in Block Data | AL3: =COUNTA(L40:L50) -> 11 | AP3: Total Sequences in Block Data | AQ3: =COUNTA(L51:L61) -> 11 | AU3: Total Sequences in Block Data | AV3: =COUNTA(L62:L72) -> 11
P4: Total Sequences in Summary | Q4: =SUM(O7:O14) -> 66 | V4: Total Sequences in Block Summary | W4: =SUM(U7:U14) -> 11 | AA4: Total Sequences in Block Summary | AB4: =SUM(Z7:Z14) -> 11 | AF4: Total Sequences in Block Summary | AG4: =SUM(AE7:AE14) -> 11 | AK4: Total Sequences in Block Summary | AL4: =SUM(AJ7:AJ14) -> 11 | AP4: Total Sequences in Block Summary | AQ4: =SUM(AO7:AO14) -> 11 | AU4: Total Sequences in Block Summary | AV4: =SUM(AT7:AT14) -> 11
T5: Block 1 | Y5: Block 2 | AD5: Block 3 | AI5: Block 4 | AN5: Block 5 | AS5: Block 6
A6: Sequence Component 1 | B6: Time 1 | C6: Sequence Component 2 | D6: Time 2 | E6: Sequence Component 3 | F6: Time 3 | G6: Sequence Component 4 | H6: Time 4 | I6: Sequence Component 5 | J6: Time 5 | K6: Correct? 0=No 1=Yes | L6: Sequence | N6: Frequency | P6: Relative Frequency | Q6: Variability | T6: Frequency | V6: Relative Frequency | W6: Variability | Y6: Frequency | AA6: Relative Frequency | AB6: Variability | AD6: Frequency | AF6: Relative Frequency | AG6: Variability | AI6: Frequency | AK6: Relative Frequency | AL6: Variability | AN6: Frequency | AP6: Relative Frequency | AQ6: Variability | AS6: Frequency | AU6: Relative Frequency | AV6: Variability
A7: 22 | B7: 21 | C7: 14 | D7: 28 | K7: 0 | L7: 21 | N7: 11 | O7: =COUNTIF($L$7:$L$500,N7) -> 0 | P7: =O7/$Q$4 -> 0 | Q7: =IF(P7=0,0,(P7*((LOG(P7))/LOG(2)))) -> 0 | T7: =N7 -> 11 | U7: =COUNTIF(L7:L17,T7) -> 0 | V7: =U7/(W4-U8) -> 0 | W7: =IF(V7=0,0,(V7*((LOG(V7))/LOG(2)))) -> 0 | Y7: =N7 -> 11 | Z7: =COUNTIF(L18:L28,Y7) -> 0 | AA7: =Z7/(AB4-Z8) -> 0 | AB7: =IF(AA7=0,0,(AA7*((LOG(AA7))/LOG(2)))) -> 0 | AD7: =N7 -> 11 | AE7: =COUNTIF(L29:L39,AD7) -> 0 | AF7: =AE7/(AG4-AE8) -> 0 | AG7: =IF(AF7=0,0,(AF7*((LOG(AF7))/LOG(2)))) -> 0 | AI7: =N7 -> 11 | AJ7: =COUNTIF(L40:L50,AI7) -> 0 | AK7: =AJ7/(AL4-AJ8) -> 0 | AL7: =IF(AK7=0,0,(AK7*((LOG(AK7))/LOG(2)))) -> 0 | AN7: =N7 -> 11 | AO7: =COUNTIF(L51:L61,AN7) -> 0 | AP7: =AO7/(AQ4-AO8) -> 0 | AQ7: =IF(AP7=0,0,(AP7*((LOG(AP7))/LOG(2)))) -> 0 | AS7: =N7 -> 11 | AT7: =COUNTIF(L62:L72,AS7) -> 0 | AU7: =AT7/(AV4-AT8) -> 0 | AV7: =IF(AU7=0,0,(AU7*((LOG(AU7))/LOG(2)))) -> 0
A8: 11 | B8: 138 | C8: 21 | D8: 166 | K8: 0 | L8: 12 | N8: 12 | O8: =COUNTIF($L$7:$L$500,N8) -> 37 | P8: =O8/$Q$4 -> 0.5606060606 | Q8: =IF(P8=0,0,(P8*((LOG(P8))/LOG(2)))) -> -0.4680728468 | T8: =N8 -> 12 | U8: =COUNTIF(L7:L17,T8) -> 7 | Y8: =N8 -> 12 | Z8: =COUNTIF(L18:L28,Y8) -> 8 | AD8: =N8 -> 12 | AE8: =COUNTIF(L29:L39,AD8) -> 6 | AI8: =N8 -> 12 | AJ8: =COUNTIF(L40:L50,AI8) -> 5 | AN8: =N8 -> 12 | AO8: =COUNTIF(L51:L61,AN8) -> 5 | AS8: =N8 -> 12 | AT8: =COUNTIF(L62:L72,AS8) -> 6
A9: 11 | B9: 267 | C9: 21 | D9: 314 | K9: 0 | L9: 12 | N9: 21 | O9: =COUNTIF($L$7:$L$500,N9) -> 26 | P9: =O9/$Q$4 -> 0.3939393939 | Q9: =IF(P9=0,0,(P9*((LOG(P9))/LOG(2)))) -> -0.5294365823 | T9: =N9 -> 21 | U9: =COUNTIF(L7:L17,T9) -> 4 | V9: =U9/(W4-U8) -> 1 | W9: =IF(V9=0,0,(V9*((LOG(V9))/LOG(2)))) -> 0 | Y9: =N9 -> 21 | Z9: =COUNTIF(L18:L28,Y9) -> 3 | AA9: =Z9/(AB4-Z8) -> 1 | AB9: =IF(AA9=0,0,(AA9*((LOG(AA9))/LOG(2)))) -> 0 | AD9: =N9 -> 21 | AE9: =COUNTIF(L29:L39,AD9) -> 5 | AF9: =AE9/(AG4-AE8) -> 1 | AG9: =IF(AF9=0,0,(AF9*((LOG(AF9))/LOG(2)))) -> 0 | AI9: =N9 -> 21 | AJ9: =COUNTIF(L40:L50,AI9) -> 5 | AK9: =AJ9/(AL4-AJ8) -> 0.8333333333 | AL9: =IF(AK9=0,0,(AK9*((LOG(AK9))/LOG(2)))) -> -0.2191953382 | AN9: =N9 -> 21 | AO9: =COUNTIF(L51:L61,AN9) -> 5 | AP9: =AO9/(AQ4-AO8) -> 0.8333333333 | AQ9: =IF(AP9=0,0,(AP9*((LOG(AP9))/LOG(2)))) -> -0.2191953382 | AS9: =N9 -> 21 | AT9: =COUNTIF(L62:L72,AS9) -> 4 | AU9: =AT9/(AV4-AT8) -> 0.8 | AV9: =IF(AU9=0,0,(AU9*((LOG(AU9))/LOG(2)))) -> -0.2575424759
A10: 11 | B10: 425 | C10: 21 | D10: 515 | K10: 0 | L10: 12 | N10: 22 | O10: =COUNTIF($L$7:$L$500,N10) -> 3 | P10: =O10/$Q$4 -> 0.04545454545 | Q10: =IF(P10=0,0,(P10*((LOG(P10))/LOG(2)))) -> -0.2027014372 | T10: =N10 -> 22 | U10: =COUNTIF(L7:L17,T10) -> 0 | V10: =U10/(W4-U8) -> 0 | W10: =IF(V10=0,0,(V10*((LOG(V10))/LOG(2)))) -> 0 | Y10: =N10 -> 22 | Z10: =COUNTIF(L18:L28,Y10) -> 0 | AA10: =Z10/(AB4-Z8) -> 0 | AB10: =IF(AA10=0,0,(AA10*((LOG(AA10))/LOG(2)))) -> 0 | AD10: =N10 -> 22 | AE10: =COUNTIF(L29:L39,AD10) -> 0 | AF10: =AE10/(AG4-AE8) -> 0 | AG10: =IF(AF10=0,0,(AF10*((LOG(AF10))/LOG(2)))) -> 0 | AI10: =N10 -> 22 | AJ10: =COUNTIF(L40:L50,AI10) -> 1 | AK10: =AJ10/(AL4-AJ8) -> 0.1666666667 | AL10: =IF(AK10=0,0,(AK10*((LOG(AK10))/LOG(2)))) -> -0.4308270835 | AN10: =N10 -> 22 | AO10: =COUNTIF(L51:L61,AN10) -> 1 | AP10: =AO10/(AQ4-AO8) -> 0.1666666667 | AQ10: =IF(AP10=0,0,(AP10*((LOG(AP10))/LOG(2)))) -> -0.4308270835 | AS10: =N10 -> 22 | AT10: =COUNTIF(L62:L72,AS10) -> 1 | AU10: =AT10/(AV4-AT8) -> 0.2 | AV10: =IF(AU10=0,0,(AU10*((LOG(AU10))/LOG(2)))) -> -0.464385619
A11: 22 | B11: 612 | C11: 14 | D11: 620 | K11: 0 | L11: 21 | T11: =N11 -> 0 | U11: =COUNTIF(L7:L17,T11) -> 0 | V11: =U11/(W4-U8) -> 0 | W11: =IF(V11=0,0,(V11*((LOG(V11))/LOG(2)))) -> 0 | Y11: =N11 -> 0 | Z11: =COUNTIF(L18:L28,Y11) -> 0 | AA11: =Z11/(AB4-Z8) -> 0 | AB11: =IF(AA11=0,0,(AA11*((LOG(AA11))/LOG(2)))) -> 0 | AD11: =N11 -> 0 | AE11: =COUNTIF(L29:L39,AD11) -> 0 | AF11: =AE11/(AG4-AE8) -> 0 | AG11: =IF(AF11=0,0,(AF11*((LOG(AF11))/LOG(2)))) -> 0 | AI11: =N11 -> 0 | AJ11: =COUNTIF(L40:L50,AI11) -> 0 | AK11: =AJ11/(AL4-AJ8) -> 0 | AL11: =IF(AK11=0,0,(AK11*((LOG(AK11))/LOG(2)))) -> 0 | AN11: =N11 -> 0 | AO11: =COUNTIF(L51:L61,AN11) -> 0 | AP11: =AO11/(AQ4-AO8) -> 0 | AQ11: =IF(AP11=0,0,(AP11*((LOG(AP11))/LOG(2)))) -> 0 | AS11: =N11 -> 0 | AT11: =COUNTIF(L62:L72,AS11) -> 0 | AU11: =AT11/(AV4-AT8) -> 0 | AV11: =IF(AU11=0,0,(AU11*((LOG(AU11))/LOG(2)))) -> 0
A12: 11 | B12: 729 | C12: 21 | D12: 745 | K12: 0 | L12: 12 | T12: =N12 -> 0 | U12: =COUNTIF(L7:L17,T12) -> 0 | V12: =U12/(W4-U8) -> 0 | W12: =IF(V12=0,0,(V12*((LOG(V12))/LOG(2)))) -> 0 | Y12: =N12 -> 0 | Z12: =COUNTIF(L18:L28,Y12) -> 0 | AA12: =Z12/(AB4-Z8) -> 0 | AB12: =IF(AA12=0,0,(AA12*((LOG(AA12))/LOG(2)))) -> 0 | AD12: =N12 -> 0 | AE12: =COUNTIF(L29:L39,AD12) -> 0 | AF12: =AE12/(AG4-AE8) -> 0 | AG12: =IF(AF12=0,0,(AF12*((LOG(AF12))/LOG(2)))) -> 0 | AI12: =N12 -> 0 | AJ12: =COUNTIF(L40:L50,AI12) -> 0 | AK12: =AJ12/(AL4-AJ8) -> 0 | AL12: =IF(AK12=0,0,(AK12*((LOG(AK12))/LOG(2)))) -> 0 | AN12: =N12 -> 0 | AO12: =COUNTIF(L51:L61,AN12) -> 0 | AP12: =AO12/(AQ4-AO8) -> 0 | AQ12: =IF(AP12=0,0,(AP12*((LOG(AP12))/LOG(2)))) -> 0 | AS12: =N12 -> 0 | AT12: =COUNTIF(L62:L72,AS12) -> 0 | AU12: =AT12/(AV4-AT8) -> 0 | AV12: =IF(AU12=0,0,(AU12*((LOG(AU12))/LOG(2)))) -> 0
A13: 11 | B13: 851 | C13: 21 | D13: 860 | K13: 0 | L13: 12 | T13: =N13 -> 0 | U13: =COUNTIF(L7:L17,T13) -> 0 | V13: =U13/(W4-U8) -> 0 | W13: =IF(V13=0,0,(V13*((LOG(V13))/LOG(2)))) -> 0 | Y13: =N13 -> 0 | Z13: =COUNTIF(L18:L28,Y13) -> 0 | AA13: =Z13/(AB4-Z8) -> 0 | AB13: =IF(AA13=0,0,(AA13*((LOG(AA13))/LOG(2)))) -> 0 | AD13: =N13 -> 0 | AE13: =COUNTIF(L29:L39,AD13) -> 0 | AF13: =AE13/(AG4-AE8) -> 0 | AG13: =IF(AF13=0,0,(AF13*((LOG(AF13))/LOG(2)))) -> 0 | AI13: =N13 -> 0 | AJ13: =COUNTIF(L40:L50,AI13) -> 0 | AK13: =AJ13/(AL4-AJ8) -> 0 | AL13: =IF(AK13=0,0,(AK13*((LOG(AK13))/LOG(2)))) -> 0 | AN13: =N13 -> 0 | AO13: =COUNTIF(L51:L61,AN13) -> 0 | AP13: =AO13/(AQ4-AO8) -> 0 | AQ13: =IF(AP13=0,0,(AP13*((LOG(AP13))/LOG(2)))) -> 0 | AS13: =N13 -> 0 | AT13: =COUNTIF(L62:L72,AS13) -> 0 | AU13: =AT13/(AV4-AT8) -> 0 | AV13: =IF(AU13=0,0,(AU13*((LOG(AU13))/LOG(2)))) -> 0
A14: 11 | B14: 960 | C14: 21 | D14: 976 | K14: 0 | L14: 12 | T14: =N14 -> 0 | U14: =COUNTIF(L7:L17,T14) -> 0 | V14: =U14/(W4-U8) -> 0 | W14: =IF(V14=0,0,(V14*((LOG(V14))/LOG(2)))) -> 0 | Y14: =N14 -> 0 | Z14: =COUNTIF(L18:L28,Y14) -> 0 | AA14: =Z14/(AB4-Z8) -> 0 | AB14: =IF(AA14=0,0,(AA14*((LOG(AA14))/LOG(2)))) -> 0 | AD14: =N14 -> 0 | AE14: =COUNTIF(L29:L39,AD14) -> 0 | AF14: =AE14/(AG4-AE8) -> 0 | AG14: =IF(AF14=0,0,(AF14*((LOG(AF14))/LOG(2)))) -> 0 | AI14: =N14 -> 0 | AJ14: =COUNTIF(L40:L50,AI14) -> 0 | AK14: =AJ14/(AL4-AJ8) -> 0 | AL14: =IF(AK14=0,0,(AK14*((LOG(AK14))/LOG(2)))) -> 0 | AN14: =N14 -> 0 | AO14: =COUNTIF(L51:L61,AN14) -> 0 | AP14: =AO14/(AQ4-AO8) -> 0 | AQ14: =IF(AP14=0,0,(AP14*((LOG(AP14))/LOG(2)))) -> 0 | AS14: =N14 -> 0 | AT14: =COUNTIF(L62:L72,AS14) -> 0 | AU14: =AT14/(AV4-AT8) -> 0 | AV14: =IF(AU14=0,0,(AU14*((LOG(AU14))/LOG(2)))) -> 0
A15: 11 | B15: 1078 | C15: 21 | D15: 1181 | K15: 0 | L15: 12 | P15: =SUM(P7:P14) -> 1 | Q15: =-SUM(Q7:Q14) -> 1.200210866 | V15: =SUM(V7:V14) -> 1 | W15: =-SUM(W7:W14) -> 0 | AA15: =SUM(AA7:AA14) -> 1 | AB15: =-SUM(AB7:AB14) -> 0 | AF15: =SUM(AF7:AF14) -> 1 | AG15: =-SUM(AG7:AG14) -> 0 | AK15: =SUM(AK7:AK14) -> 1 | AL15: =-SUM(AL7:AL14) -> 0.6500224216 | AP15: =SUM(AP7:AP14) -> 1 | AQ15: =-SUM(AQ7:AQ14) -> 0.6500224216 | AU15: =SUM(AU7:AU14) -> 1 | AV15: =-SUM(AV7:AV14) -> 0.7219280949
A16: 22 | B16: 1276 | C16: 14 | D16: 1284 | K16: 0 | L16: 21 | P16: U= | Q16: =Q15/(LOG(Q4)/LOG(2)) -> 0.198565951 | V16: U1= | W16: =W15/(LOG(W4)/LOG(2)) -> 0 | AA16: U2= | AB16: =AB15/(LOG(AB4)/LOG(2)) -> 0 | AF16: U3= | AG16: =AG15/(LOG(AG4)/LOG(2)) -> 0 | AK16: U4= | AL16: =AL15/(LOG(AL4)/LOG(2)) -> 0.1878986184 | AP16: U5= | AQ16: =AQ15/(LOG(AQ4)/LOG(2)) -> 0.1878986184 | AU16: U6= | AV16: =AV15/(LOG(AV4)/LOG(2)) -> 0.2086840194
A17: 22 | B17: 1377 | C17: 14 | D17: 1385 | K17: 0 | L17: 21
A18: 22 | B18: 1481 | C18: 14 | D18: 1488 | K18: 0 | L18: 21
A19: 11 | B19: 1600 | C19: 21 | D19: 1611 | K19: 0 | L19: 12 | N19: Total Target Seq
A20: 22 | B20: 1709 | C20: 14 | D20: 1717 | K20: 0 | L20: 21 | N20: =COUNTIF(L7:L72,G3) -> 37 | P20: 11 | Q20: 11 | R20: 11 | S20: 11 | T20: 11 | U20: 11
A21: 11 | B21: 1823 | C21: 21 | D21: 1854 | K21: 0 | L21: 12 | P21: % of reinforcement given in 6 equal intervals based on number of trials
A22: 22 | B22: 1945 | C22: 14 | D22: 1953 | K22: 0 | L22: 21 | P22: %_1 | Q22: %_2 | R22: %_3 | S22: %_4 | T22: %_5 | U22: %_6
A23: 11 | B23: 2059 | C23: 21 | D23: 2081 | K23: 0 | L23: 12 | O23: target sequence | P23: =$G$3 -> 12 | Q23: =$G$3 -> 12 | R23: =$G$3 -> 12 | S23: =$G$3 -> 12 | T23: =$G$3 -> 12 | U23: =$G$3 -> 12
A24: 11 | B24: 2186 | C24: 21 | D24: 2236 | K24: 0 | L24: 12 | O24: total reinforcement | P24: =U8 -> 7 | Q24: =Z8 -> 8 | R24: =AE8 -> 6 | S24: =AJ8 -> 5 | T24: =AO8 -> 5 | U24: =AT8 -> 6
A25: 11 | B25: 2340 | C25: 21 | D25: 2357 | K25: 0 | L25: 12 | O25: % target
A26: 11 | B26: 2459 | C26: 21 | D26: 2486 | K26: 0 | L26: 12 | O26: CCRF
A27: 11 | B27: 2587 | C27: 21 | D27: 2631 | K27: 0 | L27: 12 | O27: % CCRf
A28: 11 | B28: 2741 | C28: 21 | D28: 2755 | K28: 0 | L28: 12 | O28: average response rate | P28: =D17/P20 -> 125.9090909 | Q28: =(D28-D17)/Q20 -> 124.5454545 | R28: =(D39-D28)/R20 -> 118.1818182 | S28: =(D50-D39)/S20 -> 120 | T28: =(D61-D50)/T20 -> 120.3636364 | U28: =(D72-D61)/U20 -> 128.0909091
A29: 11 | B29: 2857 | C29: 21 | D29: 2866 | K29: 0 | L29: 12
A30: 22 | B30: 2961 | C30: 14 | D30: 2968 | K30: 0 | L30: 21
A31: 22 | B31: 3065 | C31: 14 | D31: 3073 | K31: 0 | L31: 21
A32: 22 | B32: 3171 | C32: 14 | D32: 3178 | K32: 0 | L32: 21
A33: 22 | B33: 3293 | C33: 14 | D33: 3303 | K33: 0 | L33: 21
A34: 11 | B34: 3409 | C34: 21 | D34: 3426 | K34: 0 | L34: 12
A35: 22 | B35: 3518 | C35: 14 | D35: 3527 | K35: 0 | L35: 21
A36: 11 | B36: 3634 | C36: 21 | D36: 3657 | K36: 0 | L36: 12
A37: 11 | B37: 3760 | C37: 21 | D37: 3821 | K37: 0 | L37: 12
A38: 11 | B38: 3922 | C38: 21 | D38: 3939 | K38: 0 | L38: 12
A39: 11 | B39: 4046 | C39: 21 | D39: 4055 | K39: 0 | L39: 12
A40: 11 | B40: 4158 | C40: 21 | D40: 4174 | K40: 0 | L40: 12
A41: 22 | B41: 4283 | C41: 23 | D41: 4324 | K41: 0 | L41: 22
A42: 22 | B42: 4437 | C42: 14 | D42: 4444 | K42: 0 | L42: 21
A43: 11 | B43: 4558 | C43: 21 | D43: 4582 | K43: 0 | L43: 12
A44: 11 | B44: 4688 | C44: 21 | D44: 4699 | K44: 0 | L44: 12
A45: 22 | B45: 4792 | C45: 14 | D45: 4803 | K45: 0 | L45: 21
A46: 22 | B46: 4899 | C46: 14 | D46: 4907 | K46: 0 | L46: 21
A47: 11 | B47: 5013 | C47: 21 | D47: 5048 | K47: 0 | L47: 12
A48: 22 | B48: 5145 | C48: 14 | D48: 5152 | K48: 0 | L48: 21
A49: 22 | B49: 5248 | C49: 14 | D49: 5257 | K49: 0 | L49: 21
A50: 11 | B50: 5354 | C50: 21 | D50: 5375 | K50: 0 | L50: 12
A51: 11 | B51: 5479 | C51: 21 | D51: 5495 | K51: 0 | L51: 12
A52: 11 | B52: 5600 | C52: 21 | D52: 5609 | K52: 0 | L52: 12
A53: 22 | B53: 5707 | C53: 14 | D53: 5719 | K53: 0 | L53: 21
A54: 22 | B54: 5817 | C54: 14 | D54: 5826 | K54: 0 | L54: 21
A55: 22 | B55: 5927 | C55: 14 | D55: 5935 | K55: 0 | L55: 21
A56: 22 | B56: 6036 | C56: 14 | D56: 6044 | K56: 0 | L56: 21
A57: 11 | B57: 6160 | C57: 21 | D57: 6184 | K57: 0 | L57: 12
A58: 22 | B58: 6280 | C58: 14 | D58: 6288 | K58: 0 | L58: 21
A59: 22 | B59: 6390 | C59: 23 | D59: 6408 | K59: 0 | L59: 22
A60: 11 | B60: 6516 | C60: 21 | D60: 6533 | K60: 0 | L60: 12
A61: 11 | B61: 6637 | C61: 21 | D61: 6699 | K61: 0 | L61: 12
A62: 22 | B62: 6798 | C62: 14 | D62: 6814 | K62: 0 | L62: 21
A63: 22 | B63: 6920 | C63: 23 | D63: 6942 | K63: 0 | L63: 22
A64: 22 | B64: 7042 | C64: 14 | D64: 7050 | K64: 0 | L64: 21
A65: 11 | B65: 7160 | C65: 21 | D65: 7171 | K65: 0 | L65: 12
A66: 22 | B66: 7267 | C66: 14 | D66: 7274 | K66: 0 | L66: 21
A67: 11 | B67: 7377 | C67: 21 | D67: 7426 | K67: 0 | L67: 12
A68: 11 | B68: 7531 | C68: 21 | D68: 7546 | K68: 0 | L68: 12
A69: 11 | B69: 7656 | C69: 21 | D69: 7674 | K69: 0 | L69: 12
A70: 11 | B70: 7780 | C70: 21 | D70: 7851 | K70: 0 | L70: 12
A71: 22 | B71: 7966 | C71: 14 | D71: 7977 | K71: 0 | L71: 21
A72: 11 | B72: 8097 | C72: 21 | D72: 8108 | K72: 1 | L72: 12

Sheet !N210900.095
A1: Report for:!N210900.095
A2: Date: | B2: <date>
A3: Hen: | B3: <hen> | F3: Correct Sequence | G3: =Start!J2 -> 12 | P3: Total Sequences in Data | Q3: =4994-COUNTBLANK(L7:L5000) -> 77 | V3: Total Sequences in Block Data | W3: =COUNTA(L7:L19) -> 13 | AA3: Total Sequences in Block Data | AB3: =COUNTA(L20:L32) -> 13 | AF3: Total Sequences in Block Data | AG3: =COUNTA(L33:L44) -> 12 | AK3: Total Sequences in Block Data | AL3: =COUNTA(L45:L57) -> 13 | AP3: Total Sequences in Block Data | AQ3: =COUNTA(L58:L70) -> 13 | AU3: Total Sequences in Block Data | AV3: =COUNTA(L71:L83) -> 13
P4: Total Sequences in Summary | Q4: =SUM(O7:O14) -> 77 | V4: Total Sequences in Block Summary | W4: =SUM(U7:U14) -> 13 | AA4: Total Sequences in Block Summary | AB4: =SUM(Z7:Z14) -> 13 | AF4: Total Sequences in Block Summary | AG4: =SUM(AE7:AE14) -> 12 | AK4: Total Sequences in Block Summary | AL4: =SUM(AJ7:AJ14) -> 13 | AP4: Total Sequences in Block Summary | AQ4: =SUM(AO7:AO14) -> 13 | AU4: Total Sequences in Block Summary | AV4: =SUM(AT7:AT14) -> 13
T5: Block 1 | Y5: Block 2 | AD5: Block 3 | AI5: Block 4 | AN5: Block 5 | AS5: Block 6
A6: Sequence Component 1 | B6: Time 1 | C6: Sequence Component 2 | D6: Time 2 | E6: Sequence Component 3 | F6: Time 3 | G6: Sequence Component 4 | H6: Time 4 | I6: Sequence Component 5 | J6: Time 5 | K6: Correct? 0=No 1=Yes | L6: Sequence | N6: Frequency | P6: Relative Frequency | Q6: Variability | T6: Frequency | V6: Relative Frequency | W6: Variability | Y6: Frequency | AA6: Relative Frequency | AB6: Variability | AD6: Frequency | AF6: Relative Frequency | AG6: Variability | AI6: Frequency | AK6: Relative Frequency | AL6: Variability | AN6: Frequency | AP6: Relative Frequency | AQ6: Variability | AS6: Frequency | AU6: Relative Frequency | AV6: Variability
A7: 11 | B7: 25 | C7: 21 | D7: 66 | K7: 0 | L7: 12 | N7: 11 | O7: =COUNTIF($L$7:$L$500,N7) -> 3 | P7: =O7/$Q$4 -> 0.03896103896 | Q7: =IF(P7=0,0,(P7*((LOG(P7))/LOG(2)))) -> -0.1824087288 | T7: =N7 -> 11 | U7: =COUNTIF(L7:L19,T7) -> 0 | V7: =U7/(W4-U8) -> 0 | W7: =IF(V7=0,0,(V7*((LOG(V7))/LOG(2)))) -> 0 | Y7: =N7 -> 11 | Z7: =COUNTIF(L20:L32,Y7) -> 2 | AA7: =Z7/(AB4-Z8) -> 0.25 | AB7: =IF(AA7=0,0,(AA7*((LOG(AA7))/LOG(2)))) -> -0.5 | AD7: =N7 -> 11 | AE7: =COUNTIF(L33:L44,AD7) -> 0 | AF7: =AE7/(AG4-AE8) -> 0 | AG7: =IF(AF7=0,0,(AF7*((LOG(AF7))/LOG(2)))) -> 0 | AI7: =N7 -> 11 | AJ7: =COUNTIF(L45:L57,AI7) -> 0 | AK7: =AJ7/(AL4-AJ8) -> 0 | AL7: =IF(AK7=0,0,(AK7*((LOG(AK7))/LOG(2)))) -> 0 | AN7: =N7 -> 11 | AO7: =COUNTIF(L58:L70,AN7) -> 1 | AP7: =AO7/(AQ4-AO8) -> 0.1428571429 | AQ7: =IF(AP7=0,0,(AP7*((LOG(AP7))/LOG(2)))) -> -0.4010507032 | AS7: =N7 -> 11 | AT7: =COUNTIF(L71:L83,AS7) -> 0 | AU7: =AT7/(AV4-AT8) -> 0 | AV7: =IF(AU7=0,0,(AU7*((LOG(AU7))/LOG(2)))) -> 0
A8: 22 | B8: 156 | C8: 23 | D8: 186 | K8: 0 | L8: 22 | N8: 12 | O8: =COUNTIF($L$7:$L$500,N8) -> 35 | P8: =O8/$Q$4 -> 0.4545454545 | Q8: =IF(P8=0,0,(P8*((LOG(P8))/LOG(2)))) -> -0.5170470562 | T8: =N8 -> 12 | U8: =COUNTIF(L7:L19,T8) -> 6 | Y8: =N8 -> 12 | Z8: =COUNTIF(L20:L32,Y8) -> 5 | AD8: =N8 -> 12 | AE8: =COUNTIF(L33:L44,AD8) -> 2 | AI8: =N8 -> 12 | AJ8: =COUNTIF(L45:L57,AI8) -> 5 | AN8: =N8 -> 12 | AO8: =COUNTIF(L58:L70,AN8) -> 6 | AS8: =N8 -> 12 | AT8: =COUNTIF(L71:L83,AS8) -> 11
A9: 22 | B9: 287 | C9: 14 | D9: 295 | K9: 0 | L9: 21 | N9: 21 | O9: =COUNTIF($L$7:$L$500,N9) -> 34 | P9: =O9/$Q$4 -> 0.4415584416 | Q9: =IF(P9=0,0,(P9*((LOG(P9))/LOG(2)))) -> -0.5207403348 | T9: =N9 -> 21 | U9: =COUNTIF(L7:L19,T9) -> 5 | V9: =U9/(W4-U8) -> 0.7142857143 | W9: =IF(V9=0,0,(V9*((LOG(V9))/LOG(2)))) -> -0.346733448 | Y9: =N9 -> 21 | Z9: =COUNTIF(L20:L32,Y9) -> 6 | AA9: =Z9/(AB4-Z8) -> 0.75 | AB9: =IF(AA9=0,0,(AA9*((LOG(AA9))/LOG(2)))) -> -0.3112781245 | AD9: =N9 -> 21 | AE9: =COUNTIF(L33:L44,AD9) -> 10 | AF9: =AE9/(AG4-AE8) -> 1 | AG9: =IF(AF9=0,0,(AF9*((LOG(AF9))/LOG(2)))) -> 0 | AI9: =N9 -> 21 | AJ9: =COUNTIF(L45:L57,AI9) -> 7 | AK9: =AJ9/(AL4-AJ8) -> 0.875 | AL9: =IF(AK9=0,0,(AK9*((LOG(AK9))/LOG(2)))) -> -0.1685644432 | AN9: =N9 -> 21 | AO9: =COUNTIF(L58:L70,AN9) -> 5 | AP9: =AO9/(AQ4-AO8) -> 0.7142857143 | AQ9: =IF(AP9=0,0,(AP9*((LOG(AP9))/LOG(2)))) -> -0.346733448 | AS9: =N9 -> 21 | AT9: =COUNTIF(L71:L83,AS9) -> 1 | AU9: =AT9/(AV4-AT8) -> 0.5 | AV9: =IF(AU9=0,0,(AU9*((LOG(AU9))/LOG(2)))) -> -0.5
A10: 11 | B10: 404 | C10: 21 | D10: 412 | K10: 0 | L10: 12 | N10: 22 | O10: =COUNTIF($L$7:$L$500,N10) -> 5 | P10: =O10/$Q$4 -> 0.06493506494 | Q10: =IF(P10=0,0,(P10*((LOG(P10))/LOG(2)))) -> -0.2561596393 | T10: =N10 -> 22 | U10: =COUNTIF(L7:L19,T10) -> 2 | V10: =U10/(W4-U8) -> 0.2857142857 | W10: =IF(V10=0,0,(V10*((LOG(V10))/LOG(2)))) -> -0.5163871206 | Y10: =N10 -> 22 | Z10: =COUNTIF(L20:L32,Y10) -> 0 | AA10: =Z10/(AB4-Z8) -> 0 | AB10: =IF(AA10=0,0,(AA10*((LOG(AA10))/LOG(2)))) -> 0 | AD10: =N10 -> 22 | AE10: =COUNTIF(L33:L44,AD10) -> 0 | AF10: =AE10/(AG4-AE8) -> 0 | AG10: =IF(AF10=0,0,(AF10*((LOG(AF10))/LOG(2)))) -> 0 | AI10: =N10 -> 22 | AJ10: =COUNTIF(L45:L57,AI10) -> 1 | AK10: =AJ10/(AL4-AJ8) -> 0.125 | AL10: =IF(AK10=0,0,(AK10*((LOG(AK10))/LOG(2)))) -> -0.375 | AN10: =N10 -> 22 | AO10: =COUNTIF(L58:L70,AN10) -> 1 | AP10: =AO10/(AQ4-AO8) -> 0.1428571429 | AQ10: =IF(AP10=0,0,(AP10*((LOG(AP10))/LOG(2)))) -> -0.4010507032 | AS10: =N10 -> 22 | AT10: =COUNTIF(L71:L83,AS10) -> 1 | AU10: =AT10/(AV4-AT8) -> 0.5 | AV10: =IF(AU10=0,0,(AU10*((LOG(AU10))/LOG(2)))) -> -0.5
A11: 22 | B11: 504 | C11: 23 | D11: 511 | K11: 0 | L11: 22 | T11: =N11 -> 0 | U11: =COUNTIF(L7:L19,T11) -> 0 | V11: =U11/(W4-U8) -> 0 | W11: =IF(V11=0,0,(V11*((LOG(V11))/LOG(2)))) -> 0 | Y11: =N11 -> 0 | Z11: =COUNTIF(L20:L32,Y11) -> 0 | AA11: =Z11/(AB4-Z8) -> 0 | AB11: =IF(AA11=0,0,(AA11*((LOG(AA11))/LOG(2)))) -> 0 | AD11: =N11 -> 0 | AE11: =COUNTIF(L33:L44,AD11) -> 0 | AF11: =AE11/(AG4-AE8) -> 0 | AG11: =IF(AF11=0,0,(AF11*((LOG(AF11))/LOG(2)))) -> 0 | AI11: =N11 -> 0 | AJ11: =COUNTIF(L45:L57,AI11) -> 0 | AK11: =AJ11/(AL4-AJ8) -> 0 | AL11: =IF(AK11=0,0,(AK11*((LOG(AK11))/LOG(2)))) -> 0 | AN11: =N11 -> 0 | AO11: =COUNTIF(L58:L70,AN11) -> 0 | AP11: =AO11/(AQ4-AO8) -> 0 | AQ11: =IF(AP11=0,0,(AP11*((LOG(AP11))/LOG(2)))) -> 0 | AS11: =N11 -> 0 | AT11: =COUNTIF(L71:L83,AS11) -> 0 | AU11: =AT11/(AV4-AT8) -> 0 | AV11: =IF(AU11=0,0,(AU11*((LOG(AU11))/LOG(2)))) -> 0
A12: 22 | B12: 607 | C12: 14 | D12: 625 | K12: 0 | L12: 21 | T12: =N12 -> 0 | U12: =COUNTIF(L7:L19,T12) -> 0 | V12: =U12/(W4-U8) -> 0 | W12: =IF(V12=0,0,(V12*((LOG(V12))/LOG(2)))) -> 0 | Y12: =N12 -> 0 | Z12: =COUNTIF(L20:L32,Y12) -> 0 | AA12: =Z12/(AB4-Z8) -> 0 | AB12: =IF(AA12=0,0,(AA12*((LOG(AA12))/LOG(2)))) -> 0 | AD12: =N12 -> 0 | AE12: =COUNTIF(L33:L44,AD12) -> 0 | AF12: =AE12/(AG4-AE8) -> 0 | AG12: =IF(AF12=0,0,(AF12*((LOG(AF12))/LOG(2)))) -> 0 | AI12: =N12 -> 0 | AJ12: =COUNTIF(L45:L57,AI12) -> 0 | AK12: =AJ12/(AL4-AJ8) -> 0 | AL12: =IF(AK12=0,0,(AK12*((LOG(AK12))/LOG(2)))) -> 0 | AN12: =N12 -> 0 | AO12: =COUNTIF(L58:L70,AN12) -> 0 | AP12: =AO12/(AQ4-AO8) -> 0 | AQ12: =IF(AP12=0,0,(AP12*((LOG(AP12))/LOG(2)))) -> 0 | AS12: =N12 -> 0 | AT12: =COUNTIF(L71:L83,AS12) -> 0 | AU12: =AT12/(AV4-AT8) -> 0 | AV12: =IF(AU12=0,0,(AU12*((LOG(AU12))/LOG(2)))) -> 0
A13: 22 | B13: 724 | C13: 14 | D13: 736 | K13: 0 | L13: 21 | T13: =N13 -> 0 | U13: =COUNTIF(L7:L19,T13) -> 0 | V13: =U13/(W4-U8) -> 0 | W13: =IF(V13=0,0,(V13*((LOG(V13))/LOG(2)))) -> 0 | Y13: =N13 -> 0 | Z13: =COUNTIF(L20:L32,Y13) -> 0 | AA13: =Z13/(AB4-Z8) -> 0 | AB13: =IF(AA13=0,0,(AA13*((LOG(AA13))/LOG(2)))) -> 0 | AD13: =N13 -> 0 | AE13: =COUNTIF(L33:L44,AD13) -> 0 | AF13: =AE13/(AG4-AE8) -> 0 | AG13: =IF(AF13=0,0,(AF13*((LOG(AF13))/LOG(2)))) -> 0 | AI13: =N13 -> 0 | AJ13: =COUNTIF(L45:L57,AI13) -> 0 | AK13: =AJ13/(AL4-AJ8) -> 0 | AL13: =IF(AK13=0,0,(AK13*((LOG(AK13))/LOG(2)))) -> 0 | AN13: =N13 -> 0 | AO13: =COUNTIF(L58:L70,AN13) -> 0 | AP13: =AO13/(AQ4-AO8) -> 0 | AQ13: =IF(AP13=0,0,(AP13*((LOG(AP13))/LOG(2)))) -> 0 | AS13: =N13 -> 0 | AT13: =COUNTIF(L71:L83,AS13) -> 0 | AU13: =AT13/(AV4-AT8) -> 0 | AV13: =IF(AU13=0,0,(AU13*((LOG(AU13))/LOG(2)))) -> 0
A14: 11 | B14: 843 | C14: 21 | D14: 859 | K14: 0 | L14: 12 | T14: =N14 -> 0 | U14: =COUNTIF(L7:L19,T14) -> 0 | V14: =U14/(W4-U8) -> 0 | W14: =IF(V14=0,0,(V14*((LOG(V14))/LOG(2)))) -> 0 | Y14: =N14 -> 0 | Z14: =COUNTIF(L20:L32,Y14) -> 0 | AA14: =Z14/(AB4-Z8) -> 0 | AB14: =IF(AA14=0,0,(AA14*((LOG(AA14))/LOG(2)))) -> 0 | AD14: =N14 -> 0 | AE14: =COUNTIF(L33:L44,AD14) -> 0 | AF14: =AE14/(AG4-AE8) -> 0 | AG14: =IF(AF14=0,0,(AF14*((LOG(AF14))/LOG(2)))) -> 0 | AI14: =N14 -> 0 | AJ14: =COUNTIF(L45:L57,AI14) -> 0 | AK14: =AJ14/(AL4-AJ8) -> 0 | AL14: =IF(AK14=0,0,(AK14*((LOG(AK14))/LOG(2)))) -> 0 | AN14: =N14 -> 0 | AO14: =COUNTIF(L58:L70,AN14) -> 0 | AP14: =AO14/(AQ4-AO8) -> 0 | AQ14: =IF(AP14=0,0,(AP14*((LOG(AP14))/LOG(2)))) -> 0 | AS14: =N14 -> 0 | AT14: =COUNTIF(L71:L83,AS14) -> 0 | AU14: =AT14/(AV4-AT8) -> 0 | AV14: =IF(AU14=0,0,(AU14*((LOG(AU14))/LOG(2)))) -> 0
A15: 11 | B15: 961 | C15: 21 | D15: 1039 | K15: 0 | L15: 12 | P15: =SUM(P7:P14) -> 1 | Q15: =-SUM(Q7:Q14) -> 1.476355759 | V15: =SUM(V7:V14) -> 1 | W15: =-SUM(W7:W14) -> 0.8631205686 | AA15: =SUM(AA7:AA14) -> 1 | AB15: =-SUM(AB7:AB14) -> 0.8112781245 | AF15: =SUM(AF7:AF14) -> 1 | AG15: =-SUM(AG7:AG14) -> 0 | AK15: =SUM(AK7:AK14) -> 1 | AL15: =-SUM(AL7:AL14) -> 0.5435644432 | AP15: =SUM(AP7:AP14) -> 1 | AQ15: =-SUM(AQ7:AQ14) -> 1.148834854 | AU15: =SUM(AU7:AU14) -> 1 | AV15: =-SUM(AV7:AV14) -> 1
A16: 11 | B16: 1140 | C16: 21 | D16: 1155 | K16: 0 | L16: 12 | P16: U= | Q16: =Q15/(LOG(Q4)/LOG(2)) -> 0.2355841785 | V16: U1= | W16: =W15/(LOG(W4)/LOG(2)) -> 0.2332481095 | AA16: U2= | AB16: =AB15/(LOG(AB4)/LOG(2)) -> 0.2192383031 | AF16: U3= | AG16: =AG15/(LOG(AG4)/LOG(2)) -> 0 | AK16: U4= | AL16: =AL15/(LOG(AL4)/LOG(2)) -> 0.1468918519 | AP16: U5= | AQ16: =AQ15/(LOG(AQ4)/LOG(2)) -> 0.3104590108 | AU16: U6= | AV16: =AV15/(LOG(AV4)/LOG(2)) -> 0.2702381544
A17: 11 | B17: 1260 | C17: 21 | D17: 1289 | K17: 0 | L17: 12
A18: 22 | B18: 1383 | C18: 14 | D18: 1391 | K18: 0 | L18: 21
A19: 22 | B19: 1490 | C19: 14 | D19: 1497 | K19: 0 | L19: 21 | N19: Total Target Seq
A20: 11 | B20: 1598 | C20: 12 | D20: 1606 | K20: 0 | L20: 11 | N20: =COUNTIF(L7:L83,G3) -> 35 | P20: 13 | Q20: 13 | R20: 12 | S20: 13 | T20: 13 | U20: 13
A21: 22 | B21: 1702 | C21: 14 | D21: 1713 | K21: 0 | L21: 21 | P21: % of reinforcement given in 6 equal intervals based on number of trials
A22: 22 | B22: 1810 | C22: 14 | D22: 1818 | K22: 0 | L22: 21 | P22: %_1 | Q22: %_2 | R22: %_3 | S22: %_4 | T22: %_5 | U22: %_6
A23: 11 | B23: 1921 | C23: 21 | D23: 1948 | K23: 0 | L23: 12 | O23: target sequence | P23: =$G$3 -> 12 | Q23: =$G$3 -> 12 | R23: =$G$3 -> 12 | S23: =$G$3 -> 12 | T23: =$G$3 -> 12 | U23: =$G$3 -> 12
A24: 11 | B24: 2054 | C24: 21 | D24: 2065 | K24: 0 | L24: 12 | O24: total reinforcement | P24: =U8 -> 6 | Q24: =Z8 -> 5 | R24: =AE8 -> 2 | S24: =AJ8 -> 5 | T24: =AO8 -> 6 | U24: =AT8 -> 11
A25: 22 | B25: 2161 | C25: 14 | D25: 2168 | K25: 0 | L25: 21 | O25: % target
A26: 11 | B26: 2275 | C26: 21 | D26: 2332 | K26: 0 | L26: 12 | O26: CCRF
A27: 11 | B27: 2437 | C27: 21 | D27: 2510 | K27: 0 | L27: 12 | O27: % CCRf
A28: 11 | B28: 2610 | C28: 12 | D28: 2628 | K28: 0 | L28: 11 | O28: average response rate | P28: =D19/P20 -> 115.1538462 | Q28: =(D32-D19)/Q20 -> 120.1538462 | R28: =(D44-D32)/R20 -> 112.25 | S28: =(D57-D44)/S20 -> 128.2307692 | T28: =(D70-D57)/T20 -> 165.0769231 | U28: =(D83-D70)/U20 -> 193.7692308
A29: 22 | B29: 2724 | C29: 14 | D29: 2732 | K29: 0 | L29: 21
A30: 11 | B30: 2837 | C30: 21 | D30: 2854 | K30: 0 | L30: 12
A31: 22 | B31: 2947 | C31: 14 | D31: 2954 | K31: 0 | L31: 21
A32: 22 | B32: 3051 | C32: 14 | D32: 3059 | K32: 0 | L32: 21
A33: 22 | B33: 3162 | C33: 14 | D33: 3169 | K33: 0 | L33: 21
A34: 11 | B34: 3272 | C34: 21 | D34: 3306 | K34: 0 | L34: 12
A35: 22 | B35: 3405 | C35: 14 | D35: 3412 | K35: 0 | L35: 21
A36: 22 | B36: 3514 | C36: 14 | D36: 3521 | K36: 0 | L36: 21
A37: 22 | B37: 3621 | C37: 14 | D37: 3629 | K37: 0 | L37: 21
A38: 22 | B38: 3727 | C38: 14 | D38: 3735 | K38: 0 | L38: 21
A39: 22 | B39: 3832 | C39: 14 | D39: 3840 | K39: 0 | L39: 21
A40: 22 | B40: 3944 | C40: 14 | D40: 3952 | K40: 0 | L40: 21
A41: 22 | B41: 4049 | C41: 14 | D41: 4057 | K41: 0 | L41: 21
A42: 11 | B42: 4159 | C42: 21 | D42: 4194 | K42: 0 | L42: 12
A43: 22 | B43: 4288 | C43: 14 | D43: 4295 | K43: 0 | L43: 21
A44: 22 | B44: 4391 | C44: 14 | D44: 4406 | K44: 0 | L44: 21
A45: 22 | B45: 4503 | C45: 14 | D45: 4512 | K45: 0 | L45: 21
A46: 22 | B46: 4614 | C46: 14 | D46: 4622 | K46: 0 | L46: 21
A47: 11 | B47: 4732 | C47: 21 | D47: 4751 | K47: 0 | L47: 12
A48: 22 | B48: 4917 | C48: 14 | D48: 4924 | K48: 0 | L48: 21
A49: 22 | B49: 5020 | C49: 23 | D49: 5028 | K49: 0 | L49: 22
A50: 11 | B50: 5134 | C50: 21 | D50: 5151 | K50: 0 | L50: 12
A51: 11 | B51: 5250 | C51: 21 | D51: 5260 | K51: 0 | L51: 12
A52: 22 | B52: 5352 | C52: 14 | D52: 5360 | K52: 0 | L52: 21
A53: 22 | B53: 5461 | C53: 14 | D53: 5468 | K53: 0 | L53: 21
A54: 11 | B54: 5685 | C54: 21 | D54: 5702 | K54: 0 | L54: 12
A55: 22 | B55: 5798 | C55: 14 | D55: 5809 | K55: 0 | L55: 21
A56: 11 | B56: 5925 | C56: 21 | D56: 5969 | K56: 0 | L56: 12
A57: 22 | B57: 6065 | C57: 14 | D57: 6073 | K57: 0 | L57: 21
A58: 11 | B58: 6183 | C58: 21 | D58: 6203 | K58: 0 | L58: 12
A59: 11 | B59: 6303 | C59: 21 | D59: 6380 | K59: 0 | L59: 12
A60: 11 | B60: 6483 | C60: 21 | D60: 6517 | K60: 0 | L60: 12
A61: 22 | B61: 6610 | C61: 23 | D61: 6617 | K61: 0 | L61: 22
A62: 11 | B62: 6729 | C62: 21 | D62: 6738 | K62: 0 | L62: 12
A63: 22 | B63: 6838 | C63: 14 | D63: 6847 | K63: 0 | L63: 21
A64: 22 | B64: 6948 | C64: 14 | D64: 6964 | K64: 0 | L64: 21
A65: 22 | B65: 7106 | C65: 14 | D65: 7117 | K65: 0 | L65: 21
A66: 11 | B66: 7549 | C66: 21 | D66: 7560 | K66: 0 | L66: 12
A67: 22 | B67: 7700 | C67: 14 | D67: 7709 | K67: 0 | L67: 21
A68: 11 | B68: 7825 | C68: 12 | D68: 7844 | K68: 0 | L68: 11
A69: 11 | B69: 8033 | C69: 21 | D69: 8083 | K69: 0 | L69: 12
A70: 22 | B70: 8189 | C70: 14 | D70: 8219 | K70: 0 | L70: 21
A71: 11 | B71: 8332 | C71: 21 | D71: 8349 | K71: 0 | L71: 12
A72: 11 | B72: 8478 | C72: 21 | D72: 8520 | K72: 0 | L72: 12
A73: 11 | B73: 8803 | C73: 21 | D73: 8820 | K73: 0 | L73: 12
A74: 11 | B74: 8933 | C74: 21 | D74: 8948 | K74: 0 | L74: 12
A75: 11 | B75: 9170 | C75: 21 | D75: 9182 | K75: 0 | L75: 12
A76: 22 | B76: 9283 | C76: 23 | D76: 9297 | K76: 0 | L76: 22
A77: 11 | B77: 9529 | C77: 21 | D77: 9538 | K77: 0 | L77: 12
A78: 22 | B78: 9643 | C78: 14 | D78: 9651 | K78: 0 | L78: 21
A79: 11 | B79: 9759 | C79: 21 | D79: 9770 | K79: 0 | L79: 12
A80: 11 | B80: 9882 | C80: 21 | D80: 9922 | K80: 0 | L80: 12
A81: 11 | B81: 10042 | C81: 21 | D81: 10062 | K81: 0 | L81: 12
A82: 11 | B82: 10185 | C82: 21 | D82: 10204 | K82: 0 | L82: 12
A83: 11 | B83: 10726 | C83: 21 | D83: 10738 | K83: 1 | L83: 12

Sheet !N211A30.095
A1: Report for:!N211A30.095
A2: Date: | B2: <date>
A3: Hen: | B3: <hen> | F3: Correct Sequence | G3: =Start!J2 -> 12 | P3: Total Sequences in Data | Q3: =4994-COUNTBLANK(L7:L5000) -> 76 | V3: Total Sequences in Block Data | W3: =COUNTA(L7:L19) -> 13 | AA3: Total Sequences in Block Data | AB3: =COUNTA(L20:L31) -> 12 | AF3: Total Sequences in Block Data | AG3: =COUNTA(L32:L44) -> 13 | AK3: Total Sequences in Block Data | AL3: =COUNTA(L45:L57) -> 13 | AP3: Total Sequences in Block Data | AQ3: =COUNTA(L58:L69) -> 12 | AU3: Total Sequences in Block Data | AV3: =COUNTA(L70:L82) -> 13
P4: Total Sequences in Summary | Q4: =SUM(O7:O14) -> 76 | V4: Total Sequences in Block Summary | W4: =SUM(U7:U14) -> 13 | AA4: Total Sequences in Block Summary | AB4: =SUM(Z7:Z14) -> 12 | AF4: Total Sequences in Block Summary | AG4: =SUM(AE7:AE14) -> 13 | AK4: Total Sequences in Block Summary | AL4: =SUM(AJ7:AJ14) -> 13 | AP4: Total Sequences in Block Summary | AQ4: =SUM(AO7:AO14) -> 12 | AU4: Total Sequences in Block Summary | AV4: =SUM(AT7:AT14) -> 13
T5: Block 1 | Y5: Block 2 | AD5: Block 3 | AI5: Block 4 | AN5: Block 5 | AS5: Block 6
A6: Sequence Component 1 | B6: Time 1 | C6: Sequence Component 2 | D6: Time 2 | E6: Sequence Component 3 | F6: Time 3 | G6: Sequence Component 4 | H6: Time 4 | I6: Sequence Component 5 | J6: Time 5 | K6: Correct? 0=No 1=Yes | L6: Sequence | N6: Frequency | P6: Relative Frequency | Q6: Variability | T6: Frequency | V6: Relative Frequency | W6: Variability | Y6: Frequency | AA6: Relative Frequency | AB6: Variability | AD6: Frequency | AF6: Relative Frequency | AG6: Variability | AI6: Frequency | AK6: Relative Frequency | AL6: Variability | AN6: Frequency | AP6: Relative Frequency | AQ6: Variability | AS6: Frequency | AU6: Relative Frequency | AV6: Variability
A7: 22 | B7: 11 | C7: 14 | D7: 19 | K7: 0 | L7: 21 | N7: 11 | O7: =COUNTIF($L$7:$L$500,N7) -> 8 | P7: =O7/$Q$4 -> 0.1052631579 | Q7: =IF(P7=0,0,(P7*((LOG(P7))/LOG(2)))) -> -0.3418871067 | T7: =N7 -> 11 | U7: =COUNTIF(L7:L19,T7) -> 0 | V7: =U7/(W4-U8) -> 0 | W7: =IF(V7=0,0,(V7*((LOG(V7))/LOG(2)))) -> 0 | Y7: =N7 -> 11 | Z7: =COUNTIF(L20:L31,Y7) -> 1 | AA7: =Z7/(AB4-Z8) -> 0.1428571429 | AB7: =IF(AA7=0,0,(AA7*((LOG(AA7))/LOG(2)))) -> -0.4010507032 | AD7: =N7 -> 11 | AE7: =COUNTIF(L32:L44,AD7) -> 2 | AF7: =AE7/(AG4-AE8) -> 0.3333333333 | AG7: =IF(AF7=0,0,(AF7*((LOG(AF7))/LOG(2)))) -> -0.5283208336 | AI7: =N7 -> 11 | AJ7: =COUNTIF(L45:L57,AI7) -> 1 | AK7: =AJ7/(AL4-AJ8) -> 0.1666666667 | AL7: =IF(AK7=0,0,(AK7*((LOG(AK7))/LOG(2)))) -> -0.4308270835 | AN7: =N7 -> 11 | AO7: =COUNTIF(L58:L69,AN7) -> 1 | AP7: =AO7/(AQ4-AO8) -> 0.2 | AQ7: =IF(AP7=0,0,(AP7*((LOG(AP7))/LOG(2)))) -> -0.464385619 | AS7: =N7 -> 11 | AT7: =COUNTIF(L70:L82,AS7) -> 3 | AU7: =AT7/(AV4-AT8) -> 0.4285714286 | AV7: =IF(AU7=0,0,(AU7*((LOG(AU7))/LOG(2)))) -> -0.5238824663
A8: 22 | B8: 116 | C8: 14 | D8: 125 | K8: 0 | L8: 21 | N8: 12 | O8: =COUNTIF($L$7:$L$500,N8) -> 36 | P8: =O8/$Q$4 -> 0.4736842105 | Q8: =IF(P8=0,0,(P8*((LOG(P8))/LOG(2)))) -> -0.5106327688 | T8: =N8 -> 12 | U8: =COUNTIF(L7:L19,T8) -> 4 | Y8: =N8 -> 12 | Z8: =COUNTIF(L20:L31,Y8) -> 5 | AD8: =N8 -> 12 | AE8: =COUNTIF(L32:L44,AD8) -> 7 | AI8: =N8 -> 12 | AJ8: =COUNTIF(L45:L57,AI8) -> 7 | AN8: =N8 -> 12 | AO8: =COUNTIF(L58:L69,AN8) -> 7 | AS8: =N8 -> 12 | AT8: =COUNTIF(L70:L82,AS8) -> 6
A9: 22 | B9: 219 | C9: 14 | D9: 228 | K9: 0 | L9: 21 | N9: 21 | O9: =COUNTIF($L$7:$L$500,N9) -> 30 | P9: =O9/$Q$4 -> 0.3947368421 | Q9: =IF(P9=0,0,(P9*((LOG(P9))/LOG(2)))) -> -0.5293566781 | T9: =N9 -> 21 | U9: =COUNTIF(L7:L19,T9) -> 9 | V9: =U9/(W4-U8) -> 1 | W9: =IF(V9=0,0,(V9*((LOG(V9))/LOG(2)))) -> 0 | Y9: =N9 -> 21 | Z9: =COUNTIF(L20:L31,Y9) -> 5 | AA9: =Z9/(AB4-Z8) -> 0.7142857143 | AB9: =IF(AA9=0,0,(AA9*((LOG(AA9))/LOG(2)))) -> -0.346733448 | AD9: =N9 -> 21 | AE9: =COUNTIF(L32:L44,AD9) -> 4 | AF9: =AE9/(AG4-AE8) -> 0.6666666667 | AG9: =IF(AF9=0,0,(AF9*((LOG(AF9))/LOG(2)))) -> -0.3899750005 | AI9: =N9 -> 21 | AJ9: =COUNTIF(L45:L57,AI9) -> 5 | AK9: =AJ9/(AL4-AJ8) -> 0.8333333333 | AL9: =IF(AK9=0,0,(AK9*((LOG(AK9))/LOG(2)))) -> -0.2191953382 | AN9: =N9 -> 21 | AO9: =COUNTIF(L58:L69,AN9) -> 4 | AP9: =AO9/(AQ4-AO8) -> 0.8 | AQ9: =IF(AP9=0,0,(AP9*((LOG(AP9))/LOG(2)))) -> -0.2575424759 | AS9: =N9 -> 21 | AT9: =COUNTIF(L70:L82,AS9) -> 3 | AU9: =AT9/(AV4-AT8) -> 0.4285714286 | AV9: =IF(AU9=0,0,(AU9*((LOG(AU9))/LOG(2)))) -> -0.5238824663
A10: 11 | B10: 340 | C10: 21 | D10: 352 | K10: 0 | L10: 12 | N10: 22 | O10: =COUNTIF($L$7:$L$500,N10) -> 2 | P10: =O10/$Q$4 -> 0.02631578947 | Q10: =IF(P10=0,0,(P10*((LOG(P10))/LOG(2)))) -> -0.1381033556 | T10: =N10 -> 22 | U10: =COUNTIF(L7:L19,T10) -> 0 | V10: =U10/(W4-U8) -> 0 | W10: =IF(V10=0,0,(V10*((LOG(V10))/LOG(2)))) -> 0 | Y10: =N10 -> 22 | Z10: =COUNTIF(L20:L31,Y10) -> 1 | AA10: =Z10/(AB4-Z8) -> 0.1428571429 | AB10: =IF(AA10=0,0,(AA10*((LOG(AA10))/LOG(2)))) -> -0.4010507032 | AD10: =N10 -> 22 | AE10: =COUNTIF(L32:L44,AD10) -> 0 | AF10: =AE10/(AG4-AE8) -> 0 | AG10: =IF(AF10=0,0,(AF10*((LOG(AF10))/LOG(2)))) -> 0 | AI10: =N10 -> 22 | AJ10: =COUNTIF(L45:L57,AI10) -> 0 | AK10: =AJ10/(AL4-AJ8) -> 0 | AL10: =IF(AK10=0,0,(AK10*((LOG(AK10))/LOG(2)))) -> 0 | AN10: =N10 -> 22 | AO10: =COUNTIF(L58:L69,AN10) -> 0 | AP10: =AO10/(AQ4-AO8) -> 0 | AQ10: =IF(AP10=0,0,(AP10*((LOG(AP10))/LOG(2)))) -> 0 | AS10: =N10 -> 22 | AT10: =COUNTIF(L70:L82,AS10) -> 1 | AU10: =AT10/(AV4-AT8) -> 0.1428571429 | AV10: =IF(AU10=0,0,(AU10*((LOG(AU10))/LOG(2)))) -> -0.4010507032
A11: 22 | B11: 443 | C11: 14 | D11: 452 | K11: 0 | L11: 21 | T11: =N11 -> 0 | U11: =COUNTIF(L7:L19,T11) -> 0 | V11: =U11/(W4-U8) -> 0 | W11: =IF(V11=0,0,(V11*((LOG(V11))/LOG(2)))) -> 0 | Y11: =N11 -> 0 | Z11: =COUNTIF(L20:L31,Y11) -> 0 | AA11: =Z11/(AB4-Z8) -> 0 | AB11: =IF(AA11=0,0,(AA11*((LOG(AA11))/LOG(2)))) -> 0 | AD11: =N11 -> 0 | AE11: =COUNTIF(L32:L44,AD11) -> 0 | AF11: =AE11/(AG4-AE8) -> 0 | AG11: =IF(AF11=0,0,(AF11*((LOG(AF11))/LOG(2)))) -> 0 | AI11: =N11 -> 0 | AJ11: =COUNTIF(L45:L57,AI11) -> 0 | AK11: =AJ11/(AL4-AJ8) -> 0 | AL11: =IF(AK11=0,0,(AK11*((LOG(AK11))/LOG(2)))) -> 0 | AN11: =N11 -> 0 | AO11: =COUNTIF(L58:L69,AN11) -> 0 | AP11: =AO11/(AQ4-AO8) -> 0 | AQ11: =IF(AP11=0,0,(AP11*((LOG(AP11))/LOG(2)))) -> 0 | AS11: =N11 -> 0 | AT11: =COUNTIF(L70:L82,AS11) -> 0 | AU11: =AT11/(AV4-AT8) -> 0 | AV11: =IF(AU11=0,0,(AU11*((LOG(AU11))/LOG(2)))) -> 0
A12: 11 | B12: 565 | C12: 21 | D12: 575 | K12: 0 | L12: 12 | T12: =N12 -> 0 | U12: =COUNTIF(L7:L19,T12) -> 0 | V12: =U12/(W4-U8) -> 0 | W12: =IF(V12=0,0,(V12*((LOG(V12))/LOG(2)))) -> 0 | Y12: =N12 -> 0 | Z12: =COUNTIF(L20:L31,Y12) -> 0 | AA12: =Z12/(AB4-Z8) -> 0 | AB12: =IF(AA12=0,0,(AA12*((LOG(AA12))/LOG(2)))) -> 0 | AD12: =N12 -> 0 | AE12: =COUNTIF(L32:L44,AD12) -> 0 | AF12: =AE12/(AG4-AE8) -> 0 | AG12: =IF(AF12=0,0,(AF12*((LOG(AF12))/LOG(2)))) -> 0 | AI12: =N12 -> 0 | AJ12: =COUNTIF(L45:L57,AI12) -> 0 | AK12: =AJ12/(AL4-AJ8) -> 0 | AL12: =IF(AK12=0,0,(AK12*((LOG(AK12))/LOG(2)))) -> 0 | AN12: =N12 -> 0 | AO12: =COUNTIF(L58:L69,AN12) -> 0 | AP12: =AO12/(AQ4-AO8) -> 0 | AQ12: =IF(AP12=0,0,(AP12*((LOG(AP12))/LOG(2)))) -> 0 | AS12: =N12 -> 0 | AT12: =COUNTIF(L70:L82,AS12) -> 0 | AU12: =AT12/(AV4-AT8) -> 0 | AV12: =IF(AU12=0,0,(AU12*((LOG(AU12))/LOG(2)))) -> 0
A13: 22 | B13: 670 | C13: 14 | D13: 678 | K13: 0 | L13: 21 | T13: =N13 -> 0 | U13: =COUNTIF(L7:L19,T13) -> 0 | V13: =U13/(W4-U8) -> 0 | W13: =IF(V13=0,0,(V13*((LOG(V13))/LOG(2)))) -> 0 | Y13: =N13 -> 0 | Z13: =COUNTIF(L20:L31,Y13) -> 0 | AA13: =Z13/(AB4-Z8) -> 0 | AB13: =IF(AA13=0,0,(AA13*((LOG(AA13))/LOG(2)))) -> 0 | AD13: =N13 -> 0 | AE13: =COUNTIF(L32:L44,AD13) -> 0 | AF13: =AE13/(AG4-AE8) -> 0 | AG13: =IF(AF13=0,0,(AF13*((LOG(AF13))/LOG(2)))) -> 0 | AI13: =N13 -> 0 | AJ13: =COUNTIF(L45:L57,AI13) -> 0 | AK13: =AJ13/(AL4-AJ8) -> 0 | AL13: =IF(AK13=0,0,(AK13*((LOG(AK13))/LOG(2)))) -> 0 | AN13: =N13 -> 0 | AO13: =COUNTIF(L58:L69,AN13) -> 0 | AP13: =AO13/(AQ4-AO8) -> 0 | AQ13: =IF(AP13=0,0,(AP13*((LOG(AP13))/LOG(2)))) -> 0 | AS13: =N13 -> 0 | AT13: =COUNTIF(L70:L82,AS13) -> 0 | AU13: =AT13/(AV4-AT8) -> 0 | AV13: =IF(AU13=0,0,(AU13*((LOG(AU13))/LOG(2)))) -> 0
A14: 22 | B14: 774 | C14: 14 | D14: 781 | K14: 0 | L14: 21 | T14: =N14 -> 0 | U14: =COUNTIF(L7:L19,T14) -> 0 | V14: =U14/(W4-U8) -> 0 | W14: =IF(V14=0,0,(V14*((LOG(V14))/LOG(2)))) -> 0 | Y14: =N14 -> 0 | Z14: =COUNTIF(L20:L31,Y14) -> 0 | AA14: =Z14/(AB4-Z8) -> 0 | AB14: =IF(AA14=0,0,(AA14*((LOG(AA14))/LOG(2)))) -> 0 | AD14: =N14 -> 0 | AE14: =COUNTIF(L32:L44,AD14) -> 0 | AF14: =AE14/(AG4-AE8) -> 0 | AG14: =IF(AF14=0,0,(AF14*((LOG(AF14))/LOG(2)))) -> 0 | AI14: =N14 -> 0 | AJ14: =COUNTIF(L45:L57,AI14) -> 0 | AK14: =AJ14/(AL4-AJ8) -> 0 | AL14: =IF(AK14=0,0,(AK14*((LOG(AK14))/LOG(2)))) -> 0 | AN14: =N14 -> 0 | AO14: =COUNTIF(L58:L69,AN14) -> 0 | AP14: =AO14/(AQ4-AO8) -> 0 | AQ14: =IF(AP14=0,0,(AP14*((LOG(AP14))/LOG(2)))) -> 0 | AS14: =N14 -> 0 | AT14: =COUNTIF(L70:L82,AS14) -> 0 | AU14: =AT14/(AV4-AT8) -> 0 | AV14: =IF(AU14=0,0,(AU14*((LOG(AU14))/LOG(2)))) -> 0
A15: 11 | B15: 887 | C15: 21 | D15: 921 | K15: 0 | L15: 12 | P15: =SUM(P7:P14) -> 1 | Q15: =-SUM(Q7:Q14) -> 1.519979909 | V15: =SUM(V7:V14) -> 1 | W15: =-SUM(W7:W14) -> 0 | AA15: =SUM(AA7:AA14) -> 1 | AB15: =-SUM(AB7:AB14) -> 1.148834854 | AF15: =SUM(AF7:AF14) -> 1 | AG15: =-SUM(AG7:AG14) -> 0.9182958341 | AK15: =SUM(AK7:AK14) -> 1 | AL15: =-SUM(AL7:AL14) -> 0.6500224216 | AP15: =SUM(AP7:AP14) -> 1 | AQ15: =-SUM(AQ7:AQ14) -> 0.7219280949 | AU15: =SUM(AU7:AU14) -> 1 | AV15: =-SUM(AV7:AV14) -> 1.448815636
A16: 22 | B16: 1017 | C16: 14 | D16: 1025 | K16: 0 | L16: 21 | P16: U= | Q16: =Q15/(LOG(Q4)/LOG(2)) -> 0.2432774558 | V16: U1= | W16: =W15/(LOG(W4)/LOG(2)) -> 0 | AA16: U2= | AB16: =AB15/(LOG(AB4)/LOG(2)) -> 0.3204593783 | AF16: U3= | AG16: =AG15/(LOG(AG4)/LOG(2)) -> 0.2481585714 | AK16: U4= | AL16: =AL15/(LOG(AL4)/LOG(2)) -> 0.1756608596 | AP16: U5= | AQ16: =AQ15/(LOG(AQ4)/LOG(2)) -> 0.2013767493 | AU16: U6= | AV16: =AV15/(LOG(AV4)/LOG(2)) -> 0.3915252635
A17: 11 | B17: 1131 | C17: 21 | D17: 1185 | K17: 0 | L17: 12
A18: 22 | B18: 1277 | C18: 14 | D18: 1285 | K18: 0 | L18: 21
A19: 22 | B19: 1382 | C19: 14 | D19: 1401 | K19: 0 | L19: 21 | N19: Total Target Seq
A20: 11 | B20: 1510 | C20: 12 | D20: 1533 | K20: 0 | L20: 11 | N20: =COUNTIF(L7:L82,G3) -> 36 | P20: 13 | Q20: 12 | R20: 13 | S20: 13 | T20: 12 | U20: 13
A21: 11 | B21: 1646 | C21: 21 | D21: 1662 | K21: 0 | L21: 12 | P21: % of reinforcement given in 6 equal intervals based on number of trials
A22: 11 | B22: 1768 | C22: 21 | D22: 1798 | K22: 0 | L22: 12 | P22: %_1 | Q22: %_2 | R22: %_3 | S22: %_4 | T22: %_5 | U22: %_6
A23: 11 | B23: 1899 | C23: 21 | D23: 1911 | K23: 0 | L23: 12 | O23: target sequence | P23: =$G$3 -> 12 | Q23: =$G$3 -> 12 | R23: =$G$3 -> 12 | S23: =$G$3 -> 12 | T23: =$G$3 -> 12 | U23: =$G$3 -> 12
A24: 22 | B24: 2005 | C24: 14 | D24: 2016 | K24: 0 | L24: 21 | O24: total reinforcement | P24: =U8 -> 4 | Q24: =Z8 -> 5 | R24: =AE8 -> 7 | S24: =AJ8 -> 7 | T24: =AO8 -> 7 | U24: =AT8 -> 6
A25: 22 | B25: 2117 | C25: 14 | D25: 2125 | K25: 0 | L25: 21 | O25: % target
A26: 11 | B26: 2249 | C26: 21 | D26: 2297 | K26: 0 | L26: 12 | O26: CCRF
A27: 22 | B27: 2389 | C27: 14 | D27: 2411 | K27: 0 | L27: 21 | O27: % CCRf
A28: 11 | B28: 2524 | C28: 21 | D28: 2544 | K28: 0 | L28: 12 | O28: average response rate | P28: =D19/P20 -> 107.7692308 | Q28: =(D31-D19)/Q20 -> 121.4166667 | R28: =(D44-D31)/R20 -> 124.0769231 | S28: =(D57-D44)/S20 -> 121.3076923 | T28: =(D69-D57)/T20 -> 159.25 | U28: =(D82-D69)/U20 -> 177.6153846
A29: 22 | B29: 2640 | C29: 14 | D29: 2647 | K29: 0 | L29: 21
A30: 22 | B30: 2740 | C30: 23 | D30: 2752 | K30: 0 | L30: 22
A31: 22 | B31: 2849 | C31: 14 | D31: 2858 | K31: 0 | L31: 21
A32: 11 | B32: 2970 | C32: 21 | D32: 3020 | K32: 0 | L32: 12
A33: 11 | B33: 3124 | C33: 21 | D33: 3145 | K33: 0 | L33: 12
A34: 11 | B34: 3248 | C34: 21 | D34: 3267 | K34: 0 | L34: 12
A35: 11 | B35: 3368 | C35: 12 | D35: 3387 | K35: 0 | L35: 11
A36: 22 | B36: 3490 | C36: 14 | D36: 3497 | K36: 0 | L36: 21
A37: 22 | B37: 3600 | C37: 14 | D37: 3608 | K37: 0 | L37: 21
A38: 11 | B38: 3716 | C38: 12 | D38: 3742 | K38: 0 | L38: 11
A39: 11 | B39: 3851 | C39: 21 | D39: 3889 | K39: 0 | L39: 12
A40: 11 | B40: 3990 | C40: 21 | D40: 4035 | K40: 0 | L40: 12
A41: 22 | B41: 4131 | C41: 14 | D41: 4139 | K41: 0 | L41: 21
A42: 11 | B42: 4247 | C42: 21 | D42: 4255 | K42: 0 | L42: 12
A43: 11 | B43: 4357 | C43: 21 | D43: 4372 | K43: 0 | L43: 12
A44: 22 | B44: 4464 | C44: 14 | D44: 4471 | K44: 0 | L44: 21
A45: 11 | B45: 4580 | C45: 21 | D45: 4587 | K45: 0 | L45: 12
A46: 11 | B46: 4712 | C46: 21 | D46: 4755 | K46: 0 | L46: 12
A47: 11 | B47: 4864 | C47: 21 | D47: 4872 | K47: 0 | L47: 12
A48: 11 | B48: 4973 | C48: 21 | D48: 4999 | K48: 0 | L48: 12
A49: 22 | B49: 5097 | C49: 14 | D49: 5104 | K49: 0 | L49: 21
A50: 11 | B50: 5209 | C50: 21 | D50: 5218 | K50: 0 | L50: 12
A51: 11 | B51: 5321 | C51: 21 | D51: 5370 | K51: 0 | L51: 12
A52: 22 | B52: 5472 | C52: 14 | D52: 5479 | K52: 0 | L52: 21
A53: 22 | B53: 5579 | C53: 14 | D53: 5586 | K53: 0 | L53: 21
A54: 11 | B54: 5694 | C54: 21 | D54: 5709 | K54: 0 | L54: 12
A55: 11 | B55: 5813 | C55: 12 | D55: 5829 | K55: 0 | L55: 11
A56: 22 | B56: 5926 | C56: 14 | D56: 5934 | K56: 0 | L56: 21
A57: 22 | B57: 6043 | C57: 14 | D57: 6048 | K57: 0 | L57: 21
A58: 22 | B58: 6150 | C58: 14 | D58: 6157 | K58: 0 | L58: 21
A59: 11 | B59: 6310 | C59: 21 | D59: 6338 | K59: 0 | L59: 12
A60: 22 | B60: 6436 | C60: 14 | D60: 6443 | K60: 0 | L60: 21
A61: 11 | B61: 6622 | C61: 21 | D61: 6672 | K61: 0 | L61: 12
A62: 11 | B62: 6788 | C62: 21 | D62: 6834 | K62: 0 | L62: 12
A63: 11 | B63: 6936 | C63: 12 | D63: 6955 | K63: 0 | L63: 11
A64: 22 | B64: 7111 | C64: 14 | D64: 7120 | K64: 0 | L64: 21
A65: 11 | B65: 7322 | C65: 21 | D65: 7363 | K65: 0 | L65: 12
A66: 11 | B66: 7509 | C66: 21 | D66: 7517 | K66: 0 | L66: 12
A67: 11 | B67: 7623 | C67: 21 | D67: 7637 | K67: 0 | L67: 12
A68: 22 | B68: 7736 | C68: 14 | D68: 7743 | K68: 0 | L68: 21
A69: 11 | B69: 7945 | C69: 21 | D69: 7959 | K69: 0 | L69: 12
A70: 11 | B70: 8090 | C70: 21 | D70: 8146 | K70: 0 | L70: 12
A71: 11 | B71: 8257 | C71: 21 | D71: 8284 | K71: 0 | L71: 12
A72: 22 | B72: 8385 | C72: 14 | D72: 8391 | K72: 0 | L72: 21
A73: 22 | B73: 8517 | C73: 23 | D73: 8537 | K73: 0 | L73: 22
A74: 11 | B74: 8755 | C74: 21 | D74: 8785 | K74: 0 | L74: 12
A75: 11 | B75: 8886 | C75: 21 | D75: 8894 | K75: 0 | L75: 12
A76: 22 | B76: 9416 | C76: 14 | D76: 9428 | K76: 0 | L76: 21
A77: 11 | B77: 9536 | C77: 21 | D77: 9558 | K77: 0 | L77: 12
A78: 11 | B78: 9672 | C78: 21 | D78: 9690 | K78: 0 | L78: 12
A79: 11 | B79: 9795 | C79: 12 | D79: 9814 | K79: 0 | L79: 11
A80: 11 | B80: 9955 | C80: 12 | D80: 9973 | K80: 0 | L80: 11
A81: 22 | B81: 10086 | C81: 14 | D81: 10106 | K81: 0 | L81: 21
A82: 11 | B82: 10261 | C82: 12 | D82: 10268 | K82: 1 | L82: 11

Sheet !N212940.095
A1: Report for:!N212940.095
A2: Date: | B2: <date>
A3: Hen: | B3: <hen> | F3: Correct Sequence | G3: =Start!J2 -> 12 | P3: Total Sequences in Data | Q3: =4994-COUNTBLANK(L7:L5000) -> 81 | V3: Total Sequences in Block Data | W3: =COUNTA(L7:L20) -> 14 | AA3: Total Sequences in Block Data | AB3: =COUNTA(L21:L33) -> 13 | AF3: Total Sequences in Block Data | AG3: =COUNTA(L34:L47) -> 14 | AK3: Total Sequences in Block Data | AL3: =COUNTA(L48:L60) -> 13 | AP3: Total Sequences in Block Data | AQ3: =COUNTA(L61:L74) -> 14 | AU3: Total Sequences in Block Data | AV3: =COUNTA(L75:L87) -> 13
P4: Total Sequences in Summary | Q4: =SUM(O7:O14) -> 81 | V4: Total Sequences in Block Summary | W4: =SUM(U7:U14) -> 14 | AA4: Total Sequences in Block Summary | AB4: =SUM(Z7:Z14) -> 13 | AF4: Total Sequences in Block Summary | AG4: =SUM(AE7:AE14) -> 14 | AK4: Total Sequences in Block Summary | AL4: =SUM(AJ7:AJ14) -> 13 | AP4: Total Sequences in Block Summary | AQ4: =SUM(AO7:AO14) -> 14 | AU4: Total Sequences in Block Summary | AV4: =SUM(AT7:AT14) -> 13
T5: Block 1 | Y5: Block 2 | AD5: Block 3 | AI5: Block 4 | AN5: Block 5 | AS5: Block 6
A6: Sequence Component 1 | B6: Time 1 | C6: Sequence Component 2 | D6: Time 2 | E6: Sequence Component 3 | F6: Time 3 | G6: Sequence Component 4 | H6: Time 4 | I6: Sequence Component 5 | J6: Time 5 | K6: Correct? 0=No 1=Yes | L6: Sequence | N6: Frequency | P6: Relative Frequency | Q6: Variability | T6: Frequency | V6: Relative Frequency | W6: Variability | Y6: Frequency | AA6: Relative Frequency | AB6: Variability | AD6: Frequency | AF6: Relative Frequency | AG6: Variability | AI6: Frequency | AK6: Relative Frequency | AL6: Variability | AN6: Frequency | AP6: Relative Frequency | AQ6: Variability | AS6: Frequency | AU6: Relative Frequency | AV6: Variability
A7: 11 | B7: 23 | C7: 21 | D7: 44 | K7: 0 | L7: 12 | N7: 11 | O7: =COUNTIF($L$7:$L$500,N7) -> 8 | P7: =O7/$Q$4 -> 0.0987654321 | Q7: =IF(P7=0,0,(P7*((LOG(P7))/LOG(2)))) -> -0.3298617287 | T7: =N7 -> 11 | U7: =COUNTIF(L7:L20,T7) -> 1 | V7: =U7/(W4-U8) -> 0.1428571429 | W7: =IF(V7=0,0,(V7*((LOG(V7))/LOG(2)))) -> -0.4010507032 | Y7: =N7 -> 11 | Z7: =COUNTIF(L21:L33,Y7) -> 0 | AA7: =Z7/(AB4-Z8) -> 0 | AB7: =IF(AA7=0,0,(AA7*((LOG(AA7))/LOG(2)))) -> 0 | AD7: =N7 -> 11 | AE7: =COUNTIF(L34:L47,AD7) -> 0 | AF7: =AE7/(AG4-AE8) -> 0 | AG7: =IF(AF7=0,0,(AF7*((LOG(AF7))/LOG(2)))) -> 0 | AI7: =N7 -> 11 | AJ7: =COUNTIF(L48:L60,AI7) -> 0 | AK7: =AJ7/(AL4-AJ8) -> 0 | AL7: =IF(AK7=0,0,(AK7*((LOG(AK7))/LOG(2)))) -> 0 | AN7: =N7 -> 11 | AO7: =COUNTIF(L61:L74,AN7) -> 2 | AP7: =AO7/(AQ4-AO8) -> 0.2222222222 | AQ7: =IF(AP7=0,0,(AP7*((LOG(AP7))/LOG(2)))) -> -0.4822055559 | AS7: =N7 -> 11 | AT7: =COUNTIF(L75:L87,AS7) -> 5 | AU7: =AT7/(AV4-AT8) -> 0.625 | AV7: =IF(AU7=0,0,(AU7*((LOG(AU7))/LOG(2)))) -> -0.4237949407
A8: 22 | B8: 140 | C8: 14 | D8: 147 | K8: 0 | L8: 21 | N8: 12 | O8: =COUNTIF($L$7:$L$500,N8) -> 35 | P8: =O8/$Q$4 -> 0.4320987654 | Q8: =IF(P8=0,0,(P8*((LOG(P8))/LOG(2)))) -> -0.5230845001 | T8: =N8 -> 12 | U8: =COUNTIF(L7:L20,T8) -> 7 | Y8: =N8 -> 12 | Z8: =COUNTIF(L21:L33,Y8) -> 6 | AD8: =N8 -> 12 | AE8: =COUNTIF(L34:L47,AD8) -> 6 | AI8: =N8 -> 12 | AJ8: =COUNTIF(L48:L60,AI8) -> 6 | AN8: =N8 -> 12 | AO8: =COUNTIF(L61:L74,AN8) -> 5 | AS8: =N8 -> 12 | AT8: =COUNTIF(L75:L87,AS8) -> 5
A9: 11 | B9: 257 | C9: 21 | D9: 284 | K9: 0 | L9: 12 | N9: 21 | O9: =COUNTIF($L$7:$L$500,N9) -> 28 | P9: =O9/$Q$4 -> 0.3456790123 | Q9: =IF(P9=0,0,(P9*((LOG(P9))/LOG(2)))) -> -0.529751386 | T9: =N9 -> 21 | U9: =COUNTIF(L7:L20,T9) -> 6 | V9: =U9/(W4-U8) -> 0.8571428571 | W9: =IF(V9=0,0,(V9*((LOG(V9))/LOG(2)))) -> -0.1906220754 | Y9: =N9 -> 21 | Z9: =COUNTIF(L21:L33,Y9) -> 6 | AA9: =Z9/(AB4-Z8) -> 0.8571428571 | AB9: =IF(AA9=0,0,(AA9*((LOG(AA9))/LOG(2)))) -> -0.1906220754 | AD9: =N9 -> 21 | AE9: =COUNTIF(L34:L47,AD9) -> 6 | AF9: =AE9/(AG4-AE8) -> 0.75 | AG9: =IF(AF9=0,0,(AF9*((LOG(AF9))/LOG(2)))) -> -0.3112781245 | AI9: =N9 -> 21 | AJ9: =COUNTIF(L48:L60,AI9) -> 4 | AK9: =AJ9/(AL4-AJ8) -> 0.5714285714 | AL9: =IF(AK9=0,0,(AK9*((LOG(AK9))/LOG(2)))) -> -0.4613456697 | AN9: =N9 -> 21 | AO9: =COUNTIF(L61:L74,AN9) -> 5 | AP9: =AO9/(AQ4-AO8) -> 0.5555555556 | AQ9: =IF(AP9=0,0,(AP9*((LOG(AP9))/LOG(2)))) -> -0.4711093925 | AS9: =N9 -> 21 | AT9: =COUNTIF(L75:L87,AS9) -> 1 | AU9: =AT9/(AV4-AT8) -> 0.125 | AV9: =IF(AU9=0,0,(AU9*((LOG(AU9))/LOG(2)))) -> -0.375
A10: 11 | B10: 387 | C10: 21 | D10: 446 | K10: 0 | L10: 12 | N10: 22 | O10: =COUNTIF($L$7:$L$500,N10) -> 10 | P10: =O10/$Q$4 -> 0.1234567901 | Q10: =IF(P10=0,0,(P10*((LOG(P10))/LOG(2)))) -> -0.3725829516 | T10: =N10 -> 22 | U10: =COUNTIF(L7:L20,T10) -> 0 | V10: =U10/(W4-U8) -> 0 | W10: =IF(V10=0,0,(V10*((LOG(V10))/LOG(2)))) -> 0 | Y10: =N10 -> 22 | Z10: =COUNTIF(L21:L33,Y10) -> 1 | AA10: =Z10/(AB4-Z8) -> 0.1428571429 | AB10: =IF(AA10=0,0,(AA10*((LOG(AA10))/LOG(2)))) -> -0.4010507032 | AD10: =N10 -> 22 | AE10: =COUNTIF(L34:L47,AD10) -> 2 | AF10: =AE10/(AG4-AE8) -> 0.25 | AG10: =IF(AF10=0,0,(AF10*((LOG(AF10))/LOG(2)))) -> -0.5 | AI10: =N10 -> 22 | AJ10: =COUNTIF(L48:L60,AI10) -> 3 | AK10: =AJ10/(AL4-AJ8) -> 0.4285714286 | AL10: =IF(AK10=0,0,(AK10*((LOG(AK10))/LOG(2)))) -> -0.5238824663 | AN10: =N10 -> 22 | AO10: =COUNTIF(L61:L74,AN10) -> 2 | AP10: =AO10/(AQ4-AO8) -> 0.2222222222 | AQ10: =IF(AP10=0,0,(AP10*((LOG(AP10))/LOG(2)))) -> -0.4822055559 | AS10: =N10 -> 22 | AT10: =COUNTIF(L75:L87,AS10) -> 2 | AU10: =AT10/(AV4-AT8) -> 0.25 | AV10: =IF(AU10=0,0,(AU10*((LOG(AU10))/LOG(2)))) -> -0.5
A11: 11 | B11: 546 | C11: 12 | D11: 565 | K11: 0 | L11: 11 | T11: =N11 -> 0 | U11: =COUNTIF(L7:L20,T11) -> 0 | V11: =U11/(W4-U8) -> 0 | W11: =IF(V11=0,0,(V11*((LOG(V11))/LOG(2)))) -> 0 | Y11: =N11 -> 0 | Z11: =COUNTIF(L21:L33,Y11) -> 0 | AA11: =Z11/(AB4-Z8) -> 0 | AB11: =IF(AA11=0,0,(AA11*((LOG(AA11))/LOG(2)))) -> 0 | AD11: =N11 -> 0 | AE11: =COUNTIF(L34:L47,AD11) -> 0 | AF11: =AE11/(AG4-AE8) -> 0 | AG11: =IF(AF11=0,0,(AF11*((LOG(AF11))/LOG(2)))) -> 0 | AI11: =N11 -> 0 | AJ11: =COUNTIF(L48:L60,AI11) -> 0 | AK11: =AJ11/(AL4-AJ8) -> 0 | AL11: =IF(AK11=0,0,(AK11*((LOG(AK11))/LOG(2)))) -> 0 | AN11: =N11 -> 0 | AO11: =COUNTIF(L61:L74,AN11) -> 0 | AP11: =AO11/(AQ4-AO8) -> 0 | AQ11: =IF(AP11=0,0,(AP11*((LOG(AP11))/LOG(2)))) -> 0 | AS11: =N11 -> 0 | AT11: =COUNTIF(L75:L87,AS11) -> 0 | AU11: =AT11/(AV4-AT8) -> 0 | AV11: =IF(AU11=0,0,(AU11*((LOG(AU11))/LOG(2)))) -> 0
A12: 22 | B12: 666 | C12: 14 | D12: 674 | K12: 0 | L12: 21 | T12: =N12 -> 0 | U12: =COUNTIF(L7:L20,T12) -> 0 | V12: =U12/(W4-U8) -> 0 | W12: =IF(V12=0,0,(V12*((LOG(V12))/LOG(2)))) -> 0 | Y12: =N12 -> 0 | Z12: =COUNTIF(L21:L33,Y12) -> 0 | AA12: =Z12/(AB4-Z8) -> 0 | AB12: =IF(AA12=0,0,(AA12*((LOG(AA12))/LOG(2)))) -> 0 | AD12: =N12 -> 0 | AE12: =COUNTIF(L34:L47,AD12) -> 0 | AF12: =AE12/(AG4-AE8) -> 0 | AG12: =IF(AF12=0,0,(AF12*((LOG(AF12))/LOG(2)))) -> 0 | AI12: =N12 -> 0 | AJ12: =COUNTIF(L48:L60,AI12) -> 0 | AK12: =AJ12/(AL4-AJ8) -> 0 | AL12: =IF(AK12=0,0,(AK12*((LOG(AK12))/LOG(2)))) -> 0 | AN12: =N12 -> 0 | AO12: =COUNTIF(L61:L74,AN12) -> 0 | AP12: =AO12/(AQ4-AO8) -> 0 | AQ12: =IF(AP12=0,0,(AP12*((LOG(AP12))/LOG(2)))) -> 0 | AS12: =N12 -> 0 | AT12: =COUNTIF(L75:L87,AS12) -> 0 | AU12: =AT12/(AV4-AT8) -> 0 | AV12: =IF(AU12=0,0,(AU12*((LOG(AU12))/LOG(2)))) -> 0
A13: 22 | B13: 773 | C13: 14 | D13: 781 | K13: 0 | L13: 21 | T13: =N13 -> 0 | U13: =COUNTIF(L7:L20,T13) -> 0 | V13: =U13/(W4-U8) -> 0 | W13: =IF(V13=0,0,(V13*((LOG(V13))/LOG(2)))) -> 0 | Y13: =N13 -> 0 | Z13: =COUNTIF(L21:L33,Y13) -> 0 | AA13: =Z13/(AB4-Z8) -> 0 | AB13: =IF(AA13=0,0,(AA13*((LOG(AA13))/LOG(2)))) -> 0 | AD13: =N13 -> 0 | AE13: =COUNTIF(L34:L47,AD13) -> 0 | AF13: =AE13/(AG4-AE8) -> 0 | AG13: =IF(AF13=0,0,(AF13*((LOG(AF13))/LOG(2)))) -> 0 | AI13: =N13 -> 0 | AJ13: =COUNTIF(L48:L60,AI13) -> 0 | AK13: =AJ13/(AL4-AJ8) -> 0 | AL13: =IF(AK13=0,0,(AK13*((LOG(AK13))/LOG(2)))) -> 0 | AN13: =N13 -> 0 | AO13: =COUNTIF(L61:L74,AN13) -> 0 | AP13: =AO13/(AQ4-AO8) -> 0 | AQ13: =IF(AP13=0,0,(AP13*((LOG(AP13))/LOG(2)))) -> 0 | AS13: =N13 -> 0 | AT13: =COUNTIF(L75:L87,AS13) -> 0 | AU13: =AT13/(AV4-AT8) -> 0 | AV13: =IF(AU13=0,0,(AU13*((LOG(AU13))/LOG(2)))) -> 0
A14: 11 | B14: 888 | C14: 21 | D14: 924 | K14: 0 | L14: 12 | T14: =N14 -> 0 | U14: =COUNTIF(L7:L20,T14) -> 0 | V14: =U14/(W4-U8) -> 0 | W14: =IF(V14=0,0,(V14*((LOG(V14))/LOG(2)))) -> 0 | Y14: =N14 -> 0 | Z14: =COUNTIF(L21:L33,Y14) -> 0 | AA14: =Z14/(AB4-Z8) -> 0 | AB14: =IF(AA14=0,0,(AA14*((LOG(AA14))/LOG(2)))) -> 0 | AD14: =N14 -> 0 | AE14: =COUNTIF(L34:L47,AD14) -> 0 | AF14: =AE14/(AG4-AE8) -> 0 | AG14: =IF(AF14=0,0,(AF14*((LOG(AF14))/LOG(2)))) -> 0 | AI14: =N14 -> 0 | AJ14: =COUNTIF(L48:L60,AI14) -> 0 | AK14: =AJ14/(AL4-AJ8) -> 0 | AL14: =IF(AK14=0,0,(AK14*((LOG(AK14))/LOG(2)))) -> 0 | AN14: =N14 -> 0 | AO14: =COUNTIF(L61:L74,AN14) -> 0 | AP14: =AO14/(AQ4-AO8) -> 0 | AQ14: =IF(AP14=0,0,(AP14*((LOG(AP14))/LOG(2)))) -> 0 | AS14: =N14 -> 0 | AT14: =COUNTIF(L75:L87,AS14) -> 0 | AU14: =AT14/(AV4-AT8) -> 0 | AV14: =IF(AU14=0,0,(AU14*((LOG(AU14))/LOG(2)))) -> 0
A15: 11 | B15: 1023 | C15: 21 | D15: 1036 | K15: 0 | L15: 12 | P15: =SUM(P7:P14) -> 1 | Q15: =-SUM(Q7:Q14) -> 1.755280566 | V15: =SUM(V7:V14) -> 1 | W15: =-SUM(W7:W14) -> 0.5916727786 | AA15: =SUM(AA7:AA14) -> 1 | AB15: =-SUM(AB7:AB14) -> 0.5916727786 | AF15: =SUM(AF7:AF14) -> 1 | AG15: =-SUM(AG7:AG14) -> 0.8112781245 | AK15: =SUM(AK7:AK14) -> 1 | AL15: =-SUM(AL7:AL14) -> 0.985228136 | AP15: =SUM(AP7:AP14) -> 1 | AQ15: =-SUM(AQ7:AQ14) -> 1.435520504 | AU15: =SUM(AU7:AU14) -> 1 | AV15: =-SUM(AV7:AV14) -> 1.298794941
A16: 22 | B16: 1129 | C16: 14 | D16: 1137 | K16: 0 | L16: 21 | P16: U= | Q16: =Q15/(LOG(Q4)/LOG(2)) -> 0.2768646838 | V16: U1= | W16: =W15/(LOG(W4)/LOG(2)) -> 0.1554025802 | AA16: U2= | AB16: =AB15/(LOG(AB4)/LOG(2)) -> 0.1598925597 | AF16: U3= | AG16: =AG15/(LOG(AG4)/LOG(2)) -> 0.2130818222 | AK16: U4= | AL16: =AL15/(LOG(AL4)/LOG(2)) -> 0.2662462332 | AP16: U5= | AQ16: =AQ15/(LOG(AQ4)/LOG(2)) -> 0.377038793 | AU16: U6= | AV16: =AV15/(LOG(AV4)/LOG(2)) -> 0.3509839478
A17: 11 | B17: 1245 | C17: 21 | D17: 1260 | K17: 0 | L17: 12
A18: 22 | B18: 1351 | C18: 14 | D18: 1359 | K18: 0 | L18: 21
A19: 11 | B19: 1458 | C19: 21 | D19: 1513 | K19: 0 | L19: 12 | N19: Total Target Seq
A20: 22 | B20: 1611 | C20: 14 | D20: 1618 | K20: 0 | L20: 21 | N20: =COUNTIF(L7:L87,G3) -> 35 | P20: 14 | Q20: 13 | R20: 14 | S20: 13 | T20: 14 | U20: 13
A21: 22 | B21: 1717 | C21: 14 | D21: 1738 | K21: 0 | L21: 21 | P21: % of reinforcement given in 6 equal intervals based on number of trials
A22: 22 | B22: 1835 | C22: 14 | D22: 1842 | K22: 0 | L22: 21 | P22: %_1 | Q22: %_2 | R22: %_3 | S22: %_4 | T22: %_5 | U22: %_6
A23: 22 | B23: 1945 | C23: 14 | D23: 1959 | K23: 0 | L23: 21 | O23: target sequence | P23: =$G$3 -> 12 | Q23: =$G$3 -> 12 | R23: =$G$3 -> 12 | S23: =$G$3 -> 12 | T23: =$G$3 -> 12 | U23: =$G$3 -> 12
A24: 11 | B24: 2066 | C24: 21 | D24: 2107 | K24: 0 | L24: 12 | O24: total reinforcement | P24: =U8 -> 7 | Q24: =Z8 -> 6 | R24: =AE8 -> 6 | S24: =AJ8 -> 6 | T24: =AO8 -> 5 | U24: =AT8 -> 5
A25: 11 | B25: 2227 | C25: 21 | D25: 2254 | K25: 0 | L25: 12 | O25: % target
A26: 11 | B26: 2369 | C26: 21 | D26: 2402 | K26: 0 | L26: 12 | O26: CCRF
A27: 11 | B27: 2501 | C27: 21 | D27: 2509 | K27: 0 | L27: 12 | O27: % CCRf
A28: 22 | B28: 2600 | C28: 23 | D28: 2625 | K28: 0 | L28: 22 | O28: average response rate | P28: =D20/P20 -> 115.5714286 | Q28: =(D33-D20)/Q20 -> 121.4615385 | R28: =(D47-D33)/R20 -> 117.8571429 | S28: =(D60-D47)/S20 -> 124.1538462 | T28: =(D74-D60)/T20 -> 228.2857143 | U28: =(D87-D74)/U20 -> 175.0769231
A29: 22 | B29: 2745 | C29: 14 | D29: 2754 | K29: 0 | L29: 21
A30: 22 | B30: 2852 | C30: 14 | D30: 2861 | K30: 0 | L30: 21
A31: 11 | B31: 2968 | C31: 21 | D31: 2982 | K31: 0 | L31: 12
A32: 11 | B32: 3085 | C32: 21 | D32: 3096 | K32: 0 | L32: 12
A33: 22 | B33: 3190 | C33: 14 | D33: 3197 | K33: 0 | L33: 21
A34: 11 | B34: 3305 | C34: 21 | D34: 3382 | K34: 0 | L34: 12
A35: 22 | B35: 3480 | C35: 14 | D35: 3487 | K35: 0 | L35: 21
A36: 22 | B36: 3584 | C36: 23 | D36: 3591 | K36: 0 | L36: 22
A37: 11 | B37: 3708 | C37: 21 | D37: 3716 | K37: 0 | L37: 12
A38: 11 | B38: 3819 | C38: 21 | D38: 3827 | K38: 0 | L38: 12
A39: 22 | B39: 3924 | C39: 14 | D39: 3932 | K39: 0 | L39: 21
A40: 11 | B40: 4043 | C40: 21 | D40: 4054 | K40: 0 | L40: 12
A41: 22 | B41: 4149 | C41: 14 | D41: 4157 | K41: 0 | L41: 21
A42: 22 | B42: 4256 | C42: 23 | D42: 4284 | K42: 0 | L42: 22
A43: 22 | B43: 4382 | C43: 14 | D43: 4390 | K43: 0 | L43: 21
A44: 22 | B44: 4485 | C44: 14 | D44: 4493 | K44: 0 | L44: 21
A45: 11 | B45: 4602 | C45: 21 | D45: 4617 | K45: 0 | L45: 12
A46: 11 | B46: 4718 | C46: 21 | D46: 4746 | K46: 0 | L46: 12
A47: 22 | B47: 4840 | C47: 14 | D47: 4847 | K47: 0 | L47: 21
A48: 22 | B48: 4944 | C48: 14 | D48: 4952 | K48: 0 | L48: 21
A49: 22 | B49: 5062 | C49: 14 | D49: 5069 | K49: 0 | L49: 21
A50: 11 | B50: 5175 | C50: 21 | D50: 5199 | K50: 0 | L50: 12
A51: 11 | B51: 5298 | C51: 21 | D51: 5320 | K51: 0 | L51: 12
A52: 11 | B52: 5420 | C52: 21 | D52: 5442 | K52: 0 | L52: 12
A53: 22 | B53: 5553 | C53: 23 | D53: 5584 | K53: 0 | L53: 22
A54: 22 | B54: 5676 | C54: 14 | D54: 5684 | K54: 0 | L54: 21
A55: 22 | B55: 5796 | C55: 23 | D55: 5822 | K55: 0 | L55: 22
A56: 22 | B56: 5938 | C56: 14 | D56: 5946 | K56: 0 | L56: 21
A57: 11 | B57: 6068 | C57: 21 | D57: 6079 | K57: 0 | L57: 12
A58: 22 | B58: 6175 | C58: 23 | D58: 6215 | K58: 0 | L58: 22
A59: 11 | B59: 6324 | C59: 21 | D59: 6333 | K59: 0 | L59: 12
A60: 11 | B60: 6447 | C60: 21 | D60: 6461 | K60: 0 | L60: 12
A61: 11 | B61: 6566 | C61: 21 | D61: 6580 | K61: 0 | L61: 12
A62: 22 | B62: 6674 | C62: 14 | D62: 6681 | K62: 0 | L62: 21
A63: 22 | B63: 6782 | C63: 23 | D63: 6801 | K63: 0 | L63: 22
A64: 11 | B64: 6970 | C64: 21 | D64: 6980 | K64: 0 | L64: 12
A65: 22 | B65: 7073 | C65: 14 | D65: 7080 | K65: 0 | L65: 21
A66: 22 | B66: 7183 | C66: 14 | D66: 7191 | K66: 0 | L66: 21
A67: 11 | B67: 7338 | C67: 21 | D67: 7346 | K67: 0 | L67: 12
A68: 22 | B68: 7444 | C68: 14 | D68: 7453 | K68: 0 | L68: 21
A69: 22 | B69: 7559 | C69: 14 | D69: 7569 | K69: 0 | L69: 21
A70: 22 | B70: 7736 | C70: 23 | D70: 7754 | K70: 0 | L70: 22
A71: 11 | B71: 9260 | C71: 21 | D71: 9289 | K71: 0 | L71: 12
A72: 11 | B72: 9406 | C72: 21 | D72: 9418 | K72: 0 | L72: 12
A73: 11 | B73: 9531 | C73: 12 | D73: 9538 | K73: 0 | L73: 11
A74: 11 | B74: 9650 | C74: 12 | D74: 9657 | K74: 0 | L74: 11
A75: 22 | B75: 9776 | C75: 14 | D75: 9788 | K75: 0 | L75: 21
A76: 11 | B76: 9901 | C76: 12 | D76: 9909 | K76: 0 | L76: 11
A77: 11 | B77: 10027 | C77: 21 | D77: 10035 | K77: 0 | L77: 12
A78: 11 | B78: 10162 | C78: 12 | D78: 10171 | K78: 0 | L78: 11
A79: 11 | B79: 10269 | C79: 12 | D79: 10277 | K79: 0 | L79: 11
A80: 11 | B80: 10394 | C80: 21 | D80: 10404 | K80: 0 | L80: 12
A81: 11 | B81: 10513 | C81: 12 | D81: 10520 | K81: 0 | L81: 11
A82: 22 | B82: 10747 | C82: 23 | D82: 10755 | K82: 0 | L82: 22
A83: 11 | B83: 10879 | C83: 21 | D83: 10887 | K83: 0 | L83: 12
A84: 11 | B84: 11025 | C84: 12 | D84: 11033 | K84: 0 | L84: 11
A85: 11 | B85: 11158 | C85: 21 | D85: 11173 | K85: 0 | L85: 12
A86: 22 | B86: 11485 | C86: 23 | D86: 11498 | K86: 0 | L86: 22
A87: 11 | B87: 11907 | C87: 21 | D87: 11933 | K87: 1 | L87: 12

Sheet !N213950.095
A1: Report for:!N213950.095
A2: Date: | B2: <date>
A3: Hen: | B3: <hen> | F3: Correct Sequence | G3: =Start!J2 -> 12 | P3: Total Sequences in Data | Q3: =4994-COUNTBLANK(L7:L5000) -> 76 | V3: Total Sequences in Block Data | W3: =COUNTA(L7:L19) -> 13 | AA3: Total Sequences in Block Data | AB3: =COUNTA(L20:L31) -> 12 | AF3: Total Sequences in Block Data | AG3: =COUNTA(L32:L44) -> 13 | AK3: Total Sequences in Block Data | AL3: =COUNTA(L45:L57) -> 13 | AP3: Total Sequences in Block Data | AQ3: =COUNTA(L58:L69) -> 12 | AU3: Total Sequences in Block Data | AV3: =COUNTA(L70:L82) -> 13
P4: Total Sequences in Summary | Q4: =SUM(O7:O14) -> 76 | V4: Total Sequences in Block Summary | W4: =SUM(U7:U14) -> 13 | AA4: Total Sequences in Block Summary | AB4: =SUM(Z7:Z14) -> 12 | AF4: Total Sequences in Block Summary | AG4: =SUM(AE7:AE14) -> 13 | AK4: Total Sequences in Block Summary | AL4: =SUM(AJ7:AJ14) -> 13 | AP4: Total Sequences in Block Summary | AQ4: =SUM(AO7:AO14) -> 12 | AU4: Total Sequences in Block Summary | AV4: =SUM(AT7:AT14) -> 13
T5: Block 1 | Y5: Block 2 | AD5: Block 3 | AI5: Block 4 | AN5: Block 5 | AS5: Block 6
A6: Sequence Component 1 | B6: Time 1 | C6: Sequence Component 2 | D6: Time 2 | E6: Sequence Component 3 | F6: Time 3 | G6: Sequence Component 4 | H6: Time 4 | I6: Sequence Component 5 | J6: Time 5 | K6: Correct? 0=No 1=Yes | L6: Sequence | N6: Frequency | P6: Relative Frequency | Q6: Variability | T6: Frequency | V6: Relative Frequency | W6: Variability | Y6: Frequency | AA6: Relative Frequency | AB6: Variability | AD6: Frequency | AF6: Relative Frequency | AG6: Variability | AI6: Frequency | AK6: Relative Frequency | AL6: Variability | AN6: Frequency | AP6: Relative Frequency | AQ6: Variability | AS6: Frequency | AU6: Relative Frequency | AV6: Variability
A7: 11 | B7: 21 | C7: 21 | D7: 35 | K7: 0 | L7: 12 | N7: 11 | O7: =COUNTIF($L$7:$L$500,N7) -> 1 | P7: =O7/$Q$4 -> 0.01315789474 | Q7: =IF(P7=0,0,(P7*((LOG(P7))/LOG(2)))) -> -0.08220957255 | T7: =N7 -> 11 | U7: =COUNTIF(L7:L19,T7) -> 0 | V7: =U7/(W4-U8) -> 0 | W7: =IF(V7=0,0,(V7*((LOG(V7))/LOG(2)))) -> 0 | Y7: =N7 -> 11 | Z7: =COUNTIF(L20:L31,Y7) -> 0 | AA7: =Z7/(AB4-Z8) -> 0 | AB7: =IF(AA7=0,0,(AA7*((LOG(AA7))/LOG(2)))) -> 0 | AD7: =N7 -> 11 | AE7: =COUNTIF(L32:L44,AD7) -> 1 | AF7: =AE7/(AG4-AE8) -> 0.1111111111 | AG7: =IF(AF7=0,0,(AF7*((LOG(AF7))/LOG(2)))) -> -0.352213889 | AI7: =N7 -> 11 | AJ7: =COUNTIF(L45:L57,AI7) -> 0 | AK7: =AJ7/(AL4-AJ8) -> 0 | AL7: =IF(AK7=0,0,(AK7*((LOG(AK7))/LOG(2)))) -> 0 | AN7: =N7 -> 11 | AO7: =COUNTIF(L58:L69,AN7) -> 0 | AP7: =AO7/(AQ4-AO8) -> 0 | AQ7: =IF(AP7=0,0,(AP7*((LOG(AP7))/LOG(2)))) -> 0 | AS7: =N7 -> 11 | AT7: =COUNTIF(L70:L82,AS7) -> 0 | AU7: =AT7/(AV4-AT8) -> 0 | AV7: =IF(AU7=0,0,(AU7*((LOG(AU7))/LOG(2)))) -> 0
A8: 22 | B8: 133 | C8: 14 | D8: 139 | K8: 0 | L8: 21 | N8: 12 | O8: =COUNTIF($L$7:$L$500,N8) -> 36 | P8: =O8/$Q$4 -> 0.4736842105 | Q8: =IF(P8=0,0,(P8*((LOG(P8))/LOG(2)))) -> -0.5106327688 | T8: =N8 -> 12 | U8: =COUNTIF(L7:L19,T8) -> 3 | Y8: =N8 -> 12 | Z8: =COUNTIF(L20:L31,Y8) -> 7 | AD8: =N8 -> 12 | AE8: =COUNTIF(L32:L44,AD8) -> 4 | AI8: =N8 -> 12 | AJ8: =COUNTIF(L45:L57,AI8) -> 4 | AN8: =N8 -> 12 | AO8: =COUNTIF(L58:L69,AN8) -> 8 | AS8: =N8 -> 12 | AT8: =COUNTIF(L70:L82,AS8) -> 10
A9: 11 | B9: 250 | C9: 21 | D9: 333 | K9: 0 | L9: 12 | N9: 21 | O9: =COUNTIF($L$7:$L$500,N9) -> 33 | P9: =O9/$Q$4 -> 0.4342105263 | Q9: =IF(P9=0,0,(P9*((LOG(P9))/LOG(2)))) -> -0.5225868685 | T9: =N9 -> 21 | U9: =COUNTIF(L7:L19,T9) -> 6 | V9: =U9/(W4-U8) -> 0.6 | W9: =IF(V9=0,0,(V9*((LOG(V9))/LOG(2)))) -> -0.4421793565 | Y9: =N9 -> 21 | Z9: =COUNTIF(L20:L31,Y9) -> 5 | AA9: =Z9/(AB4-Z8) -> 1 | AB9: =IF(AA9=0,0,(AA9*((LOG(AA9))/LOG(2)))) -> 0 | AD9: =N9 -> 21 | AE9: =COUNTIF(L32:L44,AD9) -> 8 | AF9: =AE9/(AG4-AE8) -> 0.8888888889 | AG9: =IF(AF9=0,0,(AF9*((LOG(AF9))/LOG(2)))) -> -0.1510444457 | AI9: =N9 -> 21 | AJ9: =COUNTIF(L45:L57,AI9) -> 8 | AK9: =AJ9/(AL4-AJ8) -> 0.8888888889 | AL9: =IF(AK9=0,0,(AK9*((LOG(AK9))/LOG(2)))) -> -0.1510444457 | AN9: =N9 -> 21 | AO9: =COUNTIF(L58:L69,AN9) -> 4 | AP9: =AO9/(AQ4-AO8) -> 1 | AQ9: =IF(AP9=0,0,(AP9*((LOG(AP9))/LOG(2)))) -> 0 | AS9: =N9 -> 21 | AT9: =COUNTIF(L70:L82,AS9) -> 2 | AU9: =AT9/(AV4-AT8) -> 0.6666666667 | AV9: =IF(AU9=0,0,(AU9*((LOG(AU9))/LOG(2)))) -> -0.3899750005
A10: 22 | B10: 429 | C10: 14 | D10: 436 | K10: 0 | L10: 21 | N10: 22 | O10: =COUNTIF($L$7:$L$500,N10) -> 6 | P10: =O10/$Q$4 -> 0.07894736842 | Q10: =IF(P10=0,0,(P10*((LOG(P10))/LOG(2)))) -> -0.2891814484 | T10: =N10 -> 22 | U10: =COUNTIF(L7:L19,T10) -> 4 | V10: =U10/(W4-U8) -> 0.4 | W10: =IF(V10=0,0,(V10*((LOG(V10))/LOG(2)))) -> -0.528771238 | Y10: =N10 -> 22 | Z10: =COUNTIF(L20:L31,Y10) -> 0 | AA10: =Z10/(AB4-Z8) -> 0 | AB10: =IF(AA10=0,0,(AA10*((LOG(AA10))/LOG(2)))) -> 0 | AD10: =N10 -> 22 | AE10: =COUNTIF(L32:L44,AD10) -> 0 | AF10: =AE10/(AG4-AE8) -> 0 | AG10: =IF(AF10=0,0,(AF10*((LOG(AF10))/LOG(2)))) -> 0 | AI10: =N10 -> 22 | AJ10: =COUNTIF(L45:L57,AI10) -> 1 | AK10: =AJ10/(AL4-AJ8) -> 0.1111111111 | AL10: =IF(AK10=0,0,(AK10*((LOG(AK10))/LOG(2)))) -> -0.352213889 | AN10: =N10 -> 22 | AO10: =COUNTIF(L58:L69,AN10) -> 0 | AP10: =AO10/(AQ4-AO8) -> 0 | AQ10: =IF(AP10=0,0,(AP10*((LOG(AP10))/LOG(2)))) -> 0 | AS10: =N10 -> 22 | AT10: =COUNTIF(L70:L82,AS10) -> 1 | AU10: =AT10/(AV4-AT8) -> 0.3333333333 | AV10: =IF(AU10=0,0,(AU10*((LOG(AU10))/LOG(2)))) -> -0.5283208336
A11: 22 | B11: 533 | C11: 14 | D11: 541 | K11: 0 | L11: 21 | T11: =N11 -> 0 | U11: =COUNTIF(L7:L19,T11) -> 0 | V11: =U11/(W4-U8) -> 0 | W11: =IF(V11=0,0,(V11*((LOG(V11))/LOG(2)))) -> 0 | Y11: =N11 -> 0 | Z11: =COUNTIF(L20:L31,Y11) -> 0 | AA11: =Z11/(AB4-Z8) -> 0 | AB11: =IF(AA11=0,0,(AA11*((LOG(AA11))/LOG(2)))) -> 0 | AD11: =N11 -> 0 | AE11: =COUNTIF(L32:L44,AD11) -> 0 | AF11: =AE11/(AG4-AE8) -> 0 | AG11: =IF(AF11=0,0,(AF11*((LOG(AF11))/LOG(2)))) -> 0 | AI11: =N11 -> 0 | AJ11: =COUNTIF(L45:L57,AI11) -> 0 | AK11: =AJ11/(AL4-AJ8) -> 0 | AL11: =IF(AK11=0,0,(AK11*((LOG(AK11))/LOG(2)))) -> 0 | AN11: =N11 -> 0 | AO11: =COUNTIF(L58:L69,AN11) -> 0 | AP11: =AO11/(AQ4-AO8) -> 0 | AQ11: =IF(AP11=0,0,(AP11*((LOG(AP11))/LOG(2)))) -> 0 | AS11: =N11 -> 0 | AT11: =COUNTIF(L70:L82,AS11) -> 0 | AU11: =AT11/(AV4-AT8) -> 0 | AV11: =IF(AU11=0,0,(AU11*((LOG(AU11))/LOG(2)))) -> 0
A12: 22 | B12: 649 | C12: 23 | D12: 670 | K12: 0 | L12: 22 | T12: =N12 -> 0 | U12: =COUNTIF(L7:L19,T12) -> 0 | V12: =U12/(W4-U8) -> 0 | W12: =IF(V12=0,0,(V12*((LOG(V12))/LOG(2)))) -> 0 | Y12: =N12 -> 0 | Z12: =COUNTIF(L20:L31,Y12) -> 0 | AA12: =Z12/(AB4-Z8) -> 0 | AB12: =IF(AA12=0,0,(AA12*((LOG(AA12))/LOG(2)))) -> 0 | AD12: =N12 -> 0 | AE12: =COUNTIF(L32:L44,AD12) -> 0 | AF12: =AE12/(AG4-AE8) -> 0 | AG12: =IF(AF12=0,0,(AF12*((LOG(AF12))/LOG(2)))) -> 0 | AI12: =N12 -> 0 | AJ12: =COUNTIF(L45:L57,AI12) -> 0 | AK12: =AJ12/(AL4-AJ8) -> 0 | AL12: =IF(AK12=0,0,(AK12*((LOG(AK12))/LOG(2)))) -> 0 | AN12: =N12 -> 0 | AO12: =COUNTIF(L58:L69,AN12) -> 0 | AP12: =AO12/(AQ4-AO8) -> 0 | AQ12: =IF(AP12=0,0,(AP12*((LOG(AP12))/LOG(2)))) -> 0 | AS12: =N12 -> 0 | AT12: =COUNTIF(L70:L82,AS12) -> 0 | AU12: =AT12/(AV4-AT8) -> 0 | AV12: =IF(AU12=0,0,(AU12*((LOG(AU12))/LOG(2)))) -> 0
A13: 22 | B13: 768 | C13: 14 | D13: 776 | K13: 0 | L13: 21 | T13: =N13 -> 0 | U13: =COUNTIF(L7:L19,T13) -> 0 | V13: =U13/(W4-U8) -> 0 | W13: =IF(V13=0,0,(V13*((LOG(V13))/LOG(2)))) -> 0 | Y13: =N13 -> 0 | Z13: =COUNTIF(L20:L31,Y13) -> 0 | AA13: =Z13/(AB4-Z8) -> 0 | AB13: =IF(AA13=0,0,(AA13*((LOG(AA13))/LOG(2)))) -> 0 | AD13: =N13 -> 0 | AE13: =COUNTIF(L32:L44,AD13) -> 0 | AF13: =AE13/(AG4-AE8) -> 0 | AG13: =IF(AF13=0,0,(AF13*((LOG(AF13))/LOG(2)))) -> 0 | AI13: =N13 -> 0 | AJ13: =COUNTIF(L45:L57,AI13) -> 0 | AK13: =AJ13/(AL4-AJ8) -> 0 | AL13: =IF(AK13=0,0,(AK13*((LOG(AK13))/LOG(2)))) -> 0 | AN13: =N13 -> 0 | AO13: =COUNTIF(L58:L69,AN13) -> 0 | AP13: =AO13/(AQ4-AO8) -> 0 | AQ13: =IF(AP13=0,0,(AP13*((LOG(AP13))/LOG(2)))) -> 0 | AS13: =N13 -> 0 | AT13: =COUNTIF(L70:L82,AS13) -> 0 | AU13: =AT13/(AV4-AT8) -> 0 | AV13: =IF(AU13=0,0,(AU13*((LOG(AU13))/LOG(2)))) -> 0
A14: 22 | B14: 865 | C14: 23 | D14: 925 | K14: 0 | L14: 22 | T14: =N14 -> 0 | U14: =COUNTIF(L7:L19,T14) -> 0 | V14: =U14/(W4-U8) -> 0 | W14: =IF(V14=0,0,(V14*((LOG(V14))/LOG(2)))) -> 0 | Y14: =N14 -> 0 | Z14: =COUNTIF(L20:L31,Y14) -> 0 | AA14: =Z14/(AB4-Z8) -> 0 | AB14: =IF(AA14=0,0,(AA14*((LOG(AA14))/LOG(2)))) -> 0 | AD14: =N14 -> 0 | AE14: =COUNTIF(L32:L44,AD14) -> 0 | AF14: =AE14/(AG4-AE8) -> 0 | AG14: =IF(AF14=0,0,(AF14*((LOG(AF14))/LOG(2)))) -> 0 | AI14: =N14 -> 0 | AJ14: =COUNTIF(L45:L57,AI14) -> 0 | AK14: =AJ14/(AL4-AJ8) -> 0 | AL14: =IF(AK14=0,0,(AK14*((LOG(AK14))/LOG(2)))) -> 0 | AN14: =N14 -> 0 | AO14: =COUNTIF(L58:L69,AN14) -> 0 | AP14: =AO14/(AQ4-AO8) -> 0 | AQ14: =IF(AP14=0,0,(AP14*((LOG(AP14))/LOG(2)))) -> 0 | AS14: =N14 -> 0 | AT14: =COUNTIF(L70:L82,AS14) -> 0 | AU14: =AT14/(AV4-AT8) -> 0 | AV14: =IF(AU14=0,0,(AU14*((LOG(AU14))/LOG(2)))) -> 0
A15: 11 | B15: 1034 | C15: 21 | D15: 1084 | K15: 0 | L15: 12 | P15: =SUM(P7:P14) -> 1 | Q15: =-SUM(Q7:Q14) -> 1.404610658 | V15: =SUM(V7:V14) -> 1 | W15: =-SUM(W7:W14) -> 0.9709505945 | AA15: =SUM(AA7:AA14) -> 1 | AB15: =-SUM(AB7:AB14) -> 0 | AF15: =SUM(AF7:AF14) -> 1 | AG15: =-SUM(AG7:AG14) -> 0.5032583348 | AK15: =SUM(AK7:AK14) -> 1 | AL15: =-SUM(AL7:AL14) -> 0.5032583348 | AP15: =SUM(AP7:AP14) -> 1 | AQ15: =-SUM(AQ7:AQ14) -> 0 | AU15: =SUM(AU7:AU14) -> 1 | AV15: =-SUM(AV7:AV14) -> 0.9182958341
A16: 22 | B16: 1181 | C16: 14 | D16: 1189 | K16: 0 | L16: 21 | P16: U= | Q16: =Q15/(LOG(Q4)/LOG(2)) -> 0.2248122526 | V16: U1= | W16: =W15/(LOG(W4)/LOG(2)) -> 0.2623878967 | AA16: U2= | AB16: =AB15/(LOG(AB4)/LOG(2)) -> 0 | AF16: U3= | AG16: =AG15/(LOG(AG4)/LOG(2)) -> 0.1359996036 | AK16: U4= | AL16: =AL15/(LOG(AL4)/LOG(2)) -> 0.1359996036 | AP16: U5= | AQ16: =AQ15/(LOG(AQ4)/LOG(2)) -> 0 | AU16: U6= | AV16: =AV15/(LOG(AV4)/LOG(2)) -> 0.2481585714
A17: 22 | B17: 1287 | C17: 23 | D17: 1321 | K17: 0 | L17: 22
A18: 22 | B18: 1423 | C18: 14 | D18: 1431 | K18: 0 | L18: 21
A19: 22 | B19: 1564 | C19: 23 | D19: 1579 | K19: 0 | L19: 22 | N19: Total Target Seq
A20: 11 | B20: 1686 | C20: 21 | D20: 1722 | K20: 0 | L20: 12 | N20: =COUNTIF(L7:L82,G3) -> 36 | P20: 13 | Q20: 12 | R20: 13 | S20: 13 | T20: 12 | U20: 13
A21: 22 | B21: 1816 | C21: 14 | D21: 1823 | K21: 0 | L21: 21 | P21: % of reinforcement given in 6 equal intervals based on number of trials
A22: 11 | B22: 1929 | C22: 21 | D22: 1962 | K22: 0 | L22: 12 | P22: %_1 | Q22: %_2 | R22: %_3 | S22: %_4 | T22: %_5 | U22: %_6
A23: 11 | B23: 2070 | C23: 21 | D23: 2081 | K23: 0 | L23: 12 | O23: target sequence | P23: =$G$3 -> 12 | Q23: =$G$3 -> 12 | R23: =$G$3 -> 12 | S23: =$G$3 -> 12 | T23: =$G$3 -> 12 | U23: =$G$3 -> 12
A24: 22 | B24: 2173 | C24: 14 | D24: 2178 | K24: 0 | L24: 21 | O24: total reinforcement | P24: =U8 -> 3 | Q24: =Z8 -> 7 | R24: =AE8 -> 4 | S24: =AJ8 -> 4 | T24: =AO8 -> 8 | U24: =AT8 -> 10
A25: 11 | B25: 2286 | C25: 21 | D25: 2313 | K25: 0 | L25: 12 | O25: % target
A26: 11 | B26: 2412 | C26: 21 | D26: 2481 | K26: 0 | L26: 12 | O26: CCRF
A27: 11 | B27: 2586 | C27: 21 | D27: 2594 | K27: 0 | L27: 12 | O27: % CCRf
A28: 22 | B28: 2686 | C28: 14 | D28: 2693 | K28: 0 | L28: 21 | O28: average response rate | P28: =D19/P20 -> 121.4615385 | Q28: =(D31-D19)/Q20 -> 122.3333333 | R28: =(D44-D31)/R20 -> 114.8461538 | S28: =(D57-D44)/S20 -> 113.0769231 | T28: =(D69-D57)/T20 -> 120.6666667 | U28: =(D82-D69)/U20 -> 123.4615385
A29: 22 | B29: 2790 | C29: 14 | D29: 2797 | K29: 0 | L29: 21
A30: 22 | B30: 2895 | C30: 14 | D30: 2903 | K30: 0 | L30: 21
A31: 11 | B31: 3015 | C31: 21 | D31: 3047 | K31: 0 | L31: 12
A32: 11 | B32: 3150 | C32: 12 | D32: 3157 | K32: 0 | L32: 11
A33: 11 | B33: 3267 | C33: 21 | D33: 3302 | K33: 0 | L33: 12
A34: 11 | B34: 3405 | C34: 21 | D34: 3428 | K34: 0 | L34: 12
A35: 22 | B35: 3527 | C35: 14 | D35: 3535 | K35: 0 | L35: 21
A36: 22 | B36: 3633 | C36: 14 | D36: 3641 | K36: 0 | L36: 21
A37: 22 | B37: 3741 | C37: 14 | D37: 3748 | K37: 0 | L37: 21
A38: 22 | B38: 3840 | C38: 14 | D38: 3848 | K38: 0 | L38: 21
A39: 22 | B39: 3945 | C39: 14 | D39: 3952 | K39: 0 | L39: 21
A40: 22 | B40: 4044 | C40: 14 | D40: 4051 | K40: 0 | L40: 21
A41: 11 | B41: 4168 | C41: 21 | D41: 4197 | K41: 0 | L41: 12
A42: 11 | B42: 4297 | C42: 21 | D42: 4329 | K42: 0 | L42: 12
A43: 22 | B43: 4424 | C43: 14 | D43: 4433 | K43: 0 | L43: 21
A44: 22 | B44: 4533 | C44: 14 | D44: 4540 | K44: 0 | L44: 21
A45: 22 | B45: 4661 | C45: 23 | D45: 4684 | K45: 0 | L45: 22
A46: 22 | B46: 4784 | C46: 14 | D46: 4791 | K46: 0 | L46: 21
A47: 11 | B47: 4899 | C47: 21 | D47: 4927 | K47: 0 | L47: 12
A48: 22 | B48: 5019 | C48: 14 | D48: 5026 | K48: 0 | L48: 21
A49: 22 | B49: 5123 | C49: 14 | D49: 5130 | K49: 0 | L49: 21
A50: 22 | B50: 5227 | C50: 14 | D50: 5235 | K50: 0 | L50: 21
A51: 11 | B51: 5342 | C51: 21 | D51: 5369 | K51: 0 | L51: 12
A52: 11 | B52: 5468 | C52: 21 | D52: 5475 | K52: 0 | L52: 12
A53: 22 | B53: 5570 | C53: 14 | D53: 5578 | K53: 0 | L53: 21
A54: 22 | B54: 5677 | C54: 14 | D54: 5685 | K54: 0 | L54: 21
A55: 22 | B55: 5783 | C55: 14 | D55: 5790 | K55: 0 | L55: 21
A56: 11 | B56: 5893 | C56: 21 | D56: 5902 | K56: 0 | L56: 12
A57: 22 | B57: 5995 | C57: 14 | D57: 6010 | K57: 0 | L57: 21
A58: 11 | B58: 6125 | C58: 21 | D58: 6139 | K58: 0 | L58: 12
A59: 11 | B59: 6238 | C59: 21 | D59: 6267 | K59: 0 | L59: 12
A60: 22 | B60: 6357 | C60: 14 | D60: 6364 | K60: 0 | L60: 21
A61: 11 | B61: 6468 | C61: 21 | D61: 6476 | K61: 0 | L61: 12
A62: 11 | B62: 6569 | C62: 21 | D62: 6590 | K62: 0 | L62: 12
A63: 22 | B63: 6745 | C63: 14 | D63: 6759 | K63: 0 | L63: 21
A64: 11 | B64: 6866 | C64: 21 | D64: 6886 | K64: 0 | L64: 12
A65: 11 | B65: 6984 | C65: 21 | D65: 7004 | K65: 0 | L65: 12
A66: 11 | B66: 7106 | C66: 21 | D66: 7130 | K66: 0 | L66: 12
A67: 11 | B67: 7232 | C67: 21 | D67: 7240 | K67: 0 | L67: 12
A68: 22 | B68: 7338 | C68: 14 | D68: 7346 | K68: 0 | L68: 21
A69: 22 | B69: 7443 | C69: 14 | D69: 7458 | K69: 0 | L69: 21
A70: 11 | B70: 7568 | C70: 21 | D70: 7582 | K70: 0 | L70: 12
A71: 11 | B71: 7692 | C71: 21 | D71: 7783 | K71: 0 | L71: 12
A72: 11 | B72: 7886 | C72: 21 | D72: 7894 | K72: 0 | L72: 12
A73: 11 | B73: 8002 | C73: 21 | D73: 8010 | K73: 0 | L73: 12
A74: 11 | B74: 8115 | C74: 21 | D74: 8125 | K74: 0 | L74: 12
A75: 22 | B75: 8218 | C75: 14 | D75: 8238 | K75: 0 | L75: 21
A76: 11 | B76: 8342 | C76: 21 | D76: 8356 | K76: 0 | L76: 12
A77: 11 | B77: 8459 | C77: 21 | D77: 8474 | K77: 0 | L77: 12
A78: 22 | B78: 8566 | C78: 14 | D78: 8573 | K78: 0 | L78: 21
A79: 22 | B79: 8672 | C79: 23 | D79: 8681 | K79: 0 | L79: 22
A80: 11 | B80: 8796 | C80: 21 | D80: 8804 | K80: 0 | L80: 12
A81: 11 | B81: 8908 | C81: 21 | D81: 8953 | K81: 0 | L81: 12
A82: 11 | B82: 9053 | C82: 21 | D82: 9063 | K82: 1 | L82: 12

Sheet !N214920.095
A1: Report for:!N214920.095
A2: Date: | B2: <date>
A3: Hen: | B3: <hen> | F3: Correct Sequence | G3: =Start!J2 -> 12 | P3: Total Sequences in Data | Q3: =4994-COUNTBLANK(L7:L5000) -> 62 | V3: Total Sequences in Block Data | W3: =COUNTA(L7:L16) -> 10 | AA3: Total Sequences in Block Data | AB3: =COUNTA(L17:L27) -> 11 | AF3: Total Sequences in Block Data | AG3: =COUNTA(L28:L37) -> 10 | AK3: Total Sequences in Block Data | AL3: =COUNTA(L38:L47) -> 10 | AP3: Total Sequences in Block Data | AQ3: =COUNTA(L48:L58) -> 11 | AU3: Total Sequences in Block Data | AV3: =COUNTA(L59:L68) -> 10
P4: Total Sequences in Summary | Q4: =SUM(O7:O14) -> 62 | V4: Total Sequences in Block Summary | W4: =SUM(U7:U14) -> 10 | AA4: Total Sequences in Block Summary | AB4: =SUM(Z7:Z14) -> 11 | AF4: Total Sequences in Block Summary | AG4: =SUM(AE7:AE14) -> 10 | AK4: Total Sequences in Block Summary | AL4: =SUM(AJ7:AJ14) -> 10 | AP4: Total Sequences in Block Summary | AQ4: =SUM(AO7:AO14) -> 11 | AU4: Total Sequences in Block Summary | AV4: =SUM(AT7:AT14) -> 10
T5: Block 1 | Y5: Block 2 | AD5: Block 3 | AI5: Block 4 | AN5: Block 5 | AS5: Block 6
A6: Sequence Component 1 | B6: Time 1 | C6: Sequence Component 2 | D6: Time 2 | E6: Sequence Component 3 | F6: Time 3 | G6: Sequence Component 4 | H6: Time 4 | I6: Sequence Component 5 | J6: Time 5 | K6: Correct? 0=No 1=Yes | L6: Sequence | N6: Frequency | P6: Relative Frequency | Q6: Variability | T6: Frequency | V6: Relative Frequency | W6: Variability | Y6: Frequency | AA6: Relative Frequency | AB6: Variability | AD6: Frequency | AF6: Relative Frequency | AG6: Variability | AI6: Frequency | AK6: Relative Frequency | AL6: Variability | AN6: Frequency | AP6: Relative Frequency | AQ6: Variability | AS6: Frequency | AU6: Relative Frequency | AV6: Variability
A7: 11 | B7: 18 | C7: 21 | D7: 77 | K7: 0 | L7: 12 | N7: 11 | O7: =COUNTIF($L$7:$L$500,N7) -> 8 | P7: =O7/$Q$4 -> 0.1290322581 | Q7: =IF(P7=0,0,(P7*((LOG(P7))/LOG(2)))) -> -0.3811866207 | T7: =N7 -> 11 | U7: =COUNTIF(L7:L16,T7) -> 0 | V7: =U7/(W4-U8) -> 0 | W7: =IF(V7=0,0,(V7*((LOG(V7))/LOG(2)))) -> 0 | Y7: =N7 -> 11 | Z7: =COUNTIF(L17:L27,Y7) -> 2 | AA7: =Z7/(AB4-Z8) -> 0.3333333333 | AB7: =IF(AA7=0,0,(AA7*((LOG(AA7))/LOG(2)))) -> -0.5283208336 | AD7: =N7 -> 11 | AE7: =COUNTIF(L28:L37,AD7) -> 0 | AF7: =AE7/(AG4-AE8) -> 0 | AG7: =IF(AF7=0,0,(AF7*((LOG(AF7))/LOG(2)))) -> 0 | AI7: =N7 -> 11 | AJ7: =COUNTIF(L38:L47,AI7) -> 0 | AK7: =AJ7/(AL4-AJ8) -> 0 | AL7: =IF(AK7=0,0,(AK7*((LOG(AK7))/LOG(2)))) -> 0 | AN7: =N7 -> 11 | AO7: =COUNTIF(L48:L58,AN7) -> 2 | AP7: =AO7/(AQ4-AO8) -> 0.5 | AQ7: =IF(AP7=0,0,(AP7*((LOG(AP7))/LOG(2)))) -> -0.5 | AS7: =N7 -> 11 | AT7: =COUNTIF(L59:L68,AS7) -> 4 | AU7: =AT7/(AV4-AT8) -> 0.6666666667 | AV7: =IF(AU7=0,0,(AU7*((LOG(AU7))/LOG(2)))) -> -0.3899750005
A8: 22 | B8: 170 | C8: 14 | D8: 178 | K8: 0 | L8: 21 | N8: 12 | O8: =COUNTIF($L$7:$L$500,N8) -> 34 | P8: =O8/$Q$4 -> 0.5483870968 | Q8: =IF(P8=0,0,(P8*((LOG(P8))/LOG(2)))) -> -0.4753054508 | T8: =N8 -> 12 | U8: =COUNTIF(L7:L16,T8) -> 3 | Y8: =N8 -> 12 | Z8: =COUNTIF(L17:L27,Y8) -> 5 | AD8: =N8 -> 12 | AE8: =COUNTIF(L28:L37,AD8) -> 8 | AI8: =N8 -> 12 | AJ8: =COUNTIF(L38:L47,AI8) -> 7 | AN8: =N8 -> 12 | AO8: =COUNTIF(L48:L58,AN8) -> 7 | AS8: =N8 -> 12 | AT8: =COUNTIF(L59:L68,AS8) -> 4
A9: 22 | B9: 280 | C9: 14 | D9: 287 | K9: 0 | L9: 21 | N9: 21 | O9: =COUNTIF($L$7:$L$500,N9) -> 16 | P9: =O9/$Q$4 -> 0.2580645161 | Q9: =IF(P9=0,0,(P9*((LOG(P9))/LOG(2)))) -> -0.5043087253 | T9: =N9 -> 21 | U9: =COUNTIF(L7:L16,T9) -> 6 | V9: =U9/(W4-U8) -> 0.8571428571 | W9: =IF(V9=0,0,(V9*((LOG(V9))/LOG(2)))) -> -0.1906220754 | Y9: =N9 -> 21 | Z9: =COUNTIF(L17:L27,Y9) -> 3 | AA9: =Z9/(AB4-Z8) -> 0.5 | AB9: =IF(AA9=0,0,(AA9*((LOG(AA9))/LOG(2)))) -> -0.5 | AD9: =N9 -> 21 | AE9: =COUNTIF(L28:L37,AD9) -> 2 | AF9: =AE9/(AG4-AE8) -> 1 | AG9: =IF(AF9=0,0,(AF9*((LOG(AF9))/LOG(2)))) -> 0 | AI9: =N9 -> 21 | AJ9: =COUNTIF(L38:L47,AI9) -> 2 | AK9: =AJ9/(AL4-AJ8) -> 0.6666666667 | AL9: =IF(AK9=0,0,(AK9*((LOG(AK9))/LOG(2)))) -> -0.3899750005 | AN9: =N9 -> 21 | AO9: =COUNTIF(L48:L58,AN9) -> 1 | AP9: =AO9/(AQ4-AO8) -> 0.25 | AQ9: =IF(AP9=0,0,(AP9*((LOG(AP9))/LOG(2)))) -> -0.5 | AS9: =N9 -> 21 | AT9: =COUNTIF(L59:L68,AS9) -> 2 | AU9: =AT9/(AV4-AT8) -> 0.3333333333 | AV9: =IF(AU9=0,0,(AU9*((LOG(AU9))/LOG(2)))) -> -0.5283208336
A10: 22 | B10: 385 | C10: 14 | D10: 393 | K10: 0 | L10: 21 | N10: 22 | O10: =COUNTIF($L$7:$L$500,N10) -> 4 | P10: =O10/$Q$4 -> 0.06451612903 | Q10: =IF(P10=0,0,(P10*((LOG(P10))/LOG(2)))) -> -0.2551094394 | T10: =N10 -> 22 | U10: =COUNTIF(L7:L16,T10) -> 1 | V10: =U10/(W4-U8) -> 0.1428571429 | W10: =IF(V10=0,0,(V10*((LOG(V10))/LOG(2)))) -> -0.4010507032 | Y10: =N10 -> 22 | Z10: =COUNTIF(L17:L27,Y10) -> 1 | AA10: =Z10/(AB4-Z8) -> 0.1666666667 | AB10: =IF(AA10=0,0,(AA10*((LOG(AA10))/LOG(2)))) -> -0.4308270835 | AD10: =N10 -> 22 | AE10: =COUNTIF(L28:L37,AD10) -> 0 | AF10: =AE10/(AG4-AE8) -> 0 | AG10: =IF(AF10=0,0,(AF10*((LOG(AF10))/LOG(2)))) -> 0 | AI10: =N10 -> 22 | AJ10: =COUNTIF(L38:L47,AI10) -> 1 | AK10: =AJ10/(AL4-AJ8) -> 0.3333333333 | AL10: =IF(AK10=0,0,(AK10*((LOG(AK10))/LOG(2)))) -> -0.5283208336 | AN10: =N10 -> 22 | AO10: =COUNTIF(L48:L58,AN10) -> 1 | AP10: =AO10/(AQ4-AO8) -> 0.25 | AQ10: =IF(AP10=0,0,(AP10*((LOG(AP10))/LOG(2)))) -> -0.5 | AS10: =N10 -> 22 | AT10: =COUNTIF(L59:L68,AS10) -> 0 | AU10: =AT10/(AV4-AT8) -> 0 | AV10: =IF(AU10=0,0,(AU10*((LOG(AU10))/LOG(2)))) -> 0
A11: 22 | B11: 493 | C11: 14 | D11: 500 | K11: 0 | L11: 21 | T11: =N11 -> 0 | U11: =COUNTIF(L7:L16,T11) -> 0 | V11: =U11/(W4-U8) -> 0 | W11: =IF(V11=0,0,(V11*((LOG(V11))/LOG(2)))) -> 0 | Y11: =N11 -> 0 | Z11: =COUNTIF(L17:L27,Y11) -> 0 | AA11: =Z11/(AB4-Z8) -> 0 | AB11: =IF(AA11=0,0,(AA11*((LOG(AA11))/LOG(2)))) -> 0 | AD11: =N11 -> 0 | AE11: =COUNTIF(L28:L37,AD11) -> 0 | AF11: =AE11/(AG4-AE8) -> 0 | AG11: =IF(AF11=0,0,(AF11*((LOG(AF11))/LOG(2)))) -> 0 | AI11: =N11 -> 0 | AJ11: =COUNTIF(L38:L47,AI11) -> 0 | AK11: =AJ11/(AL4-AJ8) -> 0 | AL11: =IF(AK11=0,0,(AK11*((LOG(AK11))/LOG(2)))) -> 0 | AN11: =N11 -> 0 | AO11: =COUNTIF(L48:L58,AN11) -> 0 | AP11: =AO11/(AQ4-AO8) -> 0 | AQ11: =IF(AP11=0,0,(AP11*((LOG(AP11))/LOG(2)))) -> 0 | AS11: =N11 -> 0 | AT11: =COUNTIF(L59:L68,AS11) -> 0 | AU11: =AT11/(AV4-AT8) -> 0 | AV11: =IF(AU11=0,0,(AU11*((LOG(AU11))/LOG(2)))) -> 0
A12: 11 | B12: 602 | C12: 21 | D12: 642 | K12: 0 | L12: 12 | T12: =N12 -> 0 | U12: =COUNTIF(L7:L16,T12) -> 0 | V12: =U12/(W4-U8) -> 0 | W12: =IF(V12=0,0,(V12*((LOG(V12))/LOG(2)))) -> 0 | Y12: =N12 -> 0 | Z12: =COUNTIF(L17:L27,Y12) -> 0 | AA12: =Z12/(AB4-Z8) -> 0 | AB12: =IF(AA12=0,0,(AA12*((LOG(AA12))/LOG(2)))) -> 0 | AD12: =N12 -> 0 | AE12: =COUNTIF(L28:L37,AD12) -> 0 | AF12: =AE12/(AG4-AE8) -> 0 | AG12: =IF(AF12=0,0,(AF12*((LOG(AF12))/LOG(2)))) -> 0 | AI12: =N12 -> 0 | AJ12: =COUNTIF(L38:L47,AI12) -> 0 | AK12: =AJ12/(AL4-AJ8) -> 0 | AL12: =IF(AK12=0,0,(AK12*((LOG(AK12))/LOG(2)))) -> 0 | AN12: =N12 -> 0 | AO12: =COUNTIF(L48:L58,AN12) -> 0 | AP12: =AO12/(AQ4-AO8) -> 0 | AQ12: =IF(AP12=0,0,(AP12*((LOG(AP12))/LOG(2)))) -> 0 | AS12: =N12 -> 0 | AT12: =COUNTIF(L59:L68,AS12) -> 0 | AU12: =AT12/(AV4-AT8) -> 0 | AV12: =IF(AU12=0,0,(AU12*((LOG(AU12))/LOG(2)))) -> 0
A13: 22 | B13: 734 | C13: 14 | D13: 742 | K13: 0 | L13: 21 | T13: =N13 -> 0 | U13: =COUNTIF(L7:L16,T13) -> 0 | V13: =U13/(W4-U8) -> 0 | W13: =IF(V13=0,0,(V13*((LOG(V13))/LOG(2)))) -> 0 | Y13: =N13 -> 0 | Z13: =COUNTIF(L17:L27,Y13) -> 0 | AA13: =Z13/(AB4-Z8) -> 0 | AB13: =IF(AA13=0,0,(AA13*((LOG(AA13))/LOG(2)))) -> 0 | AD13: =N13 -> 0 | AE13: =COUNTIF(L28:L37,AD13) -> 0 | AF13: =AE13/(AG4-AE8) -> 0 | AG13: =IF(AF13=0,0,(AF13*((LOG(AF13))/LOG(2)))) -> 0 | AI13: =N13 -> 0 | AJ13: =COUNTIF(L38:L47,AI13) -> 0 | AK13: =AJ13/(AL4-AJ8) -> 0 | AL13: =IF(AK13=0,0,(AK13*((LOG(AK13))/LOG(2)))) -> 0 | AN13: =N13 -> 0 | AO13: =COUNTIF(L48:L58,AN13) -> 0 | AP13: =AO13/(AQ4-AO8) -> 0 | AQ13: =IF(AP13=0,0,(AP13*((LOG(AP13))/LOG(2)))) -> 0 | AS13: =N13 -> 0 | AT13: =COUNTIF(L59:L68,AS13) -> 0 | AU13: =AT13/(AV4-AT8) -> 0 | AV13: =IF(AU13=0,0,(AU13*((LOG(AU13))/LOG(2)))) -> 0
A14: 22 | B14: 919 | C14: 23 | D14: 932 | K14: 0 | L14: 22 | T14: =N14 -> 0 | U14: =COUNTIF(L7:L16,T14) -> 0 | V14: =U14/(W4-U8) -> 0 | W14: =IF(V14=0,0,(V14*((LOG(V14))/LOG(2)))) -> 0 | Y14: =N14 -> 0 | Z14: =COUNTIF(L17:L27,Y14) -> 0 | AA14: =Z14/(AB4-Z8) -> 0 | AB14: =IF(AA14=0,0,(AA14*((LOG(AA14))/LOG(2)))) -> 0 | AD14: =N14 -> 0 | AE14: =COUNTIF(L28:L37,AD14) -> 0 | AF14: =AE14/(AG4-AE8) -> 0 | AG14: =IF(AF14=0,0,(AF14*((LOG(AF14))/LOG(2)))) -> 0 | AI14: =N14 -> 0 | AJ14: =COUNTIF(L38:L47,AI14) -> 0 | AK14: =AJ14/(AL4-AJ8) -> 0 | AL14: =IF(AK14=0,0,(AK14*((LOG(AK14))/LOG(2)))) -> 0 | AN14: =N14 -> 0 | AO14: =COUNTIF(L48:L58,AN14) -> 0 | AP14: =AO14/(AQ4-AO8) -> 0 | AQ14: =IF(AP14=0,0,(AP14*((LOG(AP14))/LOG(2)))) -> 0 | AS14: =N14 -> 0 | AT14: =COUNTIF(L59:L68,AS14) -> 0 | AU14: =AT14/(AV4-AT8) -> 0 | AV14: =IF(AU14=0,0,(AU14*((LOG(AU14))/LOG(2)))) -> 0
A15: 22 | B15: 1037 | C15: 14 | D15: 1044 | K15: 0 | L15: 21 | P15: =SUM(P7:P14) -> 1 | Q15: =-SUM(Q7:Q14) -> 1.615910236 | V15: =SUM(V7:V14) -> 1 | W15: =-SUM(W7:W14) -> 0.5916727786 | AA15: =SUM(AA7:AA14) -> 1 | AB15: =-SUM(AB7:AB14) -> 1.459147917 | AF15: =SUM(AF7:AF14) -> 1 | AG15: =-SUM(AG7:AG14) -> 0 | AK15: =SUM(AK7:AK14) -> 1 | AL15: =-SUM(AL7:AL14) -> 0.9182958341 | AP15: =SUM(AP7:AP14) -> 1 | AQ15: =-SUM(AQ7:AQ14) -> 1.5 | AU15: =SUM(AU7:AU14) -> 1 | AV15: =-SUM(AV7:AV14) -> 0.9182958341
A16: 11 | B16: 1161 | C16: 21 | D16: 1172 | K16: 0 | L16: 12 | P16: U= | Q16: =Q15/(LOG(Q4)/LOG(2)) -> 0.2713901511 | V16: U1= | W16: =W15/(LOG(W4)/LOG(2)) -> 0.178111254 | AA16: U2= | AB16: =AB15/(LOG(AB4)/LOG(2)) -> 0.4217883392 | AF16: U3= | AG16: =AG15/(LOG(AG4)/LOG(2)) -> 0 | AK16: U4= | AL16: =AL15/(LOG(AL4)/LOG(2)) -> 0.2764345909 | AP16: U5= | AQ16: =AQ15/(LOG(AQ4)/LOG(2)) -> 0.4335972395 | AU16: U6= | AV16: =AV15/(LOG(AV4)/LOG(2)) -> 0.2764345909
A17: 11 | B17: 1273 | C17: 21 | D17: 1316 | K17: 0 | L17: 12
A18: 11 | B18: 1417 | C18: 21 | D18: 1428 | K18: 0 | L18: 12
A19: 11 | B19: 1530 | C19: 12 | D19: 1541 | K19: 0 | L19: 11 | N19: Total Target Seq
A20: 11 | B20: 1649 | C20: 21 | D20: 1686 | K20: 0 | L20: 12 | N20: =COUNTIF(L7:L68,G3) -> 34 | P20: 10 | Q20: 11 | R20: 10 | S20: 10 | T20: 11 | U20: 10
A21: 11 | B21: 1790 | C21: 12 | D21: 1799 | K21: 0 | L21: 11 | P21: % of reinforcement given in 6 equal intervals based on number of trials
A22: 22 | B22: 1905 | C22: 23 | D22: 1927 | K22: 0 | L22: 22 | P22: %_1 | Q22: %_2 | R22: %_3 | S22: %_4 | T22: %_5 | U22: %_6
A23: 11 | B23: 2030 | C23: 21 | D23: 2058 | K23: 0 | L23: 12 | O23: target sequence | P23: =$G$3 -> 12 | Q23: =$G$3 -> 12 | R23: =$G$3 -> 12 | S23: =$G$3 -> 12 | T23: =$G$3 -> 12 | U23: =$G$3 -> 12
A24: 22 | B24: 2154 | C24: 14 | D24: 2162 | K24: 0 | L24: 21 | O24: total reinforcement | P24: =U8 -> 3 | Q24: =Z8 -> 5 | R24: =AE8 -> 8 | S24: =AJ8 -> 7 | T24: =AO8 -> 7 | U24: =AT8 -> 4
A25: 22 | B25: 2260 | C25: 14 | D25: 2282 | K25: 0 | L25: 21 | O25: % target
A26: 11 | B26: 2389 | C26: 21 | D26: 2402 | K26: 0 | L26: 12 | O26: CCRF
A27: 22 | B27: 2498 | C27: 14 | D27: 2506 | K27: 0 | L27: 21 | O27: % CCRf
A28: 22 | B28: 2604 | C28: 14 | D28: 2612 | K28: 0 | L28: 21 | O28: average response rate | P28: =D16/P20 -> 117.2 | Q28: =(D27-D16)/Q20 -> 121.2727273 | R28: =(D37-D27)/R20 -> 119.1 | S28: =(D47-D37)/S20 -> 130.8 | T28: =(D58-D47)/T20 -> 136.5454545 | U28: =(D68-D58)/U20 -> 169.9
A29: 11 | B29: 2719 | C29: 21 | D29: 2737 | K29: 0 | L29: 12
A30: 11 | B30: 2842 | C30: 21 | D30: 2871 | K30: 0 | L30: 12
A31: 11 | B31: 2972 | C31: 21 | D31: 3020 | K31: 0 | L31: 12
A32: 11 | B32: 3123 | C32: 21 | D32: 3141 | K32: 0 | L32: 12
A33: 22 | B33: 3233 | C33: 14 | D33: 3241 | K33: 0 | L33: 21
A34: 11 | B34: 3340 | C34: 21 | D34: 3350 | K34: 0 | L34: 12
A35: 11 | B35: 3449 | C35: 21 | D35: 3479 | K35: 0 | L35: 12
A36: 11 | B36: 3573 | C36: 21 | D36: 3594 | K36: 0 | L36: 12
A37: 11 | B37: 3689 | C37: 21 | D37: 3697 | K37: 0 | L37: 12
A38: 11 | B38: 3791 | C38: 21 | D38: 3846 | K38: 0 | L38: 12
A39: 22 | B39: 3952 | C39: 14 | D39: 3959 | K39: 0 | L39: 21
A40: 11 | B40: 4063 | C40: 21 | D40: 4071 | K40: 0 | L40: 12
A41: 11 | B41: 4177 | C41: 21 | D41: 4195 | K41: 0 | L41: 12
A42: 11 | B42: 4402 | C42: 21 | D42: 4410 | K42: 0 | L42: 12
A43: 11 | B43: 4504 | C43: 21 | D43: 4513 | K43: 0 | L43: 12
A44: 11 | B44: 4613 | C44: 21 | D44: 4634 | K44: 0 | L44: 12
A45: 11 | B45: 4736 | C45: 21 | D45: 4774 | K45: 0 | L45: 12
A46: 22 | B46: 4871 | C46: 14 | D46: 4878 | K46: 0 | L46: 21
A47: 22 | B47: 4988 | C47: 23 | D47: 5005 | K47: 0 | L47: 22
A48: 22 | B48: 5137 | C48: 23 | D48: 5192 | K48: 0 | L48: 22
A49: 22 | B49: 5296 | C49: 14 | D49: 5304 | K49: 0 | L49: 21
A50: 11 | B50: 5403 | C50: 21 | D50: 5427 | K50: 0 | L50: 12
A51: 11 | B51: 5529 | C51: 21 | D51: 5543 | K51: 0 | L51: 12
A52: 11 | B52: 5646 | C52: 21 | D52: 5655 | K52: 0 | L52: 12
A53: 11 | B53: 5776 | C53: 21 | D53: 5793 | K53: 0 | L53: 12
A54: 11 | B54: 5888 | C54: 21 | D54: 5915 | K54: 0 | L54: 12
A55: 11 | B55: 6016 | C55: 21 | D55: 6059 | K55: 0 | L55: 12
A56: 11 | B56: 6175 | C56: 21 | D56: 6184 | K56: 0 | L56: 12
A57: 11 | B57: 6356 | C57: 12 | D57: 6383 | K57: 0 | L57: 11
A58: 11 | B58: 6486 | C58: 12 | D58: 6507 | K58: 0 | L58: 11
A59: 11 | B59: 6605 | C59: 12 | D59: 6617 | K59: 0 | L59: 11
A60: 22 | B60: 6764 | C60: 14 | D60: 6799 | K60: 0 | L60: 21
A61: 11 | B61: 6986 | C61: 21 | D61: 7001 | K61: 0 | L61: 12
A62: 11 | B62: 7142 | C62: 12 | D62: 7155 | K62: 0 | L62: 11
A63: 22 | B63: 7287 | C63: 14 | D63: 7299 | K63: 0 | L63: 21
A64: 11 | B64: 7409 | C64: 12 | D64: 7422 | K64: 0 | L64: 11
A65: 11 | B65: 7552 | C65: 21 | D65: 7584 | K65: 0 | L65: 12
A66: 11 | B66: 7858 | C66: 12 | D66: 7872 | K66: 0 | L66: 11
A67: 11 | B67: 8073 | C67: 21 | D67: 8083 | K67: 0 | L67: 12
A68: 11 | B68: 8197 | C68: 21 | D68: 8206 | K68: 1 | L68: 12

Sheet !N215920.095
A1: Report for:!N215920.095
A2: Date: | B2: <date>
A3: Hen: | B3: <hen> | F3: Correct Sequence | G3: =Start!J2 -> 12 | P3: Total Sequences in Data | Q3: =4994-COUNTBLANK(L7:L5000) -> 66 | V3: Total Sequences in Block Data | W3: =COUNTA(L7:L17) -> 11 | AA3: Total Sequences in Block Data | AB3: =COUNTA(L18:L28) -> 11 | AF3: Total Sequences in Block Data | AG3: =COUNTA(L29:L39) -> 11 | AK3: Total Sequences in Block Data | AL3: =COUNTA(L40:L50) -> 11 | AP3: Total Sequences in Block Data | AQ3: =COUNTA(L51:L61) -> 11 | AU3: Total Sequences in Block Data | AV3: =COUNTA(L62:L72) -> 11
P4: Total Sequences in Summary | Q4: =SUM(O7:O14) -> 66 | V4: Total Sequences in Block Summary | W4: =SUM(U7:U14) -> 11 | AA4: Total Sequences in Block Summary | AB4: =SUM(Z7:Z14) -> 11 | AF4: Total Sequences in Block Summary | AG4: =SUM(AE7:AE14) -> 11 | AK4: Total Sequences in Block Summary | AL4: =SUM(AJ7:AJ14) -> 11 | AP4: Total Sequences in Block Summary | AQ4: =SUM(AO7:AO14) -> 11 | AU4: Total Sequences in Block Summary | AV4: =SUM(AT7:AT14) -> 11
T5: Block 1 | Y5: Block 2 | AD5: Block 3 | AI5: Block 4 | AN5: Block 5 | AS5: Block 6
A6: Sequence Component 1 | B6: Time 1 | C6: Sequence Component 2 | D6: Time 2 | E6: Sequence Component 3 | F6: Time 3 | G6: Sequence Component 4 | H6: Time 4 | I6: Sequence Component 5 | J6: Time 5 | K6: Correct? 0=No 1=Yes | L6: Sequence | N6: Frequency | P6: Relative Frequency | Q6: Variability | T6: Frequency | V6: Relative Frequency | W6: Variability | Y6: Frequency | AA6: Relative Frequency | AB6: Variability | AD6: Frequency | AF6: Relative Frequency | AG6: Variability | AI6: Frequency | AK6: Relative Frequency | AL6: Variability | AN6: Frequency | AP6: Relative Frequency | AQ6: Variability | AS6: Frequency | AU6: Relative Frequency | AV6: Variability
A7: 11 | B7: 42 | C7: 21 | D7: 76 | K7: 0 | L7: 12 | N7: 11 | O7: =COUNTIF($L$7:$L$500,N7) -> 8 | P7: =O7/$Q$4 -> 0.1212121212 | Q7: =IF(P7=0,0,(P7*((LOG(P7))/LOG(2)))) -> -0.369017469 | T7: =N7 -> 11 | U7: =COUNTIF(L7:L17,T7) -> 3 | V7: =U7/(W4-U8) -> 0.4285714286 | W7: =IF(V7=0,0,(V7*((LOG(V7))/LOG(2)))) -> -0.5238824663 | Y7: =N7 -> 11 | Z7: =COUNTIF(L18:L28,Y7) -> 2 | AA7: =Z7/(AB4-Z8) -> 0.2857142857 | AB7: =IF(AA7=0,0,(AA7*((LOG(AA7))/LOG(2)))) -> -0.5163871206 | AD7: =N7 -> 11 | AE7: =COUNTIF(L29:L39,AD7) -> 2 | AF7: =AE7/(AG4-AE8) -> 0.5 | AG7: =IF(AF7=0,0,(AF7*((LOG(AF7))/LOG(2)))) -> -0.5 | AI7: =N7 -> 11 | AJ7: =COUNTIF(L40:L50,AI7) -> 0 | AK7: =AJ7/(AL4-AJ8) -> 0 | AL7: =IF(AK7=0,0,(AK7*((LOG(AK7))/LOG(2)))) -> 0 | AN7: =N7 -> 11 | AO7: =COUNTIF(L51:L61,AN7) -> 0 | AP7: =AO7/(AQ4-AO8) -> 0 | AQ7: =IF(AP7=0,0,(AP7*((LOG(AP7))/LOG(2)))) -> 0 | AS7: =N7 -> 11 | AT7: =COUNTIF(L62:L72,AS7) -> 1 | AU7: =AT7/(AV4-AT8) -> 0.3333333333 | AV7: =IF(AU7=0,0,(AU7*((LOG(AU7))/LOG(2)))) -> -0.5283208336
A8: 11 | B8: 175 | C8: 12 | D8: 183 | K8: 0 | L8: 11 | N8: 12 | O8: =COUNTIF($L$7:$L$500,N8) -> 35 | P8: =O8/$Q$4 -> 0.5303030303 | Q8: =IF(P8=0,0,(P8*((LOG(P8))/LOG(2)))) -> -0.4852861907 | T8: =N8 -> 12 | U8: =COUNTIF(L7:L17,T8) -> 4 | Y8: =N8 -> 12 | Z8: =COUNTIF(L18:L28,Y8) -> 4 | AD8: =N8 -> 12 | AE8: =COUNTIF(L29:L39,AD8) -> 7 | AI8: =N8 -> 12 | AJ8: =COUNTIF(L40:L50,AI8) -> 7 | AN8: =N8 -> 12 | AO8: =COUNTIF(L51:L61,AN8) -> 5 | AS8: =N8 -> 12 | AT8: =COUNTIF(L62:L72,AS8) -> 8
A9: 22 | B9: 280 | C9: 14 | D9: 288 | K9: 0 | L9: 21 | N9: 21 | O9: =COUNTIF($L$7:$L$500,N9) -> 16 | P9: =O9/$Q$4 -> 0.2424242424 | Q9: =IF(P9=0,0,(P9*((LOG(P9))/LOG(2)))) -> -0.4956106956 | T9: =N9 -> 21 | U9: =COUNTIF(L7:L17,T9) -> 3 | V9: =U9/(W4-U8) -> 0.4285714286 | W9: =IF(V9=0,0,(V9*((LOG(V9))/LOG(2)))) -> -0.5238824663 | Y9: =N9 -> 21 | Z9: =COUNTIF(L18:L28,Y9) -> 4 | AA9: =Z9/(AB4-Z8) -> 0.5714285714 | AB9: =IF(AA9=0,0,(AA9*((LOG(AA9))/LOG(2)))) -> -0.4613456697 | AD9: =N9 -> 21 | AE9: =COUNTIF(L29:L39,AD9) -> 0 | AF9: =AE9/(AG4-AE8) -> 0 | AG9: =IF(AF9=0,0,(AF9*((LOG(AF9))/LOG(2)))) -> 0 | AI9: =N9 -> 21 | AJ9: =COUNTIF(L40:L50,AI9) -> 3 | AK9: =AJ9/(AL4-AJ8) -> 0.75 | AL9: =IF(AK9=0,0,(AK9*((LOG(AK9))/LOG(2)))) -> -0.3112781245 | AN9: =N9 -> 21 | AO9: =COUNTIF(L51:L61,AN9) -> 4 | AP9: =AO9/(AQ4-AO8) -> 0.6666666667 | AQ9: =IF(AP9=0,0,(AP9*((LOG(AP9))/LOG(2)))) -> -0.3899750005 | AS9: =N9 -> 21 | AT9: =COUNTIF(L62:L72,AS9) -> 2 | AU9: =AT9/(AV4-AT8) -> 0.6666666667 | AV9: =IF(AU9=0,0,(AU9*((LOG(AU9))/LOG(2)))) -> -0.3899750005
A10: 11 | B10: 394 | C10: 21 | D10: 417 | K10: 0 | L10: 12 | N10: 22 | O10: =COUNTIF($L$7:$L$500,N10) -> 7 | P10: =O10/$Q$4 -> 0.1060606061 | Q10: =IF(P10=0,0,(P10*((LOG(P10))/LOG(2)))) -> -0.3433223391 | T10: =N10 -> 22 | U10: =COUNTIF(L7:L17,T10) -> 1 | V10: =U10/(W4-U8) -> 0.1428571429 | W10: =IF(V10=0,0,(V10*((LOG(V10))/LOG(2)))) -> -0.4010507032 | Y10: =N10 -> 22 | Z10: =COUNTIF(L18:L28,Y10) -> 1 | AA10: =Z10/(AB4-Z8) -> 0.1428571429 | AB10: =IF(AA10=0,0,(AA10*((LOG(AA10))/LOG(2)))) -> -0.4010507032 | AD10: =N10 -> 22 | AE10: =COUNTIF(L29:L39,AD10) -> 2 | AF10: =AE10/(AG4-AE8) -> 0.5 | AG10: =IF(AF10=0,0,(AF10*((LOG(AF10))/LOG(2)))) -> -0.5 | AI10: =N10 -> 22 | AJ10: =COUNTIF(L40:L50,AI10) -> 1 | AK10: =AJ10/(AL4-AJ8) -> 0.25 | AL10: =IF(AK10=0,0,(AK10*((LOG(AK10))/LOG(2)))) -> -0.5 | AN10: =N10 -> 22 | AO10: =COUNTIF(L51:L61,AN10) -> 2 | AP10: =AO10/(AQ4-AO8) -> 0.3333333333 | AQ10: =IF(AP10=0,0,(AP10*((LOG(AP10))/LOG(2)))) -> -0.5283208336 | AS10: =N10 -> 22 | AT10: =COUNTIF(L62:L72,AS10) -> 0 | AU10: =AT10/(AV4-AT8) -> 0 | AV10: =IF(AU10=0,0,(AU10*((LOG(AU10))/LOG(2)))) -> 0
A11: 22 | B11: 543 | C11: 23 | D11: 578 | K11: 0 | L11: 22 | T11: =N11 -> 0 | U11: =COUNTIF(L7:L17,T11) -> 0 | V11: =U11/(W4-U8) -> 0 | W11: =IF(V11=0,0,(V11*((LOG(V11))/LOG(2)))) -> 0 | Y11: =N11 -> 0 | Z11: =COUNTIF(L18:L28,Y11) -> 0 | AA11: =Z11/(AB4-Z8) -> 0 | AB11: =IF(AA11=0,0,(AA11*((LOG(AA11))/LOG(2)))) -> 0 | AD11: =N11 -> 0 | AE11: =COUNTIF(L29:L39,AD11) -> 0 | AF11: =AE11/(AG4-AE8) -> 0 | AG11: =IF(AF11=0,0,(AF11*((LOG(AF11))/LOG(2)))) -> 0 | AI11: =N11 -> 0 | AJ11: =COUNTIF(L40:L50,AI11) -> 0 | AK11: =AJ11/(AL4-AJ8) -> 0 | AL11: =IF(AK11=0,0,(AK11*((LOG(AK11))/LOG(2)))) -> 0 | AN11: =N11 -> 0 | AO11: =COUNTIF(L51:L61,AN11) -> 0 | AP11: =AO11/(AQ4-AO8) -> 0 | AQ11: =IF(AP11=0,0,(AP11*((LOG(AP11))/LOG(2)))) -> 0 | AS11: =N11 -> 0 | AT11: =COUNTIF(L62:L72,AS11) -> 0 | AU11: =AT11/(AV4-AT8) -> 0 | AV11: =IF(AU11=0,0,(AU11*((LOG(AU11))/LOG(2)))) -> 0
A12: 11 | B12: 681 | C12: 12 | D12: 689 | K12: 0 | L12: 11 | T12: =N12 -> 0 | U12: =COUNTIF(L7:L17,T12) -> 0 | V12: =U12/(W4-U8) -> 0 | W12: =IF(V12=0,0,(V12*((LOG(V12))/LOG(2)))) -> 0 | Y12: =N12 -> 0 | Z12: =COUNTIF(L18:L28,Y12) -> 0 | AA12: =Z12/(AB4-Z8) -> 0 | AB12: =IF(AA12=0,0,(AA12*((LOG(AA12))/LOG(2)))) -> 0 | AD12: =N12 -> 0 | AE12: =COUNTIF(L29:L39,AD12) -> 0 | AF12: =AE12/(AG4-AE8) -> 0 | AG12: =IF(AF12=0,0,(AF12*((LOG(AF12))/LOG(2)))) -> 0 | AI12: =N12 -> 0 | AJ12: =COUNTIF(L40:L50,AI12) -> 0 | AK12: =AJ12/(AL4-AJ8) -> 0 | AL12: =IF(AK12=0,0,(AK12*((LOG(AK12))/LOG(2)))) -> 0 | AN12: =N12 -> 0 | AO12: =COUNTIF(L51:L61,AN12) -> 0 | AP12: =AO12/(AQ4-AO8) -> 0 | AQ12: =IF(AP12=0,0,(AP12*((LOG(AP12))/LOG(2)))) -> 0 | AS12: =N12 -> 0 | AT12: =COUNTIF(L62:L72,AS12) -> 0 | AU12: =AT12/(AV4-AT8) -> 0 | AV12: =IF(AU12=0,0,(AU12*((LOG(AU12))/LOG(2)))) -> 0
A13: 11 | B13: 798 | C13: 21 | D13: 811 | K13: 0 | L13: 12 | T13: =N13 -> 0 | U13: =COUNTIF(L7:L17,T13) -> 0 | V13: =U13/(W4-U8) -> 0 | W13: =IF(V13=0,0,(V13*((LOG(V13))/LOG(2)))) -> 0 | Y13: =N13 -> 0 | Z13: =COUNTIF(L18:L28,Y13) -> 0 | AA13: =Z13/(AB4-Z8) -> 0 | AB13: =IF(AA13=0,0,(AA13*((LOG(AA13))/LOG(2)))) -> 0 | AD13: =N13 -> 0 | AE13: =COUNTIF(L29:L39,AD13) -> 0 | AF13: =AE13/(AG4-AE8) -> 0 | AG13: =IF(AF13=0,0,(AF13*((LOG(AF13))/LOG(2)))) -> 0 | AI13: =N13 -> 0 | AJ13: =COUNTIF(L40:L50,AI13) -> 0 | AK13: =AJ13/(AL4-AJ8) -> 0 | AL13: =IF(AK13=0,0,(AK13*((LOG(AK13))/LOG(2)))) -> 0 | AN13: =N13 -> 0 | AO13: =COUNTIF(L51:L61,AN13) -> 0 | AP13: =AO13/(AQ4-AO8) -> 0 | AQ13: =IF(AP13=0,0,(AP13*((LOG(AP13))/LOG(2)))) -> 0 | AS13: =N13 -> 0 | AT13: =COUNTIF(L62:L72,AS13) -> 0 | AU13: =AT13/(AV4-AT8) -> 0 | AV13: =IF(AU13=0,0,(AU13*((LOG(AU13))/LOG(2)))) -> 0
A14: 22 | B14: 904 | C14: 14 | D14: 912 | K14: 0 | L14: 21 | T14: =N14 -> 0 | U14: =COUNTIF(L7:L17,T14) -> 0 | V14: =U14/(W4-U8) -> 0 | W14: =IF(V14=0,0,(V14*((LOG(V14))/LOG(2)))) -> 0 | Y14: =N14 -> 0 | Z14: =COUNTIF(L18:L28,Y14) -> 0 | AA14: =Z14/(AB4-Z8) -> 0 | AB14: =IF(AA14=0,0,(AA14*((LOG(AA14))/LOG(2)))) -> 0 | AD14: =N14 -> 0 | AE14: =COUNTIF(L29:L39,AD14) -> 0 | AF14: =AE14/(AG4-AE8) -> 0 | AG14: =IF(AF14=0,0,(AF14*((LOG(AF14))/LOG(2)))) -> 0 | AI14: =N14 -> 0 | AJ14: =COUNTIF(L40:L50,AI14) -> 0 | AK14: =AJ14/(AL4-AJ8) -> 0 | AL14: =IF(AK14=0,0,(AK14*((LOG(AK14))/LOG(2)))) -> 0 | AN14: =N14 -> 0 | AO14: =COUNTIF(L51:L61,AN14) -> 0 | AP14: =AO14/(AQ4-AO8) -> 0 | AQ14: =IF(AP14=0,0,(AP14*((LOG(AP14))/LOG(2)))) -> 0 | AS14: =N14 -> 0 | AT14: =COUNTIF(L62:L72,AS14) -> 0 | AU14: =AT14/(AV4-AT8) -> 0 | AV14: =IF(AU14=0,0,(AU14*((LOG(AU14))/LOG(2)))) -> 0
A15: 22 | B15: 1008 | C15: 14 | D15: 1015 | K15: 0 | L15: 21 | P15: =SUM(P7:P14) -> 1 | Q15: =-SUM(Q7:Q14) -> 1.693236694 | V15: =SUM(V7:V14) -> 1 | W15: =-SUM(W7:W14) -> 1.448815636 | AA15: =SUM(AA7:AA14) -> 1 | AB15: =-SUM(AB7:AB14) -> 1.378783493 | AF15: =SUM(AF7:AF14) -> 1 | AG15: =-SUM(AG7:AG14) -> 1 | AK15: =SUM(AK7:AK14) -> 1 | AL15: =-SUM(AL7:AL14) -> 0.8112781245 | AP15: =SUM(AP7:AP14) -> 1 | AQ15: =-SUM(AQ7:AQ14) -> 0.9182958341 | AU15: =SUM(AU7:AU14) -> 1 | AV15: =-SUM(AV7:AV14) -> 0.9182958341
A16: 11 | B16: 1120 | C16: 12 | D16: 1128 | K16: 0 | L16: 11 | P16: U= | Q16: =Q15/(LOG(Q4)/LOG(2)) -> 0.2801334031 | V16: U1= | W16: =W15/(LOG(W4)/LOG(2)) -> 0.4188016401 | AA16: U2= | AB16: =AB15/(LOG(AB4)/LOG(2)) -> 0.3985578111 | AF16: U3= | AG16: =AG15/(LOG(AG4)/LOG(2)) -> 0.2890648263 | AK16: U4= | AL16: =AL15/(LOG(AL4)/LOG(2)) -> 0.2345119701 | AP16: U5= | AQ16: =AQ15/(LOG(AQ4)/LOG(2)) -> 0.2654470258 | AU16: U6= | AV16: =AV15/(LOG(AV4)/LOG(2)) -> 0.2654470258
A17: 11 | B17: 1238 | C17: 21 | D17: 1246 | K17: 0 | L17: 12
A18: 11 | B18: 1345 | C18: 21 | D18: 1356 | K18: 0 | L18: 12
A19: 11 | B19: 1462 | C19: 21 | D19: 1501 | K19: 0 | L19: 12 | N19: Total Target Seq
A20: 22 | B20: 1595 | C20: 14 | D20: 1604 | K20: 0 | L20: 21 | N20: =COUNTIF(L7:L72,G3) -> 35 | P20: 11 | Q20: 11 | R20: 11 | S20: 11 | T20: 11 | U20: 11
A21: 22 | B21: 1711 | C21: 14 | D21: 1719 | K21: 0 | L21: 21 | P21: % of reinforcement given in 6 equal intervals based on number of trials
A22: 22 | B22: 1812 | C22: 14 | D22: 1819 | K22: 0 | L22: 21 | P22: %_1 | Q22: %_2 | R22: %_3 | S22: %_4 | T22: %_5 | U22: %_6
A23: 11 | B23: 1915 | C23: 21 | D23: 1928 | K23: 0 | L23: 12 | O23: target sequence | P23: =$G$3 -> 12 | Q23: =$G$3 -> 12 | R23: =$G$3 -> 12 | S23: =$G$3 -> 12 | T23: =$G$3 -> 12 | U23: =$G$3 -> 12
A24: 22 | B24: 2074 | C24: 23 | D24: 2112 | K24: 0 | L24: 22 | O24: total reinforcement | P24: =U8 -> 4 | Q24: =Z8 -> 4 | R24: =AE8 -> 7 | S24: =AJ8 -> 7 | T24: =AO8 -> 5 | U24: =AT8 -> 8
A25: 11 | B25: 2217 | C25: 21 | D25: 2247 | K25: 0 | L25: 12 | O25: % target
A26: 11 | B26: 2349 | C26: 12 | D26: 2356 | K26: 0 | L26: 11 | O26: CCRF
A27: 11 | B27: 2458 | C27: 12 | D27: 2466 | K27: 0 | L27: 11 | O27: % CCRf
A28: 22 | B28: 2568 | C28: 14 | D28: 2575 | K28: 0 | L28: 21 | O28: average response rate | P28: =D17/P20 -> 113.2727273 | Q28: =(D28-D17)/Q20 -> 120.8181818 | R28: =(D39-D28)/R20 -> 129.4545455 | S28: =(D50-D39)/S20 -> 123.4545455 | T28: =(D61-D50)/T20 -> 123.3636364 | U28: =(D72-D61)/U20 -> 129.7272727
A29: 11 | B29: 2676 | C29: 21 | D29: 2727 | K29: 0 | L29: 12
A30: 11 | B30: 2827 | C30: 12 | D30: 2836 | K30: 0 | L30: 11
A31: 11 | B31: 2942 | C31: 21 | D31: 2968 | K31: 0 | L31: 12
A32: 11 | B32: 3071 | C32: 21 | D32: 3108 | K32: 0 | L32: 12
A33: 11 | B33: 3214 | C33: 21 | D33: 3226 | K33: 0 | L33: 12
A34: 11 | B34: 3341 | C34: 21 | D34: 3363 | K34: 0 | L34: 12
A35: 22 | B35: 3487 | C35: 23 | D35: 3507 | K35: 0 | L35: 22
A36: 11 | B36: 3612 | C36: 21 | D36: 3623 | K36: 0 | L36: 12
A37: 11 | B37: 3727 | C37: 12 | D37: 3734 | K37: 0 | L37: 11
A38: 11 | B38: 3843 | C38: 21 | D38: 3878 | K38: 0 | L38: 12
A39: 22 | B39: 3986 | C39: 23 | D39: 3999 | K39: 0 | L39: 22
A40: 22 | B40: 4091 | C40: 14 | D40: 4099 | K40: 0 | L40: 21
A41: 22 | B41: 4196 | C41: 14 | D41: 4203 | K41: 0 | L41: 21
A42: 22 | B42: 4330 | C42: 14 | D42: 4338 | K42: 0 | L42: 21
A43: 11 | B43: 4441 | C43: 21 | D43: 4460 | K43: 0 | L43: 12
A44: 11 | B44: 4581 | C44: 21 | D44: 4592 | K44: 0 | L44: 12
A45: 11 | B45: 4694 | C45: 21 | D45: 4719 | K45: 0 | L45: 12
A46: 11 | B46: 4825 | C46: 21 | D46: 4840 | K46: 0 | L46: 12
A47: 11 | B47: 4943 | C47: 21 | D47: 4952 | K47: 0 | L47: 12
A48: 11 | B48: 5051 | C48: 21 | D48: 5098 | K48: 0 | L48: 12
A49: 11 | B49: 5200 | C49: 21 | D49: 5219 | K49: 0 | L49: 12
A50: 22 | B50: 5327 | C50: 23 | D50: 5357 | K50: 0 | L50: 22
A51: 22 | B51: 5457 | C51: 14 | D51: 5465 | K51: 0 | L51: 21
A52: 22 | B52: 5598 | C52: 23 | D52: 5616 | K52: 0 | L52: 22
A53: 22 | B53: 5718 | C53: 14 | D53: 5726 | K53: 0 | L53: 21
A54: 11 | B54: 5851 | C54: 21 | D54: 5867 | K54: 0 | L54: 12
A55: 11 | B55: 5966 | C55: 21 | D55: 5980 | K55: 0 | L55: 12
A56: 11 | B56: 6076 | C56: 21 | D56: 6097 | K56: 0 | L56: 12
A57: 22 | B57: 6190 | C57: 14 | D57: 6198 | K57: 0 | L57: 21
A58: 11 | B58: 6319 | C58: 21 | D58: 6363 | K58: 0 | L58: 12
A59: 22 | B59: 6469 | C59: 14 | D59: 6478 | K59: 0 | L59: 21
A60: 22 | B60: 6578 | C60: 23 | D60: 6594 | K60: 0 | L60: 22
A61: 11 | B61: 6699 | C61: 21 | D61: 6714 | K61: 0 | L61: 12
A62: 11 | B62: 6812 | C62: 21 | D62: 6826 | K62: 0 | L62: 12
A63: 11 | B63: 6932 | C63: 21 | D63: 6942 | K63: 0 | L63: 12
A64: 11 | B64: 7045 | C64: 21 | D64: 7056 | K64: 0 | L64: 12
A65: 11 | B65: 7161 | C65: 12 | D65: 7228 | K65: 0 | L65: 11
A66: 11 | B66: 7364 | C66: 21 | D66: 7391 | K66: 0 | L66: 12
A67: 22 | B67: 7486 | C67: 14 | D67: 7493 | K67: 0 | L67: 21
A68: 11 | B68: 7645 | C68: 21 | D68: 7656 | K68: 0 | L68: 12
A69: 11 | B69: 7756 | C69: 21 | D69: 7763 | K69: 0 | L69: 12
A70: 22 | B70: 7861 | C70: 14 | D70: 7870 | K70: 0 | L70: 21
A71: 11 | B71: 7970 | C71: 21 | D71: 7985 | K71: 0 | L71: 12
A72: 11 | B72: 8122 | C72: 21 | D72: 8141 | K72: 1 | L72: 12

Sheet !N216920.095
A1: Report for:!N216920.095
A2: Date: | B2: <date>
A3: Hen: | B3: <hen> | F3: Correct Sequence | G3: =Start!J2 -> 12 | P3: Total Sequences in Data | Q3: =4994-COUNTBLANK(L7:L5000) -> 61 | V3: Total Sequences in Block Data | W3: =COUNTA(L7:L16) -> 10 | AA3: Total Sequences in Block Data | AB3: =COUNTA(L17:L26) -> 10 | AF3: Total Sequences in Block Data | AG3: =COUNTA(L27:L37) -> 11 | AK3: Total Sequences in Block Data | AL3: =COUNTA(L38:L47) -> 10 | AP3: Total Sequences in Block Data | AQ3: =COUNTA(L48:L57) -> 10 | AU3: Total Sequences in Block Data | AV3: =COUNTA(L58:L67) -> 10
P4: Total Sequences in Summary | Q4: =SUM(O7:O14) -> 61 | V4: Total Sequences in Block Summary | W4: =SUM(U7:U14) -> 10 | AA4: Total Sequences in Block Summary | AB4: =SUM(Z7:Z14) -> 10 | AF4: Total Sequences in Block Summary | AG4: =SUM(AE7:AE14) -> 11 | AK4: Total Sequences in Block Summary | AL4: =SUM(AJ7:AJ14) -> 10 | AP4: Total Sequences in Block Summary | AQ4: =SUM(AO7:AO14) -> 10 | AU4: Total Sequences in Block Summary | AV4: =SUM(AT7:AT14) -> 10
T5: Block 1 | Y5: Block 2 | AD5: Block 3 | AI5: Block 4 | AN5: Block 5 | AS5: Block 6
A6: Sequence Component 1 | B6: Time 1 | C6: Sequence Component 2 | D6: Time 2 | E6: Sequence Component 3 | F6: Time 3 | G6: Sequence Component 4 | H6: Time 4 | I6: Sequence Component 5 | J6: Time 5 | K6: Correct? 0=No 1=Yes | L6: Sequence | N6: Frequency | P6: Relative Frequency | Q6: Variability | T6: Frequency | V6: Relative Frequency | W6: Variability | Y6: Frequency | AA6: Relative Frequency | AB6: Variability | AD6: Frequency | AF6: Relative Frequency | AG6: Variability | AI6: Frequency | AK6: Relative Frequency | AL6: Variability | AN6: Frequency | AP6: Relative Frequency | AQ6: Variability | AS6: Frequency | AU6: Relative Frequency | AV6: Variability
A7: 22 | B7: 9 | C7: 23 | D7: 20 | K7: 0 | L7: 22 | N7: 11 | O7: =COUNTIF($L$7:$L$500,N7) -> 9 | P7: =O7/$Q$4 -> 0.1475409836 | Q7: =IF(P7=0,0,(P7*((LOG(P7))/LOG(2)))) -> -0.4073329676 | T7: =N7 -> 11 | U7: =COUNTIF(L7:L16,T7) -> 2 | V7: =U7/(W4-U8) -> 0.3333333333 | W7: =IF(V7=0,0,(V7*((LOG(V7))/LOG(2)))) -> -0.5283208336 | Y7: =N7 -> 11 | Z7: =COUNTIF(L17:L26,Y7) -> 1 | AA7: =Z7/(AB4-Z8) -> 0.2 | AB7: =IF(AA7=0,0,(AA7*((LOG(AA7))/LOG(2)))) -> -0.464385619 | AD7: =N7 -> 11 | AE7: =COUNTIF(L27:L37,AD7) -> 1 | AF7: =AE7/(AG4-AE8) -> 0.25 | AG7: =IF(AF7=0,0,(AF7*((LOG(AF7))/LOG(2)))) -> -0.5 | AI7: =N7 -> 11 | AJ7: =COUNTIF(L38:L47,AI7) -> 2 | AK7: =AJ7/(AL4-AJ8) -> 0.6666666667 | AL7: =IF(AK7=0,0,(AK7*((LOG(AK7))/LOG(2)))) -> -0.3899750005 | AN7: =N7 -> 11 | AO7: =COUNTIF(L48:L57,AN7) -> 1 | AP7: =AO7/(AQ4-AO8) -> 0.3333333333 | AQ7: =IF(AP7=0,0,(AP7*((LOG(AP7))/LOG(2)))) -> -0.5283208336 | AS7: =N7 -> 11 | AT7: =COUNTIF(L58:L67,AS7) -> 2 | AU7: =AT7/(AV4-AT8) -> 0.5 | AV7: =IF(AU7=0,0,(AU7*((LOG(AU7))/LOG(2)))) -> -0.5
A8: 22 | B8: 119 | C8: 14 | D8: 128 | K8: 0 | L8: 21 | N8: 12 | O8: =COUNTIF($L$7:$L$500,N8) -> 36 | P8: =O8/$Q$4 -> 0.5901639344 | Q8: =IF(P8=0,0,(P8*((LOG(P8))/LOG(2)))) -> -0.4490040016 | T8: =N8 -> 12 | U8: =COUNTIF(L7:L16,T8) -> 4 | Y8: =N8 -> 12 | Z8: =COUNTIF(L17:L26,Y8) -> 5 | AD8: =N8 -> 12 | AE8: =COUNTIF(L27:L37,AD8) -> 7 | AI8: =N8 -> 12 | AJ8: =COUNTIF(L38:L47,AI8) -> 7 | AN8: =N8 -> 12 | AO8: =COUNTIF(L48:L57,AN8) -> 7 | AS8: =N8 -> 12 | AT8: =COUNTIF(L58:L67,AS8) -> 6
A9: 22 | B9: 225 | C9: 23 | D9: 283 | K9: 0 | L9: 22 | N9: 21 | O9: =COUNTIF($L$7:$L$500,N9) -> 11 | P9: =O9/$Q$4 -> 0.1803278689 | Q9: =IF(P9=0,0,(P9*((LOG(P9))/LOG(2)))) -> -0.4456452936 | T9: =N9 -> 21 | U9: =COUNTIF(L7:L16,T9) -> 2 | V9: =U9/(W4-U8) -> 0.3333333333 | W9: =IF(V9=0,0,(V9*((LOG(V9))/LOG(2)))) -> -0.5283208336 | Y9: =N9 -> 21 | Z9: =COUNTIF(L17:L26,Y9) -> 3 | AA9: =Z9/(AB4-Z8) -> 0.6 | AB9: =IF(AA9=0,0,(AA9*((LOG(AA9))/LOG(2)))) -> -0.4421793565 | AD9: =N9 -> 21 | AE9: =COUNTIF(L27:L37,AD9) -> 2 | AF9: =AE9/(AG4-AE8) -> 0.5 | AG9: =IF(AF9=0,0,(AF9*((LOG(AF9))/LOG(2)))) -> -0.5 | AI9: =N9 -> 21 | AJ9: =COUNTIF(L38:L47,AI9) -> 1 | AK9: =AJ9/(AL4-AJ8) -> 0.3333333333 | AL9: =IF(AK9=0,0,(AK9*((LOG(AK9))/LOG(2)))) -> -0.5283208336 | AN9: =N9 -> 21 | AO9: =COUNTIF(L48:L57,AN9) -> 2 | AP9: =AO9/(AQ4-AO8) -> 0.6666666667 | AQ9: =IF(AP9=0,0,(AP9*((LOG(AP9))/LOG(2)))) -> -0.3899750005 | AS9: =N9 -> 21 | AT9: =COUNTIF(L58:L67,AS9) -> 1 | AU9: =AT9/(AV4-AT8) -> 0.25 | AV9: =IF(AU9=0,0,(AU9*((LOG(AU9))/LOG(2)))) -> -0.5
A10: 11 | B10: 391 | C10: 21 | D10: 400 | K10: 0 | L10: 12 | N10: 22 | O10: =COUNTIF($L$7:$L$500,N10) -> 5 | P10: =O10/$Q$4 -> 0.08196721311 | Q10: =IF(P10=0,0,(P10*((LOG(P10))/LOG(2)))) -> -0.2958040363 | T10: =N10 -> 22 | U10: =COUNTIF(L7:L16,T10) -> 2 | V10: =U10/(W4-U8) -> 0.3333333333 | W10: =IF(V10=0,0,(V10*((LOG(V10))/LOG(2)))) -> -0.5283208336 | Y10: =N10 -> 22 | Z10: =COUNTIF(L17:L26,Y10) -> 1 | AA10: =Z10/(AB4-Z8) -> 0.2 | AB10: =IF(AA10=0,0,(AA10*((LOG(AA10))/LOG(2)))) -> -0.464385619 | AD10: =N10 -> 22 | AE10: =COUNTIF(L27:L37,AD10) -> 1 | AF10: =AE10/(AG4-AE8) -> 0.25 | AG10: =IF(AF10=0,0,(AF10*((LOG(AF10))/LOG(2)))) -> -0.5 | AI10: =N10 -> 22 | AJ10: =COUNTIF(L38:L47,AI10) -> 0 | AK10: =AJ10/(AL4-AJ8) -> 0 | AL10: =IF(AK10=0,0,(AK10*((LOG(AK10))/LOG(2)))) -> 0 | AN10: =N10 -> 22 | AO10: =COUNTIF(L48:L57,AN10) -> 0 | AP10: =AO10/(AQ4-AO8) -> 0 | AQ10: =IF(AP10=0,0,(AP10*((LOG(AP10))/LOG(2)))) -> 0 | AS10: =N10 -> 22 | AT10: =COUNTIF(L58:L67,AS10) -> 1 | AU10: =AT10/(AV4-AT8) -> 0.25 | AV10: =IF(AU10=0,0,(AU10*((LOG(AU10))/LOG(2)))) -> -0.5
A11: 22 | B11: 496 | C11: 14 | D11: 503 | K11: 0 | L11: 21 | T11: =N11 -> 0 | U11: =COUNTIF(L7:L16,T11) -> 0 | V11: =U11/(W4-U8) -> 0 | W11: =IF(V11=0,0,(V11*((LOG(V11))/LOG(2)))) -> 0 | Y11: =N11 -> 0 | Z11: =COUNTIF(L17:L26,Y11) -> 0 | AA11: =Z11/(AB4-Z8) -> 0 | AB11: =IF(AA11=0,0,(AA11*((LOG(AA11))/LOG(2)))) -> 0 | AD11: =N11 -> 0 | AE11: =COUNTIF(L27:L37,AD11) -> 0 | AF11: =AE11/(AG4-AE8) -> 0 | AG11: =IF(AF11=0,0,(AF11*((LOG(AF11))/LOG(2)))) -> 0 | AI11: =N11 -> 0 | AJ11: =COUNTIF(L38:L47,AI11) -> 0 | AK11: =AJ11/(AL4-AJ8) -> 0 | AL11: =IF(AK11=0,0,(AK11*((LOG(AK11))/LOG(2)))) -> 0 | AN11: =N11 -> 0 | AO11: =COUNTIF(L48:L57,AN11) -> 0 | AP11: =AO11/(AQ4-AO8) -> 0 | AQ11: =IF(AP11=0,0,(AP11*((LOG(AP11))/LOG(2)))) -> 0 | AS11: =N11 -> 0 | AT11: =COUNTIF(L58:L67,AS11) -> 0 | AU11: =AT11/(AV4-AT8) -> 0 | AV11: =IF(AU11=0,0,(AU11*((LOG(AU11))/LOG(2)))) -> 0
A12: 11 | B12: 603 | C12: 21 | D12: 642 | K12: 0 | L12: 12 | T12: =N12 -> 0 | U12: =COUNTIF(L7:L16,T12) -> 0 | V12: =U12/(W4-U8) -> 0 | W12: =IF(V12=0,0,(V12*((LOG(V12))/LOG(2)))) -> 0 | Y12: =N12 -> 0 | Z12: =COUNTIF(L17:L26,Y12) -> 0 | AA12: =Z12/(AB4-Z8) -> 0 | AB12: =IF(AA12=0,0,(AA12*((LOG(AA12))/LOG(2)))) -> 0 | AD12: =N12 -> 0 | AE12: =COUNTIF(L27:L37,AD12) -> 0 | AF12: =AE12/(AG4-AE8) -> 0 | AG12: =IF(AF12=0,0,(AF12*((LOG(AF12))/LOG(2)))) -> 0 | AI12: =N12 -> 0 | AJ12: =COUNTIF(L38:L47,AI12) -> 0 | AK12: =AJ12/(AL4-AJ8) -> 0 | AL12: =IF(AK12=0,0,(AK12*((LOG(AK12))/LOG(2)))) -> 0 | AN12: =N12 -> 0 | AO12: =COUNTIF(L48:L57,AN12) -> 0 | AP12: =AO12/(AQ4-AO8) -> 0 | AQ12: =IF(AP12=0,0,(AP12*((LOG(AP12))/LOG(2)))) -> 0 | AS12: =N12 -> 0 | AT12: =COUNTIF(L58:L67,AS12) -> 0 | AU12: =AT12/(AV4-AT8) -> 0 | AV12: =IF(AU12=0,0,(AU12*((LOG(AU12))/LOG(2)))) -> 0
A13: 11 | B13: 743 | C13: 12 | D13: 751 | K13: 0 | L13: 11 | T13: =N13 -> 0 | U13: =COUNTIF(L7:L16,T13) -> 0 | V13: =U13/(W4-U8) -> 0 | W13: =IF(V13=0,0,(V13*((LOG(V13))/LOG(2)))) -> 0 | Y13: =N13 -> 0 | Z13: =COUNTIF(L17:L26,Y13) -> 0 | AA13: =Z13/(AB4-Z8) -> 0 | AB13: =IF(AA13=0,0,(AA13*((LOG(AA13))/LOG(2)))) -> 0 | AD13: =N13 -> 0 | AE13: =COUNTIF(L27:L37,AD13) -> 0 | AF13: =AE13/(AG4-AE8) -> 0 | AG13: =IF(AF13=0,0,(AF13*((LOG(AF13))/LOG(2)))) -> 0 | AI13: =N13 -> 0 | AJ13: =COUNTIF(L38:L47,AI13) -> 0 | AK13: =AJ13/(AL4-AJ8) -> 0 | AL13: =IF(AK13=0,0,(AK13*((LOG(AK13))/LOG(2)))) -> 0 | AN13: =N13 -> 0 | AO13: =COUNTIF(L48:L57,AN13) -> 0 | AP13: =AO13/(AQ4-AO8) -> 0 | AQ13: =IF(AP13=0,0,(AP13*((LOG(AP13))/LOG(2)))) -> 0 | AS13: =N13 -> 0 | AT13: =COUNTIF(L58:L67,AS13) -> 0 | AU13: =AT13/(AV4-AT8) -> 0 | AV13: =IF(AU13=0,0,(AU13*((LOG(AU13))/LOG(2)))) -> 0
A14: 11 | B14: 846 | C14: 21 | D14: 867 | K14: 0 | L14: 12 | T14: =N14 -> 0 | U14: =COUNTIF(L7:L16,T14) -> 0 | V14: =U14/(W4-U8) -> 0 | W14: =IF(V14=0,0,(V14*((LOG(V14))/LOG(2)))) -> 0 | Y14: =N14 -> 0 | Z14: =COUNTIF(L17:L26,Y14) -> 0 | AA14: =Z14/(AB4-Z8) -> 0 | AB14: =IF(AA14=0,0,(AA14*((LOG(AA14))/LOG(2)))) -> 0 | AD14: =N14 -> 0 | AE14: =COUNTIF(L27:L37,AD14) -> 0 | AF14: =AE14/(AG4-AE8) -> 0 | AG14: =IF(AF14=0,0,(AF14*((LOG(AF14))/LOG(2)))) -> 0 | AI14: =N14 -> 0 | AJ14: =COUNTIF(L38:L47,AI14) -> 0 | AK14: =AJ14/(AL4-AJ8) -> 0 | AL14: =IF(AK14=0,0,(AK14*((LOG(AK14))/LOG(2)))) -> 0 | AN14: =N14 -> 0 | AO14: =COUNTIF(L48:L57,AN14) -> 0 | AP14: =AO14/(AQ4-AO8) -> 0 | AQ14: =IF(AP14=0,0,(AP14*((LOG(AP14))/LOG(2)))) -> 0 | AS14: =N14 -> 0 | AT14: =COUNTIF(L58:L67,AS14) -> 0 | AU14: =AT14/(AV4-AT8) -> 0 | AV14: =IF(AU14=0,0,(AU14*((LOG(AU14))/LOG(2)))) -> 0
A15: 11 | B15: 969 | C15: 12 | D15: 977 | K15: 0 | L15: 11 | P15: =SUM(P7:P14) -> 1 | Q15: =-SUM(Q7:Q14) -> 1.597786299 | V15: =SUM(V7:V14) -> 1 | W15: =-SUM(W7:W14) -> 1.584962501 | AA15: =SUM(AA7:AA14) -> 1 | AB15: =-SUM(AB7:AB14) -> 1.370950594 | AF15: =SUM(AF7:AF14) -> 1 | AG15: =-SUM(AG7:AG14) -> 1.5 | AK15: =SUM(AK7:AK14) -> 1 | AL15: =-SUM(AL7:AL14) -> 0.9182958341 | AP15: =SUM(AP7:AP14) -> 1 | AQ15: =-SUM(AQ7:AQ14) -> 0.9182958341 | AU15: =SUM(AU7:AU14) -> 1 | AV15: =-SUM(AV7:AV14) -> 1.5
A16: 11 | B16: 1081 | C16: 21 | D16: 1089 | K16: 0 | L16: 12 | P16: U= | Q16: =Q15/(LOG(Q4)/LOG(2)) -> 0.2694076989 | V16: U1= | W16: =W15/(LOG(W4)/LOG(2)) -> 0.4771212547 | AA16: U2= | AB16: =AB15/(LOG(AB4)/LOG(2)) -> 0.4126972515 | AF16: U3= | AG16: =AG15/(LOG(AG4)/LOG(2)) -> 0.4335972395 | AK16: U4= | AL16: =AL15/(LOG(AL4)/LOG(2)) -> 0.2764345909 | AP16: U5= | AQ16: =AQ15/(LOG(AQ4)/LOG(2)) -> 0.2764345909 | AU16: U6= | AV16: =AV15/(LOG(AV4)/LOG(2)) -> 0.4515449935
A17: 22 | B17: 1184 | C17: 14 | D17: 1191 | K17: 0 | L17: 21
A18: 11 | B18: 1293 | C18: 21 | D18: 1311 | K18: 0 | L18: 12
A19: 22 | B19: 1422 | C19: 23 | D19: 1446 | K19: 0 | L19: 22 | N19: Total Target Seq
A20: 11 | B20: 1550 | C20: 21 | D20: 1567 | K20: 0 | L20: 12 | N20: =COUNTIF(L7:L67,G3) -> 36 | P20: 10 | Q20: 10 | R20: 11 | S20: 10 | T20: 10 | U20: 10
A21: 11 | B21: 1664 | C21: 21 | D21: 1688 | K21: 0 | L21: 12 | P21: % of reinforcement given in 6 equal intervals based on number of trials
A22: 11 | B22: 1788 | C22: 12 | D22: 1796 | K22: 0 | L22: 11 | P22: %_1 | Q22: %_2 | R22: %_3 | S22: %_4 | T22: %_5 | U22: %_6
A23: 11 | B23: 1898 | C23: 21 | D23: 1932 | K23: 0 | L23: 12 | O23: target sequence | P23: =$G$3 -> 12 | Q23: =$G$3 -> 12 | R23: =$G$3 -> 12 | S23: =$G$3 -> 12 | T23: =$G$3 -> 12 | U23: =$G$3 -> 12
A24: 22 | B24: 2025 | C24: 14 | D24: 2032 | K24: 0 | L24: 21 | O24: total reinforcement | P24: =U8 -> 4 | Q24: =Z8 -> 5 | R24: =AE8 -> 7 | S24: =AJ8 -> 7 | T24: =AO8 -> 7 | U24: =AT8 -> 6
A25: 11 | B25: 2136 | C25: 21 | D25: 2188 | K25: 0 | L25: 12 | O25: % target
A26: 22 | B26: 2283 | C26: 14 | D26: 2290 | K26: 0 | L26: 21 | O26: CCRF
A27: 11 | B27: 2391 | C27: 21 | D27: 2405 | K27: 0 | L27: 12 | O27: % CCRf
A28: 11 | B28: 2498 | C28: 21 | D28: 2519 | K28: 0 | L28: 12 | O28: average response rate | P28: =D16/P20 -> 108.9 | Q28: =(D26-D16)/Q20 -> 120.1 | R28: =(D37-D26)/R20 -> 115 | S28: =(D47-D37)/S20 -> 112 | T28: =(D57-D47)/T20 -> 118.5 | U28: =(D67-D57)/U20 -> 117.9
A29: 11 | B29: 2617 | C29: 21 | D29: 2639 | K29: 0 | L29: 12
A30: 22 | B30: 2732 | C30: 14 | D30: 2739 | K30: 0 | L30: 21
A31: 11 | B31: 2842 | C31: 12 | D31: 2854 | K31: 0 | L31: 11
A32: 11 | B32: 2956 | C32: 21 | D32: 2983 | K32: 0 | L32: 12
A33: 22 | B33: 3075 | C33: 23 | D33: 3090 | K33: 0 | L33: 22
A34: 11 | B34: 3195 | C34: 21 | D34: 3216 | K34: 0 | L34: 12
A35: 22 | B35: 3308 | C35: 14 | D35: 3315 | K35: 0 | L35: 21
A36: 11 | B36: 3421 | C36: 21 | D36: 3436 | K36: 0 | L36: 12
A37: 11 | B37: 3531 | C37: 21 | D37: 3555 | K37: 0 | L37: 12
A38: 11 | B38: 3647 | C38: 12 | D38: 3658 | K38: 0 | L38: 11
A39: 22 | B39: 3751 | C39: 14 | D39: 3755 | K39: 0 | L39: 21
A40: 11 | B40: 3854 | C40: 21 | D40: 3863 | K40: 0 | L40: 12
A41: 11 | B41: 3958 | C41: 21 | D41: 3967 | K41: 0 | L41: 12
A42: 11 | B42: 4067 | C42: 21 | D42: 4130 | K42: 0 | L42: 12
A43: 11 | B43: 4222 | C43: 12 | D43: 4238 | K43: 0 | L43: 11
A44: 11 | B44: 4337 | C44: 21 | D44: 4344 | K44: 0 | L44: 12
A45: 11 | B45: 4434 | C45: 21 | D45: 4442 | K45: 0 | L45: 12
A46: 11 | B46: 4541 | C46: 21 | D46: 4558 | K46: 0 | L46: 12
A47: 11 | B47: 4650 | C47: 21 | D47: 4675 | K47: 0 | L47: 12
A48: 11 | B48: 4770 | C48: 21 | D48: 4790 | K48: 0 | L48: 12
A49: 11 | B49: 4883 | C49: 21 | D49: 4913 | K49: 0 | L49: 12
A50: 22 | B50: 5010 | C50: 14 | D50: 5018 | K50: 0 | L50: 21
A51: 22 | B51: 5128 | C51: 14 | D51: 5135 | K51: 0 | L51: 21
A52: 11 | B52: 5237 | C52: 21 | D52: 5252 | K52: 0 | L52: 12
A53: 11 | B53: 5350 | C53: 21 | D53: 5358 | K53: 0 | L53: 12
A54: 11 | B54: 5451 | C54: 12 | D54: 5467 | K54: 0 | L54: 11
A55: 11 | B55: 5560 | C55: 21 | D55: 5630 | K55: 0 | L55: 12
A56: 11 | B56: 5727 | C56: 21 | D56: 5734 | K56: 0 | L56: 12
A57: 11 | B57: 5833 | C57: 21 | D57: 5860 | K57: 0 | L57: 12
A58: 11 | B58: 5956 | C58: 21 | D58: 5963 | K58: 0 | L58: 12
A59: 11 | B59: 6062 | C59: 12 | D59: 6073 | K59: 0 | L59: 11
A60: 11 | B60: 6173 | C60: 21 | D60: 6199 | K60: 0 | L60: 12
A61: 11 | B61: 6294 | C61: 21 | D61: 6314 | K61: 0 | L61: 12
A62: 11 | B62: 6419 | C62: 21 | D62: 6437 | K62: 0 | L62: 12
A63: 11 | B63: 6530 | C63: 21 | D63: 6538 | K63: 0 | L63: 12
A64: 22 | B64: 6632 | C64: 14 | D64: 6640 | K64: 0 | L64: 21
A65: 11 | B65: 6736 | C65: 12 | D65: 6750 | K65: 0 | L65: 11
A66: 22 | B66: 6881 | C66: 23 | D66: 6915 | K66: 0 | L66: 22
A67: 11 | B67: 7013 | C67: 21 | D67: 7039 | K67: 1 | L67: 12

Sheet !N217820.095
A1: Report for:!N217820.095
A2: Date: | B2: <date>
A3: Hen: | B3: <hen> | F3: Correct Sequence | G3: =Start!J2 -> 12 | P3: Total Sequences in Data | Q3: =4994-COUNTBLANK(L7:L5000) -> 50 | V3: Total Sequences in Block Data | W3: =COUNTA(L7:L14) -> 8 | AA3: Total Sequences in Block Data | AB3: =COUNTA(L15:L23) -> 9 | AF3: Total Sequences in Block Data | AG3: =COUNTA(L24:L31) -> 8 | AK3: Total Sequences in Block Data | AL3: =COUNTA(L32:L39) -> 8 | AP3: Total Sequences in Block Data | AQ3: =COUNTA(L40:L48) -> 9 | AU3: Total Sequences in Block Data | AV3: =COUNTA(L49:L56) -> 8
P4: Total Sequences in Summary | Q4: =SUM(O7:O14) -> 50 | V4: Total Sequences in Block Summary | W4: =SUM(U7:U14) -> 8 | AA4: Total Sequences in Block Summary | AB4: =SUM(Z7:Z14) -> 9 | AF4: Total Sequences in Block Summary | AG4: =SUM(AE7:AE14) -> 8 | AK4: Total Sequences in Block Summary | AL4: =SUM(AJ7:AJ14) -> 8 | AP4: Total Sequences in Block Summary | AQ4: =SUM(AO7:AO14) -> 9 | AU4: Total Sequences in Block Summary | AV4: =SUM(AT7:AT14) -> 8
T5: Block 1 | Y5: Block 2 | AD5: Block 3 | AI5: Block 4 | AN5: Block 5 | AS5: Block 6
A6: Sequence Component 1 | B6: Time 1 | C6: Sequence Component 2 | D6: Time 2 | E6: Sequence Component 3 | F6: Time 3 | G6: Sequence Component 4 | H6: Time 4 | I6: Sequence Component 5 | J6: Time 5 | K6: Correct? 0=No 1=Yes | L6: Sequence | N6: Frequency | P6: Relative Frequency | Q6: Variability | T6: Frequency | V6: Relative Frequency | W6: Variability | Y6: Frequency | AA6: Relative Frequency | AB6: Variability | AD6: Frequency | AF6: Relative Frequency | AG6: Variability | AI6: Frequency | AK6: Relative Frequency | AL6: Variability | AN6: Frequency | AP6: Relative Frequency | AQ6: Variability | AS6: Frequency | AU6: Relative Frequency | AV6: Variability
A7: 11 | B7: 18 | C7: 21 | D7: 26 | K7: 0 | L7: 12 | N7: 11 | O7: =COUNTIF($L$7:$L$500,N7) -> 5 | P7: =O7/$Q$4 -> 0.1 | Q7: =IF(P7=0,0,(P7*((LOG(P7))/LOG(2)))) -> -0.3321928095 | T7: =N7 -> 11 | U7: =COUNTIF(L7:L14,T7) -> 0 | V7: =U7/(W4-U8) -> 0 | W7: =IF(V7=0,0,(V7*((LOG(V7))/LOG(2)))) -> 0 | Y7: =N7 -> 11 | Z7: =COUNTIF(L15:L23,Y7) -> 2 | AA7: =Z7/(AB4-Z8) -> 0.4 | AB7: =IF(AA7=0,0,(AA7*((LOG(AA7))/LOG(2)))) -> -0.528771238 | AD7: =N7 -> 11 | AE7: =COUNTIF(L24:L31,AD7) -> 1 | AF7: =AE7/(AG4-AE8) -> 0.5 | AG7: =IF(AF7=0,0,(AF7*((LOG(AF7))/LOG(2)))) -> -0.5 | AI7: =N7 -> 11 | AJ7: =COUNTIF(L32:L39,AI7) -> 0 | AK7: =AJ7/(AL4-AJ8) ->  | AL7: =IF(AK7=0,0,(AK7*((LOG(AK7))/LOG(2)))) ->  | AN7: =N7 -> 11 | AO7: =COUNTIF(L40:L48,AN7) -> 0 | AP7: =AO7/(AQ4-AO8) -> 0 | AQ7: =IF(AP7=0,0,(AP7*((LOG(AP7))/LOG(2)))) -> 0 | AS7: =N7 -> 11 | AT7: =COUNTIF(L49:L56,AS7) -> 2 | AU7: =AT7/(AV4-AT8) -> 1 | AV7: =IF(AU7=0,0,(AU7*((LOG(AU7))/LOG(2)))) -> 0
A8: 11 | B8: 126 | C8: 21 | D8: 147 | K8: 0 | L8: 12 | N8: 12 | O8: =COUNTIF($L$7:$L$500,N8) -> 38 | P8: =O8/$Q$4 -> 0.76 | Q8: =IF(P8=0,0,(P8*((LOG(P8))/LOG(2)))) -> -0.300905794 | T8: =N8 -> 12 | U8: =COUNTIF(L7:L14,T8) -> 6 | Y8: =N8 -> 12 | Z8: =COUNTIF(L15:L23,Y8) -> 4 | AD8: =N8 -> 12 | AE8: =COUNTIF(L24:L31,AD8) -> 6 | AI8: =N8 -> 12 | AJ8: =COUNTIF(L32:L39,AI8) -> 8 | AN8: =N8 -> 12 | AO8: =COUNTIF(L40:L48,AN8) -> 8 | AS8: =N8 -> 12 | AT8: =COUNTIF(L49:L56,AS8) -> 6
A9: 11 | B9: 250 | C9: 21 | D9: 305 | K9: 0 | L9: 12 | N9: 21 | O9: =COUNTIF($L$7:$L$500,N9) -> 6 | P9: =O9/$Q$4 -> 0.12 | Q9: =IF(P9=0,0,(P9*((LOG(P9))/LOG(2)))) -> -0.3670672427 | T9: =N9 -> 21 | U9: =COUNTIF(L7:L14,T9) -> 1 | V9: =U9/(W4-U8) -> 0.5 | W9: =IF(V9=0,0,(V9*((LOG(V9))/LOG(2)))) -> -0.5 | Y9: =N9 -> 21 | Z9: =COUNTIF(L15:L23,Y9) -> 3 | AA9: =Z9/(AB4-Z8) -> 0.6 | AB9: =IF(AA9=0,0,(AA9*((LOG(AA9))/LOG(2)))) -> -0.4421793565 | AD9: =N9 -> 21 | AE9: =COUNTIF(L24:L31,AD9) -> 1 | AF9: =AE9/(AG4-AE8) -> 0.5 | AG9: =IF(AF9=0,0,(AF9*((LOG(AF9))/LOG(2)))) -> -0.5 | AI9: =N9 -> 21 | AJ9: =COUNTIF(L32:L39,AI9) -> 0 | AK9: =AJ9/(AL4-AJ8) ->  | AL9: =IF(AK9=0,0,(AK9*((LOG(AK9))/LOG(2)))) ->  | AN9: =N9 -> 21 | AO9: =COUNTIF(L40:L48,AN9) -> 1 | AP9: =AO9/(AQ4-AO8) -> 1 | AQ9: =IF(AP9=0,0,(AP9*((LOG(AP9))/LOG(2)))) -> 0 | AS9: =N9 -> 21 | AT9: =COUNTIF(L49:L56,AS9) -> 0 | AU9: =AT9/(AV4-AT8) -> 0 | AV9: =IF(AU9=0,0,(AU9*((LOG(AU9))/LOG(2)))) -> 0
A10: 11 | B10: 401 | C10: 21 | D10: 426 | K10: 0 | L10: 12 | N10: 22 | O10: =COUNTIF($L$7:$L$500,N10) -> 1 | P10: =O10/$Q$4 -> 0.02 | Q10: =IF(P10=0,0,(P10*((LOG(P10))/LOG(2)))) -> -0.1128771238 | T10: =N10 -> 22 | U10: =COUNTIF(L7:L14,T10) -> 1 | V10: =U10/(W4-U8) -> 0.5 | W10: =IF(V10=0,0,(V10*((LOG(V10))/LOG(2)))) -> -0.5 | Y10: =N10 -> 22 | Z10: =COUNTIF(L15:L23,Y10) -> 0 | AA10: =Z10/(AB4-Z8) -> 0 | AB10: =IF(AA10=0,0,(AA10*((LOG(AA10))/LOG(2)))) -> 0 | AD10: =N10 -> 22 | AE10: =COUNTIF(L24:L31,AD10) -> 0 | AF10: =AE10/(AG4-AE8) -> 0 | AG10: =IF(AF10=0,0,(AF10*((LOG(AF10))/LOG(2)))) -> 0 | AI10: =N10 -> 22 | AJ10: =COUNTIF(L32:L39,AI10) -> 0 | AK10: =AJ10/(AL4-AJ8) ->  | AL10: =IF(AK10=0,0,(AK10*((LOG(AK10))/LOG(2)))) ->  | AN10: =N10 -> 22 | AO10: =COUNTIF(L40:L48,AN10) -> 0 | AP10: =AO10/(AQ4-AO8) -> 0 | AQ10: =IF(AP10=0,0,(AP10*((LOG(AP10))/LOG(2)))) -> 0 | AS10: =N10 -> 22 | AT10: =COUNTIF(L49:L56,AS10) -> 0 | AU10: =AT10/(AV4-AT8) -> 0 | AV10: =IF(AU10=0,0,(AU10*((LOG(AU10))/LOG(2)))) -> 0
A11: 22 | B11: 549 | C11: 23 | D11: 559 | K11: 0 | L11: 22 | T11: =N11 -> 0 | U11: =COUNTIF(L7:L14,T11) -> 0 | V11: =U11/(W4-U8) -> 0 | W11: =IF(V11=0,0,(V11*((LOG(V11))/LOG(2)))) -> 0 | Y11: =N11 -> 0 | Z11: =COUNTIF(L15:L23,Y11) -> 0 | AA11: =Z11/(AB4-Z8) -> 0 | AB11: =IF(AA11=0,0,(AA11*((LOG(AA11))/LOG(2)))) -> 0 | AD11: =N11 -> 0 | AE11: =COUNTIF(L24:L31,AD11) -> 0 | AF11: =AE11/(AG4-AE8) -> 0 | AG11: =IF(AF11=0,0,(AF11*((LOG(AF11))/LOG(2)))) -> 0 | AI11: =N11 -> 0 | AJ11: =COUNTIF(L32:L39,AI11) -> 0 | AK11: =AJ11/(AL4-AJ8) ->  | AL11: =IF(AK11=0,0,(AK11*((LOG(AK11))/LOG(2)))) ->  | AN11: =N11 -> 0 | AO11: =COUNTIF(L40:L48,AN11) -> 0 | AP11: =AO11/(AQ4-AO8) -> 0 | AQ11: =IF(AP11=0,0,(AP11*((LOG(AP11))/LOG(2)))) -> 0 | AS11: =N11 -> 0 | AT11: =COUNTIF(L49:L56,AS11) -> 0 | AU11: =AT11/(AV4-AT8) -> 0 | AV11: =IF(AU11=0,0,(AU11*((LOG(AU11))/LOG(2)))) -> 0
A12: 11 | B12: 664 | C12: 21 | D12: 700 | K12: 0 | L12: 12 | T12: =N12 -> 0 | U12: =COUNTIF(L7:L14,T12) -> 0 | V12: =U12/(W4-U8) -> 0 | W12: =IF(V12=0,0,(V12*((LOG(V12))/LOG(2)))) -> 0 | Y12: =N12 -> 0 | Z12: =COUNTIF(L15:L23,Y12) -> 0 | AA12: =Z12/(AB4-Z8) -> 0 | AB12: =IF(AA12=0,0,(AA12*((LOG(AA12))/LOG(2)))) -> 0 | AD12: =N12 -> 0 | AE12: =COUNTIF(L24:L31,AD12) -> 0 | AF12: =AE12/(AG4-AE8) -> 0 | AG12: =IF(AF12=0,0,(AF12*((LOG(AF12))/LOG(2)))) -> 0 | AI12: =N12 -> 0 | AJ12: =COUNTIF(L32:L39,AI12) -> 0 | AK12: =AJ12/(AL4-AJ8) ->  | AL12: =IF(AK12=0,0,(AK12*((LOG(AK12))/LOG(2)))) ->  | AN12: =N12 -> 0 | AO12: =COUNTIF(L40:L48,AN12) -> 0 | AP12: =AO12/(AQ4-AO8) -> 0 | AQ12: =IF(AP12=0,0,(AP12*((LOG(AP12))/LOG(2)))) -> 0 | AS12: =N12 -> 0 | AT12: =COUNTIF(L49:L56,AS12) -> 0 | AU12: =AT12/(AV4-AT8) -> 0 | AV12: =IF(AU12=0,0,(AU12*((LOG(AU12))/LOG(2)))) -> 0
A13: 22 | B13: 793 | C13: 14 | D13: 798 | K13: 0 | L13: 21 | T13: =N13 -> 0 | U13: =COUNTIF(L7:L14,T13) -> 0 | V13: =U13/(W4-U8) -> 0 | W13: =IF(V13=0,0,(V13*((LOG(V13))/LOG(2)))) -> 0 | Y13: =N13 -> 0 | Z13: =COUNTIF(L15:L23,Y13) -> 0 | AA13: =Z13/(AB4-Z8) -> 0 | AB13: =IF(AA13=0,0,(AA13*((LOG(AA13))/LOG(2)))) -> 0 | AD13: =N13 -> 0 | AE13: =COUNTIF(L24:L31,AD13) -> 0 | AF13: =AE13/(AG4-AE8) -> 0 | AG13: =IF(AF13=0,0,(AF13*((LOG(AF13))/LOG(2)))) -> 0 | AI13: =N13 -> 0 | AJ13: =COUNTIF(L32:L39,AI13) -> 0 | AK13: =AJ13/(AL4-AJ8) ->  | AL13: =IF(AK13=0,0,(AK13*((LOG(AK13))/LOG(2)))) ->  | AN13: =N13 -> 0 | AO13: =COUNTIF(L40:L48,AN13) -> 0 | AP13: =AO13/(AQ4-AO8) -> 0 | AQ13: =IF(AP13=0,0,(AP13*((LOG(AP13))/LOG(2)))) -> 0 | AS13: =N13 -> 0 | AT13: =COUNTIF(L49:L56,AS13) -> 0 | AU13: =AT13/(AV4-AT8) -> 0 | AV13: =IF(AU13=0,0,(AU13*((LOG(AU13))/LOG(2)))) -> 0
A14: 11 | B14: 900 | C14: 21 | D14: 916 | K14: 0 | L14: 12 | T14: =N14 -> 0 | U14: =COUNTIF(L7:L14,T14) -> 0 | V14: =U14/(W4-U8) -> 0 | W14: =IF(V14=0,0,(V14*((LOG(V14))/LOG(2)))) -> 0 | Y14: =N14 -> 0 | Z14: =COUNTIF(L15:L23,Y14) -> 0 | AA14: =Z14/(AB4-Z8) -> 0 | AB14: =IF(AA14=0,0,(AA14*((LOG(AA14))/LOG(2)))) -> 0 | AD14: =N14 -> 0 | AE14: =COUNTIF(L24:L31,AD14) -> 0 | AF14: =AE14/(AG4-AE8) -> 0 | AG14: =IF(AF14=0,0,(AF14*((LOG(AF14))/LOG(2)))) -> 0 | AI14: =N14 -> 0 | AJ14: =COUNTIF(L32:L39,AI14) -> 0 | AK14: =AJ14/(AL4-AJ8) ->  | AL14: =IF(AK14=0,0,(AK14*((LOG(AK14))/LOG(2)))) ->  | AN14: =N14 -> 0 | AO14: =COUNTIF(L40:L48,AN14) -> 0 | AP14: =AO14/(AQ4-AO8) -> 0 | AQ14: =IF(AP14=0,0,(AP14*((LOG(AP14))/LOG(2)))) -> 0 | AS14: =N14 -> 0 | AT14: =COUNTIF(L49:L56,AS14) -> 0 | AU14: =AT14/(AV4-AT8) -> 0 | AV14: =IF(AU14=0,0,(AU14*((LOG(AU14))/LOG(2)))) -> 0
A15: 22 | B15: 1009 | C15: 14 | D15: 1017 | K15: 0 | L15: 21 | P15: =SUM(P7:P14) -> 1 | Q15: =-SUM(Q7:Q14) -> 1.11304297 | V15: =SUM(V7:V14) -> 1 | W15: =-SUM(W7:W14) -> 1 | AA15: =SUM(AA7:AA14) -> 1 | AB15: =-SUM(AB7:AB14) -> 0.9709505945 | AF15: =SUM(AF7:AF14) -> 1 | AG15: =-SUM(AG7:AG14) -> 1 | AK15: =SUM(AK7:AK14) ->  | AL15: =-SUM(AL7:AL14) ->  | AP15: =SUM(AP7:AP14) -> 1 | AQ15: =-SUM(AQ7:AQ14) -> 0 | AU15: =SUM(AU7:AU14) -> 1 | AV15: =-SUM(AV7:AV14) -> 0
A16: 11 | B16: 1114 | C16: 21 | D16: 1122 | K16: 0 | L16: 12 | P16: U= | Q16: =Q15/(LOG(Q4)/LOG(2)) -> 0.1972132054 | V16: U1= | W16: =W15/(LOG(W4)/LOG(2)) -> 0.3333333333 | AA16: U2= | AB16: =AB15/(LOG(AB4)/LOG(2)) -> 0.3063008096 | AF16: U3= | AG16: =AG15/(LOG(AG4)/LOG(2)) -> 0.3333333333 | AK16: U4= | AL16: =AL15/(LOG(AL4)/LOG(2)) ->  | AP16: U5= | AQ16: =AQ15/(LOG(AQ4)/LOG(2)) -> 0 | AU16: U6= | AV16: =AV15/(LOG(AV4)/LOG(2)) -> 0
A17: 11 | B17: 1221 | C17: 12 | D17: 1228 | K17: 0 | L17: 11
A18: 22 | B18: 1325 | C18: 14 | D18: 1332 | K18: 0 | L18: 21
A19: 22 | B19: 1430 | C19: 14 | D19: 1438 | K19: 0 | L19: 21 | N19: Total Target Seq
A20: 11 | B20: 1543 | C20: 21 | D20: 1594 | K20: 0 | L20: 12 | N20: =COUNTIF(L7:L56,G3) -> 38 | P20: 8 | Q20: 9 | R20: 8 | S20: 8 | T20: 9 | U20: 8
A21: 11 | B21: 1692 | C21: 12 | D21: 1700 | K21: 0 | L21: 11 | P21: % of reinforcement given in 6 equal intervals based on number of trials
A22: 11 | B22: 1797 | C22: 21 | D22: 1811 | K22: 0 | L22: 12 | P22: %_1 | Q22: %_2 | R22: %_3 | S22: %_4 | T22: %_5 | U22: %_6
A23: 11 | B23: 1908 | C23: 21 | D23: 1921 | K23: 0 | L23: 12 | O23: target sequence | P23: =$G$3 -> 12 | Q23: =$G$3 -> 12 | R23: =$G$3 -> 12 | S23: =$G$3 -> 12 | T23: =$G$3 -> 12 | U23: =$G$3 -> 12
A24: 11 | B24: 2016 | C24: 21 | D24: 2062 | K24: 0 | L24: 12 | O24: total reinforcement | P24: =U8 -> 6 | Q24: =Z8 -> 4 | R24: =AE8 -> 6 | S24: =AJ8 -> 8 | T24: =AO8 -> 8 | U24: =AT8 -> 6
A25: 11 | B25: 2159 | C25: 12 | D25: 2166 | K25: 0 | L25: 11 | O25: % target
A26: 11 | B26: 2269 | C26: 21 | D26: 2291 | K26: 0 | L26: 12 | O26: CCRF
A27: 11 | B27: 2387 | C27: 21 | D27: 2394 | K27: 0 | L27: 12 | O27: % CCRf
A28: 11 | B28: 2489 | C28: 21 | D28: 2513 | K28: 0 | L28: 12 | O28: average response rate | P28: =D14/P20 -> 114.5 | Q28: =(D23-D14)/Q20 -> 111.6666667 | R28: =(D31-D23)/R20 -> 118.5 | S28: =(D39-D31)/S20 -> 116.5 | T28: =(D48-D39)/T20 -> 107.8888889 | U28: =(D56-D48)/U20 -> 153.125
A29: 11 | B29: 2607 | C29: 21 | D29: 2656 | K29: 0 | L29: 12
A30: 22 | B30: 2747 | C30: 14 | D30: 2754 | K30: 0 | L30: 21
A31: 11 | B31: 2856 | C31: 21 | D31: 2869 | K31: 0 | L31: 12
A32: 11 | B32: 2963 | C32: 21 | D32: 2971 | K32: 0 | L32: 12
A33: 11 | B33: 3066 | C33: 21 | D33: 3085 | K33: 0 | L33: 12
A34: 11 | B34: 3178 | C34: 21 | D34: 3193 | K34: 0 | L34: 12
A35: 11 | B35: 3306 | C35: 21 | D35: 3327 | K35: 0 | L35: 12
A36: 11 | B36: 3429 | C36: 21 | D36: 3459 | K36: 0 | L36: 12
A37: 11 | B37: 3556 | C37: 21 | D37: 3563 | K37: 0 | L37: 12
A38: 11 | B38: 3657 | C38: 21 | D38: 3666 | K38: 0 | L38: 12
A39: 11 | B39: 3765 | C39: 21 | D39: 3801 | K39: 0 | L39: 12
A40: 11 | B40: 3901 | C40: 21 | D40: 3908 | K40: 0 | L40: 12
A41: 11 | B41: 4004 | C41: 21 | D41: 4011 | K41: 0 | L41: 12
A42: 11 | B42: 4109 | C42: 21 | D42: 4116 | K42: 0 | L42: 12
A43: 11 | B43: 4213 | C43: 21 | D43: 4226 | K43: 0 | L43: 12
A44: 11 | B44: 4324 | C44: 21 | D44: 4334 | K44: 0 | L44: 12
A45: 11 | B45: 4429 | C45: 21 | D45: 4436 | K45: 0 | L45: 12
A46: 22 | B46: 4530 | C46: 14 | D46: 4537 | K46: 0 | L46: 21
A47: 11 | B47: 4646 | C47: 21 | D47: 4666 | K47: 0 | L47: 12
A48: 11 | B48: 4765 | C48: 21 | D48: 4772 | K48: 0 | L48: 12
A49: 11 | B49: 4864 | C49: 12 | D49: 4875 | K49: 0 | L49: 11
A50: 11 | B50: 4978 | C50: 21 | D50: 5020 | K50: 0 | L50: 12
A51: 11 | B51: 5152 | C51: 12 | D51: 5160 | K51: 0 | L51: 11
A52: 11 | B52: 5264 | C52: 21 | D52: 5272 | K52: 0 | L52: 12
A53: 11 | B53: 5406 | C53: 21 | D53: 5417 | K53: 0 | L53: 12
A54: 11 | B54: 5551 | C54: 21 | D54: 5561 | K54: 0 | L54: 12
A55: 11 | B55: 5754 | C55: 21 | D55: 5762 | K55: 0 | L55: 12
A56: 11 | B56: 5986 | C56: 21 | D56: 5997 | K56: 1 | L56: 12

Sheet !N218950.095
A1: Report for:!N218950.095
A2: Date: | B2: <date>
A3: Hen: | B3: <hen> | F3: Correct Sequence | G3: =Start!J2 -> 12 | P3: Total Sequences in Data | Q3: =4994-COUNTBLANK(L7:L5000) -> 65 | V3: Total Sequences in Block Data | W3: =COUNTA(L7:L17) -> 11 | AA3: Total Sequences in Block Data | AB3: =COUNTA(L18:L28) -> 11 | AF3: Total Sequences in Block Data | AG3: =COUNTA(L29:L38) -> 10 | AK3: Total Sequences in Block Data | AL3: =COUNTA(L39:L49) -> 11 | AP3: Total Sequences in Block Data | AQ3: =COUNTA(L50:L60) -> 11 | AU3: Total Sequences in Block Data | AV3: =COUNTA(L61:L71) -> 11
P4: Total Sequences in Summary | Q4: =SUM(O7:O14) -> 65 | V4: Total Sequences in Block Summary | W4: =SUM(U7:U14) -> 11 | AA4: Total Sequences in Block Summary | AB4: =SUM(Z7:Z14) -> 11 | AF4: Total Sequences in Block Summary | AG4: =SUM(AE7:AE14) -> 10 | AK4: Total Sequences in Block Summary | AL4: =SUM(AJ7:AJ14) -> 11 | AP4: Total Sequences in Block Summary | AQ4: =SUM(AO7:AO14) -> 11 | AU4: Total Sequences in Block Summary | AV4: =SUM(AT7:AT14) -> 11
T5: Block 1 | Y5: Block 2 | AD5: Block 3 | AI5: Block 4 | AN5: Block 5 | AS5: Block 6
A6: Sequence Component 1 | B6: Time 1 | C6: Sequence Component 2 | D6: Time 2 | E6: Sequence Component 3 | F6: Time 3 | G6: Sequence Component 4 | H6: Time 4 | I6: Sequence Component 5 | J6: Time 5 | K6: Correct? 0=No 1=Yes | L6: Sequence | N6: Frequency | P6: Relative Frequency | Q6: Variability | T6: Frequency | V6: Relative Frequency | W6: Variability | Y6: Frequency | AA6: Relative Frequency | AB6: Variability | AD6: Frequency | AF6: Relative Frequency | AG6: Variability | AI6: Frequency | AK6: Relative Frequency | AL6: Variability | AN6: Frequency | AP6: Relative Frequency | AQ6: Variability | AS6: Frequency | AU6: Relative Frequency | AV6: Variability
A7: 11 | B7: 18 | C7: 21 | D7: 33 | K7: 0 | L7: 12 | N7: 11 | O7: =COUNTIF($L$7:$L$500,N7) -> 11 | P7: =O7/$Q$4 -> 0.1692307692 | Q7: =IF(P7=0,0,(P7*((LOG(P7))/LOG(2)))) -> -0.4337276637 | T7: =N7 -> 11 | U7: =COUNTIF(L7:L17,T7) -> 3 | V7: =U7/(W4-U8) -> 1 | W7: =IF(V7=0,0,(V7*((LOG(V7))/LOG(2)))) -> 0 | Y7: =N7 -> 11 | Z7: =COUNTIF(L18:L28,Y7) -> 0 | AA7: =Z7/(AB4-Z8) -> 0 | AB7: =IF(AA7=0,0,(AA7*((LOG(AA7))/LOG(2)))) -> 0 | AD7: =N7 -> 11 | AE7: =COUNTIF(L29:L38,AD7) -> 1 | AF7: =AE7/(AG4-AE8) -> 0.3333333333 | AG7: =IF(AF7=0,0,(AF7*((LOG(AF7))/LOG(2)))) -> -0.5283208336 | AI7: =N7 -> 11 | AJ7: =COUNTIF(L39:L49,AI7) -> 2 | AK7: =AJ7/(AL4-AJ8) -> 0.5 | AL7: =IF(AK7=0,0,(AK7*((LOG(AK7))/LOG(2)))) -> -0.5 | AN7: =N7 -> 11 | AO7: =COUNTIF(L50:L60,AN7) -> 2 | AP7: =AO7/(AQ4-AO8) -> 0.2857142857 | AQ7: =IF(AP7=0,0,(AP7*((LOG(AP7))/LOG(2)))) -> -0.5163871206 | AS7: =N7 -> 11 | AT7: =COUNTIF(L61:L71,AS7) -> 3 | AU7: =AT7/(AV4-AT8) -> 0.5 | AV7: =IF(AU7=0,0,(AU7*((LOG(AU7))/LOG(2)))) -> -0.5
A8: 11 | B8: 135 | C8: 21 | D8: 156 | K8: 0 | L8: 12 | N8: 12 | O8: =COUNTIF($L$7:$L$500,N8) -> 34 | P8: =O8/$Q$4 -> 0.5230769231 | Q8: =IF(P8=0,0,(P8*((LOG(P8))/LOG(2)))) -> -0.489027216 | T8: =N8 -> 12 | U8: =COUNTIF(L7:L17,T8) -> 8 | Y8: =N8 -> 12 | Z8: =COUNTIF(L18:L28,Y8) -> 3 | AD8: =N8 -> 12 | AE8: =COUNTIF(L29:L38,AD8) -> 7 | AI8: =N8 -> 12 | AJ8: =COUNTIF(L39:L49,AI8) -> 7 | AN8: =N8 -> 12 | AO8: =COUNTIF(L50:L60,AN8) -> 4 | AS8: =N8 -> 12 | AT8: =COUNTIF(L61:L71,AS8) -> 5
A9: 11 | B9: 248 | C9: 12 | D9: 255 | K9: 0 | L9: 11 | N9: 21 | O9: =COUNTIF($L$7:$L$500,N9) -> 11 | P9: =O9/$Q$4 -> 0.1692307692 | Q9: =IF(P9=0,0,(P9*((LOG(P9))/LOG(2)))) -> -0.4337276637 | T9: =N9 -> 21 | U9: =COUNTIF(L7:L17,T9) -> 0 | V9: =U9/(W4-U8) -> 0 | W9: =IF(V9=0,0,(V9*((LOG(V9))/LOG(2)))) -> 0 | Y9: =N9 -> 21 | Z9: =COUNTIF(L18:L28,Y9) -> 3 | AA9: =Z9/(AB4-Z8) -> 0.375 | AB9: =IF(AA9=0,0,(AA9*((LOG(AA9))/LOG(2)))) -> -0.5306390622 | AD9: =N9 -> 21 | AE9: =COUNTIF(L29:L38,AD9) -> 1 | AF9: =AE9/(AG4-AE8) -> 0.3333333333 | AG9: =IF(AF9=0,0,(AF9*((LOG(AF9))/LOG(2)))) -> -0.5283208336 | AI9: =N9 -> 21 | AJ9: =COUNTIF(L39:L49,AI9) -> 1 | AK9: =AJ9/(AL4-AJ8) -> 0.25 | AL9: =IF(AK9=0,0,(AK9*((LOG(AK9))/LOG(2)))) -> -0.5 | AN9: =N9 -> 21 | AO9: =COUNTIF(L50:L60,AN9) -> 3 | AP9: =AO9/(AQ4-AO8) -> 0.4285714286 | AQ9: =IF(AP9=0,0,(AP9*((LOG(AP9))/LOG(2)))) -> -0.5238824663 | AS9: =N9 -> 21 | AT9: =COUNTIF(L61:L71,AS9) -> 3 | AU9: =AT9/(AV4-AT8) -> 0.5 | AV9: =IF(AU9=0,0,(AU9*((LOG(AU9))/LOG(2)))) -> -0.5
A10: 11 | B10: 356 | C10: 21 | D10: 383 | K10: 0 | L10: 12 | N10: 22 | O10: =COUNTIF($L$7:$L$500,N10) -> 9 | P10: =O10/$Q$4 -> 0.1384615385 | Q10: =IF(P10=0,0,(P10*((LOG(P10))/LOG(2)))) -> -0.3949536201 | T10: =N10 -> 22 | U10: =COUNTIF(L7:L17,T10) -> 0 | V10: =U10/(W4-U8) -> 0 | W10: =IF(V10=0,0,(V10*((LOG(V10))/LOG(2)))) -> 0 | Y10: =N10 -> 22 | Z10: =COUNTIF(L18:L28,Y10) -> 5 | AA10: =Z10/(AB4-Z8) -> 0.625 | AB10: =IF(AA10=0,0,(AA10*((LOG(AA10))/LOG(2)))) -> -0.4237949407 | AD10: =N10 -> 22 | AE10: =COUNTIF(L29:L38,AD10) -> 1 | AF10: =AE10/(AG4-AE8) -> 0.3333333333 | AG10: =IF(AF10=0,0,(AF10*((LOG(AF10))/LOG(2)))) -> -0.5283208336 | AI10: =N10 -> 22 | AJ10: =COUNTIF(L39:L49,AI10) -> 1 | AK10: =AJ10/(AL4-AJ8) -> 0.25 | AL10: =IF(AK10=0,0,(AK10*((LOG(AK10))/LOG(2)))) -> -0.5 | AN10: =N10 -> 22 | AO10: =COUNTIF(L50:L60,AN10) -> 2 | AP10: =AO10/(AQ4-AO8) -> 0.2857142857 | AQ10: =IF(AP10=0,0,(AP10*((LOG(AP10))/LOG(2)))) -> -0.5163871206 | AS10: =N10 -> 22 | AT10: =COUNTIF(L61:L71,AS10) -> 0 | AU10: =AT10/(AV4-AT8) -> 0 | AV10: =IF(AU10=0,0,(AU10*((LOG(AU10))/LOG(2)))) -> 0
A11: 11 | B11: 486 | C11: 21 | D11: 504 | K11: 0 | L11: 12 | T11: =N11 -> 0 | U11: =COUNTIF(L7:L17,T11) -> 0 | V11: =U11/(W4-U8) -> 0 | W11: =IF(V11=0,0,(V11*((LOG(V11))/LOG(2)))) -> 0 | Y11: =N11 -> 0 | Z11: =COUNTIF(L18:L28,Y11) -> 0 | AA11: =Z11/(AB4-Z8) -> 0 | AB11: =IF(AA11=0,0,(AA11*((LOG(AA11))/LOG(2)))) -> 0 | AD11: =N11 -> 0 | AE11: =COUNTIF(L29:L38,AD11) -> 0 | AF11: =AE11/(AG4-AE8) -> 0 | AG11: =IF(AF11=0,0,(AF11*((LOG(AF11))/LOG(2)))) -> 0 | AI11: =N11 -> 0 | AJ11: =COUNTIF(L39:L49,AI11) -> 0 | AK11: =AJ11/(AL4-AJ8) -> 0 | AL11: =IF(AK11=0,0,(AK11*((LOG(AK11))/LOG(2)))) -> 0 | AN11: =N11 -> 0 | AO11: =COUNTIF(L50:L60,AN11) -> 0 | AP11: =AO11/(AQ4-AO8) -> 0 | AQ11: =IF(AP11=0,0,(AP11*((LOG(AP11))/LOG(2)))) -> 0 | AS11: =N11 -> 0 | AT11: =COUNTIF(L61:L71,AS11) -> 0 | AU11: =AT11/(AV4-AT8) -> 0 | AV11: =IF(AU11=0,0,(AU11*((LOG(AU11))/LOG(2)))) -> 0
A12: 11 | B12: 605 | C12: 21 | D12: 614 | K12: 0 | L12: 12 | T12: =N12 -> 0 | U12: =COUNTIF(L7:L17,T12) -> 0 | V12: =U12/(W4-U8) -> 0 | W12: =IF(V12=0,0,(V12*((LOG(V12))/LOG(2)))) -> 0 | Y12: =N12 -> 0 | Z12: =COUNTIF(L18:L28,Y12) -> 0 | AA12: =Z12/(AB4-Z8) -> 0 | AB12: =IF(AA12=0,0,(AA12*((LOG(AA12))/LOG(2)))) -> 0 | AD12: =N12 -> 0 | AE12: =COUNTIF(L29:L38,AD12) -> 0 | AF12: =AE12/(AG4-AE8) -> 0 | AG12: =IF(AF12=0,0,(AF12*((LOG(AF12))/LOG(2)))) -> 0 | AI12: =N12 -> 0 | AJ12: =COUNTIF(L39:L49,AI12) -> 0 | AK12: =AJ12/(AL4-AJ8) -> 0 | AL12: =IF(AK12=0,0,(AK12*((LOG(AK12))/LOG(2)))) -> 0 | AN12: =N12 -> 0 | AO12: =COUNTIF(L50:L60,AN12) -> 0 | AP12: =AO12/(AQ4-AO8) -> 0 | AQ12: =IF(AP12=0,0,(AP12*((LOG(AP12))/LOG(2)))) -> 0 | AS12: =N12 -> 0 | AT12: =COUNTIF(L61:L71,AS12) -> 0 | AU12: =AT12/(AV4-AT8) -> 0 | AV12: =IF(AU12=0,0,(AU12*((LOG(AU12))/LOG(2)))) -> 0
A13: 11 | B13: 710 | C13: 12 | D13: 717 | K13: 0 | L13: 11 | T13: =N13 -> 0 | U13: =COUNTIF(L7:L17,T13) -> 0 | V13: =U13/(W4-U8) -> 0 | W13: =IF(V13=0,0,(V13*((LOG(V13))/LOG(2)))) -> 0 | Y13: =N13 -> 0 | Z13: =COUNTIF(L18:L28,Y13) -> 0 | AA13: =Z13/(AB4-Z8) -> 0 | AB13: =IF(AA13=0,0,(AA13*((LOG(AA13))/LOG(2)))) -> 0 | AD13: =N13 -> 0 | AE13: =COUNTIF(L29:L38,AD13) -> 0 | AF13: =AE13/(AG4-AE8) -> 0 | AG13: =IF(AF13=0,0,(AF13*((LOG(AF13))/LOG(2)))) -> 0 | AI13: =N13 -> 0 | AJ13: =COUNTIF(L39:L49,AI13) -> 0 | AK13: =AJ13/(AL4-AJ8) -> 0 | AL13: =IF(AK13=0,0,(AK13*((LOG(AK13))/LOG(2)))) -> 0 | AN13: =N13 -> 0 | AO13: =COUNTIF(L50:L60,AN13) -> 0 | AP13: =AO13/(AQ4-AO8) -> 0 | AQ13: =IF(AP13=0,0,(AP13*((LOG(AP13))/LOG(2)))) -> 0 | AS13: =N13 -> 0 | AT13: =COUNTIF(L61:L71,AS13) -> 0 | AU13: =AT13/(AV4-AT8) -> 0 | AV13: =IF(AU13=0,0,(AU13*((LOG(AU13))/LOG(2)))) -> 0
A14: 11 | B14: 822 | C14: 21 | D14: 837 | K14: 0 | L14: 12 | T14: =N14 -> 0 | U14: =COUNTIF(L7:L17,T14) -> 0 | V14: =U14/(W4-U8) -> 0 | W14: =IF(V14=0,0,(V14*((LOG(V14))/LOG(2)))) -> 0 | Y14: =N14 -> 0 | Z14: =COUNTIF(L18:L28,Y14) -> 0 | AA14: =Z14/(AB4-Z8) -> 0 | AB14: =IF(AA14=0,0,(AA14*((LOG(AA14))/LOG(2)))) -> 0 | AD14: =N14 -> 0 | AE14: =COUNTIF(L29:L38,AD14) -> 0 | AF14: =AE14/(AG4-AE8) -> 0 | AG14: =IF(AF14=0,0,(AF14*((LOG(AF14))/LOG(2)))) -> 0 | AI14: =N14 -> 0 | AJ14: =COUNTIF(L39:L49,AI14) -> 0 | AK14: =AJ14/(AL4-AJ8) -> 0 | AL14: =IF(AK14=0,0,(AK14*((LOG(AK14))/LOG(2)))) -> 0 | AN14: =N14 -> 0 | AO14: =COUNTIF(L50:L60,AN14) -> 0 | AP14: =AO14/(AQ4-AO8) -> 0 | AQ14: =IF(AP14=0,0,(AP14*((LOG(AP14))/LOG(2)))) -> 0 | AS14: =N14 -> 0 | AT14: =COUNTIF(L61:L71,AS14) -> 0 | AU14: =AT14/(AV4-AT8) -> 0 | AV14: =IF(AU14=0,0,(AU14*((LOG(AU14))/LOG(2)))) -> 0
A15: 11 | B15: 935 | C15: 12 | D15: 942 | K15: 0 | L15: 11 | P15: =SUM(P7:P14) -> 1 | Q15: =-SUM(Q7:Q14) -> 1.751436163 | V15: =SUM(V7:V14) -> 1 | W15: =-SUM(W7:W14) -> 0 | AA15: =SUM(AA7:AA14) -> 1 | AB15: =-SUM(AB7:AB14) -> 0.9544340029 | AF15: =SUM(AF7:AF14) -> 1 | AG15: =-SUM(AG7:AG14) -> 1.584962501 | AK15: =SUM(AK7:AK14) -> 1 | AL15: =-SUM(AL7:AL14) -> 1.5 | AP15: =SUM(AP7:AP14) -> 1 | AQ15: =-SUM(AQ7:AQ14) -> 1.556656707 | AU15: =SUM(AU7:AU14) -> 1 | AV15: =-SUM(AV7:AV14) -> 1
A16: 11 | B16: 1052 | C16: 21 | D16: 1059 | K16: 0 | L16: 12 | P16: U= | Q16: =Q15/(LOG(Q4)/LOG(2)) -> 0.2908218524 | V16: U1= | W16: =W15/(LOG(W4)/LOG(2)) -> 0 | AA16: U2= | AB16: =AB15/(LOG(AB4)/LOG(2)) -> 0.2758932993 | AF16: U3= | AG16: =AG15/(LOG(AG4)/LOG(2)) -> 0.4771212547 | AK16: U4= | AL16: =AL15/(LOG(AL4)/LOG(2)) -> 0.4335972395 | AP16: U5= | AQ16: =AQ15/(LOG(AQ4)/LOG(2)) -> 0.4499747008 | AU16: U6= | AV16: =AV15/(LOG(AV4)/LOG(2)) -> 0.2890648263
A17: 11 | B17: 1165 | C17: 21 | D17: 1173 | K17: 0 | L17: 12
A18: 22 | B18: 1264 | C18: 14 | D18: 1272 | K18: 0 | L18: 21
A19: 22 | B19: 1388 | C19: 23 | D19: 1409 | K19: 0 | L19: 22 | N19: Total Target Seq
A20: 22 | B20: 1522 | C20: 14 | D20: 1543 | K20: 0 | L20: 21 | N20: =COUNTIF(L7:L71,G3) -> 34 | P20: 11 | Q20: 11 | R20: 10 | S20: 11 | T20: 11 | U20: 11
A21: 22 | B21: 1638 | C21: 23 | D21: 1658 | K21: 0 | L21: 22 | P21: % of reinforcement given in 6 equal intervals based on number of trials
A22: 11 | B22: 1775 | C22: 21 | D22: 1785 | K22: 0 | L22: 12 | P22: %_1 | Q22: %_2 | R22: %_3 | S22: %_4 | T22: %_5 | U22: %_6
A23: 22 | B23: 1886 | C23: 14 | D23: 1894 | K23: 0 | L23: 21 | O23: target sequence | P23: =$G$3 -> 12 | Q23: =$G$3 -> 12 | R23: =$G$3 -> 12 | S23: =$G$3 -> 12 | T23: =$G$3 -> 12 | U23: =$G$3 -> 12
A24: 22 | B24: 2004 | C24: 23 | D24: 2019 | K24: 0 | L24: 22 | O24: total reinforcement | P24: =U8 -> 8 | Q24: =Z8 -> 3 | R24: =AE8 -> 7 | S24: =AJ8 -> 7 | T24: =AO8 -> 4 | U24: =AT8 -> 5
A25: 11 | B25: 2123 | C25: 21 | D25: 2131 | K25: 0 | L25: 12 | O25: % target
A26: 22 | B26: 2234 | C26: 23 | D26: 2242 | K26: 0 | L26: 22 | O26: CCRF
A27: 22 | B27: 2391 | C27: 23 | D27: 2398 | K27: 0 | L27: 22 | O27: % CCRf
A28: 11 | B28: 2498 | C28: 21 | D28: 2516 | K28: 0 | L28: 12 | O28: average response rate | P28: =D17/P20 -> 106.6363636 | Q28: =(D28-D17)/Q20 -> 122.0909091 | R28: =(D38-D28)/R20 -> 125.6 | S28: =(D49-D38)/S20 -> 145.9090909 | T28: =(D60-D49)/T20 -> 445.0909091 | U28: =(D71-D60)/U20 -> 1053.090909
A29: 11 | B29: 2614 | C29: 21 | D29: 2639 | K29: 0 | L29: 12
A30: 11 | B30: 2737 | C30: 21 | D30: 2761 | K30: 0 | L30: 12
A31: 11 | B31: 2861 | C31: 21 | D31: 2868 | K31: 0 | L31: 12
A32: 22 | B32: 2961 | C32: 14 | D32: 2977 | K32: 0 | L32: 21
A33: 11 | B33: 3080 | C33: 21 | D33: 3087 | K33: 0 | L33: 12
A34: 11 | B34: 3250 | C34: 21 | D34: 3267 | K34: 0 | L34: 12
A35: 22 | B35: 3395 | C35: 23 | D35: 3402 | K35: 0 | L35: 22
A36: 11 | B36: 3532 | C36: 21 | D36: 3546 | K36: 0 | L36: 12
A37: 11 | B37: 3643 | C37: 21 | D37: 3662 | K37: 0 | L37: 12
A38: 11 | B38: 3758 | C38: 12 | D38: 3772 | K38: 0 | L38: 11
A39: 11 | B39: 3908 | C39: 12 | D39: 3916 | K39: 0 | L39: 11
A40: 11 | B40: 4023 | C40: 21 | D40: 4032 | K40: 0 | L40: 12
A41: 11 | B41: 4136 | C41: 21 | D41: 4198 | K41: 0 | L41: 12
A42: 11 | B42: 4295 | C42: 21 | D42: 4317 | K42: 0 | L42: 12
A43: 22 | B43: 4423 | C43: 23 | D43: 4431 | K43: 0 | L43: 22
A44: 11 | B44: 4613 | C44: 21 | D44: 4647 | K44: 0 | L44: 12
A45: 22 | B45: 4743 | C45: 14 | D45: 4750 | K45: 0 | L45: 21
A46: 11 | B46: 5002 | C46: 12 | D46: 5008 | K46: 0 | L46: 11
A47: 11 | B47: 5124 | C47: 21 | D47: 5139 | K47: 0 | L47: 12
A48: 11 | B48: 5255 | C48: 21 | D48: 5265 | K48: 0 | L48: 12
A49: 11 | B49: 5370 | C49: 21 | D49: 5377 | K49: 0 | L49: 12
A50: 11 | B50: 5480 | C50: 21 | D50: 5487 | K50: 0 | L50: 12
A51: 11 | B51: 5586 | C51: 21 | D51: 5593 | K51: 0 | L51: 12
A52: 22 | B52: 5686 | C52: 14 | D52: 5693 | K52: 0 | L52: 21
A53: 22 | B53: 5823 | C53: 14 | D53: 5830 | K53: 0 | L53: 21
A54: 11 | B54: 5934 | C54: 21 | D54: 5941 | K54: 0 | L54: 12
A55: 11 | B55: 6040 | C55: 21 | D55: 6047 | K55: 0 | L55: 12
A56: 22 | B56: 6158 | C56: 23 | D56: 6166 | K56: 0 | L56: 22
A57: 22 | B57: 6491 | C57: 23 | D57: 6498 | K57: 0 | L57: 22
A58: 11 | B58: 9726 | C58: 12 | D58: 9751 | K58: 0 | L58: 11
A59: 22 | B59: 9859 | C59: 14 | D59: 9866 | K59: 0 | L59: 21
A60: 11 | B60: 10242 | C60: 12 | D60: 10273 | K60: 0 | L60: 11
A61: 11 | B61: 10400 | C61: 21 | D61: 10426 | K61: 0 | L61: 12
A62: 11 | B62: 18673 | C62: 12 | D62: 18721 | K62: 0 | L62: 11
A63: 22 | B63: 18890 | C63: 14 | D63: 18907 | K63: 0 | L63: 21
A64: 11 | B64: 20352 | C64: 12 | D64: 20359 | K64: 0 | L64: 11
A65: 22 | B65: 20580 | C65: 14 | D65: 20606 | K65: 0 | L65: 21
A66: 11 | B66: 20725 | C66: 21 | D66: 20764 | K66: 0 | L66: 12
A67: 11 | B67: 21272 | C67: 12 | D67: 21280 | K67: 0 | L67: 11
A68: 11 | B68: 21398 | C68: 21 | D68: 21434 | K68: 0 | L68: 12
A69: 11 | B69: 21547 | C69: 21 | D69: 21575 | K69: 0 | L69: 12
A70: 22 | B70: 21669 | C70: 14 | D70: 21676 | K70: 0 | L70: 21
A71: 11 | B71: 21832 | C71: 21 | D71: 21857 | K71: 1 | L71: 12

Sheet !N219A20.095
A1: Report for:!N219A20.095
A2: Date: | B2: <date>
A3: Hen: | B3: <hen> | F3: Correct Sequence | G3: =Start!J2 -> 12 | P3: Total Sequences in Data | Q3: =4994-COUNTBLANK(L7:L5000) -> 58 | V3: Total Sequences in Block Data | W3: =COUNTA(L7:L16) -> 10 | AA3: Total Sequences in Block Data | AB3: =COUNTA(L17:L25) -> 9 | AF3: Total Sequences in Block Data | AG3: =COUNTA(L26:L35) -> 10 | AK3: Total Sequences in Block Data | AL3: =COUNTA(L36:L45) -> 10 | AP3: Total Sequences in Block Data | AQ3: =COUNTA(L46:L54) -> 9 | AU3: Total Sequences in Block Data | AV3: =COUNTA(L55:L64) -> 10
P4: Total Sequences in Summary | Q4: =SUM(O7:O14) -> 58 | V4: Total Sequences in Block Summary | W4: =SUM(U7:U14) -> 10 | AA4: Total Sequences in Block Summary | AB4: =SUM(Z7:Z14) -> 9 | AF4: Total Sequences in Block Summary | AG4: =SUM(AE7:AE14) -> 10 | AK4: Total Sequences in Block Summary | AL4: =SUM(AJ7:AJ14) -> 10 | AP4: Total Sequences in Block Summary | AQ4: =SUM(AO7:AO14) -> 9 | AU4: Total Sequences in Block Summary | AV4: =SUM(AT7:AT14) -> 10
T5: Block 1 | Y5: Block 2 | AD5: Block 3 | AI5: Block 4 | AN5: Block 5 | AS5: Block 6
A6: Sequence Component 1 | B6: Time 1 | C6: Sequence Component 2 | D6: Time 2 | E6: Sequence Component 3 | F6: Time 3 | G6: Sequence Component 4 | H6: Time 4 | I6: Sequence Component 5 | J6: Time 5 | K6: Correct? 0=No 1=Yes | L6: Sequence | N6: Frequency | P6: Relative Frequency | Q6: Variability | T6: Frequency | V6: Relative Frequency | W6: Variability | Y6: Frequency | AA6: Relative Frequency | AB6: Variability | AD6: Frequency | AF6: Relative Frequency | AG6: Variability | AI6: Frequency | AK6: Relative Frequency | AL6: Variability | AN6: Frequency | AP6: Relative Frequency | AQ6: Variability | AS6: Frequency | AU6: Relative Frequency | AV6: Variability
A7: 11 | B7: 14 | C7: 12 | D7: 30 | K7: 0 | L7: 11 | N7: 11 | O7: =COUNTIF($L$7:$L$500,N7) -> 9 | P7: =O7/$Q$4 -> 0.1551724138 | Q7: =IF(P7=0,0,(P7*((LOG(P7))/LOG(2)))) -> -0.417112137 | T7: =N7 -> 11 | U7: =COUNTIF(L7:L16,T7) -> 6 | V7: =U7/(W4-U8) -> 0.8571428571 | W7: =IF(V7=0,0,(V7*((LOG(V7))/LOG(2)))) -> -0.1906220754 | Y7: =N7 -> 11 | Z7: =COUNTIF(L17:L25,Y7) -> 1 | AA7: =Z7/(AB4-Z8) -> 0.3333333333 | AB7: =IF(AA7=0,0,(AA7*((LOG(AA7))/LOG(2)))) -> -0.5283208336 | AD7: =N7 -> 11 | AE7: =COUNTIF(L26:L35,AD7) -> 1 | AF7: =AE7/(AG4-AE8) -> 0.3333333333 | AG7: =IF(AF7=0,0,(AF7*((LOG(AF7))/LOG(2)))) -> -0.5283208336 | AI7: =N7 -> 11 | AJ7: =COUNTIF(L36:L45,AI7) -> 0 | AK7: =AJ7/(AL4-AJ8) -> 0 | AL7: =IF(AK7=0,0,(AK7*((LOG(AK7))/LOG(2)))) -> 0 | AN7: =N7 -> 11 | AO7: =COUNTIF(L46:L54,AN7) -> 1 | AP7: =AO7/(AQ4-AO8) -> 0.3333333333 | AQ7: =IF(AP7=0,0,(AP7*((LOG(AP7))/LOG(2)))) -> -0.5283208336 | AS7: =N7 -> 11 | AT7: =COUNTIF(L55:L64,AS7) -> 0 | AU7: =AT7/(AV4-AT8) -> 0 | AV7: =IF(AU7=0,0,(AU7*((LOG(AU7))/LOG(2)))) -> 0
A8: 11 | B8: 129 | C8: 21 | D8: 140 | K8: 0 | L8: 12 | N8: 12 | O8: =COUNTIF($L$7:$L$500,N8) -> 38 | P8: =O8/$Q$4 -> 0.6551724138 | Q8: =IF(P8=0,0,(P8*((LOG(P8))/LOG(2)))) -> -0.3996902121 | T8: =N8 -> 12 | U8: =COUNTIF(L7:L16,T8) -> 3 | Y8: =N8 -> 12 | Z8: =COUNTIF(L17:L25,Y8) -> 6 | AD8: =N8 -> 12 | AE8: =COUNTIF(L26:L35,AD8) -> 7 | AI8: =N8 -> 12 | AJ8: =COUNTIF(L36:L45,AI8) -> 8 | AN8: =N8 -> 12 | AO8: =COUNTIF(L46:L54,AN8) -> 6 | AS8: =N8 -> 12 | AT8: =COUNTIF(L55:L64,AS8) -> 8
A9: 11 | B9: 234 | C9: 21 | D9: 288 | K9: 0 | L9: 12 | N9: 21 | O9: =COUNTIF($L$7:$L$500,N9) -> 9 | P9: =O9/$Q$4 -> 0.1551724138 | Q9: =IF(P9=0,0,(P9*((LOG(P9))/LOG(2)))) -> -0.417112137 | T9: =N9 -> 21 | U9: =COUNTIF(L7:L16,T9) -> 1 | V9: =U9/(W4-U8) -> 0.1428571429 | W9: =IF(V9=0,0,(V9*((LOG(V9))/LOG(2)))) -> -0.4010507032 | Y9: =N9 -> 21 | Z9: =COUNTIF(L17:L25,Y9) -> 2 | AA9: =Z9/(AB4-Z8) -> 0.6666666667 | AB9: =IF(AA9=0,0,(AA9*((LOG(AA9))/LOG(2)))) -> -0.3899750005 | AD9: =N9 -> 21 | AE9: =COUNTIF(L26:L35,AD9) -> 2 | AF9: =AE9/(AG4-AE8) -> 0.6666666667 | AG9: =IF(AF9=0,0,(AF9*((LOG(AF9))/LOG(2)))) -> -0.3899750005 | AI9: =N9 -> 21 | AJ9: =COUNTIF(L36:L45,AI9) -> 2 | AK9: =AJ9/(AL4-AJ8) -> 1 | AL9: =IF(AK9=0,0,(AK9*((LOG(AK9))/LOG(2)))) -> 0 | AN9: =N9 -> 21 | AO9: =COUNTIF(L46:L54,AN9) -> 1 | AP9: =AO9/(AQ4-AO8) -> 0.3333333333 | AQ9: =IF(AP9=0,0,(AP9*((LOG(AP9))/LOG(2)))) -> -0.5283208336 | AS9: =N9 -> 21 | AT9: =COUNTIF(L55:L64,AS9) -> 1 | AU9: =AT9/(AV4-AT8) -> 0.5 | AV9: =IF(AU9=0,0,(AU9*((LOG(AU9))/LOG(2)))) -> -0.5
A10: 11 | B10: 391 | C10: 12 | D10: 403 | K10: 0 | L10: 11 | N10: 22 | O10: =COUNTIF($L$7:$L$500,N10) -> 2 | P10: =O10/$Q$4 -> 0.03448275862 | Q10: =IF(P10=0,0,(P10*((LOG(P10))/LOG(2)))) -> -0.167516586 | T10: =N10 -> 22 | U10: =COUNTIF(L7:L16,T10) -> 0 | V10: =U10/(W4-U8) -> 0 | W10: =IF(V10=0,0,(V10*((LOG(V10))/LOG(2)))) -> 0 | Y10: =N10 -> 22 | Z10: =COUNTIF(L17:L25,Y10) -> 0 | AA10: =Z10/(AB4-Z8) -> 0 | AB10: =IF(AA10=0,0,(AA10*((LOG(AA10))/LOG(2)))) -> 0 | AD10: =N10 -> 22 | AE10: =COUNTIF(L26:L35,AD10) -> 0 | AF10: =AE10/(AG4-AE8) -> 0 | AG10: =IF(AF10=0,0,(AF10*((LOG(AF10))/LOG(2)))) -> 0 | AI10: =N10 -> 22 | AJ10: =COUNTIF(L36:L45,AI10) -> 0 | AK10: =AJ10/(AL4-AJ8) -> 0 | AL10: =IF(AK10=0,0,(AK10*((LOG(AK10))/LOG(2)))) -> 0 | AN10: =N10 -> 22 | AO10: =COUNTIF(L46:L54,AN10) -> 1 | AP10: =AO10/(AQ4-AO8) -> 0.3333333333 | AQ10: =IF(AP10=0,0,(AP10*((LOG(AP10))/LOG(2)))) -> -0.5283208336 | AS10: =N10 -> 22 | AT10: =COUNTIF(L55:L64,AS10) -> 1 | AU10: =AT10/(AV4-AT8) -> 0.5 | AV10: =IF(AU10=0,0,(AU10*((LOG(AU10))/LOG(2)))) -> -0.5
A11: 11 | B11: 507 | C11: 12 | D11: 519 | K11: 0 | L11: 11 | T11: =N11 -> 0 | U11: =COUNTIF(L7:L16,T11) -> 0 | V11: =U11/(W4-U8) -> 0 | W11: =IF(V11=0,0,(V11*((LOG(V11))/LOG(2)))) -> 0 | Y11: =N11 -> 0 | Z11: =COUNTIF(L17:L25,Y11) -> 0 | AA11: =Z11/(AB4-Z8) -> 0 | AB11: =IF(AA11=0,0,(AA11*((LOG(AA11))/LOG(2)))) -> 0 | AD11: =N11 -> 0 | AE11: =COUNTIF(L26:L35,AD11) -> 0 | AF11: =AE11/(AG4-AE8) -> 0 | AG11: =IF(AF11=0,0,(AF11*((LOG(AF11))/LOG(2)))) -> 0 | AI11: =N11 -> 0 | AJ11: =COUNTIF(L36:L45,AI11) -> 0 | AK11: =AJ11/(AL4-AJ8) -> 0 | AL11: =IF(AK11=0,0,(AK11*((LOG(AK11))/LOG(2)))) -> 0 | AN11: =N11 -> 0 | AO11: =COUNTIF(L46:L54,AN11) -> 0 | AP11: =AO11/(AQ4-AO8) -> 0 | AQ11: =IF(AP11=0,0,(AP11*((LOG(AP11))/LOG(2)))) -> 0 | AS11: =N11 -> 0 | AT11: =COUNTIF(L55:L64,AS11) -> 0 | AU11: =AT11/(AV4-AT8) -> 0 | AV11: =IF(AU11=0,0,(AU11*((LOG(AU11))/LOG(2)))) -> 0
A12: 11 | B12: 617 | C12: 12 | D12: 621 | K12: 0 | L12: 11 | T12: =N12 -> 0 | U12: =COUNTIF(L7:L16,T12) -> 0 | V12: =U12/(W4-U8) -> 0 | W12: =IF(V12=0,0,(V12*((LOG(V12))/LOG(2)))) -> 0 | Y12: =N12 -> 0 | Z12: =COUNTIF(L17:L25,Y12) -> 0 | AA12: =Z12/(AB4-Z8) -> 0 | AB12: =IF(AA12=0,0,(AA12*((LOG(AA12))/LOG(2)))) -> 0 | AD12: =N12 -> 0 | AE12: =COUNTIF(L26:L35,AD12) -> 0 | AF12: =AE12/(AG4-AE8) -> 0 | AG12: =IF(AF12=0,0,(AF12*((LOG(AF12))/LOG(2)))) -> 0 | AI12: =N12 -> 0 | AJ12: =COUNTIF(L36:L45,AI12) -> 0 | AK12: =AJ12/(AL4-AJ8) -> 0 | AL12: =IF(AK12=0,0,(AK12*((LOG(AK12))/LOG(2)))) -> 0 | AN12: =N12 -> 0 | AO12: =COUNTIF(L46:L54,AN12) -> 0 | AP12: =AO12/(AQ4-AO8) -> 0 | AQ12: =IF(AP12=0,0,(AP12*((LOG(AP12))/LOG(2)))) -> 0 | AS12: =N12 -> 0 | AT12: =COUNTIF(L55:L64,AS12) -> 0 | AU12: =AT12/(AV4-AT8) -> 0 | AV12: =IF(AU12=0,0,(AU12*((LOG(AU12))/LOG(2)))) -> 0
A13: 22 | B13: 721 | C13: 14 | D13: 729 | K13: 0 | L13: 21 | T13: =N13 -> 0 | U13: =COUNTIF(L7:L16,T13) -> 0 | V13: =U13/(W4-U8) -> 0 | W13: =IF(V13=0,0,(V13*((LOG(V13))/LOG(2)))) -> 0 | Y13: =N13 -> 0 | Z13: =COUNTIF(L17:L25,Y13) -> 0 | AA13: =Z13/(AB4-Z8) -> 0 | AB13: =IF(AA13=0,0,(AA13*((LOG(AA13))/LOG(2)))) -> 0 | AD13: =N13 -> 0 | AE13: =COUNTIF(L26:L35,AD13) -> 0 | AF13: =AE13/(AG4-AE8) -> 0 | AG13: =IF(AF13=0,0,(AF13*((LOG(AF13))/LOG(2)))) -> 0 | AI13: =N13 -> 0 | AJ13: =COUNTIF(L36:L45,AI13) -> 0 | AK13: =AJ13/(AL4-AJ8) -> 0 | AL13: =IF(AK13=0,0,(AK13*((LOG(AK13))/LOG(2)))) -> 0 | AN13: =N13 -> 0 | AO13: =COUNTIF(L46:L54,AN13) -> 0 | AP13: =AO13/(AQ4-AO8) -> 0 | AQ13: =IF(AP13=0,0,(AP13*((LOG(AP13))/LOG(2)))) -> 0 | AS13: =N13 -> 0 | AT13: =COUNTIF(L55:L64,AS13) -> 0 | AU13: =AT13/(AV4-AT8) -> 0 | AV13: =IF(AU13=0,0,(AU13*((LOG(AU13))/LOG(2)))) -> 0
A14: 11 | B14: 827 | C14: 12 | D14: 835 | K14: 0 | L14: 11 | T14: =N14 -> 0 | U14: =COUNTIF(L7:L16,T14) -> 0 | V14: =U14/(W4-U8) -> 0 | W14: =IF(V14=0,0,(V14*((LOG(V14))/LOG(2)))) -> 0 | Y14: =N14 -> 0 | Z14: =COUNTIF(L17:L25,Y14) -> 0 | AA14: =Z14/(AB4-Z8) -> 0 | AB14: =IF(AA14=0,0,(AA14*((LOG(AA14))/LOG(2)))) -> 0 | AD14: =N14 -> 0 | AE14: =COUNTIF(L26:L35,AD14) -> 0 | AF14: =AE14/(AG4-AE8) -> 0 | AG14: =IF(AF14=0,0,(AF14*((LOG(AF14))/LOG(2)))) -> 0 | AI14: =N14 -> 0 | AJ14: =COUNTIF(L36:L45,AI14) -> 0 | AK14: =AJ14/(AL4-AJ8) -> 0 | AL14: =IF(AK14=0,0,(AK14*((LOG(AK14))/LOG(2)))) -> 0 | AN14: =N14 -> 0 | AO14: =COUNTIF(L46:L54,AN14) -> 0 | AP14: =AO14/(AQ4-AO8) -> 0 | AQ14: =IF(AP14=0,0,(AP14*((LOG(AP14))/LOG(2)))) -> 0 | AS14: =N14 -> 0 | AT14: =COUNTIF(L55:L64,AS14) -> 0 | AU14: =AT14/(AV4-AT8) -> 0 | AV14: =IF(AU14=0,0,(AU14*((LOG(AU14))/LOG(2)))) -> 0
A15: 11 | B15: 941 | C15: 21 | D15: 954 | K15: 0 | L15: 12 | P15: =SUM(P7:P14) -> 1 | Q15: =-SUM(Q7:Q14) -> 1.401431072 | V15: =SUM(V7:V14) -> 1 | W15: =-SUM(W7:W14) -> 0.5916727786 | AA15: =SUM(AA7:AA14) -> 1 | AB15: =-SUM(AB7:AB14) -> 0.9182958341 | AF15: =SUM(AF7:AF14) -> 1 | AG15: =-SUM(AG7:AG14) -> 0.9182958341 | AK15: =SUM(AK7:AK14) -> 1 | AL15: =-SUM(AL7:AL14) -> 0 | AP15: =SUM(AP7:AP14) -> 1 | AQ15: =-SUM(AQ7:AQ14) -> 1.584962501 | AU15: =SUM(AU7:AU14) -> 1 | AV15: =-SUM(AV7:AV14) -> 1
A16: 11 | B16: 1054 | C16: 12 | D16: 1066 | K16: 0 | L16: 11 | P16: U= | Q16: =Q15/(LOG(Q4)/LOG(2)) -> 0.239234486 | V16: U1= | W16: =W15/(LOG(W4)/LOG(2)) -> 0.178111254 | AA16: U2= | AB16: =AB15/(LOG(AB4)/LOG(2)) -> 0.2896900821 | AF16: U3= | AG16: =AG15/(LOG(AG4)/LOG(2)) -> 0.2764345909 | AK16: U4= | AL16: =AL15/(LOG(AL4)/LOG(2)) -> 0 | AP16: U5= | AQ16: =AQ15/(LOG(AQ4)/LOG(2)) -> 0.5 | AU16: U6= | AV16: =AV15/(LOG(AV4)/LOG(2)) -> 0.3010299957
A17: 11 | B17: 1174 | C17: 21 | D17: 1186 | K17: 0 | L17: 12
A18: 11 | B18: 1286 | C18: 21 | D18: 1297 | K18: 0 | L18: 12
A19: 11 | B19: 1396 | C19: 21 | D19: 1413 | K19: 0 | L19: 12 | N19: Total Target Seq
A20: 11 | B20: 1512 | C20: 21 | D20: 1530 | K20: 0 | L20: 12 | N20: =COUNTIF(L7:L64,G3) -> 38 | P20: 10 | Q20: 9 | R20: 10 | S20: 10 | T20: 9 | U20: 10
A21: 11 | B21: 1628 | C21: 12 | D21: 1649 | K21: 0 | L21: 11 | P21: % of reinforcement given in 6 equal intervals based on number of trials
A22: 22 | B22: 1747 | C22: 14 | D22: 1755 | K22: 0 | L22: 21 | P22: %_1 | Q22: %_2 | R22: %_3 | S22: %_4 | T22: %_5 | U22: %_6
A23: 11 | B23: 1853 | C23: 21 | D23: 1877 | K23: 0 | L23: 12 | O23: target sequence | P23: =$G$3 -> 12 | Q23: =$G$3 -> 12 | R23: =$G$3 -> 12 | S23: =$G$3 -> 12 | T23: =$G$3 -> 12 | U23: =$G$3 -> 12
A24: 11 | B24: 1976 | C24: 21 | D24: 1987 | K24: 0 | L24: 12 | O24: total reinforcement | P24: =U8 -> 3 | Q24: =Z8 -> 6 | R24: =AE8 -> 7 | S24: =AJ8 -> 8 | T24: =AO8 -> 6 | U24: =AT8 -> 8
A25: 22 | B25: 2084 | C25: 14 | D25: 2119 | K25: 0 | L25: 21 | O25: % target
A26: 11 | B26: 2218 | C26: 12 | D26: 2226 | K26: 0 | L26: 11 | O26: CCRF
A27: 11 | B27: 2322 | C27: 21 | D27: 2340 | K27: 0 | L27: 12 | O27: % CCRf
A28: 11 | B28: 2442 | C28: 21 | D28: 2455 | K28: 0 | L28: 12 | O28: average response rate | P28: =D16/P20 -> 106.6 | Q28: =(D25-D16)/Q20 -> 117 | R28: =(D35-D25)/R20 -> 109.3 | S28: =(D45-D35)/S20 -> 111.1 | T28: =(D54-D45)/T20 -> 110 | U28: =(D64-D54)/U20 -> 119.9
A29: 11 | B29: 2564 | C29: 21 | D29: 2590 | K29: 0 | L29: 12
A30: 22 | B30: 2683 | C30: 14 | D30: 2690 | K30: 0 | L30: 21
A31: 11 | B31: 2788 | C31: 21 | D31: 2802 | K31: 0 | L31: 12
A32: 11 | B32: 2893 | C32: 21 | D32: 2908 | K32: 0 | L32: 12
A33: 11 | B33: 3003 | C33: 21 | D33: 3011 | K33: 0 | L33: 12
A34: 11 | B34: 3101 | C34: 21 | D34: 3112 | K34: 0 | L34: 12
A35: 22 | B35: 3205 | C35: 14 | D35: 3212 | K35: 0 | L35: 21
A36: 11 | B36: 3313 | C36: 21 | D36: 3326 | K36: 0 | L36: 12
A37: 22 | B37: 3426 | C37: 14 | D37: 3434 | K37: 0 | L37: 21
A38: 11 | B38: 3533 | C38: 21 | D38: 3540 | K38: 0 | L38: 12
A39: 11 | B39: 3640 | C39: 21 | D39: 3648 | K39: 0 | L39: 12
A40: 11 | B40: 3744 | C40: 21 | D40: 3755 | K40: 0 | L40: 12
A41: 11 | B41: 3847 | C41: 21 | D41: 3854 | K41: 0 | L41: 12
A42: 11 | B42: 3951 | C42: 21 | D42: 3959 | K42: 0 | L42: 12
A43: 11 | B43: 4058 | C43: 21 | D43: 4070 | K43: 0 | L43: 12
A44: 22 | B44: 4203 | C44: 14 | D44: 4211 | K44: 0 | L44: 21
A45: 11 | B45: 4316 | C45: 21 | D45: 4323 | K45: 0 | L45: 12
A46: 22 | B46: 4419 | C46: 14 | D46: 4426 | K46: 0 | L46: 21
A47: 11 | B47: 4525 | C47: 21 | D47: 4539 | K47: 0 | L47: 12
A48: 22 | B48: 4646 | C48: 23 | D48: 4667 | K48: 0 | L48: 22
A49: 11 | B49: 4764 | C49: 21 | D49: 4771 | K49: 0 | L49: 12
A50: 11 | B50: 4869 | C50: 21 | D50: 4886 | K50: 0 | L50: 12
A51: 11 | B51: 4981 | C51: 21 | D51: 5001 | K51: 0 | L51: 12
A52: 11 | B52: 5091 | C52: 12 | D52: 5103 | K52: 0 | L52: 11
A53: 11 | B53: 5205 | C53: 21 | D53: 5213 | K53: 0 | L53: 12
A54: 11 | B54: 5306 | C54: 21 | D54: 5313 | K54: 0 | L54: 12
A55: 11 | B55: 5415 | C55: 21 | D55: 5423 | K55: 0 | L55: 12
A56: 11 | B56: 5520 | C56: 21 | D56: 5538 | K56: 0 | L56: 12
A57: 22 | B57: 5637 | C57: 14 | D57: 5690 | K57: 0 | L57: 21
A58: 11 | B58: 5788 | C58: 21 | D58: 5803 | K58: 0 | L58: 12
A59: 22 | B59: 5917 | C59: 23 | D59: 5947 | K59: 0 | L59: 22
A60: 11 | B60: 6050 | C60: 21 | D60: 6057 | K60: 0 | L60: 12
A61: 11 | B61: 6147 | C61: 21 | D61: 6178 | K61: 0 | L61: 12
A62: 11 | B62: 6275 | C62: 21 | D62: 6301 | K62: 0 | L62: 12
A63: 11 | B63: 6398 | C63: 21 | D63: 6406 | K63: 0 | L63: 12
A64: 11 | B64: 6505 | C64: 21 | D64: 6512 | K64: 1 | L64: 12

Sheet !N220B10.095
A1: Report for:!N220B10.095
A2: Date: | B2: <date>
A3: Hen: | B3: <hen> | F3: Correct Sequence | G3: =Start!J2 -> 12 | P3: Total Sequences in Data | Q3: =4994-COUNTBLANK(L7:L5000) -> 63 | V3: Total Sequences in Block Data | W3: =COUNTA(L7:L17) -> 11 | AA3: Total Sequences in Block Data | AB3: =COUNTA(L18:L27) -> 10 | AF3: Total Sequences in Block Data | AG3: =COUNTA(L28:L38) -> 11 | AK3: Total Sequences in Block Data | AL3: =COUNTA(L39:L48) -> 10 | AP3: Total Sequences in Block Data | AQ3: =COUNTA(L49:L59) -> 11 | AU3: Total Sequences in Block Data | AV3: =COUNTA(L60:L69) -> 10
P4: Total Sequences in Summary | Q4: =SUM(O7:O14) -> 63 | V4: Total Sequences in Block Summary | W4: =SUM(U7:U14) -> 11 | AA4: Total Sequences in Block Summary | AB4: =SUM(Z7:Z14) -> 10 | AF4: Total Sequences in Block Summary | AG4: =SUM(AE7:AE14) -> 11 | AK4: Total Sequences in Block Summary | AL4: =SUM(AJ7:AJ14) -> 10 | AP4: Total Sequences in Block Summary | AQ4: =SUM(AO7:AO14) -> 11 | AU4: Total Sequences in Block Summary | AV4: =SUM(AT7:AT14) -> 10
T5: Block 1 | Y5: Block 2 | AD5: Block 3 | AI5: Block 4 | AN5: Block 5 | AS5: Block 6
A6: Sequence Component 1 | B6: Time 1 | C6: Sequence Component 2 | D6: Time 2 | E6: Sequence Component 3 | F6: Time 3 | G6: Sequence Component 4 | H6: Time 4 | I6: Sequence Component 5 | J6: Time 5 | K6: Correct? 0=No 1=Yes | L6: Sequence | N6: Frequency | P6: Relative Frequency | Q6: Variability | T6: Frequency | V6: Relative Frequency | W6: Variability | Y6: Frequency | AA6: Relative Frequency | AB6: Variability | AD6: Frequency | AF6: Relative Frequency | AG6: Variability | AI6: Frequency | AK6: Relative Frequency | AL6: Variability | AN6: Frequency | AP6: Relative Frequency | AQ6: Variability | AS6: Frequency | AU6: Relative Frequency | AV6: Variability
A7: 22 | B7: 12 | C7: 14 | D7: 21 | K7: 0 | L7: 21 | N7: 11 | O7: =COUNTIF($L$7:$L$500,N7) -> 13 | P7: =O7/$Q$4 -> 0.2063492063 | Q7: =IF(P7=0,0,(P7*((LOG(P7))/LOG(2)))) -> -0.4698241694 | T7: =N7 -> 11 | U7: =COUNTIF(L7:L17,T7) -> 2 | V7: =U7/(W4-U8) -> 0.3333333333 | W7: =IF(V7=0,0,(V7*((LOG(V7))/LOG(2)))) -> -0.5283208336 | Y7: =N7 -> 11 | Z7: =COUNTIF(L18:L27,Y7) -> 0 | AA7: =Z7/(AB4-Z8) -> 0 | AB7: =IF(AA7=0,0,(AA7*((LOG(AA7))/LOG(2)))) -> 0 | AD7: =N7 -> 11 | AE7: =COUNTIF(L28:L38,AD7) -> 0 | AF7: =AE7/(AG4-AE8) -> 0 | AG7: =IF(AF7=0,0,(AF7*((LOG(AF7))/LOG(2)))) -> 0 | AI7: =N7 -> 11 | AJ7: =COUNTIF(L39:L48,AI7) -> 2 | AK7: =AJ7/(AL4-AJ8) -> 0.5 | AL7: =IF(AK7=0,0,(AK7*((LOG(AK7))/LOG(2)))) -> -0.5 | AN7: =N7 -> 11 | AO7: =COUNTIF(L49:L59,AN7) -> 5 | AP7: =AO7/(AQ4-AO8) -> 0.8333333333 | AQ7: =IF(AP7=0,0,(AP7*((LOG(AP7))/LOG(2)))) -> -0.2191953382 | AS7: =N7 -> 11 | AT7: =COUNTIF(L60:L69,AS7) -> 4 | AU7: =AT7/(AV4-AT8) -> 0.6666666667 | AV7: =IF(AU7=0,0,(AU7*((LOG(AU7))/LOG(2)))) -> -0.3899750005
A8: 11 | B8: 131 | C8: 21 | D8: 139 | K8: 0 | L8: 12 | N8: 12 | O8: =COUNTIF($L$7:$L$500,N8) -> 35 | P8: =O8/$Q$4 -> 0.5555555556 | Q8: =IF(P8=0,0,(P8*((LOG(P8))/LOG(2)))) -> -0.4711093925 | T8: =N8 -> 12 | U8: =COUNTIF(L7:L17,T8) -> 5 | Y8: =N8 -> 12 | Z8: =COUNTIF(L18:L27,Y8) -> 8 | AD8: =N8 -> 12 | AE8: =COUNTIF(L28:L38,AD8) -> 7 | AI8: =N8 -> 12 | AJ8: =COUNTIF(L39:L48,AI8) -> 6 | AN8: =N8 -> 12 | AO8: =COUNTIF(L49:L59,AN8) -> 5 | AS8: =N8 -> 12 | AT8: =COUNTIF(L60:L69,AS8) -> 4
A9: 11 | B9: 234 | C9: 12 | D9: 241 | K9: 0 | L9: 11 | N9: 21 | O9: =COUNTIF($L$7:$L$500,N9) -> 5 | P9: =O9/$Q$4 -> 0.07936507937 | Q9: =IF(P9=0,0,(P9*((LOG(P9))/LOG(2)))) -> -0.290107288 | T9: =N9 -> 21 | U9: =COUNTIF(L7:L17,T9) -> 1 | V9: =U9/(W4-U8) -> 0.1666666667 | W9: =IF(V9=0,0,(V9*((LOG(V9))/LOG(2)))) -> -0.4308270835 | Y9: =N9 -> 21 | Z9: =COUNTIF(L18:L27,Y9) -> 0 | AA9: =Z9/(AB4-Z8) -> 0 | AB9: =IF(AA9=0,0,(AA9*((LOG(AA9))/LOG(2)))) -> 0 | AD9: =N9 -> 21 | AE9: =COUNTIF(L28:L38,AD9) -> 2 | AF9: =AE9/(AG4-AE8) -> 0.5 | AG9: =IF(AF9=0,0,(AF9*((LOG(AF9))/LOG(2)))) -> -0.5 | AI9: =N9 -> 21 | AJ9: =COUNTIF(L39:L48,AI9) -> 0 | AK9: =AJ9/(AL4-AJ8) -> 0 | AL9: =IF(AK9=0,0,(AK9*((LOG(AK9))/LOG(2)))) -> 0 | AN9: =N9 -> 21 | AO9: =COUNTIF(L49:L59,AN9) -> 0 | AP9: =AO9/(AQ4-AO8) -> 0 | AQ9: =IF(AP9=0,0,(AP9*((LOG(AP9))/LOG(2)))) -> 0 | AS9: =N9 -> 21 | AT9: =COUNTIF(L60:L69,AS9) -> 2 | AU9: =AT9/(AV4-AT8) -> 0.3333333333 | AV9: =IF(AU9=0,0,(AU9*((LOG(AU9))/LOG(2)))) -> -0.5283208336
A10: 11 | B10: 343 | C10: 21 | D10: 357 | K10: 0 | L10: 12 | N10: 22 | O10: =COUNTIF($L$7:$L$500,N10) -> 10 | P10: =O10/$Q$4 -> 0.1587301587 | Q10: =IF(P10=0,0,(P10*((LOG(P10))/LOG(2)))) -> -0.4214844172 | T10: =N10 -> 22 | U10: =COUNTIF(L7:L17,T10) -> 3 | V10: =U10/(W4-U8) -> 0.5 | W10: =IF(V10=0,0,(V10*((LOG(V10))/LOG(2)))) -> -0.5 | Y10: =N10 -> 22 | Z10: =COUNTIF(L18:L27,Y10) -> 2 | AA10: =Z10/(AB4-Z8) -> 1 | AB10: =IF(AA10=0,0,(AA10*((LOG(AA10))/LOG(2)))) -> 0 | AD10: =N10 -> 22 | AE10: =COUNTIF(L28:L38,AD10) -> 2 | AF10: =AE10/(AG4-AE8) -> 0.5 | AG10: =IF(AF10=0,0,(AF10*((LOG(AF10))/LOG(2)))) -> -0.5 | AI10: =N10 -> 22 | AJ10: =COUNTIF(L39:L48,AI10) -> 2 | AK10: =AJ10/(AL4-AJ8) -> 0.5 | AL10: =IF(AK10=0,0,(AK10*((LOG(AK10))/LOG(2)))) -> -0.5 | AN10: =N10 -> 22 | AO10: =COUNTIF(L49:L59,AN10) -> 1 | AP10: =AO10/(AQ4-AO8) -> 0.1666666667 | AQ10: =IF(AP10=0,0,(AP10*((LOG(AP10))/LOG(2)))) -> -0.4308270835 | AS10: =N10 -> 22 | AT10: =COUNTIF(L60:L69,AS10) -> 0 | AU10: =AT10/(AV4-AT8) -> 0 | AV10: =IF(AU10=0,0,(AU10*((LOG(AU10))/LOG(2)))) -> 0
A11: 11 | B11: 453 | C11: 21 | D11: 480 | K11: 0 | L11: 12 | T11: =N11 -> 0 | U11: =COUNTIF(L7:L17,T11) -> 0 | V11: =U11/(W4-U8) -> 0 | W11: =IF(V11=0,0,(V11*((LOG(V11))/LOG(2)))) -> 0 | Y11: =N11 -> 0 | Z11: =COUNTIF(L18:L27,Y11) -> 0 | AA11: =Z11/(AB4-Z8) -> 0 | AB11: =IF(AA11=0,0,(AA11*((LOG(AA11))/LOG(2)))) -> 0 | AD11: =N11 -> 0 | AE11: =COUNTIF(L28:L38,AD11) -> 0 | AF11: =AE11/(AG4-AE8) -> 0 | AG11: =IF(AF11=0,0,(AF11*((LOG(AF11))/LOG(2)))) -> 0 | AI11: =N11 -> 0 | AJ11: =COUNTIF(L39:L48,AI11) -> 0 | AK11: =AJ11/(AL4-AJ8) -> 0 | AL11: =IF(AK11=0,0,(AK11*((LOG(AK11))/LOG(2)))) -> 0 | AN11: =N11 -> 0 | AO11: =COUNTIF(L49:L59,AN11) -> 0 | AP11: =AO11/(AQ4-AO8) -> 0 | AQ11: =IF(AP11=0,0,(AP11*((LOG(AP11))/LOG(2)))) -> 0 | AS11: =N11 -> 0 | AT11: =COUNTIF(L60:L69,AS11) -> 0 | AU11: =AT11/(AV4-AT8) -> 0 | AV11: =IF(AU11=0,0,(AU11*((LOG(AU11))/LOG(2)))) -> 0
A12: 11 | B12: 583 | C12: 21 | D12: 598 | K12: 0 | L12: 12 | T12: =N12 -> 0 | U12: =COUNTIF(L7:L17,T12) -> 0 | V12: =U12/(W4-U8) -> 0 | W12: =IF(V12=0,0,(V12*((LOG(V12))/LOG(2)))) -> 0 | Y12: =N12 -> 0 | Z12: =COUNTIF(L18:L27,Y12) -> 0 | AA12: =Z12/(AB4-Z8) -> 0 | AB12: =IF(AA12=0,0,(AA12*((LOG(AA12))/LOG(2)))) -> 0 | AD12: =N12 -> 0 | AE12: =COUNTIF(L28:L38,AD12) -> 0 | AF12: =AE12/(AG4-AE8) -> 0 | AG12: =IF(AF12=0,0,(AF12*((LOG(AF12))/LOG(2)))) -> 0 | AI12: =N12 -> 0 | AJ12: =COUNTIF(L39:L48,AI12) -> 0 | AK12: =AJ12/(AL4-AJ8) -> 0 | AL12: =IF(AK12=0,0,(AK12*((LOG(AK12))/LOG(2)))) -> 0 | AN12: =N12 -> 0 | AO12: =COUNTIF(L49:L59,AN12) -> 0 | AP12: =AO12/(AQ4-AO8) -> 0 | AQ12: =IF(AP12=0,0,(AP12*((LOG(AP12))/LOG(2)))) -> 0 | AS12: =N12 -> 0 | AT12: =COUNTIF(L60:L69,AS12) -> 0 | AU12: =AT12/(AV4-AT8) -> 0 | AV12: =IF(AU12=0,0,(AU12*((LOG(AU12))/LOG(2)))) -> 0
A13: 22 | B13: 706 | C13: 23 | D13: 735 | K13: 0 | L13: 22 | T13: =N13 -> 0 | U13: =COUNTIF(L7:L17,T13) -> 0 | V13: =U13/(W4-U8) -> 0 | W13: =IF(V13=0,0,(V13*((LOG(V13))/LOG(2)))) -> 0 | Y13: =N13 -> 0 | Z13: =COUNTIF(L18:L27,Y13) -> 0 | AA13: =Z13/(AB4-Z8) -> 0 | AB13: =IF(AA13=0,0,(AA13*((LOG(AA13))/LOG(2)))) -> 0 | AD13: =N13 -> 0 | AE13: =COUNTIF(L28:L38,AD13) -> 0 | AF13: =AE13/(AG4-AE8) -> 0 | AG13: =IF(AF13=0,0,(AF13*((LOG(AF13))/LOG(2)))) -> 0 | AI13: =N13 -> 0 | AJ13: =COUNTIF(L39:L48,AI13) -> 0 | AK13: =AJ13/(AL4-AJ8) -> 0 | AL13: =IF(AK13=0,0,(AK13*((LOG(AK13))/LOG(2)))) -> 0 | AN13: =N13 -> 0 | AO13: =COUNTIF(L49:L59,AN13) -> 0 | AP13: =AO13/(AQ4-AO8) -> 0 | AQ13: =IF(AP13=0,0,(AP13*((LOG(AP13))/LOG(2)))) -> 0 | AS13: =N13 -> 0 | AT13: =COUNTIF(L60:L69,AS13) -> 0 | AU13: =AT13/(AV4-AT8) -> 0 | AV13: =IF(AU13=0,0,(AU13*((LOG(AU13))/LOG(2)))) -> 0
A14: 11 | B14: 875 | C14: 21 | D14: 888 | K14: 0 | L14: 12 | T14: =N14 -> 0 | U14: =COUNTIF(L7:L17,T14) -> 0 | V14: =U14/(W4-U8) -> 0 | W14: =IF(V14=0,0,(V14*((LOG(V14))/LOG(2)))) -> 0 | Y14: =N14 -> 0 | Z14: =COUNTIF(L18:L27,Y14) -> 0 | AA14: =Z14/(AB4-Z8) -> 0 | AB14: =IF(AA14=0,0,(AA14*((LOG(AA14))/LOG(2)))) -> 0 | AD14: =N14 -> 0 | AE14: =COUNTIF(L28:L38,AD14) -> 0 | AF14: =AE14/(AG4-AE8) -> 0 | AG14: =IF(AF14=0,0,(AF14*((LOG(AF14))/LOG(2)))) -> 0 | AI14: =N14 -> 0 | AJ14: =COUNTIF(L39:L48,AI14) -> 0 | AK14: =AJ14/(AL4-AJ8) -> 0 | AL14: =IF(AK14=0,0,(AK14*((LOG(AK14))/LOG(2)))) -> 0 | AN14: =N14 -> 0 | AO14: =COUNTIF(L49:L59,AN14) -> 0 | AP14: =AO14/(AQ4-AO8) -> 0 | AQ14: =IF(AP14=0,0,(AP14*((LOG(AP14))/LOG(2)))) -> 0 | AS14: =N14 -> 0 | AT14: =COUNTIF(L60:L69,AS14) -> 0 | AU14: =AT14/(AV4-AT8) -> 0 | AV14: =IF(AU14=0,0,(AU14*((LOG(AU14))/LOG(2)))) -> 0
A15: 11 | B15: 979 | C15: 12 | D15: 1001 | K15: 0 | L15: 11 | P15: =SUM(P7:P14) -> 1 | Q15: =-SUM(Q7:Q14) -> 1.652525267 | V15: =SUM(V7:V14) -> 1 | W15: =-SUM(W7:W14) -> 1.459147917 | AA15: =SUM(AA7:AA14) -> 1 | AB15: =-SUM(AB7:AB14) -> 0 | AF15: =SUM(AF7:AF14) -> 1 | AG15: =-SUM(AG7:AG14) -> 1 | AK15: =SUM(AK7:AK14) -> 1 | AL15: =-SUM(AL7:AL14) -> 1 | AP15: =SUM(AP7:AP14) -> 1 | AQ15: =-SUM(AQ7:AQ14) -> 0.6500224216 | AU15: =SUM(AU7:AU14) -> 1 | AV15: =-SUM(AV7:AV14) -> 0.9182958341
A16: 22 | B16: 1108 | C16: 23 | D16: 1116 | K16: 0 | L16: 22 | P16: U= | Q16: =Q15/(LOG(Q4)/LOG(2)) -> 0.2764677727 | V16: U1= | W16: =W15/(LOG(W4)/LOG(2)) -> 0.4217883392 | AA16: U2= | AB16: =AB15/(LOG(AB4)/LOG(2)) -> 0 | AF16: U3= | AG16: =AG15/(LOG(AG4)/LOG(2)) -> 0.2890648263 | AK16: U4= | AL16: =AL15/(LOG(AL4)/LOG(2)) -> 0.3010299957 | AP16: U5= | AQ16: =AQ15/(LOG(AQ4)/LOG(2)) -> 0.1878986184 | AU16: U6= | AV16: =AV15/(LOG(AV4)/LOG(2)) -> 0.2764345909
A17: 22 | B17: 1225 | C17: 23 | D17: 1239 | K17: 0 | L17: 22
A18: 11 | B18: 1350 | C18: 21 | D18: 1359 | K18: 0 | L18: 12
A19: 11 | B19: 1459 | C19: 21 | D19: 1492 | K19: 0 | L19: 12 | N19: Total Target Seq
A20: 11 | B20: 1589 | C20: 21 | D20: 1609 | K20: 0 | L20: 12 | N20: =COUNTIF(L7:L69,G3) -> 35 | P20: 11 | Q20: 10 | R20: 11 | S20: 10 | T20: 11 | U20: 10
A21: 11 | B21: 1706 | C21: 21 | D21: 1735 | K21: 0 | L21: 12 | P21: % of reinforcement given in 6 equal intervals based on number of trials
A22: 22 | B22: 1868 | C22: 23 | D22: 1900 | K22: 0 | L22: 22 | P22: %_1 | Q22: %_2 | R22: %_3 | S22: %_4 | T22: %_5 | U22: %_6
A23: 11 | B23: 2001 | C23: 21 | D23: 2009 | K23: 0 | L23: 12 | O23: target sequence | P23: =$G$3 -> 12 | Q23: =$G$3 -> 12 | R23: =$G$3 -> 12 | S23: =$G$3 -> 12 | T23: =$G$3 -> 12 | U23: =$G$3 -> 12
A24: 11 | B24: 2104 | C24: 21 | D24: 2112 | K24: 0 | L24: 12 | O24: total reinforcement | P24: =U8 -> 5 | Q24: =Z8 -> 8 | R24: =AE8 -> 7 | S24: =AJ8 -> 6 | T24: =AO8 -> 5 | U24: =AT8 -> 4
A25: 11 | B25: 2210 | C25: 21 | D25: 2219 | K25: 0 | L25: 12 | O25: % target
A26: 22 | B26: 2328 | C26: 23 | D26: 2342 | K26: 0 | L26: 22 | O26: CCRF
A27: 11 | B27: 2443 | C27: 21 | D27: 2451 | K27: 0 | L27: 12 | O27: % CCRf
A28: 22 | B28: 2553 | C28: 23 | D28: 2569 | K28: 0 | L28: 22 | O28: average response rate | P28: =D17/P20 -> 112.6363636 | Q28: =(D27-D17)/Q20 -> 121.2 | R28: =(D38-D27)/R20 -> 113.0909091 | S28: =(D48-D38)/S20 -> 124.4 | T28: =(D59-D48)/T20 -> 167.8181818 | U28: =(D69-D59)/U20 -> 369.9
A29: 11 | B29: 2667 | C29: 21 | D29: 2674 | K29: 0 | L29: 12
A30: 22 | B30: 2773 | C30: 14 | D30: 2781 | K30: 0 | L30: 21
A31: 11 | B31: 2883 | C31: 21 | D31: 2897 | K31: 0 | L31: 12
A32: 11 | B32: 2993 | C32: 21 | D32: 3000 | K32: 0 | L32: 12
A33: 22 | B33: 3112 | C33: 14 | D33: 3140 | K33: 0 | L33: 21
A34: 11 | B34: 3248 | C34: 21 | D34: 3262 | K34: 0 | L34: 12
A35: 11 | B35: 3363 | C35: 21 | D35: 3371 | K35: 0 | L35: 12
A36: 11 | B36: 3466 | C36: 21 | D36: 3473 | K36: 0 | L36: 12
A37: 22 | B37: 3576 | C37: 23 | D37: 3583 | K37: 0 | L37: 22
A38: 11 | B38: 3688 | C38: 21 | D38: 3695 | K38: 0 | L38: 12
A39: 11 | B39: 3795 | C39: 21 | D39: 3815 | K39: 0 | L39: 12
A40: 22 | B40: 3923 | C40: 23 | D40: 3930 | K40: 0 | L40: 22
A41: 11 | B41: 4036 | C41: 21 | D41: 4044 | K41: 0 | L41: 12
A42: 22 | B42: 4152 | C42: 23 | D42: 4163 | K42: 0 | L42: 22
A43: 11 | B43: 4276 | C43: 12 | D43: 4289 | K43: 0 | L43: 11
A44: 11 | B44: 4433 | C44: 12 | D44: 4442 | K44: 0 | L44: 11
A45: 11 | B45: 4544 | C45: 21 | D45: 4558 | K45: 0 | L45: 12
A46: 11 | B46: 4670 | C46: 21 | D46: 4681 | K46: 0 | L46: 12
A47: 11 | B47: 4788 | C47: 21 | D47: 4810 | K47: 0 | L47: 12
A48: 11 | B48: 4919 | C48: 21 | D48: 4939 | K48: 0 | L48: 12
A49: 22 | B49: 5070 | C49: 23 | D49: 5078 | K49: 0 | L49: 22
A50: 11 | B50: 5223 | C50: 21 | D50: 5230 | K50: 0 | L50: 12
A51: 11 | B51: 5337 | C51: 12 | D51: 5352 | K51: 0 | L51: 11
A52: 11 | B52: 5504 | C52: 12 | D52: 5512 | K52: 0 | L52: 11
A53: 11 | B53: 5658 | C53: 21 | D53: 5666 | K53: 0 | L53: 12
A54: 11 | B54: 5789 | C54: 12 | D54: 5806 | K54: 0 | L54: 11
A55: 11 | B55: 6023 | C55: 12 | D55: 6035 | K55: 0 | L55: 11
A56: 11 | B56: 6155 | C56: 21 | D56: 6169 | K56: 0 | L56: 12
A57: 11 | B57: 6351 | C57: 21 | D57: 6363 | K57: 0 | L57: 12
A58: 11 | B58: 6466 | C58: 21 | D58: 6476 | K58: 0 | L58: 12
A59: 11 | B59: 6777 | C59: 12 | D59: 6785 | K59: 0 | L59: 11
A60: 11 | B60: 6905 | C60: 21 | D60: 6916 | K60: 0 | L60: 12
A61: 11 | B61: 7023 | C61: 21 | D61: 7057 | K61: 0 | L61: 12
A62: 11 | B62: 7170 | C62: 21 | D62: 7191 | K62: 0 | L62: 12
A63: 11 | B63: 7289 | C63: 12 | D63: 7308 | K63: 0 | L63: 11
A64: 22 | B64: 7416 | C64: 14 | D64: 7424 | K64: 0 | L64: 21
A65: 22 | B65: 7789 | C65: 14 | D65: 7810 | K65: 0 | L65: 21
A66: 11 | B66: 7941 | C66: 12 | D66: 7974 | K66: 0 | L66: 11
A67: 11 | B67: 8542 | C67: 12 | D67: 10235 | K67: 0 | L67: 11
A68: 11 | B68: 10353 | C68: 21 | D68: 10365 | K68: 0 | L68: 12
A69: 11 | B69: 10475 | C69: 12 | D69: 10484 | K69: 1 | L69: 11

Sheet !N222940.095
A1: Report for:!N222940.095
A2: Date: | B2: <date>
A3: Hen: | B3: <hen> | F3: Correct Sequence | G3: =Start!J2 -> 12 | P3: Total Sequences in Data | Q3: =4994-COUNTBLANK(L7:L5000) -> 68 | V3: Total Sequences in Block Data | W3: =COUNTA(L7:L17) -> 11 | AA3: Total Sequences in Block Data | AB3: =COUNTA(L18:L29) -> 12 | AF3: Total Sequences in Block Data | AG3: =COUNTA(L30:L40) -> 11 | AK3: Total Sequences in Block Data | AL3: =COUNTA(L41:L51) -> 11 | AP3: Total Sequences in Block Data | AQ3: =COUNTA(L52:L63) -> 12 | AU3: Total Sequences in Block Data | AV3: =COUNTA(L64:L74) -> 11
P4: Total Sequences in Summary | Q4: =SUM(O7:O14) -> 68 | V4: Total Sequences in Block Summary | W4: =SUM(U7:U14) -> 11 | AA4: Total Sequences in Block Summary | AB4: =SUM(Z7:Z14) -> 12 | AF4: Total Sequences in Block Summary | AG4: =SUM(AE7:AE14) -> 11 | AK4: Total Sequences in Block Summary | AL4: =SUM(AJ7:AJ14) -> 11 | AP4: Total Sequences in Block Summary | AQ4: =SUM(AO7:AO14) -> 12 | AU4: Total Sequences in Block Summary | AV4: =SUM(AT7:AT14) -> 11
T5: Block 1 | Y5: Block 2 | AD5: Block 3 | AI5: Block 4 | AN5: Block 5 | AS5: Block 6
A6: Sequence Component 1 | B6: Time 1 | C6: Sequence Component 2 | D6: Time 2 | E6: Sequence Component 3 | F6: Time 3 | G6: Sequence Component 4 | H6: Time 4 | I6: Sequence Component 5 | J6: Time 5 | K6: Correct? 0=No 1=Yes | L6: Sequence | N6: Frequency | P6: Relative Frequency | Q6: Variability | T6: Frequency | V6: Relative Frequency | W6: Variability | Y6: Frequency | AA6: Relative Frequency | AB6: Variability | AD6: Frequency | AF6: Relative Frequency | AG6: Variability | AI6: Frequency | AK6: Relative Frequency | AL6: Variability | AN6: Frequency | AP6: Relative Frequency | AQ6: Variability | AS6: Frequency | AU6: Relative Frequency | AV6: Variability
A7: 11 | B7: 16 | C7: 21 | D7: 34 | K7: 0 | L7: 12 | N7: 11 | O7: =COUNTIF($L$7:$L$500,N7) -> 10 | P7: =O7/$Q$4 -> 0.1470588235 | Q7: =IF(P7=0,0,(P7*((LOG(P7))/LOG(2)))) -> -0.4066962862 | T7: =N7 -> 11 | U7: =COUNTIF(L7:L17,T7) -> 2 | V7: =U7/(W4-U8) -> 0.6666666667 | W7: =IF(V7=0,0,(V7*((LOG(V7))/LOG(2)))) -> -0.3899750005 | Y7: =N7 -> 11 | Z7: =COUNTIF(L18:L29,Y7) -> 4 | AA7: =Z7/(AB4-Z8) -> 0.5714285714 | AB7: =IF(AA7=0,0,(AA7*((LOG(AA7))/LOG(2)))) -> -0.4613456697 | AD7: =N7 -> 11 | AE7: =COUNTIF(L30:L40,AD7) -> 0 | AF7: =AE7/(AG4-AE8) -> 0 | AG7: =IF(AF7=0,0,(AF7*((LOG(AF7))/LOG(2)))) -> 0 | AI7: =N7 -> 11 | AJ7: =COUNTIF(L41:L51,AI7) -> 0 | AK7: =AJ7/(AL4-AJ8) -> 0 | AL7: =IF(AK7=0,0,(AK7*((LOG(AK7))/LOG(2)))) -> 0 | AN7: =N7 -> 11 | AO7: =COUNTIF(L52:L63,AN7) -> 0 | AP7: =AO7/(AQ4-AO8) -> 0 | AQ7: =IF(AP7=0,0,(AP7*((LOG(AP7))/LOG(2)))) -> 0 | AS7: =N7 -> 11 | AT7: =COUNTIF(L64:L74,AS7) -> 4 | AU7: =AT7/(AV4-AT8) -> 1 | AV7: =IF(AU7=0,0,(AU7*((LOG(AU7))/LOG(2)))) -> 0
A8: 11 | B8: 149 | C8: 21 | D8: 177 | K8: 0 | L8: 12 | N8: 12 | O8: =COUNTIF($L$7:$L$500,N8) -> 36 | P8: =O8/$Q$4 -> 0.5294117647 | Q8: =IF(P8=0,0,(P8*((LOG(P8))/LOG(2)))) -> -0.485755327 | T8: =N8 -> 12 | U8: =COUNTIF(L7:L17,T8) -> 8 | Y8: =N8 -> 12 | Z8: =COUNTIF(L18:L29,Y8) -> 5 | AD8: =N8 -> 12 | AE8: =COUNTIF(L30:L40,AD8) -> 7 | AI8: =N8 -> 12 | AJ8: =COUNTIF(L41:L51,AI8) -> 5 | AN8: =N8 -> 12 | AO8: =COUNTIF(L52:L63,AN8) -> 4 | AS8: =N8 -> 12 | AT8: =COUNTIF(L64:L74,AS8) -> 7
A9: 11 | B9: 278 | C9: 21 | D9: 291 | K9: 0 | L9: 12 | N9: 21 | O9: =COUNTIF($L$7:$L$500,N9) -> 8 | P9: =O9/$Q$4 -> 0.1176470588 | Q9: =IF(P9=0,0,(P9*((LOG(P9))/LOG(2)))) -> -0.3632309225 | T9: =N9 -> 21 | U9: =COUNTIF(L7:L17,T9) -> 1 | V9: =U9/(W4-U8) -> 0.3333333333 | W9: =IF(V9=0,0,(V9*((LOG(V9))/LOG(2)))) -> -0.5283208336 | Y9: =N9 -> 21 | Z9: =COUNTIF(L18:L29,Y9) -> 1 | AA9: =Z9/(AB4-Z8) -> 0.1428571429 | AB9: =IF(AA9=0,0,(AA9*((LOG(AA9))/LOG(2)))) -> -0.4010507032 | AD9: =N9 -> 21 | AE9: =COUNTIF(L30:L40,AD9) -> 2 | AF9: =AE9/(AG4-AE8) -> 0.5 | AG9: =IF(AF9=0,0,(AF9*((LOG(AF9))/LOG(2)))) -> -0.5 | AI9: =N9 -> 21 | AJ9: =COUNTIF(L41:L51,AI9) -> 1 | AK9: =AJ9/(AL4-AJ8) -> 0.1666666667 | AL9: =IF(AK9=0,0,(AK9*((LOG(AK9))/LOG(2)))) -> -0.4308270835 | AN9: =N9 -> 21 | AO9: =COUNTIF(L52:L63,AN9) -> 3 | AP9: =AO9/(AQ4-AO8) -> 0.375 | AQ9: =IF(AP9=0,0,(AP9*((LOG(AP9))/LOG(2)))) -> -0.5306390622 | AS9: =N9 -> 21 | AT9: =COUNTIF(L64:L74,AS9) -> 0 | AU9: =AT9/(AV4-AT8) -> 0 | AV9: =IF(AU9=0,0,(AU9*((LOG(AU9))/LOG(2)))) -> 0
A10: 11 | B10: 394 | C10: 21 | D10: 406 | K10: 0 | L10: 12 | N10: 22 | O10: =COUNTIF($L$7:$L$500,N10) -> 14 | P10: =O10/$Q$4 -> 0.2058823529 | Q10: =IF(P10=0,0,(P10*((LOG(P10))/LOG(2)))) -> -0.4694339834 | T10: =N10 -> 22 | U10: =COUNTIF(L7:L17,T10) -> 0 | V10: =U10/(W4-U8) -> 0 | W10: =IF(V10=0,0,(V10*((LOG(V10))/LOG(2)))) -> 0 | Y10: =N10 -> 22 | Z10: =COUNTIF(L18:L29,Y10) -> 2 | AA10: =Z10/(AB4-Z8) -> 0.2857142857 | AB10: =IF(AA10=0,0,(AA10*((LOG(AA10))/LOG(2)))) -> -0.5163871206 | AD10: =N10 -> 22 | AE10: =COUNTIF(L30:L40,AD10) -> 2 | AF10: =AE10/(AG4-AE8) -> 0.5 | AG10: =IF(AF10=0,0,(AF10*((LOG(AF10))/LOG(2)))) -> -0.5 | AI10: =N10 -> 22 | AJ10: =COUNTIF(L41:L51,AI10) -> 5 | AK10: =AJ10/(AL4-AJ8) -> 0.8333333333 | AL10: =IF(AK10=0,0,(AK10*((LOG(AK10))/LOG(2)))) -> -0.2191953382 | AN10: =N10 -> 22 | AO10: =COUNTIF(L52:L63,AN10) -> 5 | AP10: =AO10/(AQ4-AO8) -> 0.625 | AQ10: =IF(AP10=0,0,(AP10*((LOG(AP10))/LOG(2)))) -> -0.4237949407 | AS10: =N10 -> 22 | AT10: =COUNTIF(L64:L74,AS10) -> 0 | AU10: =AT10/(AV4-AT8) -> 0 | AV10: =IF(AU10=0,0,(AU10*((LOG(AU10))/LOG(2)))) -> 0
A11: 11 | B11: 515 | C11: 21 | D11: 535 | K11: 0 | L11: 12 | T11: =N11 -> 0 | U11: =COUNTIF(L7:L17,T11) -> 0 | V11: =U11/(W4-U8) -> 0 | W11: =IF(V11=0,0,(V11*((LOG(V11))/LOG(2)))) -> 0 | Y11: =N11 -> 0 | Z11: =COUNTIF(L18:L29,Y11) -> 0 | AA11: =Z11/(AB4-Z8) -> 0 | AB11: =IF(AA11=0,0,(AA11*((LOG(AA11))/LOG(2)))) -> 0 | AD11: =N11 -> 0 | AE11: =COUNTIF(L30:L40,AD11) -> 0 | AF11: =AE11/(AG4-AE8) -> 0 | AG11: =IF(AF11=0,0,(AF11*((LOG(AF11))/LOG(2)))) -> 0 | AI11: =N11 -> 0 | AJ11: =COUNTIF(L41:L51,AI11) -> 0 | AK11: =AJ11/(AL4-AJ8) -> 0 | AL11: =IF(AK11=0,0,(AK11*((LOG(AK11))/LOG(2)))) -> 0 | AN11: =N11 -> 0 | AO11: =COUNTIF(L52:L63,AN11) -> 0 | AP11: =AO11/(AQ4-AO8) -> 0 | AQ11: =IF(AP11=0,0,(AP11*((LOG(AP11))/LOG(2)))) -> 0 | AS11: =N11 -> 0 | AT11: =COUNTIF(L64:L74,AS11) -> 0 | AU11: =AT11/(AV4-AT8) -> 0 | AV11: =IF(AU11=0,0,(AU11*((LOG(AU11))/LOG(2)))) -> 0
A12: 11 | B12: 629 | C12: 12 | D12: 638 | K12: 0 | L12: 11 | T12: =N12 -> 0 | U12: =COUNTIF(L7:L17,T12) -> 0 | V12: =U12/(W4-U8) -> 0 | W12: =IF(V12=0,0,(V12*((LOG(V12))/LOG(2)))) -> 0 | Y12: =N12 -> 0 | Z12: =COUNTIF(L18:L29,Y12) -> 0 | AA12: =Z12/(AB4-Z8) -> 0 | AB12: =IF(AA12=0,0,(AA12*((LOG(AA12))/LOG(2)))) -> 0 | AD12: =N12 -> 0 | AE12: =COUNTIF(L30:L40,AD12) -> 0 | AF12: =AE12/(AG4-AE8) -> 0 | AG12: =IF(AF12=0,0,(AF12*((LOG(AF12))/LOG(2)))) -> 0 | AI12: =N12 -> 0 | AJ12: =COUNTIF(L41:L51,AI12) -> 0 | AK12: =AJ12/(AL4-AJ8) -> 0 | AL12: =IF(AK12=0,0,(AK12*((LOG(AK12))/LOG(2)))) -> 0 | AN12: =N12 -> 0 | AO12: =COUNTIF(L52:L63,AN12) -> 0 | AP12: =AO12/(AQ4-AO8) -> 0 | AQ12: =IF(AP12=0,0,(AP12*((LOG(AP12))/LOG(2)))) -> 0 | AS12: =N12 -> 0 | AT12: =COUNTIF(L64:L74,AS12) -> 0 | AU12: =AT12/(AV4-AT8) -> 0 | AV12: =IF(AU12=0,0,(AU12*((LOG(AU12))/LOG(2)))) -> 0
A13: 11 | B13: 738 | C13: 21 | D13: 759 | K13: 0 | L13: 12 | T13: =N13 -> 0 | U13: =COUNTIF(L7:L17,T13) -> 0 | V13: =U13/(W4-U8) -> 0 | W13: =IF(V13=0,0,(V13*((LOG(V13))/LOG(2)))) -> 0 | Y13: =N13 -> 0 | Z13: =COUNTIF(L18:L29,Y13) -> 0 | AA13: =Z13/(AB4-Z8) -> 0 | AB13: =IF(AA13=0,0,(AA13*((LOG(AA13))/LOG(2)))) -> 0 | AD13: =N13 -> 0 | AE13: =COUNTIF(L30:L40,AD13) -> 0 | AF13: =AE13/(AG4-AE8) -> 0 | AG13: =IF(AF13=0,0,(AF13*((LOG(AF13))/LOG(2)))) -> 0 | AI13: =N13 -> 0 | AJ13: =COUNTIF(L41:L51,AI13) -> 0 | AK13: =AJ13/(AL4-AJ8) -> 0 | AL13: =IF(AK13=0,0,(AK13*((LOG(AK13))/LOG(2)))) -> 0 | AN13: =N13 -> 0 | AO13: =COUNTIF(L52:L63,AN13) -> 0 | AP13: =AO13/(AQ4-AO8) -> 0 | AQ13: =IF(AP13=0,0,(AP13*((LOG(AP13))/LOG(2)))) -> 0 | AS13: =N13 -> 0 | AT13: =COUNTIF(L64:L74,AS13) -> 0 | AU13: =AT13/(AV4-AT8) -> 0 | AV13: =IF(AU13=0,0,(AU13*((LOG(AU13))/LOG(2)))) -> 0
A14: 22 | B14: 866 | C14: 14 | D14: 876 | K14: 0 | L14: 21 | T14: =N14 -> 0 | U14: =COUNTIF(L7:L17,T14) -> 0 | V14: =U14/(W4-U8) -> 0 | W14: =IF(V14=0,0,(V14*((LOG(V14))/LOG(2)))) -> 0 | Y14: =N14 -> 0 | Z14: =COUNTIF(L18:L29,Y14) -> 0 | AA14: =Z14/(AB4-Z8) -> 0 | AB14: =IF(AA14=0,0,(AA14*((LOG(AA14))/LOG(2)))) -> 0 | AD14: =N14 -> 0 | AE14: =COUNTIF(L30:L40,AD14) -> 0 | AF14: =AE14/(AG4-AE8) -> 0 | AG14: =IF(AF14=0,0,(AF14*((LOG(AF14))/LOG(2)))) -> 0 | AI14: =N14 -> 0 | AJ14: =COUNTIF(L41:L51,AI14) -> 0 | AK14: =AJ14/(AL4-AJ8) -> 0 | AL14: =IF(AK14=0,0,(AK14*((LOG(AK14))/LOG(2)))) -> 0 | AN14: =N14 -> 0 | AO14: =COUNTIF(L52:L63,AN14) -> 0 | AP14: =AO14/(AQ4-AO8) -> 0 | AQ14: =IF(AP14=0,0,(AP14*((LOG(AP14))/LOG(2)))) -> 0 | AS14: =N14 -> 0 | AT14: =COUNTIF(L64:L74,AS14) -> 0 | AU14: =AT14/(AV4-AT8) -> 0 | AV14: =IF(AU14=0,0,(AU14*((LOG(AU14))/LOG(2)))) -> 0
A15: 11 | B15: 978 | C15: 21 | D15: 996 | K15: 0 | L15: 12 | P15: =SUM(P7:P14) -> 1 | Q15: =-SUM(Q7:Q14) -> 1.725116519 | V15: =SUM(V7:V14) -> 1 | W15: =-SUM(W7:W14) -> 0.9182958341 | AA15: =SUM(AA7:AA14) -> 1 | AB15: =-SUM(AB7:AB14) -> 1.378783493 | AF15: =SUM(AF7:AF14) -> 1 | AG15: =-SUM(AG7:AG14) -> 1 | AK15: =SUM(AK7:AK14) -> 1 | AL15: =-SUM(AL7:AL14) -> 0.6500224216 | AP15: =SUM(AP7:AP14) -> 1 | AQ15: =-SUM(AQ7:AQ14) -> 0.9544340029 | AU15: =SUM(AU7:AU14) -> 1 | AV15: =-SUM(AV7:AV14) -> 0
A16: 11 | B16: 1093 | C16: 12 | D16: 1105 | K16: 0 | L16: 11 | P16: U= | Q16: =Q15/(LOG(Q4)/LOG(2)) -> 0.283388427 | V16: U1= | W16: =W15/(LOG(W4)/LOG(2)) -> 0.2654470258 | AA16: U2= | AB16: =AB15/(LOG(AB4)/LOG(2)) -> 0.3846019291 | AF16: U3= | AG16: =AG15/(LOG(AG4)/LOG(2)) -> 0.2890648263 | AK16: U4= | AL16: =AL15/(LOG(AL4)/LOG(2)) -> 0.1878986184 | AP16: U5= | AQ16: =AQ15/(LOG(AQ4)/LOG(2)) -> 0.2662326322 | AU16: U6= | AV16: =AV15/(LOG(AV4)/LOG(2)) -> 0
A17: 11 | B17: 1211 | C17: 21 | D17: 1225 | K17: 0 | L17: 12
A18: 11 | B18: 1324 | C18: 12 | D18: 1341 | K18: 0 | L18: 11
A19: 11 | B19: 1442 | C19: 12 | D19: 1446 | K19: 0 | L19: 11 | N19: Total Target Seq
A20: 11 | B20: 1553 | C20: 21 | D20: 1581 | K20: 0 | L20: 12 | N20: =COUNTIF(L7:L74,G3) -> 36 | P20: 11 | Q20: 12 | R20: 11 | S20: 11 | T20: 12 | U20: 11
A21: 11 | B21: 1683 | C21: 21 | D21: 1694 | K21: 0 | L21: 12 | P21: % of reinforcement given in 6 equal intervals based on number of trials
A22: 11 | B22: 1795 | C22: 12 | D22: 1805 | K22: 0 | L22: 11 | P22: %_1 | Q22: %_2 | R22: %_3 | S22: %_4 | T22: %_5 | U22: %_6
A23: 22 | B23: 1924 | C23: 14 | D23: 1933 | K23: 0 | L23: 21 | O23: target sequence | P23: =$G$3 -> 12 | Q23: =$G$3 -> 12 | R23: =$G$3 -> 12 | S23: =$G$3 -> 12 | T23: =$G$3 -> 12 | U23: =$G$3 -> 12
A24: 11 | B24: 2034 | C24: 12 | D24: 2040 | K24: 0 | L24: 11 | O24: total reinforcement | P24: =U8 -> 8 | Q24: =Z8 -> 5 | R24: =AE8 -> 7 | S24: =AJ8 -> 5 | T24: =AO8 -> 4 | U24: =AT8 -> 7
A25: 11 | B25: 2164 | C25: 21 | D25: 2174 | K25: 0 | L25: 12 | O25: % target
A26: 22 | B26: 2279 | C26: 23 | D26: 2285 | K26: 0 | L26: 22 | O26: CCRF
A27: 11 | B27: 2391 | C27: 21 | D27: 2399 | K27: 0 | L27: 12 | O27: % CCRf
A28: 11 | B28: 2501 | C28: 21 | D28: 2526 | K28: 0 | L28: 12 | O28: average response rate | P28: =D17/P20 -> 111.3636364 | Q28: =(D29-D17)/Q20 -> 122.75 | R28: =(D40-D29)/R20 -> 126 | S28: =(D51-D40)/S20 -> 135 | T28: =(D63-D51)/T20 -> 188.3333333 | U28: =(D74-D63)/U20 -> 211
A29: 22 | B29: 2688 | C29: 23 | D29: 2698 | K29: 0 | L29: 22
A30: 11 | B30: 2800 | C30: 21 | D30: 2807 | K30: 0 | L30: 12
A31: 22 | B31: 2908 | C31: 14 | D31: 2915 | K31: 0 | L31: 21
A32: 22 | B32: 3025 | C32: 23 | D32: 3034 | K32: 0 | L32: 22
A33: 11 | B33: 3133 | C33: 21 | D33: 3141 | K33: 0 | L33: 12
A34: 22 | B34: 3247 | C34: 14 | D34: 3262 | K34: 0 | L34: 21
A35: 22 | B35: 3376 | C35: 23 | D35: 3422 | K35: 0 | L35: 22
A36: 11 | B36: 3537 | C36: 21 | D36: 3560 | K36: 0 | L36: 12
A37: 11 | B37: 3678 | C37: 21 | D37: 3693 | K37: 0 | L37: 12
A38: 11 | B38: 3805 | C38: 21 | D38: 3813 | K38: 0 | L38: 12
A39: 11 | B39: 3928 | C39: 21 | D39: 3977 | K39: 0 | L39: 12
A40: 11 | B40: 4076 | C40: 21 | D40: 4084 | K40: 0 | L40: 12
A41: 22 | B41: 4244 | C41: 23 | D41: 4260 | K41: 0 | L41: 22
A42: 22 | B42: 4377 | C42: 23 | D42: 4384 | K42: 0 | L42: 22
A43: 11 | B43: 4487 | C43: 21 | D43: 4494 | K43: 0 | L43: 12
A44: 11 | B44: 4609 | C44: 21 | D44: 4657 | K44: 0 | L44: 12
A45: 22 | B45: 4769 | C45: 23 | D45: 4778 | K45: 0 | L45: 22
A46: 11 | B46: 4883 | C46: 21 | D46: 4890 | K46: 0 | L46: 12
A47: 22 | B47: 5005 | C47: 14 | D47: 5013 | K47: 0 | L47: 21
A48: 22 | B48: 5142 | C48: 23 | D48: 5148 | K48: 0 | L48: 22
A49: 11 | B49: 5264 | C49: 21 | D49: 5277 | K49: 0 | L49: 12
A50: 11 | B50: 5378 | C50: 21 | D50: 5423 | K50: 0 | L50: 12
A51: 22 | B51: 5542 | C51: 23 | D51: 5569 | K51: 0 | L51: 22
A52: 11 | B52: 5701 | C52: 21 | D52: 5710 | K52: 0 | L52: 12
A53: 11 | B53: 5813 | C53: 21 | D53: 5820 | K53: 0 | L53: 12
A54: 22 | B54: 5949 | C54: 14 | D54: 5993 | K54: 0 | L54: 21
A55: 22 | B55: 6115 | C55: 23 | D55: 6121 | K55: 0 | L55: 22
A56: 22 | B56: 6284 | C56: 14 | D56: 6307 | K56: 0 | L56: 21
A57: 11 | B57: 6433 | C57: 21 | D57: 6468 | K57: 0 | L57: 12
A58: 22 | B58: 6608 | C58: 23 | D58: 6696 | K58: 0 | L58: 22
A59: 22 | B59: 6827 | C59: 23 | D59: 6846 | K59: 0 | L59: 22
A60: 11 | B60: 6972 | C60: 21 | D60: 6980 | K60: 0 | L60: 12
A61: 22 | B61: 7150 | C61: 23 | D61: 7158 | K61: 0 | L61: 22
A62: 22 | B62: 7271 | C62: 23 | D62: 7281 | K62: 0 | L62: 22
A63: 22 | B63: 7692 | C63: 14 | D63: 7829 | K63: 0 | L63: 21
A64: 11 | B64: 7963 | C64: 21 | D64: 7971 | K64: 0 | L64: 12
A65: 11 | B65: 8118 | C65: 21 | D65: 8126 | K65: 0 | L65: 12
A66: 11 | B66: 8227 | C66: 12 | D66: 8237 | K66: 0 | L66: 11
A67: 11 | B67: 8386 | C67: 12 | D67: 8647 | K67: 0 | L67: 11
A68: 11 | B68: 8808 | C68: 21 | D68: 8831 | K68: 0 | L68: 12
A69: 11 | B69: 8964 | C69: 12 | D69: 9013 | K69: 0 | L69: 11
A70: 11 | B70: 9269 | C70: 12 | D70: 9461 | K70: 0 | L70: 11
A71: 11 | B71: 9654 | C71: 21 | D71: 9682 | K71: 0 | L71: 12
A72: 11 | B72: 9821 | C72: 21 | D72: 9847 | K72: 0 | L72: 12
A73: 11 | B73: 9966 | C73: 21 | D73: 9987 | K73: 0 | L73: 12
A74: 11 | B74: 10135 | C74: 21 | D74: 10150 | K74: 1 | L74: 12

Sheet !N223930.095
A1: Report for:!N223930.095
A2: Date: | B2: <date>
A3: Hen: | B3: <hen> | F3: Correct Sequence | G3: =Start!J2 -> 12 | P3: Total Sequences in Data | Q3: =4994-COUNTBLANK(L7:L5000) -> 57 | V3: Total Sequences in Block Data | W3: =COUNTA(L7:L16) -> 10 | AA3: Total Sequences in Block Data | AB3: =COUNTA(L17:L25) -> 9 | AF3: Total Sequences in Block Data | AG3: =COUNTA(L26:L35) -> 10 | AK3: Total Sequences in Block Data | AL3: =COUNTA(L36:L44) -> 9 | AP3: Total Sequences in Block Data | AQ3: =COUNTA(L45:L54) -> 10 | AU3: Total Sequences in Block Data | AV3: =COUNTA(L55:L63) -> 9
P4: Total Sequences in Summary | Q4: =SUM(O7:O14) -> 57 | V4: Total Sequences in Block Summary | W4: =SUM(U7:U14) -> 10 | AA4: Total Sequences in Block Summary | AB4: =SUM(Z7:Z14) -> 9 | AF4: Total Sequences in Block Summary | AG4: =SUM(AE7:AE14) -> 10 | AK4: Total Sequences in Block Summary | AL4: =SUM(AJ7:AJ14) -> 9 | AP4: Total Sequences in Block Summary | AQ4: =SUM(AO7:AO14) -> 10 | AU4: Total Sequences in Block Summary | AV4: =SUM(AT7:AT14) -> 9
T5: Block 1 | Y5: Block 2 | AD5: Block 3 | AI5: Block 4 | AN5: Block 5 | AS5: Block 6
A6: Sequence Component 1 | B6: Time 1 | C6: Sequence Component 2 | D6: Time 2 | E6: Sequence Component 3 | F6: Time 3 | G6: Sequence Component 4 | H6: Time 4 | I6: Sequence Component 5 | J6: Time 5 | K6: Correct? 0=No 1=Yes | L6: Sequence | N6: Frequency | P6: Relative Frequency | Q6: Variability | T6: Frequency | V6: Relative Frequency | W6: Variability | Y6: Frequency | AA6: Relative Frequency | AB6: Variability | AD6: Frequency | AF6: Relative Frequency | AG6: Variability | AI6: Frequency | AK6: Relative Frequency | AL6: Variability | AN6: Frequency | AP6: Relative Frequency | AQ6: Variability | AS6: Frequency | AU6: Relative Frequency | AV6: Variability
